Workbook

Sheet Data
D2: Health Net of Arizona, Inc.
B4: Please enter the group information here and on the "Census" sheet.
B5: (Make your entries in the BLUE cells)
B6: After all data is entered click the "SAVE PROPOSAL" button to generate quote.
B8: Data Name | C8: Data Value
B9: Group Name: | C9: Example Group
B10: Total EEs: | C10: 7 | D10: <== This should not be more than 50.
B11: Effective Date: | C11: 2018-04-01
B12: County: | C12: Maricopa
B13: Rating Area: | C13: =VLOOKUP(Grp_County,county_tbl,2,FALSE) -> Rating Area 4
B15: Sales Representative: | C15: Sales Representative
B16: Broker Name: | C16: Broker Smith
B17: Broker Phone Number: | C17: (123) 456-7890
B19: Census: | C19: Enter on Sheet Census
B21: Effective Date Range
B22: Minimum: | C22: 2018-04-01
B23: Maximum: | C23: 2018-06-30

Sheet Census
B2: Life and Health Census | AD2: Quarter | AF2: =SUM(AD19:DD218) -> 144187.82
AC3: Trend | AD3: 2 | AF3: =SUM(Calc_Memo!S13:S24,Calc_Memo!S29:S33,Calc_Memo!S38:S42) -> 144187.82
B4: ="Group Name: "&Grp_Name -> Group Name: Example Group | AB4: HMO | AC4: 0.08 | AD4: =(1+AC4)^((AD$3-1)/4) -> 1.019426547 | AF4: =SUM(Calc_pg1:Calc_pg5!D64:O64) -> 144187.82
B5: Total Number of EE's in Group : | F5: =Total_EEs -> 7 | AB5: PPO | AC5: 0.08485271061 | AD5: =(1+AC5)^((AD$3-1)/4) -> 1.020569757 | AF5: =AND(AF2=AF3,AF3=AF4) -> TRUE
S6: Vision Subs
B7: ="Age of the member is taken as of the effective date: " & TEXT(DATE(YEAR(Eff_Dt),MONTH(Eff_Dt),DAY(Eff_Dt)),"mm/dd/yyyy") & "." -> Age of the member is taken as of the effective date: 04/01/2018. | S7: Tier | T7: Subs | U7: Spouse | V7: Child | X7: Tier | Y7: Subs | Z7: Tier Factor
S8: 1 | T8: =COUNTIF($W$19:$W$218,$S8) -> 4 | U8: =SUMIF($W$19:$W$218,$S8,U$19:U$218) -> 0 | V8: =SUMIF($W$19:$W$218,$S8,V$19:V$218) -> 0 | X8: 1 | Y8: =COUNTIF($AB$19:$AB$218,X8) -> 3 | Z8: 1
B9: Family members must be entered in the following order: | S9: 2 | T9: =COUNTIF($W$19:$W$218,S9) -> 2 | U9: =SUMIF($W$19:$W$218,$S9,U$19:U$218) -> 2 | V9: 0 | X9: 2 | Y9: =COUNTIF($AB$19:$AB$218,X9) -> 1 | Z9: 2 | AD9: =AD18 -> 51485AZ0160003 | AE9: 51485AZ0160005 | AF9: 51485AZ0160035 | AG9: 51485AZ0160036 | AH9: 51485AZ0160033 | AI9: 51485AZ0160038 | AJ9: 51485AZ0160039 | AK9: 51485AZ0160040 | AL9: 51485AZ0160032 | AM9: 51485AZ0160031 | AN9: 51485AZ0160037 | AO9: 51485AZ0160034 | AP9: 91450AZ0160005 | AQ9: 91450AZ0160020 | AR9: 91450AZ0160021 | AS9: 91450AZ0160019 | AT9: 91450AZ0160022 | AU9: 91450AZ0090025 | AV9: 91450AZ0090027 | AW9: 91450AZ0090028 | AX9: 91450AZ0090026 | AY9: 91450AZ0090029
B10: Employee | S10: 3 | T10: 0 | U10: 0 | V10: 0 | X10: 3 | Y10: =COUNTIF($AB$19:$AB$218,X10) -> 1 | Z10: 1.95 | AD10: =SUM(AD19:AD218) -> 9826.18 | AE10: =SUM(AE19:AE218) -> 8238.94 | AF10: 7927.5 | AG10: 6625.34 | AH10: 5939.56 | AI10: 6318.46 | AJ10: 5506.74 | AK10: 4789.23 | AL10: 5041.67 | AM10: 6010.31 | AN10: 6334.3 | AO10: 5154.77 | AP10: 7813.1 | AQ10: 7559.42 | AR10: 7363.38 | AS10: 6478.49 | AT10: 6420.1 | AU10: 6742.32 | AV10: 6523.46 | AW10: 6354.28 | AX10: 5680.02 | AY10: 5540.25
B11: Spouse | S11: 4 | T11: 1 | U11: 1 | V11: 2 | X11: 4 | Y11: =COUNTIF($AB$19:$AB$218,X11) -> 2 | Z11: 3.3
B12: Children (Oldest to youngest) | T12: =SUM(T8:T11) -> 7 | U12: =SUM(U8:U11) -> 3 | V12: 2 | Y12: =SUM(Y8:Y11) -> 7 | Z12: =SUMPRODUCT(Y8:Y11,Z8:Z11) -> 13.55 | AB12: Product | AD12: =IF(VLOOKUP(AD18,Plan_tbl,7,FALSE)="HSA","PPO",VLOOKUP(AD18,Plan_tbl,7,FALSE)) -> PPO | AE12: =IF(VLOOKUP(AE18,Plan_tbl,7,FALSE)="HSA","PPO",VLOOKUP(AE18,Plan_tbl,7,FALSE)) -> PPO | AF12: PPO | AG12: PPO | AH12: PPO | AI12: PPO | AJ12: PPO | AK12: PPO | AL12: PPO | AM12: PPO | AN12: PPO | AO12: PPO | AP12: HMO | AQ12: HMO | AR12: HMO | AS12: HMO | AT12: HMO | AU12: HMO | AV12: HMO | AW12: HMO | AX12: HMO | AY12: HMO
B13: If members are not entered in the correct order rates may not calculate correctly. | Y13: CF | Z13: =Mems/Z12 -> 1.254612546 | AB13: Trend | AD13: =VLOOKUP(AD12,$AB$4:$AD$5,3,FALSE) -> 1.020569757 | AE13: =VLOOKUP(AE12,$AB$4:$AD$5,3,FALSE) -> 1.020569757 | AF13: 1.020569757 | AG13: 1.020569757 | AH13: 1.020569757 | AI13: 1.020569757 | AJ13: 1.020569757 | AK13: 1.020569757 | AL13: 1.020569757 | AM13: 1.020569757 | AN13: 1.020569757 | AO13: 1.020569757 | AP13: 1.019426547 | AQ13: 1.019426547 | AR13: 1.019426547 | AS13: 1.019426547 | AT13: 1.019426547 | AU13: 1.019426547 | AV13: 1.019426547 | AW13: 1.019426547 | AX13: 1.019426547 | AY13: 1.019426547
T14: Age 19+: | U14: =COUNTIF(Age_Input,">=19") -> 12 | AB14: Area Factor | AD14: =VLOOKUP(Rating_Area,Area_Factors,MATCH(AD12,Lookups!$H$4:$J$4,0),FALSE) -> 1.012373591 | AE14: =VLOOKUP(Rating_Area,Area_Factors,MATCH(AE12,Lookups!$H$4:$J$4,0),FALSE) -> 1.012373591 | AF14: =VLOOKUP(Rating_Area,Area_Factors,MATCH(AF12,Lookups!$H$4:$J$4,0),FALSE) -> 1.012373591 | AG14: =VLOOKUP(Rating_Area,Area_Factors,MATCH(AG12,Lookups!$H$4:$J$4,0),FALSE) -> 1.012373591 | AH14: =VLOOKUP(Rating_Area,Area_Factors,MATCH(AH12,Lookups!$H$4:$J$4,0),FALSE) -> 1.012373591 | AI14: =VLOOKUP(Rating_Area,Area_Factors,MATCH(AI12,Lookups!$H$4:$J$4,0),FALSE) -> 1.012373591 | AJ14: =VLOOKUP(Rating_Area,Area_Factors,MATCH(AJ12,Lookups!$H$4:$J$4,0),FALSE) -> 1.012373591 | AK14: =VLOOKUP(Rating_Area,Area_Factors,MATCH(AK12,Lookups!$H$4:$J$4,0),FALSE) -> 1.012373591 | AL14: =VLOOKUP(Rating_Area,Area_Factors,MATCH(AL12,Lookups!$H$4:$J$4,0),FALSE) -> 1.012373591 | AM14: =VLOOKUP(Rating_Area,Area_Factors,MATCH(AM12,Lookups!$H$4:$J$4,0),FALSE) -> 1.012373591 | AN14: =VLOOKUP(Rating_Area,Area_Factors,MATCH(AN12,Lookups!$H$4:$J$4,0),FALSE) -> 1.012373591 | AO14: =VLOOKUP(Rating_Area,Area_Factors,MATCH(AO12,Lookups!$H$4:$J$4,0),FALSE) -> 1.012373591 | AP14: =VLOOKUP(Rating_Area,Area_Factors,MATCH(AP12,Lookups!$H$4:$J$4,0),FALSE) -> 1.080180373 | AQ14: =VLOOKUP(Rating_Area,Area_Factors,MATCH(AQ12,Lookups!$H$4:$J$4,0),FALSE) -> 1.080180373 | AR14: =VLOOKUP(Rating_Area,Area_Factors,MATCH(AR12,Lookups!$H$4:$J$4,0),FALSE) -> 1.080180373 | AS14: =VLOOKUP(Rating_Area,Area_Factors,MATCH(AS12,Lookups!$H$4:$J$4,0),FALSE) -> 1.080180373 | AT14: =VLOOKUP(Rating_Area,Area_Factors,MATCH(AT12,Lookups!$H$4:$J$4,0),FALSE) -> 1.080180373 | AU14: =VLOOKUP(Rating_Area,Area_Factors,MATCH(AU12,Lookups!$H$4:$J$4,0),FALSE) -> 1.080180373 | AV14: =VLOOKUP(Rating_Area,Area_Factors,MATCH(AV12,Lookups!$H$4:$J$4,0),FALSE) -> 1.080180373 | AW14: =VLOOKUP(Rating_Area,Area_Factors,MATCH(AW12,Lookups!$H$4:$J$4,0),FALSE) -> 1.080180373 | AX14: =VLOOKUP(Rating_Area,Area_Factors,MATCH(AX12,Lookups!$H$4:$J$4,0),FALSE) -> 1.080180373 | AY14: =VLOOKUP(Rating_Area,Area_Factors,MATCH(AY12,Lookups!$H$4:$J$4,0),FALSE) -> 1.080180373
B15: Note: Bracketed values for Member Type and Health are the only accepted values. | X15: Mems | Y15: =SUM(Y19:AA218) -> 17 | AB15: Q1 Base Rate | AD15: =VLOOKUP(AD18,Plan_tbl,27,FALSE) -> 460.6217049 | AE15: =VLOOKUP(AE18,Plan_tbl,27,FALSE) -> 386.2167127 | AF15: 371.6177585 | AG15: 310.5757837 | AH15: 278.4287765 | AI15: 296.1912211 | AJ15: 258.1397442 | AK15: 224.5040796 | AL15: 236.3389379 | AM15: 281.7458406 | AN15: 296.932244 | AO15: 241.6414906 | AP15: 343.6480046 | AQ15: 332.4903274 | AR15: 323.868486 | AS15: 284.9475232 | AT15: 282.3784648 | AU15: 296.5534091 | AV15: 286.9248149 | AW15: 279.4845375 | AX15: 249.8283131 | AY15: 243.6804383
B16: Rates will not be calculated if any other value is used. | X16: Dependents | Y16: =SUM(Z19:AA218) -> 10
T17: Vision | X17: Subs | Y17: =SUM(Y19:Y218) -> 7
B18: Employee Number | C18: Name and/or ID (Optional) | F18: Member Type | G18: Calculated Age | H18: Date of Birth | I18: Age | J18: Health (Y or N) | K18: Life Amount | L18: Modified* Amount | N18: Child Count | O18: Eligible | P18: Age Band | Q18: Age Band Life | R18: 19+ | S18: Vision Key | T18: Employee | U18: Spouse | V18: Child | W18: Tier | X18: Medical Key | Y18: Employee | Z18: Spouse | AA18: Child | AB18: Tier | AC18: Age Factor | AD18: 51485AZ0160003 | AE18: 51485AZ0160005 | AF18: 51485AZ0160035 | AG18: 51485AZ0160036 | AH18: 51485AZ0160033 | AI18: 51485AZ0160038 | AJ18: 51485AZ0160039 | AK18: 51485AZ0160040 | AL18: 51485AZ0160032 | AM18: 51485AZ0160031 | AN18: 51485AZ0160037 | AO18: 51485AZ0160034 | AP18: 91450AZ0160005 | AQ18: 91450AZ0160020 | AR18: 91450AZ0160021 | AS18: 91450AZ0160019 | AT18: 91450AZ0160022 | AU18: 91450AZ0090025 | AV18: 91450AZ0090027 | AW18: 91450AZ0090028 | AX18: 91450AZ0090026 | AY18: 91450AZ0090029
B19: 1 | C19: Employee 1 | F19: Employee | G19: =IF(TRIM($H19)="",I19,DATEDIF($H19,DATE(YEAR(Eff_Dt),MONTH(Eff_Dt),DAY(Eff_Dt)),"Y")) -> 27 | H19: 1990-04-05 | J19: Y | K19: 15000 | L19: =IF(F19<>"Employee",0,IF($G19>=75,0.35,IF($G19>=70,0.5,IF($G19>=65,0.65,1)))*MIN($K19,50000)) -> 15000 | N19: =IF(OR(F19<>"Child",G19>20),0,N18+1) -> 0 | O19: =IF(OR(F19="",J19="N"),0,IF(N19>3,0,1)) -> 1 | P19: =IF(TRIM(F19)="","",VLOOKUP(G19,Age_band,2,FALSE)) -> 27 | Q19: =IF(TRIM(F19)="Employee",VLOOKUP(G19,Age_band,3,FALSE),"") -> UNDER 30 | R19: =IF(TRIM(F19)="","",IF(G19>=19,"Y","N")) -> Y | S19: =B19&"/"&F19&"/"&R19 -> 1/Employee/Y | T19: =IF($F19="Employee",COUNTIF($S$19:$S$218,$B19&"/"&T$18&"/Y"),"") -> 1 | U19: =IF($F19="Employee",COUNTIF($S$19:$S$218,$B19&"/"&U$18&"/Y"),"") -> 1 | V19: 0 | W19: =IF($F19<>"Employee","",IF(U19>0,IF(V19>0,4,2),IF(V19=0,1,3))) -> 2 | X19: =B19&"/"&F19&"/"&J19 -> 1/Employee/Y | Y19: =IF($F19="Employee",COUNTIF($X$19:$X$218,$B19&"/"&Y$18&"/Y")*$O19,"") -> 1 | Z19: 1 | AA19: 1 | AB19: =IF(OR($F19<>"Employee",O19=0),"",IF(Z19>0,IF(AA19>0,4,2),IF(AA19=0,1,3))) -> 4 | AC19: =VLOOKUP(P19,Age_Factors,2,FALSE) -> 1.048 | AD19: =IF(ISNA($AC19),0,IF($P19<>"64 and over",ROUND(AD$15*AD$14*$AC19*AD$13,2),ROUND(AD$15*AD$14*AD$13,2)*3)*$O19) -> 498.76 | AE19: =IF(ISNA($AC19),0,IF($P19<>"64 and over",ROUND(AE$15*AE$14*$AC19*AE$13,2),ROUND(AE$15*AE$14*AE$13,2)*3)*$O19) -> 418.19 | AF19: 402.38 | AG19: 336.29 | AH19: 301.48 | AI19: 320.71 | AJ19: 279.51 | AK19: 243.09 | AL19: 255.91 | AM19: 305.07 | AN19: 321.52 | AO19: 261.65 | AP19: 396.58 | AQ19: 383.7 | AR19: 373.75 | AS19: 328.84 | AT19: 325.87 | AU19: 342.23 | AV19: 331.12 | AW19: 322.53 | AX19: 288.31 | AY19: 281.21
B20: =IF(TRIM(F20)="","",IF(F20="Employee",B19+1,B19)) -> 1 | C20: Employee 1 Spouse | F20: Spouse | G20: 26 | H20: 1991-12-15 | J20: Y | L20: =IF(F20<>"Employee",0,IF($G20>=75,0.35,IF($G20>=70,0.5,IF($G20>=65,0.65,1)))*MIN($K20,50000)) -> 0 | N20: 0 | O20: =IF(OR(F20="",J20="N"),0,IF(N20>3,0,1)) -> 1 | P20: 26 | R20: =IF(TRIM(F20)="","",IF(G20>=19,"Y","N")) -> Y | S20: =B20&"/"&F20&"/"&R20 -> 1/Spouse/Y | T20: =IF($F20="Employee",COUNTIF($S$19:$S$218,$B20&"/"&T$18&"/Y"),"") ->  | W20: =IF($F20<>"Employee","",IF(U20>0,IF(V20>0,4,2),IF(V20=0,1,3))) ->  | X20: =B20&"/"&F20&"/"&J20 -> 1/Spouse/Y | AB20: =IF(OR(F20<>"Employee",O20=0),"",IF(Z20>0,IF(AA20>0,4,2),IF(AA20=0,1,3))) ->  | AC20: 1.024 | AD20: =IF(ISNA($AC20),0,IF($P20<>"64 and over",ROUND(AD$15*AD$14*$AC20*AD$13,2),ROUND(AD$15*AD$14*AD$13,2)*3)*$O20) -> 487.34 | AE20: 408.62 | AF20: 393.17 | AG20: 328.59 | AH20: 294.58 | AI20: 313.37 | AJ20: 273.11 | AK20: 237.52 | AL20: 250.05 | AM20: 298.09 | AN20: 314.15 | AO20: 255.66 | AP20: 387.49 | AQ20: 374.91 | AR20: 365.19 | AS20: 321.3 | AT20: 318.41 | AU20: 334.39 | AV20: 323.53 | AW20: 315.14 | AX20: 281.7 | AY20: 274.77
B21: 1 | C21: Employee 1 Child | F21: Child | G21: 5 | H21: 2012-04-08 | J21: Y | K21: 0 | L21: 0 | N21: 1 | O21: 1 | P21: 0-14 | R21: N | S21: 1/Child/N | X21: 1/Child/Y | AC21: 0.765 | AD21: 364.07 | AE21: 305.26 | AF21: 293.73 | AG21: 245.48 | AH21: 220.07 | AI21: 234.11 | AJ21: 204.03 | AK21: 177.45 | AL21: 186.8 | AM21: 222.69 | AN21: 234.69 | AO21: 190.99 | AP21: 289.49 | AQ21: 280.09 | AR21: 272.82 | AS21: 240.04 | AT21: 237.87 | AU21: 249.81 | AV21: 241.7 | AW21: 235.44 | AX21: 210.45 | AY21: 205.27
B22: 2 | C22: Employee 2 | F22: Employee | G22: 41 | I22: 41 | J22: Y | K22: 15000 | L22: 15000 | N22: 0 | O22: 1 | P22: 41 | Q22: 40 - 44 | R22: Y | S22: 2/Employee/Y | T22: 1 | U22: 0 | V22: 0 | W22: 1 | X22: 2/Employee/Y | Y22: 1 | Z22: 0 | AA22: 0 | AB22: 1 | AC22: 1.302 | AD22: 619.64 | AE22: 519.55 | AF22: 499.91 | AG22: 417.79 | AH22: 374.55 | AI22: 398.44 | AJ22: 347.26 | AK22: 302.01 | AL22: 317.93 | AM22: 379.01 | AN22: 399.44 | AO22: 325.06 | AP22: 492.69 | AQ22: 476.7 | AR22: 464.34 | AS22: 408.53 | AT22: 404.85 | AU22: 425.17 | AV22: 411.37 | AW22: 400.7 | AX22: 358.18 | AY22: 349.37
B23: 3 | C23: Employee 3 | F23: Employee | G23: 43 | I23: 43 | J23: Y | K23: 15000 | L23: 15000 | N23: 0 | O23: 1 | P23: 43 | Q23: 40 - 44 | R23: Y | S23: 3/Employee/Y | T23: 1 | U23: 0 | V23: 0 | W23: 1 | X23: 3/Employee/Y | Y23: 1 | Z23: 0 | AA23: 0 | AB23: 1 | AC23: 1.357 | AD23: 645.81 | AE23: 541.49 | AF23: 521.03 | AG23: 435.44 | AH23: 390.37 | AI23: 415.27 | AJ23: 361.92 | AK23: 314.77 | AL23: 331.36 | AM23: 395.02 | AN23: 416.31 | AO23: 338.79 | AP23: 513.51 | AQ23: 496.83 | AR23: 483.95 | AS23: 425.79 | AT23: 421.95 | AU23: 443.13 | AV23: 428.75 | AW23: 417.63 | AX23: 373.31 | AY23: 364.13
B24: 4 | C24: Smith, Amy | F24: Employee | G24: 54 | H24: 1963-10-29 | J24: Y | K24: 15000 | L24: 15000 | N24: 0 | O24: 1 | P24: 54 | Q24: 50 - 54 | R24: Y | S24: 4/Employee/Y | T24: 1 | U24: 1 | V24: 2 | W24: 4 | X24: 4/Employee/Y | Y24: 1 | Z24: 1 | AA24: 5 | AB24: 4 | AC24: 2.135 | AD24: 1016.08 | AE24: 851.95 | AF24: 819.74 | AG24: 685.09 | AH24: 614.18 | AI24: 653.36 | AJ24: 569.42 | AK24: 495.23 | AL24: 521.33 | AM24: 621.5 | AN24: 655 | AO24: 533.03 | AP24: 807.91 | AQ24: 781.68 | AR24: 761.41 | AS24: 669.91 | AT24: 663.87 | AU24: 697.19 | AV24: 674.56 | AW24: 657.06 | AX24: 587.34 | AY24: 572.89
B25: 4 | C25: Smith, Joe | F25: Spouse | G25: 54 | H25: 1963-12-12 | J25: Y | L25: 0 | N25: 0 | O25: 1 | P25: 54 | R25: Y | S25: 4/Spouse/Y | X25: 4/Spouse/Y | AC25: 2.135 | AD25: 1016.08 | AE25: 851.95 | AF25: 819.74 | AG25: 685.09 | AH25: 614.18 | AI25: 653.36 | AJ25: 569.42 | AK25: 495.23 | AL25: 521.33 | AM25: 621.5 | AN25: 655 | AO25: 533.03 | AP25: 807.91 | AQ25: 781.68 | AR25: 761.41 | AS25: 669.91 | AT25: 663.87 | AU25: 697.19 | AV25: 674.56 | AW25: 657.06 | AX25: 587.34 | AY25: 572.89
B26: 4 | C26: Smith, Joey | F26: Child | G26: 27 | H26: 1990-05-14 | J26: Y | K26: 0 | L26: 0 | N26: 0 | O26: 1 | P26: 27 | R26: Y | S26: 4/Child/Y | X26: 4/Child/Y | AC26: 1.048 | AD26: 498.76 | AE26: 418.19 | AF26: 402.38 | AG26: 336.29 | AH26: 301.48 | AI26: 320.71 | AJ26: 279.51 | AK26: 243.09 | AL26: 255.91 | AM26: 305.07 | AN26: 321.52 | AO26: 261.65 | AP26: 396.58 | AQ26: 383.7 | AR26: 373.75 | AS26: 328.84 | AT26: 325.87 | AU26: 342.23 | AV26: 331.12 | AW26: 322.53 | AX26: 288.31 | AY26: 281.21
B27: 4 | C27: Smith, Betty | F27: Child | G27: 19 | H27: 1998-09-07 | J27: Y | K27: 0 | L27: 0 | N27: 1 | O27: 1 | P27: 19 | R27: Y | S27: 4/Child/Y | X27: 4/Child/Y | AC27: 0.941 | AD27: 447.83 | AE27: 375.5 | AF27: 361.3 | AG27: 301.95 | AH27: 270.7 | AI27: 287.97 | AJ27: 250.97 | AK27: 218.27 | AL27: 229.78 | AM27: 273.92 | AN27: 288.69 | AO27: 234.93 | AP27: 356.09 | AQ27: 344.53 | AR27: 335.59 | AS27: 295.26 | AT27: 292.6 | AU27: 307.29 | AV27: 297.31 | AW27: 289.6 | AX27: 258.87 | AY27: 252.5
B28: 4 | C28: Smith, Sam | F28: Child | G28: 18 | H28: 1999-12-11 | J28: Y | K28: 0 | L28: 0 | N28: 2 | O28: 1 | P28: 18 | R28: N | S28: 4/Child/N | X28: 4/Child/Y | AC28: 0.913 | AD28: 434.51 | AE28: 364.32 | AF28: 350.55 | AG28: 292.97 | AH28: 262.64 | AI28: 279.4 | AJ28: 243.51 | AK28: 211.78 | AL28: 222.94 | AM28: 265.77 | AN28: 280.1 | AO28: 227.94 | AP28: 345.49 | AQ28: 334.27 | AR28: 325.61 | AS28: 286.48 | AT28: 283.89 | AU28: 298.14 | AV28: 288.46 | AW28: 280.98 | AX28: 251.17 | AY28: 244.99
B29: 4 | C29: Smith, Billy | F29: Child | G29: 17 | H29: 2001-02-14 | J29: Y | K29: 0 | L29: 0 | N29: 3 | O29: 1 | P29: 17 | R29: N | S29: 4/Child/N | X29: 4/Child/Y | AC29: 0.885 | AD29: 421.18 | AE29: 353.15 | AF29: 339.8 | AG29: 283.98 | AH29: 254.59 | AI29: 270.83 | AJ29: 236.04 | AK29: 205.28 | AL29: 216.1 | AM29: 257.62 | AN29: 271.51 | AO29: 220.95 | AP29: 334.9 | AQ29: 324.02 | AR29: 315.62 | AS29: 277.69 | AT29: 275.19 | AU29: 289 | AV29: 279.62 | AW29: 272.37 | AX29: 243.47 | AY29: 237.47
B30: 4 | C30: Smith, Jane | F30: Child | G30: 14 | H30: 2003-06-18 | J30: Y | K30: 0 | L30: 0 | N30: 4 | O30: 0 | P30: 0-14 | R30: N | S30: 4/Child/N | X30: 4/Child/Y | AC30: 0.765 | AD30: 0 | AE30: 0 | AF30: 0 | AG30: 0 | AH30: 0 | AI30: 0 | AJ30: 0 | AK30: 0 | AL30: 0 | AM30: 0 | AN30: 0 | AO30: 0 | AP30: 0 | AQ30: 0 | AR30: 0 | AS30: 0 | AT30: 0 | AU30: 0 | AV30: 0 | AW30: 0 | AX30: 0 | AY30: 0
B31: 5 | C31: Employee 5 | F31: Employee | G31: 71 | H31: 1946-12-01 | J31: Y | K31: 15000 | L31: 7500 | N31: 0 | O31: 1 | P31: 64 and over | Q31: 70 - 74 | R31: Y | S31: 5/Employee/Y | T31: 1 | U31: 0 | V31: 0 | W31: 1 | X31: 5/Employee/Y | Y31: 1 | Z31: 0 | AA31: 0 | AB31: 1 | AC31: 3 | AD31: 1427.73 | AE31: 1197.12 | AF31: 1151.85 | AG31: 962.67 | AH31: =IF(ISNA($AC31),0,IF($P31<>"64 and over",ROUND(AH$15*AH$14*$AC31*AH$13,2),ROUND(AH$15*AH$14*AH$13,2)*3)*$O31) -> 863.01 | AI31: 918.06 | AJ31: 800.13 | AK31: 695.88 | AL31: 732.54 | AM31: 873.3 | AN31: 920.37 | AO31: 748.98 | AP31: 1135.23 | AQ31: 1098.39 | AR31: 1069.89 | AS31: 941.31 | AT31: 932.85 | AU31: 979.65 | AV31: 947.85 | AW31: 923.28 | AX31: 825.3 | AY31: 804.99
B32: 6 | C32: Employee 6 | F32: Employee | G32: 37 | H32: 1981-03-30 | J32: Y | K32: 15000 | L32: 15000 | N32: 0 | O32: 1 | P32: 37 | Q32: 35 - 39 | R32: Y | S32: 6/Employee/Y | T32: 1 | U32: 0 | V32: 0 | W32: 1 | X32: 6/Employee/Y | Y32: 1 | Z32: 0 | AA32: 1 | AB32: 3 | AC32: 1.238 | AD32: 589.18 | AE32: 494.01 | AF32: 475.34 | AG32: 397.26 | AH32: 356.14 | AI32: 378.86 | AJ32: 330.19 | AK32: 287.16 | AL32: 302.3 | AM32: 360.38 | AN32: 379.81 | AO32: 309.08 | AP32: 468.48 | AQ32: 453.26 | AR32: 441.51 | AS32: 388.45 | AT32: 384.95 | AU32: 404.27 | AV32: 391.15 | AW32: 381 | AX32: 340.58 | AY32: 332.2
B33: 6 | C33: Employee 6 Child | F33: Child | G33: 12 | H33: 2005-08-29 | J33: Y | K33: 0 | L33: 0 | N33: 1 | O33: 1 | P33: 0-14 | R33: N | S33: 6/Child/N | X33: 6/Child/Y | AC33: 0.765 | AD33: 364.07 | AE33: 305.26 | AF33: 293.73 | AG33: 245.48 | AH33: 220.07 | AI33: 234.11 | AJ33: 204.03 | AK33: 177.45 | AL33: 186.8 | AM33: 222.69 | AN33: 234.69 | AO33: 190.99 | AP33: 289.49 | AQ33: 280.09 | AR33: 272.82 | AS33: 240.04 | AT33: 237.87 | AU33: 249.81 | AV33: 241.7 | AW33: 235.44 | AX33: 210.45 | AY33: 205.27
B34: 7 | C34: Wilson, Jim | F34: Employee | G34: 28 | H34: 1989-05-19 | J34: Y | K34: 15000 | L34: 15000 | N34: 0 | O34: 1 | P34: 28 | Q34: UNDER 30 | R34: Y | S34: 7/Employee/Y | T34: 1 | U34: 1 | V34: 0 | W34: 2 | X34: 7/Employee/Y | Y34: 1 | Z34: 1 | AA34: 0 | AB34: 2 | AC34: 1.087 | AD34: 517.32 | AE34: 433.75 | AF34: 417.36 | AG34: 348.8 | AH34: 312.7 | AI34: 332.65 | AJ34: 289.91 | AK34: 252.14 | AL34: 265.43 | AM34: 316.42 | AN34: 333.48 | AO34: 271.38 | AP34: 411.33 | AQ34: 397.98 | AR34: 387.66 | AS34: 341.07 | AT34: 338 | AU34: 354.96 | AV34: 343.44 | AW34: 334.53 | AX34: 299.04 | AY34: 291.68
B35: 7 | C35: Wilson, Sally | F35: Spouse | G35: 25 | H35: 1992-06-01 | J35: Y | K35: 0 | L35: 0 | N35: 0 | O35: 1 | P35: 25 | R35: Y | S35: 7/Spouse/Y | X35: 7/Spouse/Y | AC35: 1.004 | AD35: 477.82 | AE35: 400.63 | AF35: 385.49 | AG35: 322.17 | AH35: 288.82 | AI35: 307.25 | AJ35: 267.78 | AK35: 232.88 | AL35: 245.16 | AM35: 292.26 | AN35: 308.02 | AO35: 250.66 | AP35: 379.93 | AQ35: 367.59 | AR35: 358.06 | AS35: 315.03 | AT35: 312.19 | AU35: 327.86 | AV35: 317.22 | AW35: 308.99 | AX35: 276.2 | AY35: 269.41
B36: =IF(TRIM(F36)="","",IF(F36="Employee",B35+1,B35)) ->  | G36: 0 | L36: 0 | N36: =IF(OR(F36<>"Child",G36>20),0,N35+1) -> 0 | O36: 0 | S36: // | X36: // | AD36: 0 | AE36: 0 | AF36: 0 | AG36: 0 | AH36: 0 | AI36: 0 | AJ36: 0 | AK36: 0 | AL36: 0 | AM36: 0 | AN36: 0 | AO36: 0 | AP36: 0 | AQ36: 0 | AR36: 0 | AS36: 0 | AT36: 0 | AU36: 0 | AV36: 0 | AW36: 0 | AX36: 0 | AY36: 0
G37: 0 | L37: 0 | N37: 0 | O37: 0 | S37: // | X37: // | AD37: 0 | AE37: 0 | AF37: 0 | AG37: 0 | AH37: 0 | AI37: 0 | AJ37: 0 | AK37: 0 | AL37: 0 | AM37: 0 | AN37: 0 | AO37: 0 | AP37: 0 | AQ37: 0 | AR37: 0 | AS37: 0 | AT37: 0 | AU37: 0 | AV37: 0 | AW37: 0 | AX37: 0 | AY37: 0
G38: 0 | L38: 0 | N38: 0 | O38: 0 | S38: // | X38: // | AD38: 0 | AE38: 0 | AF38: 0 | AG38: 0 | AH38: 0 | AI38: 0 | AJ38: 0 | AK38: 0 | AL38: 0 | AM38: 0 | AN38: 0 | AO38: 0 | AP38: 0 | AQ38: 0 | AR38: 0 | AS38: 0 | AT38: 0 | AU38: 0 | AV38: 0 | AW38: 0 | AX38: 0 | AY38: 0
G39: 0 | L39: 0 | N39: 0 | O39: 0 | S39: // | X39: // | Y39: =IF($F39="Employee",COUNTIF($X$19:$X$218,$B39&"/"&Y$18&"/Y")*$O39,"") ->  | AD39: 0 | AE39: 0 | AF39: 0 | AG39: 0 | AH39: 0 | AI39: 0 | AJ39: 0 | AK39: 0 | AL39: 0 | AM39: 0 | AN39: 0 | AO39: 0 | AP39: 0 | AQ39: 0 | AR39: 0 | AS39: 0 | AT39: 0 | AU39: 0 | AV39: 0 | AW39: 0 | AX39: 0 | AY39: 0
G40: 0 | L40: 0 | N40: 0 | O40: 0 | S40: // | X40: // | AD40: 0 | AE40: 0 | AF40: 0 | AG40: 0 | AH40: 0 | AI40: 0 | AJ40: 0 | AK40: 0 | AL40: 0 | AM40: 0 | AN40: 0 | AO40: 0 | AP40: 0 | AQ40: 0 | AR40: 0 | AS40: 0 | AT40: 0 | AU40: 0 | AV40: 0 | AW40: 0 | AX40: 0 | AY40: 0
G41: 0 | L41: 0 | N41: 0 | O41: 0 | S41: // | X41: // | AD41: 0 | AE41: 0 | AF41: 0 | AG41: 0 | AH41: 0 | AI41: 0 | AJ41: 0 | AK41: 0 | AL41: 0 | AM41: 0 | AN41: 0 | AO41: 0 | AP41: 0 | AQ41: 0 | AR41: 0 | AS41: 0 | AT41: 0 | AU41: 0 | AV41: 0 | AW41: 0 | AX41: 0 | AY41: 0
G42: 0 | L42: 0 | N42: 0 | O42: 0 | S42: // | X42: // | AD42: 0 | AE42: 0 | AF42: 0 | AG42: 0 | AH42: 0 | AI42: 0 | AJ42: 0 | AK42: 0 | AL42: 0 | AM42: 0 | AN42: 0 | AO42: 0 | AP42: 0 | AQ42: 0 | AR42: 0 | AS42: 0 | AT42: 0 | AU42: 0 | AV42: 0 | AW42: 0 | AX42: 0 | AY42: 0
G43: 0 | L43: 0 | N43: 0 | O43: 0 | S43: // | X43: // | AD43: 0 | AE43: 0 | AF43: 0 | AG43: 0 | AH43: 0 | AI43: 0 | AJ43: 0 | AK43: =IF(ISNA($AC43),0,IF($P43<>"64 and over",ROUND(AK$15*AK$14*$AC43*AK$13,2),ROUND(AK$15*AK$14*AK$13,2)*3)*$O43) -> 0 | AL43: 0 | AM43: 0 | AN43: 0 | AO43: 0 | AP43: 0 | AQ43: 0 | AR43: 0 | AS43: 0 | AT43: 0 | AU43: 0 | AV43: 0 | AW43: 0 | AX43: 0 | AY43: 0
G44: 0 | L44: 0 | N44: 0 | O44: 0 | S44: // | X44: // | AD44: 0 | AE44: 0 | AF44: 0 | AG44: 0 | AH44: 0 | AI44: 0 | AJ44: 0 | AK44: 0 | AL44: 0 | AM44: 0 | AN44: 0 | AO44: 0 | AP44: 0 | AQ44: 0 | AR44: 0 | AS44: 0 | AT44: 0 | AU44: 0 | AV44: 0 | AW44: 0 | AX44: 0 | AY44: 0
G45: 0 | L45: 0 | N45: 0 | O45: 0 | S45: // | X45: // | AD45: 0 | AE45: 0 | AF45: 0 | AG45: 0 | AH45: 0 | AI45: 0 | AJ45: 0 | AK45: 0 | AL45: 0 | AM45: 0 | AN45: 0 | AO45: 0 | AP45: 0 | AQ45: 0 | AR45: 0 | AS45: 0 | AT45: 0 | AU45: 0 | AV45: 0 | AW45: 0 | AX45: 0 | AY45: 0
G46: 0 | L46: 0 | N46: 0 | O46: 0 | S46: // | X46: // | AD46: 0 | AE46: 0 | AF46: 0 | AG46: 0 | AH46: 0 | AI46: 0 | AJ46: 0 | AK46: 0 | AL46: 0 | AM46: 0 | AN46: 0 | AO46: 0 | AP46: 0 | AQ46: 0 | AR46: 0 | AS46: 0 | AT46: 0 | AU46: 0 | AV46: 0 | AW46: 0 | AX46: 0 | AY46: 0
G47: 0 | L47: 0 | N47: 0 | O47: 0 | S47: // | X47: // | AD47: 0 | AE47: 0 | AF47: 0 | AG47: 0 | AH47: 0 | AI47: 0 | AJ47: 0 | AK47: 0 | AL47: 0 | AM47: 0 | AN47: 0 | AO47: 0 | AP47: 0 | AQ47: 0 | AR47: 0 | AS47: 0 | AT47: 0 | AU47: 0 | AV47: 0 | AW47: 0 | AX47: 0 | AY47: 0
G48: 0 | L48: 0 | N48: 0 | O48: 0 | S48: // | X48: // | AD48: 0 | AE48: 0 | AF48: 0 | AG48: 0 | AH48: 0 | AI48: 0 | AJ48: 0 | AK48: 0 | AL48: 0 | AM48: 0 | AN48: 0 | AO48: 0 | AP48: 0 | AQ48: 0 | AR48: 0 | AS48: 0 | AT48: 0 | AU48: 0 | AV48: 0 | AW48: 0 | AX48: 0 | AY48: 0
G49: 0 | L49: 0 | N49: 0 | O49: 0 | S49: // | X49: // | AD49: 0 | AE49: 0 | AF49: 0 | AG49: 0 | AH49: 0 | AI49: 0 | AJ49: 0 | AK49: 0 | AL49: 0 | AM49: 0 | AN49: 0 | AO49: 0 | AP49: 0 | AQ49: 0 | AR49: 0 | AS49: 0 | AT49: 0 | AU49: 0 | AV49: 0 | AW49: 0 | AX49: 0 | AY49: 0
G50: 0 | L50: 0 | N50: 0 | O50: 0 | S50: // | X50: // | AD50: 0 | AE50: 0 | AF50: 0 | AG50: 0 | AH50: 0 | AI50: 0 | AJ50: 0 | AK50: 0 | AL50: 0 | AM50: 0 | AN50: 0 | AO50: 0 | AP50: 0 | AQ50: 0 | AR50: 0 | AS50: 0 | AT50: 0 | AU50: 0 | AV50: 0 | AW50: 0 | AX50: 0 | AY50: 0
G51: =IF(TRIM($H51)="",I51,DATEDIF($H51,DATE(YEAR(Eff_Dt),MONTH(Eff_Dt),DAY(Eff_Dt)),"Y")) -> 0 | L51: 0 | N51: 0 | O51: 0 | P51: =IF(TRIM(F51)="","",VLOOKUP(G51,Age_band,2,FALSE)) ->  | Q51: =IF(TRIM(F51)="Employee",VLOOKUP(G51,Age_band,3,FALSE),"") ->  | S51: // | X51: // | AC51: =VLOOKUP(P51,Age_Factors,2,FALSE) ->  | AD51: 0 | AE51: 0 | AF51: 0 | AG51: 0 | AH51: 0 | AI51: 0 | AJ51: 0 | AK51: 0 | AL51: 0 | AM51: 0 | AN51: 0 | AO51: 0 | AP51: 0 | AQ51: 0 | AR51: 0 | AS51: 0 | AT51: 0 | AU51: 0 | AV51: 0 | AW51: 0 | AX51: 0 | AY51: 0
G52: 0 | L52: 0 | N52: 0 | O52: 0 | S52: // | T52: =IF($F52="Employee",COUNTIF($S$19:$S$218,$B52&"/"&T$18&"/Y"),"") ->  | X52: // | AD52: 0 | AE52: 0 | AF52: 0 | AG52: 0 | AH52: 0 | AI52: 0 | AJ52: 0 | AK52: 0 | AL52: 0 | AM52: 0 | AN52: 0 | AO52: 0 | AP52: 0 | AQ52: 0 | AR52: 0 | AS52: 0 | AT52: 0 | AU52: 0 | AV52: 0 | AW52: 0 | AX52: 0 | AY52: 0
G53: 0 | L53: 0 | N53: 0 | O53: 0 | S53: // | X53: // | AD53: 0 | AE53: 0 | AF53: 0 | AG53: 0 | AH53: 0 | AI53: 0 | AJ53: 0 | AK53: 0 | AL53: 0 | AM53: 0 | AN53: 0 | AO53: 0 | AP53: 0 | AQ53: 0 | AR53: 0 | AS53: 0 | AT53: 0 | AU53: 0 | AV53: 0 | AW53: 0 | AX53: 0 | AY53: 0
G54: 0 | L54: 0 | N54: 0 | O54: 0 | S54: // | X54: // | AD54: 0 | AE54: 0 | AF54: 0 | AG54: 0 | AH54: 0 | AI54: 0 | AJ54: 0 | AK54: 0 | AL54: 0 | AM54: 0 | AN54: 0 | AO54: 0 | AP54: 0 | AQ54: 0 | AR54: 0 | AS54: 0 | AT54: 0 | AU54: 0 | AV54: 0 | AW54: 0 | AX54: 0 | AY54: 0
G55: 0 | L55: 0 | N55: 0 | O55: 0 | S55: // | X55: // | AD55: 0 | AE55: 0 | AF55: 0 | AG55: 0 | AH55: 0 | AI55: 0 | AJ55: 0 | AK55: 0 | AL55: 0 | AM55: 0 | AN55: =IF(ISNA($AC55),0,IF($P55<>"64 and over",ROUND(AN$15*AN$14*$AC55*AN$13,2),ROUND(AN$15*AN$14*AN$13,2)*3)*$O55) -> 0 | AO55: 0 | AP55: 0 | AQ55: 0 | AR55: 0 | AS55: 0 | AT55: 0 | AU55: 0 | AV55: 0 | AW55: 0 | AX55: 0 | AY55: 0
G56: 0 | L56: 0 | N56: 0 | O56: 0 | S56: // | X56: // | AD56: 0 | AE56: 0 | AF56: 0 | AG56: 0 | AH56: 0 | AI56: 0 | AJ56: 0 | AK56: 0 | AL56: 0 | AM56: 0 | AN56: 0 | AO56: 0 | AP56: 0 | AQ56: 0 | AR56: 0 | AS56: 0 | AT56: 0 | AU56: 0 | AV56: 0 | AW56: 0 | AX56: 0 | AY56: 0
G57: 0 | L57: 0 | N57: 0 | O57: 0 | S57: // | X57: // | AD57: 0 | AE57: 0 | AF57: 0 | AG57: 0 | AH57: 0 | AI57: 0 | AJ57: 0 | AK57: 0 | AL57: 0 | AM57: 0 | AN57: 0 | AO57: 0 | AP57: 0 | AQ57: 0 | AR57: 0 | AS57: 0 | AT57: 0 | AU57: 0 | AV57: 0 | AW57: 0 | AX57: 0 | AY57: 0
G58: 0 | L58: 0 | N58: 0 | O58: 0 | S58: // | X58: // | AD58: 0 | AE58: 0 | AF58: 0 | AG58: 0 | AH58: 0 | AI58: 0 | AJ58: 0 | AK58: 0 | AL58: 0 | AM58: 0 | AN58: 0 | AO58: 0 | AP58: 0 | AQ58: 0 | AR58: 0 | AS58: 0 | AT58: 0 | AU58: 0 | AV58: 0 | AW58: 0 | AX58: 0 | AY58: 0
G59: 0 | L59: 0 | N59: 0 | O59: 0 | S59: // | X59: // | Y59: =IF($F59="Employee",COUNTIF($X$19:$X$218,$B59&"/"&Y$18&"/Y")*$O59,"") ->  | AD59: 0 | AE59: 0 | AF59: 0 | AG59: 0 | AH59: 0 | AI59: 0 | AJ59: 0 | AK59: 0 | AL59: 0 | AM59: 0 | AN59: 0 | AO59: 0 | AP59: 0 | AQ59: 0 | AR59: 0 | AS59: 0 | AT59: 0 | AU59: 0 | AV59: 0 | AW59: 0 | AX59: 0 | AY59: 0
G60: 0 | L60: 0 | N60: 0 | O60: 0 | S60: // | X60: // | AD60: 0 | AE60: 0 | AF60: 0 | AG60: 0 | AH60: 0 | AI60: 0 | AJ60: 0 | AK60: 0 | AL60: 0 | AM60: 0 | AN60: 0 | AO60: 0 | AP60: 0 | AQ60: 0 | AR60: 0 | AS60: 0 | AT60: 0 | AU60: 0 | AV60: 0 | AW60: 0 | AX60: 0 | AY60: 0
G61: 0 | L61: 0 | N61: 0 | O61: 0 | S61: // | X61: // | AD61: 0 | AE61: 0 | AF61: 0 | AG61: 0 | AH61: 0 | AI61: 0 | AJ61: 0 | AK61: 0 | AL61: 0 | AM61: 0 | AN61: 0 | AO61: 0 | AP61: 0 | AQ61: 0 | AR61: 0 | AS61: 0 | AT61: 0 | AU61: 0 | AV61: 0 | AW61: 0 | AX61: 0 | AY61: 0
G62: 0 | L62: 0 | N62: 0 | O62: 0 | S62: // | X62: // | AD62: 0 | AE62: 0 | AF62: 0 | AG62: 0 | AH62: 0 | AI62: 0 | AJ62: 0 | AK62: 0 | AL62: 0 | AM62: 0 | AN62: 0 | AO62: 0 | AP62: 0 | AQ62: 0 | AR62: 0 | AS62: 0 | AT62: 0 | AU62: 0 | AV62: 0 | AW62: 0 | AX62: 0 | AY62: 0
G63: 0 | L63: 0 | N63: 0 | O63: 0 | S63: // | X63: // | AD63: 0 | AE63: 0 | AF63: 0 | AG63: 0 | AH63: 0 | AI63: 0 | AJ63: 0 | AK63: 0 | AL63: 0 | AM63: 0 | AN63: 0 | AO63: 0 | AP63: 0 | AQ63: 0 | AR63: 0 | AS63: 0 | AT63: 0 | AU63: 0 | AV63: 0 | AW63: 0 | AX63: 0 | AY63: 0
G64: 0 | L64: 0 | N64: 0 | O64: 0 | S64: // | X64: // | AD64: 0 | AE64: 0 | AF64: 0 | AG64: 0 | AH64: 0 | AI64: 0 | AJ64: 0 | AK64: 0 | AL64: 0 | AM64: 0 | AN64: 0 | AO64: 0 | AP64: 0 | AQ64: 0 | AR64: 0 | AS64: 0 | AT64: 0 | AU64: 0 | AV64: 0 | AW64: 0 | AX64: 0 | AY64: 0
G65: 0 | L65: 0 | N65: 0 | O65: 0 | S65: // | X65: // | AD65: 0 | AE65: 0 | AF65: 0 | AG65: 0 | AH65: 0 | AI65: 0 | AJ65: 0 | AK65: 0 | AL65: 0 | AM65: 0 | AN65: 0 | AO65: 0 | AP65: 0 | AQ65: 0 | AR65: 0 | AS65: 0 | AT65: 0 | AU65: 0 | AV65: 0 | AW65: 0 | AX65: 0 | AY65: 0
G66: 0 | L66: 0 | N66: 0 | O66: 0 | S66: // | X66: // | AD66: 0 | AE66: 0 | AF66: 0 | AG66: 0 | AH66: 0 | AI66: 0 | AJ66: 0 | AK66: 0 | AL66: 0 | AM66: 0 | AN66: 0 | AO66: 0 | AP66: 0 | AQ66: 0 | AR66: 0 | AS66: 0 | AT66: 0 | AU66: 0 | AV66: 0 | AW66: 0 | AX66: 0 | AY66: 0
G67: 0 | L67: 0 | N67: 0 | O67: 0 | S67: // | X67: // | AD67: 0 | AE67: 0 | AF67: 0 | AG67: 0 | AH67: 0 | AI67: 0 | AJ67: 0 | AK67: 0 | AL67: 0 | AM67: 0 | AN67: 0 | AO67: 0 | AP67: 0 | AQ67: =IF(ISNA($AC67),0,IF($P67<>"64 and over",ROUND(AQ$15*AQ$14*$AC67*AQ$13,2),ROUND(AQ$15*AQ$14*AQ$13,2)*3)*$O67) -> 0 | AR67: 0 | AS67: 0 | AT67: 0 | AU67: 0 | AV67: 0 | AW67: 0 | AX67: 0 | AY67: 0
G68: 0 | L68: 0 | N68: 0 | O68: 0 | S68: // | X68: // | AD68: 0 | AE68: 0 | AF68: 0 | AG68: 0 | AH68: 0 | AI68: 0 | AJ68: 0 | AK68: 0 | AL68: 0 | AM68: 0 | AN68: 0 | AO68: 0 | AP68: 0 | AQ68: 0 | AR68: 0 | AS68: 0 | AT68: 0 | AU68: 0 | AV68: 0 | AW68: 0 | AX68: 0 | AY68: 0
G69: 0 | L69: 0 | N69: 0 | O69: 0 | S69: // | X69: // | AD69: 0 | AE69: 0 | AF69: 0 | AG69: 0 | AH69: 0 | AI69: 0 | AJ69: 0 | AK69: 0 | AL69: 0 | AM69: 0 | AN69: 0 | AO69: 0 | AP69: 0 | AQ69: 0 | AR69: 0 | AS69: 0 | AT69: 0 | AU69: 0 | AV69: 0 | AW69: 0 | AX69: 0 | AY69: 0
G70: 0 | L70: 0 | N70: 0 | O70: 0 | S70: // | X70: // | AD70: 0 | AE70: 0 | AF70: 0 | AG70: 0 | AH70: 0 | AI70: 0 | AJ70: 0 | AK70: 0 | AL70: 0 | AM70: 0 | AN70: 0 | AO70: 0 | AP70: 0 | AQ70: 0 | AR70: 0 | AS70: 0 | AT70: 0 | AU70: 0 | AV70: 0 | AW70: 0 | AX70: 0 | AY70: 0
G71: 0 | L71: 0 | N71: 0 | O71: 0 | S71: // | X71: // | AD71: 0 | AE71: 0 | AF71: 0 | AG71: 0 | AH71: 0 | AI71: 0 | AJ71: 0 | AK71: 0 | AL71: 0 | AM71: 0 | AN71: 0 | AO71: 0 | AP71: 0 | AQ71: 0 | AR71: 0 | AS71: 0 | AT71: 0 | AU71: 0 | AV71: 0 | AW71: 0 | AX71: 0 | AY71: 0
G72: 0 | L72: 0 | N72: 0 | O72: 0 | S72: // | X72: // | AD72: 0 | AE72: 0 | AF72: 0 | AG72: 0 | AH72: 0 | AI72: 0 | AJ72: 0 | AK72: 0 | AL72: 0 | AM72: 0 | AN72: 0 | AO72: 0 | AP72: 0 | AQ72: 0 | AR72: 0 | AS72: 0 | AT72: 0 | AU72: 0 | AV72: 0 | AW72: 0 | AX72: 0 | AY72: 0
G73: 0 | L73: 0 | N73: 0 | O73: 0 | S73: // | X73: // | AD73: 0 | AE73: 0 | AF73: 0 | AG73: 0 | AH73: 0 | AI73: 0 | AJ73: 0 | AK73: 0 | AL73: 0 | AM73: 0 | AN73: 0 | AO73: 0 | AP73: 0 | AQ73: 0 | AR73: 0 | AS73: 0 | AT73: 0 | AU73: 0 | AV73: 0 | AW73: 0 | AX73: 0 | AY73: 0
G74: 0 | L74: 0 | N74: 0 | O74: 0 | S74: // | X74: // | AD74: 0 | AE74: 0 | AF74: 0 | AG74: 0 | AH74: 0 | AI74: 0 | AJ74: 0 | AK74: 0 | AL74: 0 | AM74: 0 | AN74: 0 | AO74: 0 | AP74: 0 | AQ74: 0 | AR74: 0 | AS74: 0 | AT74: 0 | AU74: 0 | AV74: 0 | AW74: 0 | AX74: 0 | AY74: 0
G75: 0 | L75: 0 | N75: 0 | O75: 0 | S75: // | X75: // | AD75: 0 | AE75: 0 | AF75: 0 | AG75: 0 | AH75: 0 | AI75: 0 | AJ75: 0 | AK75: 0 | AL75: 0 | AM75: 0 | AN75: 0 | AO75: 0 | AP75: 0 | AQ75: 0 | AR75: 0 | AS75: 0 | AT75: 0 | AU75: 0 | AV75: 0 | AW75: 0 | AX75: 0 | AY75: 0
G76: 0 | L76: 0 | N76: 0 | O76: 0 | S76: // | X76: // | AD76: 0 | AE76: 0 | AF76: 0 | AG76: 0 | AH76: 0 | AI76: 0 | AJ76: 0 | AK76: 0 | AL76: 0 | AM76: 0 | AN76: 0 | AO76: 0 | AP76: 0 | AQ76: 0 | AR76: 0 | AS76: 0 | AT76: 0 | AU76: 0 | AV76: 0 | AW76: 0 | AX76: 0 | AY76: 0
G77: 0 | L77: 0 | N77: 0 | O77: 0 | S77: // | X77: // | AD77: 0 | AE77: 0 | AF77: 0 | AG77: 0 | AH77: 0 | AI77: 0 | AJ77: 0 | AK77: 0 | AL77: 0 | AM77: 0 | AN77: 0 | AO77: 0 | AP77: 0 | AQ77: 0 | AR77: 0 | AS77: 0 | AT77: 0 | AU77: 0 | AV77: 0 | AW77: 0 | AX77: 0 | AY77: 0
G78: 0 | L78: 0 | N78: 0 | O78: 0 | S78: // | X78: // | AD78: 0 | AE78: 0 | AF78: 0 | AG78: 0 | AH78: 0 | AI78: 0 | AJ78: 0 | AK78: 0 | AL78: 0 | AM78: 0 | AN78: 0 | AO78: 0 | AP78: 0 | AQ78: 0 | AR78: 0 | AS78: 0 | AT78: 0 | AU78: 0 | AV78: 0 | AW78: 0 | AX78: 0 | AY78: 0
G79: 0 | L79: 0 | N79: 0 | O79: 0 | S79: // | X79: // | Y79: =IF($F79="Employee",COUNTIF($X$19:$X$218,$B79&"/"&Y$18&"/Y")*$O79,"") ->  | AD79: 0 | AE79: 0 | AF79: 0 | AG79: 0 | AH79: 0 | AI79: 0 | AJ79: 0 | AK79: 0 | AL79: 0 | AM79: 0 | AN79: 0 | AO79: 0 | AP79: 0 | AQ79: 0 | AR79: 0 | AS79: 0 | AT79: =IF(ISNA($AC79),0,IF($P79<>"64 and over",ROUND(AT$15*AT$14*$AC79*AT$13,2),ROUND(AT$15*AT$14*AT$13,2)*3)*$O79) -> 0 | AU79: 0 | AV79: 0 | AW79: 0 | AX79: 0 | AY79: 0
G80: 0 | L80: 0 | N80: 0 | O80: 0 | S80: // | X80: // | AD80: 0 | AE80: 0 | AF80: 0 | AG80: 0 | AH80: 0 | AI80: 0 | AJ80: 0 | AK80: 0 | AL80: 0 | AM80: 0 | AN80: 0 | AO80: 0 | AP80: 0 | AQ80: 0 | AR80: 0 | AS80: 0 | AT80: 0 | AU80: 0 | AV80: 0 | AW80: 0 | AX80: 0 | AY80: 0
G81: 0 | L81: 0 | N81: 0 | O81: 0 | S81: // | X81: // | AD81: 0 | AE81: 0 | AF81: 0 | AG81: 0 | AH81: 0 | AI81: 0 | AJ81: 0 | AK81: 0 | AL81: 0 | AM81: 0 | AN81: 0 | AO81: 0 | AP81: 0 | AQ81: 0 | AR81: 0 | AS81: 0 | AT81: 0 | AU81: 0 | AV81: 0 | AW81: 0 | AX81: 0 | AY81: 0
G82: 0 | L82: 0 | N82: 0 | O82: 0 | S82: // | X82: // | AD82: 0 | AE82: 0 | AF82: 0 | AG82: 0 | AH82: 0 | AI82: 0 | AJ82: 0 | AK82: 0 | AL82: 0 | AM82: 0 | AN82: 0 | AO82: 0 | AP82: 0 | AQ82: 0 | AR82: 0 | AS82: 0 | AT82: 0 | AU82: 0 | AV82: 0 | AW82: 0 | AX82: 0 | AY82: 0
G83: =IF(TRIM($H83)="",I83,DATEDIF($H83,DATE(YEAR(Eff_Dt),MONTH(Eff_Dt),DAY(Eff_Dt)),"Y")) -> 0 | L83: 0 | N83: 0 | O83: 0 | P83: =IF(TRIM(F83)="","",VLOOKUP(G83,Age_band,2,FALSE)) ->  | Q83: =IF(TRIM(F83)="Employee",VLOOKUP(G83,Age_band,3,FALSE),"") ->  | S83: // | X83: // | AC83: =VLOOKUP(P83,Age_Factors,2,FALSE) ->  | AD83: 0 | AE83: 0 | AF83: 0 | AG83: 0 | AH83: 0 | AI83: 0 | AJ83: 0 | AK83: 0 | AL83: 0 | AM83: 0 | AN83: 0 | AO83: 0 | AP83: 0 | AQ83: 0 | AR83: 0 | AS83: 0 | AT83: 0 | AU83: 0 | AV83: 0 | AW83: 0 | AX83: 0 | AY83: 0
G84: 0 | L84: =IF(F84<>"Employee",0,IF($G84>=75,0.35,IF($G84>=70,0.5,IF($G84>=65,0.65,1)))*MIN($K84,50000)) -> 0 | N84: 0 | O84: =IF(OR(F84="",J84="N"),0,IF(N84>3,0,1)) -> 0 | R84: =IF(TRIM(F84)="","",IF(G84>=19,"Y","N")) ->  | S84: =B84&"/"&F84&"/"&R84 -> // | T84: =IF($F84="Employee",COUNTIF($S$19:$S$218,$B84&"/"&T$18&"/Y"),"") ->  | W84: =IF($F84<>"Employee","",IF(U84>0,IF(V84>0,4,2),IF(V84=0,1,3))) ->  | X84: =B84&"/"&F84&"/"&J84 -> // | AB84: =IF(OR(F84<>"Employee",O84=0),"",IF(Z84>0,IF(AA84>0,4,2),IF(AA84=0,1,3))) ->  | AD84: =IF(ISNA($AC84),0,IF($P84<>"64 and over",ROUND(AD$15*AD$14*$AC84*AD$13,2),ROUND(AD$15*AD$14*AD$13,2)*3)*$O84) -> 0 | AE84: 0 | AF84: 0 | AG84: 0 | AH84: 0 | AI84: 0 | AJ84: 0 | AK84: 0 | AL84: 0 | AM84: 0 | AN84: 0 | AO84: 0 | AP84: 0 | AQ84: 0 | AR84: 0 | AS84: 0 | AT84: 0 | AU84: 0 | AV84: 0 | AW84: 0 | AX84: 0 | AY84: 0
G85: 0 | L85: 0 | N85: 0 | O85: 0 | S85: // | X85: // | AD85: 0 | AE85: 0 | AF85: 0 | AG85: 0 | AH85: 0 | AI85: 0 | AJ85: 0 | AK85: 0 | AL85: 0 | AM85: 0 | AN85: 0 | AO85: 0 | AP85: 0 | AQ85: 0 | AR85: 0 | AS85: 0 | AT85: 0 | AU85: 0 | AV85: 0 | AW85: 0 | AX85: 0 | AY85: 0
G86: 0 | L86: 0 | N86: 0 | O86: 0 | S86: // | X86: // | AD86: 0 | AE86: 0 | AF86: 0 | AG86: 0 | AH86: 0 | AI86: 0 | AJ86: 0 | AK86: 0 | AL86: 0 | AM86: 0 | AN86: 0 | AO86: 0 | AP86: 0 | AQ86: 0 | AR86: 0 | AS86: 0 | AT86: 0 | AU86: 0 | AV86: 0 | AW86: 0 | AX86: 0 | AY86: 0
G87: 0 | L87: 0 | N87: 0 | O87: 0 | S87: // | X87: // | AD87: 0 | AE87: 0 | AF87: 0 | AG87: 0 | AH87: 0 | AI87: 0 | AJ87: 0 | AK87: 0 | AL87: 0 | AM87: 0 | AN87: 0 | AO87: 0 | AP87: 0 | AQ87: 0 | AR87: 0 | AS87: 0 | AT87: 0 | AU87: 0 | AV87: 0 | AW87: 0 | AX87: 0 | AY87: 0
G88: 0 | L88: 0 | N88: 0 | O88: 0 | S88: // | X88: // | AD88: 0 | AE88: 0 | AF88: 0 | AG88: 0 | AH88: 0 | AI88: 0 | AJ88: 0 | AK88: 0 | AL88: 0 | AM88: 0 | AN88: 0 | AO88: 0 | AP88: 0 | AQ88: 0 | AR88: 0 | AS88: 0 | AT88: 0 | AU88: 0 | AV88: 0 | AW88: 0 | AX88: 0 | AY88: 0
G89: 0 | L89: 0 | N89: 0 | O89: 0 | S89: // | X89: // | AD89: 0 | AE89: 0 | AF89: 0 | AG89: 0 | AH89: 0 | AI89: 0 | AJ89: 0 | AK89: 0 | AL89: 0 | AM89: 0 | AN89: 0 | AO89: 0 | AP89: 0 | AQ89: 0 | AR89: 0 | AS89: 0 | AT89: 0 | AU89: 0 | AV89: 0 | AW89: 0 | AX89: 0 | AY89: 0
G90: 0 | L90: 0 | N90: 0 | O90: 0 | S90: // | X90: // | AD90: 0 | AE90: 0 | AF90: 0 | AG90: 0 | AH90: 0 | AI90: 0 | AJ90: 0 | AK90: 0 | AL90: 0 | AM90: 0 | AN90: 0 | AO90: 0 | AP90: 0 | AQ90: 0 | AR90: 0 | AS90: 0 | AT90: 0 | AU90: 0 | AV90: 0 | AW90: 0 | AX90: 0 | AY90: 0
G91: 0 | L91: 0 | N91: 0 | O91: 0 | S91: // | X91: // | AD91: 0 | AE91: 0 | AF91: 0 | AG91: 0 | AH91: 0 | AI91: 0 | AJ91: 0 | AK91: 0 | AL91: 0 | AM91: 0 | AN91: 0 | AO91: 0 | AP91: 0 | AQ91: 0 | AR91: 0 | AS91: 0 | AT91: 0 | AU91: 0 | AV91: 0 | AW91: =IF(ISNA($AC91),0,IF($P91<>"64 and over",ROUND(AW$15*AW$14*$AC91*AW$13,2),ROUND(AW$15*AW$14*AW$13,2)*3)*$O91) -> 0 | AX91: 0 | AY91: 0
G92: 0 | L92: 0 | N92: 0 | O92: 0 | S92: // | X92: // | AD92: 0 | AE92: 0 | AF92: 0 | AG92: 0 | AH92: 0 | AI92: 0 | AJ92: 0 | AK92: 0 | AL92: 0 | AM92: 0 | AN92: 0 | AO92: 0 | AP92: 0 | AQ92: 0 | AR92: 0 | AS92: 0 | AT92: 0 | AU92: 0 | AV92: 0 | AW92: 0 | AX92: 0 | AY92: 0
G93: 0 | L93: 0 | N93: 0 | O93: 0 | S93: // | X93: // | AD93: 0 | AE93: 0 | AF93: 0 | AG93: 0 | AH93: 0 | AI93: 0 | AJ93: 0 | AK93: 0 | AL93: 0 | AM93: 0 | AN93: 0 | AO93: 0 | AP93: 0 | AQ93: 0 | AR93: 0 | AS93: 0 | AT93: 0 | AU93: 0 | AV93: 0 | AW93: 0 | AX93: 0 | AY93: 0
G94: 0 | L94: 0 | N94: 0 | O94: 0 | S94: // | X94: // | AD94: 0 | AE94: 0 | AF94: 0 | AG94: 0 | AH94: 0 | AI94: 0 | AJ94: 0 | AK94: 0 | AL94: 0 | AM94: 0 | AN94: 0 | AO94: 0 | AP94: 0 | AQ94: 0 | AR94: 0 | AS94: 0 | AT94: 0 | AU94: 0 | AV94: 0 | AW94: 0 | AX94: 0 | AY94: 0
G95: 0 | L95: 0 | N95: 0 | O95: 0 | S95: // | X95: // | AD95: 0 | AE95: 0 | AF95: 0 | AG95: 0 | AH95: 0 | AI95: 0 | AJ95: 0 | AK95: 0 | AL95: 0 | AM95: 0 | AN95: 0 | AO95: 0 | AP95: 0 | AQ95: 0 | AR95: 0 | AS95: 0 | AT95: 0 | AU95: 0 | AV95: 0 | AW95: 0 | AX95: 0 | AY95: 0
G96: 0 | L96: 0 | N96: 0 | O96: 0 | S96: // | X96: // | AD96: 0 | AE96: 0 | AF96: 0 | AG96: 0 | AH96: 0 | AI96: 0 | AJ96: 0 | AK96: 0 | AL96: 0 | AM96: 0 | AN96: 0 | AO96: 0 | AP96: 0 | AQ96: 0 | AR96: 0 | AS96: 0 | AT96: 0 | AU96: 0 | AV96: 0 | AW96: 0 | AX96: 0 | AY96: 0
G97: 0 | L97: 0 | N97: 0 | O97: 0 | S97: // | X97: // | AD97: 0 | AE97: 0 | AF97: 0 | AG97: 0 | AH97: 0 | AI97: 0 | AJ97: 0 | AK97: 0 | AL97: 0 | AM97: 0 | AN97: 0 | AO97: 0 | AP97: 0 | AQ97: 0 | AR97: 0 | AS97: 0 | AT97: 0 | AU97: 0 | AV97: 0 | AW97: 0 | AX97: 0 | AY97: 0
G98: 0 | L98: 0 | N98: 0 | O98: 0 | S98: // | X98: // | AD98: 0 | AE98: 0 | AF98: 0 | AG98: 0 | AH98: 0 | AI98: 0 | AJ98: 0 | AK98: 0 | AL98: 0 | AM98: 0 | AN98: 0 | AO98: 0 | AP98: 0 | AQ98: 0 | AR98: 0 | AS98: 0 | AT98: 0 | AU98: 0 | AV98: 0 | AW98: 0 | AX98: 0 | AY98: 0
G99: 0 | L99: 0 | N99: 0 | O99: 0 | S99: // | X99: // | Y99: =IF($F99="Employee",COUNTIF($X$19:$X$218,$B99&"/"&Y$18&"/Y")*$O99,"") ->  | AD99: 0 | AE99: 0 | AF99: 0 | AG99: 0 | AH99: 0 | AI99: 0 | AJ99: 0 | AK99: 0 | AL99: 0 | AM99: 0 | AN99: 0 | AO99: 0 | AP99: 0 | AQ99: 0 | AR99: 0 | AS99: 0 | AT99: 0 | AU99: 0 | AV99: 0 | AW99: 0 | AX99: 0 | AY99: 0
B100: =IF(TRIM(F100)="","",IF(F100="Employee",B99+1,B99)) ->  | G100: 0 | L100: 0 | N100: =IF(OR(F100<>"Child",G100>20),0,N99+1) -> 0 | O100: 0 | S100: // | X100: // | AD100: 0 | AE100: 0 | AF100: 0 | AG100: 0 | AH100: 0 | AI100: 0 | AJ100: 0 | AK100: 0 | AL100: 0 | AM100: 0 | AN100: 0 | AO100: 0 | AP100: 0 | AQ100: 0 | AR100: 0 | AS100: 0 | AT100: 0 | AU100: 0 | AV100: 0 | AW100: 0 | AX100: 0 | AY100: 0
G101: 0 | L101: 0 | N101: 0 | O101: 0 | S101: // | X101: // | AD101: 0 | AE101: 0 | AF101: 0 | AG101: 0 | AH101: 0 | AI101: 0 | AJ101: 0 | AK101: 0 | AL101: 0 | AM101: 0 | AN101: 0 | AO101: 0 | AP101: 0 | AQ101: 0 | AR101: 0 | AS101: 0 | AT101: 0 | AU101: 0 | AV101: 0 | AW101: 0 | AX101: 0 | AY101: 0
G102: 0 | L102: 0 | N102: 0 | O102: 0 | S102: // | X102: // | AD102: 0 | AE102: 0 | AF102: 0 | AG102: 0 | AH102: 0 | AI102: 0 | AJ102: 0 | AK102: 0 | AL102: 0 | AM102: 0 | AN102: 0 | AO102: 0 | AP102: 0 | AQ102: 0 | AR102: 0 | AS102: 0 | AT102: 0 | AU102: 0 | AV102: 0 | AW102: 0 | AX102: 0 | AY102: 0
G103: 0 | L103: 0 | N103: 0 | O103: 0 | S103: // | X103: // | AD103: 0 | AE103: 0 | AF103: 0 | AG103: 0 | AH103: 0 | AI103: 0 | AJ103: 0 | AK103: 0 | AL103: 0 | AM103: 0 | AN103: 0 | AO103: 0 | AP103: 0 | AQ103: 0 | AR103: 0 | AS103: 0 | AT103: 0 | AU103: 0 | AV103: 0 | AW103: 0 | AX103: 0 | AY103: 0
G104: 0 | L104: 0 | N104: 0 | O104: 0 | S104: // | X104: // | AD104: 0 | AE104: =IF(ISNA($AC104),0,IF($P104<>"64 and over",ROUND(AE$15*AE$14*$AC104*AE$13,2),ROUND(AE$15*AE$14*AE$13,2)*3)*$O104) -> 0 | AF104: 0 | AG104: 0 | AH104: 0 | AI104: 0 | AJ104: 0 | AK104: 0 | AL104: 0 | AM104: 0 | AN104: 0 | AO104: 0 | AP104: 0 | AQ104: 0 | AR104: 0 | AS104: 0 | AT104: 0 | AU104: 0 | AV104: 0 | AW104: 0 | AX104: 0 | AY104: 0
G105: 0 | L105: 0 | N105: 0 | O105: 0 | S105: // | X105: // | AD105: 0 | AE105: 0 | AF105: 0 | AG105: 0 | AH105: 0 | AI105: 0 | AJ105: 0 | AK105: 0 | AL105: 0 | AM105: 0 | AN105: 0 | AO105: 0 | AP105: 0 | AQ105: 0 | AR105: 0 | AS105: 0 | AT105: 0 | AU105: 0 | AV105: 0 | AW105: 0 | AX105: 0 | AY105: 0
G106: 0 | L106: 0 | N106: 0 | O106: 0 | S106: // | X106: // | AD106: 0 | AE106: 0 | AF106: 0 | AG106: 0 | AH106: 0 | AI106: 0 | AJ106: 0 | AK106: 0 | AL106: 0 | AM106: 0 | AN106: 0 | AO106: 0 | AP106: 0 | AQ106: 0 | AR106: 0 | AS106: 0 | AT106: 0 | AU106: 0 | AV106: 0 | AW106: 0 | AX106: 0 | AY106: 0
G107: 0 | L107: 0 | N107: 0 | O107: 0 | S107: // | X107: // | AD107: 0 | AE107: 0 | AF107: 0 | AG107: 0 | AH107: 0 | AI107: 0 | AJ107: 0 | AK107: 0 | AL107: 0 | AM107: 0 | AN107: 0 | AO107: 0 | AP107: 0 | AQ107: 0 | AR107: 0 | AS107: 0 | AT107: 0 | AU107: 0 | AV107: 0 | AW107: 0 | AX107: 0 | AY107: 0
G108: 0 | L108: 0 | N108: 0 | O108: 0 | S108: // | X108: // | AD108: 0 | AE108: 0 | AF108: 0 | AG108: 0 | AH108: 0 | AI108: 0 | AJ108: 0 | AK108: 0 | AL108: 0 | AM108: 0 | AN108: 0 | AO108: 0 | AP108: 0 | AQ108: 0 | AR108: 0 | AS108: 0 | AT108: 0 | AU108: 0 | AV108: 0 | AW108: 0 | AX108: 0 | AY108: 0
G109: 0 | L109: 0 | N109: 0 | O109: 0 | S109: // | X109: // | AD109: 0 | AE109: 0 | AF109: 0 | AG109: 0 | AH109: 0 | AI109: 0 | AJ109: 0 | AK109: 0 | AL109: 0 | AM109: 0 | AN109: 0 | AO109: 0 | AP109: 0 | AQ109: 0 | AR109: 0 | AS109: 0 | AT109: 0 | AU109: 0 | AV109: 0 | AW109: 0 | AX109: 0 | AY109: 0
G110: 0 | L110: 0 | N110: 0 | O110: 0 | S110: // | X110: // | AD110: 0 | AE110: 0 | AF110: 0 | AG110: 0 | AH110: 0 | AI110: 0 | AJ110: 0 | AK110: 0 | AL110: 0 | AM110: 0 | AN110: 0 | AO110: 0 | AP110: 0 | AQ110: 0 | AR110: 0 | AS110: 0 | AT110: 0 | AU110: 0 | AV110: 0 | AW110: 0 | AX110: 0 | AY110: 0
G111: 0 | L111: 0 | N111: 0 | O111: 0 | S111: // | X111: // | AD111: 0 | AE111: 0 | AF111: 0 | AG111: 0 | AH111: 0 | AI111: 0 | AJ111: 0 | AK111: 0 | AL111: 0 | AM111: 0 | AN111: 0 | AO111: 0 | AP111: 0 | AQ111: 0 | AR111: 0 | AS111: 0 | AT111: 0 | AU111: 0 | AV111: 0 | AW111: 0 | AX111: 0 | AY111: 0
G112: 0 | L112: 0 | N112: 0 | O112: 0 | S112: // | X112: // | AD112: 0 | AE112: 0 | AF112: 0 | AG112: 0 | AH112: 0 | AI112: 0 | AJ112: 0 | AK112: 0 | AL112: 0 | AM112: 0 | AN112: 0 | AO112: 0 | AP112: 0 | AQ112: 0 | AR112: 0 | AS112: 0 | AT112: 0 | AU112: 0 | AV112: 0 | AW112: 0 | AX112: 0 | AY112: 0
G113: 0 | L113: 0 | N113: 0 | O113: 0 | S113: // | X113: // | AD113: 0 | AE113: 0 | AF113: 0 | AG113: 0 | AH113: 0 | AI113: 0 | AJ113: 0 | AK113: 0 | AL113: 0 | AM113: 0 | AN113: 0 | AO113: 0 | AP113: 0 | AQ113: 0 | AR113: 0 | AS113: 0 | AT113: 0 | AU113: 0 | AV113: 0 | AW113: 0 | AX113: 0 | AY113: 0
G114: 0 | L114: 0 | N114: 0 | O114: 0 | S114: // | X114: // | AD114: 0 | AE114: 0 | AF114: 0 | AG114: 0 | AH114: 0 | AI114: 0 | AJ114: 0 | AK114: 0 | AL114: 0 | AM114: 0 | AN114: 0 | AO114: 0 | AP114: 0 | AQ114: 0 | AR114: 0 | AS114: 0 | AT114: 0 | AU114: 0 | AV114: 0 | AW114: 0 | AX114: 0 | AY114: 0
G115: =IF(TRIM($H115)="",I115,DATEDIF($H115,DATE(YEAR(Eff_Dt),MONTH(Eff_Dt),DAY(Eff_Dt)),"Y")) -> 0 | L115: 0 | N115: 0 | O115: 0 | P115: =IF(TRIM(F115)="","",VLOOKUP(G115,Age_band,2,FALSE)) ->  | Q115: =IF(TRIM(F115)="Employee",VLOOKUP(G115,Age_band,3,FALSE),"") ->  | S115: // | X115: // | AC115: =VLOOKUP(P115,Age_Factors,2,FALSE) ->  | AD115: 0 | AE115: 0 | AF115: 0 | AG115: 0 | AH115: 0 | AI115: 0 | AJ115: 0 | AK115: 0 | AL115: 0 | AM115: 0 | AN115: 0 | AO115: 0 | AP115: 0 | AQ115: 0 | AR115: 0 | AS115: 0 | AT115: 0 | AU115: 0 | AV115: 0 | AW115: 0 | AX115: 0 | AY115: 0
G116: 0 | L116: 0 | N116: 0 | O116: 0 | S116: // | T116: =IF($F116="Employee",COUNTIF($S$19:$S$218,$B116&"/"&T$18&"/Y"),"") ->  | X116: // | AD116: 0 | AE116: 0 | AF116: 0 | AG116: 0 | AH116: =IF(ISNA($AC116),0,IF($P116<>"64 and over",ROUND(AH$15*AH$14*$AC116*AH$13,2),ROUND(AH$15*AH$14*AH$13,2)*3)*$O116) -> 0 | AI116: 0 | AJ116: 0 | AK116: 0 | AL116: 0 | AM116: 0 | AN116: 0 | AO116: 0 | AP116: 0 | AQ116: 0 | AR116: 0 | AS116: 0 | AT116: 0 | AU116: 0 | AV116: 0 | AW116: 0 | AX116: 0 | AY116: 0
G117: 0 | L117: 0 | N117: 0 | O117: 0 | S117: // | X117: // | AD117: 0 | AE117: 0 | AF117: 0 | AG117: 0 | AH117: 0 | AI117: 0 | AJ117: 0 | AK117: 0 | AL117: 0 | AM117: 0 | AN117: 0 | AO117: 0 | AP117: 0 | AQ117: 0 | AR117: 0 | AS117: 0 | AT117: 0 | AU117: 0 | AV117: 0 | AW117: 0 | AX117: 0 | AY117: 0
G118: 0 | L118: 0 | N118: 0 | O118: 0 | S118: // | X118: // | AD118: 0 | AE118: 0 | AF118: 0 | AG118: 0 | AH118: 0 | AI118: 0 | AJ118: 0 | AK118: 0 | AL118: 0 | AM118: 0 | AN118: 0 | AO118: 0 | AP118: 0 | AQ118: 0 | AR118: 0 | AS118: 0 | AT118: 0 | AU118: 0 | AV118: 0 | AW118: 0 | AX118: 0 | AY118: 0
G119: 0 | L119: 0 | N119: 0 | O119: 0 | S119: // | X119: // | Y119: =IF($F119="Employee",COUNTIF($X$19:$X$218,$B119&"/"&Y$18&"/Y")*$O119,"") ->  | AD119: 0 | AE119: 0 | AF119: 0 | AG119: 0 | AH119: 0 | AI119: 0 | AJ119: 0 | AK119: 0 | AL119: 0 | AM119: 0 | AN119: 0 | AO119: 0 | AP119: 0 | AQ119: 0 | AR119: 0 | AS119: 0 | AT119: 0 | AU119: 0 | AV119: 0 | AW119: 0 | AX119: 0 | AY119: 0
G120: 0 | L120: 0 | N120: 0 | O120: 0 | S120: // | X120: // | AD120: 0 | AE120: 0 | AF120: 0 | AG120: 0 | AH120: 0 | AI120: 0 | AJ120: 0 | AK120: 0 | AL120: 0 | AM120: 0 | AN120: 0 | AO120: 0 | AP120: 0 | AQ120: 0 | AR120: 0 | AS120: 0 | AT120: 0 | AU120: 0 | AV120: 0 | AW120: 0 | AX120: 0 | AY120: 0
G121: 0 | L121: 0 | N121: 0 | O121: 0 | S121: // | X121: // | AD121: 0 | AE121: 0 | AF121: 0 | AG121: 0 | AH121: 0 | AI121: 0 | AJ121: 0 | AK121: 0 | AL121: 0 | AM121: 0 | AN121: 0 | AO121: 0 | AP121: 0 | AQ121: 0 | AR121: 0 | AS121: 0 | AT121: 0 | AU121: 0 | AV121: 0 | AW121: 0 | AX121: 0 | AY121: 0
G122: 0 | L122: 0 | N122: 0 | O122: 0 | S122: // | X122: // | AD122: 0 | AE122: 0 | AF122: 0 | AG122: 0 | AH122: 0 | AI122: 0 | AJ122: 0 | AK122: 0 | AL122: 0 | AM122: 0 | AN122: 0 | AO122: 0 | AP122: 0 | AQ122: 0 | AR122: 0 | AS122: 0 | AT122: 0 | AU122: 0 | AV122: 0 | AW122: 0 | AX122: 0 | AY122: 0
G123: 0 | L123: 0 | N123: 0 | O123: 0 | S123: // | X123: // | AD123: 0 | AE123: 0 | AF123: 0 | AG123: 0 | AH123: 0 | AI123: 0 | AJ123: 0 | AK123: 0 | AL123: 0 | AM123: 0 | AN123: 0 | AO123: 0 | AP123: 0 | AQ123: 0 | AR123: 0 | AS123: 0 | AT123: 0 | AU123: 0 | AV123: 0 | AW123: 0 | AX123: 0 | AY123: 0
G124: 0 | L124: 0 | N124: 0 | O124: 0 | S124: // | X124: // | AD124: 0 | AE124: 0 | AF124: 0 | AG124: 0 | AH124: 0 | AI124: 0 | AJ124: 0 | AK124: 0 | AL124: 0 | AM124: 0 | AN124: 0 | AO124: 0 | AP124: 0 | AQ124: 0 | AR124: 0 | AS124: 0 | AT124: 0 | AU124: 0 | AV124: 0 | AW124: 0 | AX124: 0 | AY124: 0
G125: 0 | L125: 0 | N125: 0 | O125: 0 | S125: // | X125: // | AD125: 0 | AE125: 0 | AF125: 0 | AG125: 0 | AH125: 0 | AI125: 0 | AJ125: 0 | AK125: 0 | AL125: 0 | AM125: 0 | AN125: 0 | AO125: 0 | AP125: 0 | AQ125: 0 | AR125: 0 | AS125: 0 | AT125: 0 | AU125: 0 | AV125: 0 | AW125: 0 | AX125: 0 | AY125: 0
G126: 0 | L126: 0 | N126: 0 | O126: 0 | S126: // | X126: // | AD126: 0 | AE126: 0 | AF126: 0 | AG126: 0 | AH126: 0 | AI126: 0 | AJ126: 0 | AK126: 0 | AL126: 0 | AM126: 0 | AN126: 0 | AO126: 0 | AP126: 0 | AQ126: 0 | AR126: 0 | AS126: 0 | AT126: 0 | AU126: 0 | AV126: 0 | AW126: 0 | AX126: 0 | AY126: 0
G127: 0 | L127: 0 | N127: 0 | O127: 0 | S127: // | X127: // | AD127: 0 | AE127: 0 | AF127: 0 | AG127: 0 | AH127: 0 | AI127: 0 | AJ127: 0 | AK127: 0 | AL127: 0 | AM127: 0 | AN127: 0 | AO127: 0 | AP127: 0 | AQ127: 0 | AR127: 0 | AS127: 0 | AT127: 0 | AU127: 0 | AV127: 0 | AW127: 0 | AX127: 0 | AY127: 0
G128: 0 | L128: 0 | N128: 0 | O128: 0 | S128: // | X128: // | AD128: 0 | AE128: 0 | AF128: 0 | AG128: 0 | AH128: 0 | AI128: 0 | AJ128: 0 | AK128: =IF(ISNA($AC128),0,IF($P128<>"64 and over",ROUND(AK$15*AK$14*$AC128*AK$13,2),ROUND(AK$15*AK$14*AK$13,2)*3)*$O128) -> 0 | AL128: 0 | AM128: 0 | AN128: 0 | AO128: 0 | AP128: 0 | AQ128: 0 | AR128: 0 | AS128: 0 | AT128: 0 | AU128: 0 | AV128: 0 | AW128: 0 | AX128: 0 | AY128: 0
G129: 0 | L129: 0 | N129: 0 | O129: 0 | S129: // | X129: // | AD129: 0 | AE129: 0 | AF129: 0 | AG129: 0 | AH129: 0 | AI129: 0 | AJ129: 0 | AK129: 0 | AL129: 0 | AM129: 0 | AN129: 0 | AO129: 0 | AP129: 0 | AQ129: 0 | AR129: 0 | AS129: 0 | AT129: 0 | AU129: 0 | AV129: 0 | AW129: 0 | AX129: 0 | AY129: 0
G130: 0 | L130: 0 | N130: 0 | O130: 0 | S130: // | X130: // | AD130: 0 | AE130: 0 | AF130: 0 | AG130: 0 | AH130: 0 | AI130: 0 | AJ130: 0 | AK130: 0 | AL130: 0 | AM130: 0 | AN130: 0 | AO130: 0 | AP130: 0 | AQ130: 0 | AR130: 0 | AS130: 0 | AT130: 0 | AU130: 0 | AV130: 0 | AW130: 0 | AX130: 0 | AY130: 0
G131: 0 | L131: 0 | N131: 0 | O131: 0 | S131: // | X131: // | AD131: 0 | AE131: 0 | AF131: 0 | AG131: 0 | AH131: 0 | AI131: 0 | AJ131: 0 | AK131: 0 | AL131: 0 | AM131: 0 | AN131: 0 | AO131: 0 | AP131: 0 | AQ131: 0 | AR131: 0 | AS131: 0 | AT131: 0 | AU131: 0 | AV131: 0 | AW131: 0 | AX131: 0 | AY131: 0
G132: 0 | L132: 0 | N132: 0 | O132: 0 | S132: // | X132: // | AD132: 0 | AE132: 0 | AF132: 0 | AG132: 0 | AH132: 0 | AI132: 0 | AJ132: 0 | AK132: 0 | AL132: 0 | AM132: 0 | AN132: 0 | AO132: 0 | AP132: 0 | AQ132: 0 | AR132: 0 | AS132: 0 | AT132: 0 | AU132: 0 | AV132: 0 | AW132: 0 | AX132: 0 | AY132: 0
G133: 0 | L133: 0 | N133: 0 | O133: 0 | S133: // | X133: // | AD133: 0 | AE133: 0 | AF133: 0 | AG133: 0 | AH133: 0 | AI133: 0 | AJ133: 0 | AK133: 0 | AL133: 0 | AM133: 0 | AN133: 0 | AO133: 0 | AP133: 0 | AQ133: 0 | AR133: 0 | AS133: 0 | AT133: 0 | AU133: 0 | AV133: 0 | AW133: 0 | AX133: 0 | AY133: 0
G134: 0 | L134: 0 | N134: 0 | O134: 0 | S134: // | X134: // | AD134: 0 | AE134: 0 | AF134: 0 | AG134: 0 | AH134: 0 | AI134: 0 | AJ134: 0 | AK134: 0 | AL134: 0 | AM134: 0 | AN134: 0 | AO134: 0 | AP134: 0 | AQ134: 0 | AR134: 0 | AS134: 0 | AT134: 0 | AU134: 0 | AV134: 0 | AW134: 0 | AX134: 0 | AY134: 0
G135: 0 | L135: 0 | N135: 0 | O135: 0 | S135: // | X135: // | AD135: 0 | AE135: 0 | AF135: 0 | AG135: 0 | AH135: 0 | AI135: 0 | AJ135: 0 | AK135: 0 | AL135: 0 | AM135: 0 | AN135: 0 | AO135: 0 | AP135: 0 | AQ135: 0 | AR135: 0 | AS135: 0 | AT135: 0 | AU135: 0 | AV135: 0 | AW135: 0 | AX135: 0 | AY135: 0
G136: 0 | L136: 0 | N136: 0 | O136: 0 | S136: // | X136: // | AD136: 0 | AE136: 0 | AF136: 0 | AG136: 0 | AH136: 0 | AI136: 0 | AJ136: 0 | AK136: 0 | AL136: 0 | AM136: 0 | AN136: 0 | AO136: 0 | AP136: 0 | AQ136: 0 | AR136: 0 | AS136: 0 | AT136: 0 | AU136: 0 | AV136: 0 | AW136: 0 | AX136: 0 | AY136: 0
G137: 0 | L137: 0 | N137: 0 | O137: 0 | S137: // | X137: // | AD137: 0 | AE137: 0 | AF137: 0 | AG137: 0 | AH137: 0 | AI137: 0 | AJ137: 0 | AK137: 0 | AL137: 0 | AM137: 0 | AN137: 0 | AO137: 0 | AP137: 0 | AQ137: 0 | AR137: 0 | AS137: 0 | AT137: 0 | AU137: 0 | AV137: 0 | AW137: 0 | AX137: 0 | AY137: 0
G138: 0 | L138: 0 | N138: 0 | O138: 0 | S138: // | X138: // | AD138: 0 | AE138: 0 | AF138: 0 | AG138: 0 | AH138: 0 | AI138: 0 | AJ138: 0 | AK138: 0 | AL138: 0 | AM138: 0 | AN138: 0 | AO138: 0 | AP138: 0 | AQ138: 0 | AR138: 0 | AS138: 0 | AT138: 0 | AU138: 0 | AV138: 0 | AW138: 0 | AX138: 0 | AY138: 0
G139: 0 | L139: 0 | N139: 0 | O139: 0 | S139: // | X139: // | Y139: =IF($F139="Employee",COUNTIF($X$19:$X$218,$B139&"/"&Y$18&"/Y")*$O139,"") ->  | AD139: 0 | AE139: 0 | AF139: 0 | AG139: 0 | AH139: 0 | AI139: 0 | AJ139: 0 | AK139: 0 | AL139: 0 | AM139: 0 | AN139: 0 | AO139: 0 | AP139: 0 | AQ139: 0 | AR139: 0 | AS139: 0 | AT139: 0 | AU139: 0 | AV139: 0 | AW139: 0 | AX139: 0 | AY139: 0
G140: 0 | L140: 0 | N140: 0 | O140: 0 | S140: // | X140: // | AD140: 0 | AE140: 0 | AF140: 0 | AG140: 0 | AH140: 0 | AI140: 0 | AJ140: 0 | AK140: 0 | AL140: 0 | AM140: 0 | AN140: =IF(ISNA($AC140),0,IF($P140<>"64 and over",ROUND(AN$15*AN$14*$AC140*AN$13,2),ROUND(AN$15*AN$14*AN$13,2)*3)*$O140) -> 0 | AO140: 0 | AP140: 0 | AQ140: 0 | AR140: 0 | AS140: 0 | AT140: 0 | AU140: 0 | AV140: 0 | AW140: 0 | AX140: 0 | AY140: 0
G141: 0 | L141: 0 | N141: 0 | O141: 0 | S141: // | X141: // | AD141: 0 | AE141: 0 | AF141: 0 | AG141: 0 | AH141: 0 | AI141: 0 | AJ141: 0 | AK141: 0 | AL141: 0 | AM141: 0 | AN141: 0 | AO141: 0 | AP141: 0 | AQ141: 0 | AR141: 0 | AS141: 0 | AT141: 0 | AU141: 0 | AV141: 0 | AW141: 0 | AX141: 0 | AY141: 0
G142: 0 | L142: 0 | N142: 0 | O142: 0 | S142: // | X142: // | AD142: 0 | AE142: 0 | AF142: 0 | AG142: 0 | AH142: 0 | AI142: 0 | AJ142: 0 | AK142: 0 | AL142: 0 | AM142: 0 | AN142: 0 | AO142: 0 | AP142: 0 | AQ142: 0 | AR142: 0 | AS142: 0 | AT142: 0 | AU142: 0 | AV142: 0 | AW142: 0 | AX142: 0 | AY142: 0
G143: 0 | L143: 0 | N143: 0 | O143: 0 | S143: // | X143: // | AD143: 0 | AE143: 0 | AF143: 0 | AG143: 0 | AH143: 0 | AI143: 0 | AJ143: 0 | AK143: 0 | AL143: 0 | AM143: 0 | AN143: 0 | AO143: 0 | AP143: 0 | AQ143: 0 | AR143: 0 | AS143: 0 | AT143: 0 | AU143: 0 | AV143: 0 | AW143: 0 | AX143: 0 | AY143: 0
G144: 0 | L144: 0 | N144: 0 | O144: 0 | S144: // | X144: // | AD144: 0 | AE144: 0 | AF144: 0 | AG144: 0 | AH144: 0 | AI144: 0 | AJ144: 0 | AK144: 0 | AL144: 0 | AM144: 0 | AN144: 0 | AO144: 0 | AP144: 0 | AQ144: 0 | AR144: 0 | AS144: 0 | AT144: 0 | AU144: 0 | AV144: 0 | AW144: 0 | AX144: 0 | AY144: 0
G145: 0 | L145: 0 | N145: 0 | O145: 0 | S145: // | X145: // | AD145: 0 | AE145: 0 | AF145: 0 | AG145: 0 | AH145: 0 | AI145: 0 | AJ145: 0 | AK145: 0 | AL145: 0 | AM145: 0 | AN145: 0 | AO145: 0 | AP145: 0 | AQ145: 0 | AR145: 0 | AS145: 0 | AT145: 0 | AU145: 0 | AV145: 0 | AW145: 0 | AX145: 0 | AY145: 0
G146: 0 | L146: 0 | N146: 0 | O146: 0 | S146: // | X146: // | AD146: 0 | AE146: 0 | AF146: 0 | AG146: 0 | AH146: 0 | AI146: 0 | AJ146: 0 | AK146: 0 | AL146: 0 | AM146: 0 | AN146: 0 | AO146: 0 | AP146: 0 | AQ146: 0 | AR146: 0 | AS146: 0 | AT146: 0 | AU146: 0 | AV146: 0 | AW146: 0 | AX146: 0 | AY146: 0
G147: =IF(TRIM($H147)="",I147,DATEDIF($H147,DATE(YEAR(Eff_Dt),MONTH(Eff_Dt),DAY(Eff_Dt)),"Y")) -> 0 | L147: 0 | N147: 0 | O147: 0 | P147: =IF(TRIM(F147)="","",VLOOKUP(G147,Age_band,2,FALSE)) ->  | Q147: =IF(TRIM(F147)="Employee",VLOOKUP(G147,Age_band,3,FALSE),"") ->  | S147: // | X147: // | AC147: =VLOOKUP(P147,Age_Factors,2,FALSE) ->  | AD147: 0 | AE147: 0 | AF147: 0 | AG147: 0 | AH147: 0 | AI147: 0 | AJ147: 0 | AK147: 0 | AL147: 0 | AM147: 0 | AN147: 0 | AO147: 0 | AP147: 0 | AQ147: 0 | AR147: 0 | AS147: 0 | AT147: 0 | AU147: 0 | AV147: 0 | AW147: 0 | AX147: 0 | AY147: 0
G148: 0 | L148: =IF(F148<>"Employee",0,IF($G148>=75,0.35,IF($G148>=70,0.5,IF($G148>=65,0.65,1)))*MIN($K148,50000)) -> 0 | N148: 0 | O148: =IF(OR(F148="",J148="N"),0,IF(N148>3,0,1)) -> 0 | R148: =IF(TRIM(F148)="","",IF(G148>=19,"Y","N")) ->  | S148: =B148&"/"&F148&"/"&R148 -> // | T148: =IF($F148="Employee",COUNTIF($S$19:$S$218,$B148&"/"&T$18&"/Y"),"") ->  | W148: =IF($F148<>"Employee","",IF(U148>0,IF(V148>0,4,2),IF(V148=0,1,3))) ->  | X148: =B148&"/"&F148&"/"&J148 -> // | AB148: =IF(OR(F148<>"Employee",O148=0),"",IF(Z148>0,IF(AA148>0,4,2),IF(AA148=0,1,3))) ->  | AD148: =IF(ISNA($AC148),0,IF($P148<>"64 and over",ROUND(AD$15*AD$14*$AC148*AD$13,2),ROUND(AD$15*AD$14*AD$13,2)*3)*$O148) -> 0 | AE148: 0 | AF148: 0 | AG148: 0 | AH148: 0 | AI148: 0 | AJ148: 0 | AK148: 0 | AL148: 0 | AM148: 0 | AN148: 0 | AO148: 0 | AP148: 0 | AQ148: 0 | AR148: 0 | AS148: 0 | AT148: 0 | AU148: 0 | AV148: 0 | AW148: 0 | AX148: 0 | AY148: 0
G149: 0 | L149: 0 | N149: 0 | O149: 0 | S149: // | X149: // | AD149: 0 | AE149: 0 | AF149: 0 | AG149: 0 | AH149: 0 | AI149: 0 | AJ149: 0 | AK149: 0 | AL149: 0 | AM149: 0 | AN149: 0 | AO149: 0 | AP149: 0 | AQ149: 0 | AR149: 0 | AS149: 0 | AT149: 0 | AU149: 0 | AV149: 0 | AW149: 0 | AX149: 0 | AY149: 0
G150: 0 | L150: 0 | N150: 0 | O150: 0 | S150: // | X150: // | AD150: 0 | AE150: 0 | AF150: 0 | AG150: 0 | AH150: 0 | AI150: 0 | AJ150: 0 | AK150: 0 | AL150: 0 | AM150: 0 | AN150: 0 | AO150: 0 | AP150: 0 | AQ150: 0 | AR150: 0 | AS150: 0 | AT150: 0 | AU150: 0 | AV150: 0 | AW150: 0 | AX150: 0 | AY150: 0
G151: 0 | L151: 0 | N151: 0 | O151: 0 | S151: // | X151: // | AD151: 0 | AE151: 0 | AF151: 0 | AG151: 0 | AH151: 0 | AI151: 0 | AJ151: 0 | AK151: 0 | AL151: 0 | AM151: 0 | AN151: 0 | AO151: 0 | AP151: 0 | AQ151: 0 | AR151: 0 | AS151: 0 | AT151: 0 | AU151: 0 | AV151: 0 | AW151: 0 | AX151: 0 | AY151: 0
G152: 0 | L152: 0 | N152: 0 | O152: 0 | S152: // | X152: // | AD152: 0 | AE152: 0 | AF152: 0 | AG152: 0 | AH152: 0 | AI152: 0 | AJ152: 0 | AK152: 0 | AL152: 0 | AM152: 0 | AN152: 0 | AO152: 0 | AP152: 0 | AQ152: =IF(ISNA($AC152),0,IF($P152<>"64 and over",ROUND(AQ$15*AQ$14*$AC152*AQ$13,2),ROUND(AQ$15*AQ$14*AQ$13,2)*3)*$O152) -> 0 | AR152: 0 | AS152: 0 | AT152: 0 | AU152: 0 | AV152: 0 | AW152: 0 | AX152: 0 | AY152: 0
G153: 0 | L153: 0 | N153: 0 | O153: 0 | S153: // | X153: // | AD153: 0 | AE153: 0 | AF153: 0 | AG153: 0 | AH153: 0 | AI153: 0 | AJ153: 0 | AK153: 0 | AL153: 0 | AM153: 0 | AN153: 0 | AO153: 0 | AP153: 0 | AQ153: 0 | AR153: 0 | AS153: 0 | AT153: 0 | AU153: 0 | AV153: 0 | AW153: 0 | AX153: 0 | AY153: 0
G154: 0 | L154: 0 | N154: 0 | O154: 0 | S154: // | X154: // | AD154: 0 | AE154: 0 | AF154: 0 | AG154: 0 | AH154: 0 | AI154: 0 | AJ154: 0 | AK154: 0 | AL154: 0 | AM154: 0 | AN154: 0 | AO154: 0 | AP154: 0 | AQ154: 0 | AR154: 0 | AS154: 0 | AT154: 0 | AU154: 0 | AV154: 0 | AW154: 0 | AX154: 0 | AY154: 0
G155: 0 | L155: 0 | N155: 0 | O155: 0 | S155: // | X155: // | AD155: 0 | AE155: 0 | AF155: 0 | AG155: 0 | AH155: 0 | AI155: 0 | AJ155: 0 | AK155: 0 | AL155: 0 | AM155: 0 | AN155: 0 | AO155: 0 | AP155: 0 | AQ155: 0 | AR155: 0 | AS155: 0 | AT155: 0 | AU155: 0 | AV155: 0 | AW155: 0 | AX155: 0 | AY155: 0
G156: 0 | L156: 0 | N156: 0 | O156: 0 | S156: // | X156: // | AD156: 0 | AE156: 0 | AF156: 0 | AG156: 0 | AH156: 0 | AI156: 0 | AJ156: 0 | AK156: 0 | AL156: 0 | AM156: 0 | AN156: 0 | AO156: 0 | AP156: 0 | AQ156: 0 | AR156: 0 | AS156: 0 | AT156: 0 | AU156: 0 | AV156: 0 | AW156: 0 | AX156: 0 | AY156: 0
G157: 0 | L157: 0 | N157: 0 | O157: 0 | S157: // | X157: // | AD157: 0 | AE157: 0 | AF157: 0 | AG157: 0 | AH157: 0 | AI157: 0 | AJ157: 0 | AK157: 0 | AL157: 0 | AM157: 0 | AN157: 0 | AO157: 0 | AP157: 0 | AQ157: 0 | AR157: 0 | AS157: 0 | AT157: 0 | AU157: 0 | AV157: 0 | AW157: 0 | AX157: 0 | AY157: 0
G158: 0 | L158: 0 | N158: 0 | O158: 0 | S158: // | X158: // | AD158: 0 | AE158: 0 | AF158: 0 | AG158: 0 | AH158: 0 | AI158: 0 | AJ158: 0 | AK158: 0 | AL158: 0 | AM158: 0 | AN158: 0 | AO158: 0 | AP158: 0 | AQ158: 0 | AR158: 0 | AS158: 0 | AT158: 0 | AU158: 0 | AV158: 0 | AW158: 0 | AX158: 0 | AY158: 0
G159: 0 | L159: 0 | N159: 0 | O159: 0 | S159: // | X159: // | Y159: =IF($F159="Employee",COUNTIF($X$19:$X$218,$B159&"/"&Y$18&"/Y")*$O159,"") ->  | AD159: 0 | AE159: 0 | AF159: 0 | AG159: 0 | AH159: 0 | AI159: 0 | AJ159: 0 | AK159: 0 | AL159: 0 | AM159: 0 | AN159: 0 | AO159: 0 | AP159: 0 | AQ159: 0 | AR159: 0 | AS159: 0 | AT159: 0 | AU159: 0 | AV159: 0 | AW159: 0 | AX159: 0 | AY159: 0
G160: 0 | L160: 0 | N160: 0 | O160: 0 | S160: // | X160: // | AD160: 0 | AE160: 0 | AF160: 0 | AG160: 0 | AH160: 0 | AI160: 0 | AJ160: 0 | AK160: 0 | AL160: 0 | AM160: 0 | AN160: 0 | AO160: 0 | AP160: 0 | AQ160: 0 | AR160: 0 | AS160: 0 | AT160: 0 | AU160: 0 | AV160: 0 | AW160: 0 | AX160: 0 | AY160: 0
G161: 0 | L161: 0 | N161: 0 | O161: 0 | S161: // | X161: // | AD161: 0 | AE161: 0 | AF161: 0 | AG161: 0 | AH161: 0 | AI161: 0 | AJ161: 0 | AK161: 0 | AL161: 0 | AM161: 0 | AN161: 0 | AO161: 0 | AP161: 0 | AQ161: 0 | AR161: 0 | AS161: 0 | AT161: 0 | AU161: 0 | AV161: 0 | AW161: 0 | AX161: 0 | AY161: 0
G162: 0 | L162: 0 | N162: 0 | O162: 0 | S162: // | X162: // | AD162: 0 | AE162: 0 | AF162: 0 | AG162: 0 | AH162: 0 | AI162: 0 | AJ162: 0 | AK162: 0 | AL162: 0 | AM162: 0 | AN162: 0 | AO162: 0 | AP162: 0 | AQ162: 0 | AR162: 0 | AS162: 0 | AT162: 0 | AU162: 0 | AV162: 0 | AW162: 0 | AX162: 0 | AY162: 0
G163: 0 | L163: 0 | N163: 0 | O163: 0 | S163: // | X163: // | AD163: 0 | AE163: 0 | AF163: 0 | AG163: 0 | AH163: 0 | AI163: 0 | AJ163: 0 | AK163: 0 | AL163: 0 | AM163: 0 | AN163: 0 | AO163: 0 | AP163: 0 | AQ163: 0 | AR163: 0 | AS163: 0 | AT163: 0 | AU163: 0 | AV163: 0 | AW163: 0 | AX163: 0 | AY163: 0
B164: =IF(TRIM(F164)="","",IF(F164="Employee",B163+1,B163)) ->  | G164: 0 | L164: 0 | N164: =IF(OR(F164<>"Child",G164>20),0,N163+1) -> 0 | O164: 0 | S164: // | X164: // | AD164: 0 | AE164: 0 | AF164: 0 | AG164: 0 | AH164: 0 | AI164: 0 | AJ164: 0 | AK164: 0 | AL164: 0 | AM164: 0 | AN164: 0 | AO164: 0 | AP164: 0 | AQ164: 0 | AR164: 0 | AS164: 0 | AT164: =IF(ISNA($AC164),0,IF($P164<>"64 and over",ROUND(AT$15*AT$14*$AC164*AT$13,2),ROUND(AT$15*AT$14*AT$13,2)*3)*$O164) -> 0 | AU164: 0 | AV164: 0 | AW164: 0 | AX164: 0 | AY164: 0
G165: 0 | L165: 0 | N165: 0 | O165: 0 | S165: // | X165: // | AD165: 0 | AE165: 0 | AF165: 0 | AG165: 0 | AH165: 0 | AI165: 0 | AJ165: 0 | AK165: 0 | AL165: 0 | AM165: 0 | AN165: 0 | AO165: 0 | AP165: 0 | AQ165: 0 | AR165: 0 | AS165: 0 | AT165: 0 | AU165: 0 | AV165: 0 | AW165: 0 | AX165: 0 | AY165: 0
G166: 0 | L166: 0 | N166: 0 | O166: 0 | S166: // | X166: // | AD166: 0 | AE166: 0 | AF166: 0 | AG166: 0 | AH166: 0 | AI166: 0 | AJ166: 0 | AK166: 0 | AL166: 0 | AM166: 0 | AN166: 0 | AO166: 0 | AP166: 0 | AQ166: 0 | AR166: 0 | AS166: 0 | AT166: 0 | AU166: 0 | AV166: 0 | AW166: 0 | AX166: 0 | AY166: 0
G167: 0 | L167: 0 | N167: 0 | O167: 0 | S167: // | X167: // | AD167: 0 | AE167: 0 | AF167: 0 | AG167: 0 | AH167: 0 | AI167: 0 | AJ167: 0 | AK167: 0 | AL167: 0 | AM167: 0 | AN167: 0 | AO167: 0 | AP167: 0 | AQ167: 0 | AR167: 0 | AS167: 0 | AT167: 0 | AU167: 0 | AV167: 0 | AW167: 0 | AX167: 0 | AY167: 0
G168: 0 | L168: 0 | N168: 0 | O168: 0 | S168: // | X168: // | AD168: 0 | AE168: 0 | AF168: 0 | AG168: 0 | AH168: 0 | AI168: 0 | AJ168: 0 | AK168: 0 | AL168: 0 | AM168: 0 | AN168: 0 | AO168: 0 | AP168: 0 | AQ168: 0 | AR168: 0 | AS168: 0 | AT168: 0 | AU168: 0 | AV168: 0 | AW168: 0 | AX168: 0 | AY168: 0
G169: 0 | L169: 0 | N169: 0 | O169: 0 | S169: // | X169: // | AD169: 0 | AE169: 0 | AF169: 0 | AG169: 0 | AH169: 0 | AI169: 0 | AJ169: 0 | AK169: 0 | AL169: 0 | AM169: 0 | AN169: 0 | AO169: 0 | AP169: 0 | AQ169: 0 | AR169: 0 | AS169: 0 | AT169: 0 | AU169: 0 | AV169: 0 | AW169: 0 | AX169: 0 | AY169: 0
G170: 0 | L170: 0 | N170: 0 | O170: 0 | S170: // | X170: // | AD170: 0 | AE170: 0 | AF170: 0 | AG170: 0 | AH170: 0 | AI170: 0 | AJ170: 0 | AK170: 0 | AL170: 0 | AM170: 0 | AN170: 0 | AO170: 0 | AP170: 0 | AQ170: 0 | AR170: 0 | AS170: 0 | AT170: 0 | AU170: 0 | AV170: 0 | AW170: 0 | AX170: 0 | AY170: 0
G171: 0 | L171: 0 | N171: 0 | O171: 0 | S171: // | X171: // | AD171: 0 | AE171: 0 | AF171: 0 | AG171: 0 | AH171: 0 | AI171: 0 | AJ171: 0 | AK171: 0 | AL171: 0 | AM171: 0 | AN171: 0 | AO171: 0 | AP171: 0 | AQ171: 0 | AR171: 0 | AS171: 0 | AT171: 0 | AU171: 0 | AV171: 0 | AW171: 0 | AX171: 0 | AY171: 0
G172: 0 | L172: 0 | N172: 0 | O172: 0 | S172: // | X172: // | AD172: 0 | AE172: 0 | AF172: 0 | AG172: 0 | AH172: 0 | AI172: 0 | AJ172: 0 | AK172: 0 | AL172: 0 | AM172: 0 | AN172: 0 | AO172: 0 | AP172: 0 | AQ172: 0 | AR172: 0 | AS172: 0 | AT172: 0 | AU172: 0 | AV172: 0 | AW172: 0 | AX172: 0 | AY172: 0
G173: 0 | L173: 0 | N173: 0 | O173: 0 | S173: // | X173: // | AD173: 0 | AE173: 0 | AF173: 0 | AG173: 0 | AH173: 0 | AI173: 0 | AJ173: 0 | AK173: 0 | AL173: 0 | AM173: 0 | AN173: 0 | AO173: 0 | AP173: 0 | AQ173: 0 | AR173: 0 | AS173: 0 | AT173: 0 | AU173: 0 | AV173: 0 | AW173: 0 | AX173: 0 | AY173: 0
G174: 0 | L174: 0 | N174: 0 | O174: 0 | S174: // | X174: // | AD174: 0 | AE174: 0 | AF174: 0 | AG174: 0 | AH174: 0 | AI174: 0 | AJ174: 0 | AK174: 0 | AL174: 0 | AM174: 0 | AN174: 0 | AO174: 0 | AP174: 0 | AQ174: 0 | AR174: 0 | AS174: 0 | AT174: 0 | AU174: 0 | AV174: 0 | AW174: 0 | AX174: 0 | AY174: 0
G175: 0 | L175: 0 | N175: 0 | O175: 0 | S175: // | X175: // | AD175: 0 | AE175: 0 | AF175: 0 | AG175: 0 | AH175: 0 | AI175: 0 | AJ175: 0 | AK175: 0 | AL175: 0 | AM175: 0 | AN175: 0 | AO175: 0 | AP175: 0 | AQ175: 0 | AR175: 0 | AS175: 0 | AT175: 0 | AU175: 0 | AV175: 0 | AW175: 0 | AX175: 0 | AY175: 0
G176: 0 | L176: 0 | N176: 0 | O176: 0 | S176: // | X176: // | AD176: 0 | AE176: 0 | AF176: 0 | AG176: 0 | AH176: 0 | AI176: 0 | AJ176: 0 | AK176: 0 | AL176: 0 | AM176: 0 | AN176: 0 | AO176: 0 | AP176: 0 | AQ176: 0 | AR176: 0 | AS176: 0 | AT176: 0 | AU176: 0 | AV176: 0 | AW176: =IF(ISNA($AC176),0,IF($P176<>"64 and over",ROUND(AW$15*AW$14*$AC176*AW$13,2),ROUND(AW$15*AW$14*AW$13,2)*3)*$O176) -> 0 | AX176: 0 | AY176: 0
G177: 0 | L177: 0 | N177: 0 | O177: 0 | S177: // | X177: // | AD177: 0 | AE177: 0 | AF177: 0 | AG177: 0 | AH177: 0 | AI177: 0 | AJ177: 0 | AK177: 0 | AL177: 0 | AM177: 0 | AN177: 0 | AO177: 0 | AP177: 0 | AQ177: 0 | AR177: 0 | AS177: 0 | AT177: 0 | AU177: 0 | AV177: 0 | AW177: 0 | AX177: 0 | AY177: 0
G178: 0 | L178: 0 | N178: 0 | O178: 0 | S178: // | X178: // | AD178: 0 | AE178: 0 | AF178: 0 | AG178: 0 | AH178: 0 | AI178: 0 | AJ178: 0 | AK178: 0 | AL178: 0 | AM178: 0 | AN178: 0 | AO178: 0 | AP178: 0 | AQ178: 0 | AR178: 0 | AS178: 0 | AT178: 0 | AU178: 0 | AV178: 0 | AW178: 0 | AX178: 0 | AY178: 0
G179: =IF(TRIM($H179)="",I179,DATEDIF($H179,DATE(YEAR(Eff_Dt),MONTH(Eff_Dt),DAY(Eff_Dt)),"Y")) -> 0 | L179: 0 | N179: 0 | O179: 0 | P179: =IF(TRIM(F179)="","",VLOOKUP(G179,Age_band,2,FALSE)) ->  | Q179: =IF(TRIM(F179)="Employee",VLOOKUP(G179,Age_band,3,FALSE),"") ->  | S179: // | X179: // | Y179: =IF($F179="Employee",COUNTIF($X$19:$X$218,$B179&"/"&Y$18&"/Y")*$O179,"") ->  | AC179: =VLOOKUP(P179,Age_Factors,2,FALSE) ->  | AD179: 0 | AE179: 0 | AF179: 0 | AG179: 0 | AH179: 0 | AI179: 0 | AJ179: 0 | AK179: 0 | AL179: 0 | AM179: 0 | AN179: 0 | AO179: 0 | AP179: 0 | AQ179: 0 | AR179: 0 | AS179: 0 | AT179: 0 | AU179: 0 | AV179: 0 | AW179: 0 | AX179: 0 | AY179: 0
G180: 0 | L180: 0 | N180: 0 | O180: 0 | S180: // | T180: =IF($F180="Employee",COUNTIF($S$19:$S$218,$B180&"/"&T$18&"/Y"),"") ->  | X180: // | AD180: 0 | AE180: 0 | AF180: 0 | AG180: 0 | AH180: 0 | AI180: 0 | AJ180: 0 | AK180: 0 | AL180: 0 | AM180: 0 | AN180: 0 | AO180: 0 | AP180: 0 | AQ180: 0 | AR180: 0 | AS180: 0 | AT180: 0 | AU180: 0 | AV180: 0 | AW180: 0 | AX180: 0 | AY180: 0
G181: 0 | L181: 0 | N181: 0 | O181: 0 | S181: // | X181: // | AD181: 0 | AE181: 0 | AF181: 0 | AG181: 0 | AH181: 0 | AI181: 0 | AJ181: 0 | AK181: 0 | AL181: 0 | AM181: 0 | AN181: 0 | AO181: 0 | AP181: 0 | AQ181: 0 | AR181: 0 | AS181: 0 | AT181: 0 | AU181: 0 | AV181: 0 | AW181: 0 | AX181: 0 | AY181: 0
G182: 0 | L182: 0 | N182: 0 | O182: 0 | S182: // | X182: // | AD182: 0 | AE182: 0 | AF182: 0 | AG182: 0 | AH182: 0 | AI182: 0 | AJ182: 0 | AK182: 0 | AL182: 0 | AM182: 0 | AN182: 0 | AO182: 0 | AP182: 0 | AQ182: 0 | AR182: 0 | AS182: 0 | AT182: 0 | AU182: 0 | AV182: 0 | AW182: 0 | AX182: 0 | AY182: 0
G183: 0 | L183: 0 | N183: 0 | O183: 0 | S183: // | X183: // | AD183: 0 | AE183: 0 | AF183: 0 | AG183: 0 | AH183: 0 | AI183: 0 | AJ183: 0 | AK183: 0 | AL183: 0 | AM183: 0 | AN183: 0 | AO183: 0 | AP183: 0 | AQ183: 0 | AR183: 0 | AS183: 0 | AT183: 0 | AU183: 0 | AV183: 0 | AW183: 0 | AX183: 0 | AY183: 0
G184: 0 | L184: 0 | N184: 0 | O184: 0 | S184: // | X184: // | AD184: 0 | AE184: 0 | AF184: 0 | AG184: 0 | AH184: 0 | AI184: 0 | AJ184: 0 | AK184: 0 | AL184: 0 | AM184: 0 | AN184: 0 | AO184: 0 | AP184: 0 | AQ184: 0 | AR184: 0 | AS184: 0 | AT184: 0 | AU184: 0 | AV184: 0 | AW184: 0 | AX184: 0 | AY184: 0
G185: 0 | L185: 0 | N185: 0 | O185: 0 | S185: // | X185: // | AD185: 0 | AE185: 0 | AF185: 0 | AG185: 0 | AH185: 0 | AI185: 0 | AJ185: 0 | AK185: 0 | AL185: 0 | AM185: 0 | AN185: 0 | AO185: 0 | AP185: 0 | AQ185: 0 | AR185: 0 | AS185: 0 | AT185: 0 | AU185: 0 | AV185: 0 | AW185: 0 | AX185: 0 | AY185: 0
G186: 0 | L186: 0 | N186: 0 | O186: 0 | S186: // | X186: // | AD186: 0 | AE186: 0 | AF186: 0 | AG186: 0 | AH186: 0 | AI186: 0 | AJ186: 0 | AK186: 0 | AL186: 0 | AM186: 0 | AN186: 0 | AO186: 0 | AP186: 0 | AQ186: 0 | AR186: 0 | AS186: 0 | AT186: 0 | AU186: 0 | AV186: 0 | AW186: 0 | AX186: 0 | AY186: 0
G187: 0 | L187: 0 | N187: 0 | O187: 0 | S187: // | X187: // | AD187: 0 | AE187: 0 | AF187: 0 | AG187: 0 | AH187: 0 | AI187: 0 | AJ187: 0 | AK187: 0 | AL187: 0 | AM187: 0 | AN187: 0 | AO187: 0 | AP187: 0 | AQ187: 0 | AR187: 0 | AS187: 0 | AT187: 0 | AU187: 0 | AV187: 0 | AW187: 0 | AX187: 0 | AY187: 0
G188: 0 | L188: 0 | N188: 0 | O188: 0 | S188: // | X188: // | AD188: 0 | AE188: 0 | AF188: 0 | AG188: 0 | AH188: 0 | AI188: 0 | AJ188: 0 | AK188: 0 | AL188: 0 | AM188: 0 | AN188: 0 | AO188: 0 | AP188: 0 | AQ188: 0 | AR188: 0 | AS188: 0 | AT188: 0 | AU188: 0 | AV188: 0 | AW188: 0 | AX188: 0 | AY188: 0
G189: 0 | L189: 0 | N189: 0 | O189: 0 | S189: // | X189: // | AD189: 0 | AE189: =IF(ISNA($AC189),0,IF($P189<>"64 and over",ROUND(AE$15*AE$14*$AC189*AE$13,2),ROUND(AE$15*AE$14*AE$13,2)*3)*$O189) -> 0 | AF189: 0 | AG189: 0 | AH189: 0 | AI189: 0 | AJ189: 0 | AK189: 0 | AL189: 0 | AM189: 0 | AN189: 0 | AO189: 0 | AP189: 0 | AQ189: 0 | AR189: 0 | AS189: 0 | AT189: 0 | AU189: 0 | AV189: 0 | AW189: 0 | AX189: 0 | AY189: 0
G190: 0 | L190: 0 | N190: 0 | O190: 0 | S190: // | X190: // | AD190: 0 | AE190: 0 | AF190: 0 | AG190: 0 | AH190: 0 | AI190: 0 | AJ190: 0 | AK190: 0 | AL190: 0 | AM190: 0 | AN190: 0 | AO190: 0 | AP190: 0 | AQ190: 0 | AR190: 0 | AS190: 0 | AT190: 0 | AU190: 0 | AV190: 0 | AW190: 0 | AX190: 0 | AY190: 0
G191: 0 | L191: 0 | N191: 0 | O191: 0 | S191: // | X191: // | AD191: 0 | AE191: 0 | AF191: 0 | AG191: 0 | AH191: 0 | AI191: 0 | AJ191: 0 | AK191: 0 | AL191: 0 | AM191: 0 | AN191: 0 | AO191: 0 | AP191: 0 | AQ191: 0 | AR191: 0 | AS191: 0 | AT191: 0 | AU191: 0 | AV191: 0 | AW191: 0 | AX191: 0 | AY191: 0
G192: 0 | L192: 0 | N192: 0 | O192: 0 | S192: // | X192: // | AD192: 0 | AE192: 0 | AF192: 0 | AG192: 0 | AH192: 0 | AI192: 0 | AJ192: 0 | AK192: 0 | AL192: 0 | AM192: 0 | AN192: 0 | AO192: 0 | AP192: 0 | AQ192: 0 | AR192: 0 | AS192: 0 | AT192: 0 | AU192: 0 | AV192: 0 | AW192: 0 | AX192: 0 | AY192: 0
G193: 0 | L193: 0 | N193: 0 | O193: 0 | S193: // | X193: // | AD193: 0 | AE193: 0 | AF193: 0 | AG193: 0 | AH193: 0 | AI193: 0 | AJ193: 0 | AK193: 0 | AL193: 0 | AM193: 0 | AN193: 0 | AO193: 0 | AP193: 0 | AQ193: 0 | AR193: 0 | AS193: 0 | AT193: 0 | AU193: 0 | AV193: 0 | AW193: 0 | AX193: 0 | AY193: 0
G194: 0 | L194: 0 | N194: 0 | O194: 0 | S194: // | X194: // | AD194: 0 | AE194: 0 | AF194: 0 | AG194: 0 | AH194: 0 | AI194: 0 | AJ194: 0 | AK194: 0 | AL194: 0 | AM194: 0 | AN194: 0 | AO194: 0 | AP194: 0 | AQ194: 0 | AR194: 0 | AS194: 0 | AT194: 0 | AU194: 0 | AV194: 0 | AW194: 0 | AX194: 0 | AY194: 0
G195: 0 | L195: 0 | N195: 0 | O195: 0 | S195: // | X195: // | AD195: 0 | AE195: 0 | AF195: 0 | AG195: 0 | AH195: 0 | AI195: 0 | AJ195: 0 | AK195: 0 | AL195: 0 | AM195: 0 | AN195: 0 | AO195: 0 | AP195: 0 | AQ195: 0 | AR195: 0 | AS195: 0 | AT195: 0 | AU195: 0 | AV195: 0 | AW195: 0 | AX195: 0 | AY195: 0
G196: 0 | L196: 0 | N196: 0 | O196: 0 | S196: // | X196: // | AD196: 0 | AE196: 0 | AF196: 0 | AG196: 0 | AH196: 0 | AI196: 0 | AJ196: 0 | AK196: 0 | AL196: 0 | AM196: 0 | AN196: 0 | AO196: 0 | AP196: 0 | AQ196: 0 | AR196: 0 | AS196: 0 | AT196: 0 | AU196: 0 | AV196: 0 | AW196: 0 | AX196: 0 | AY196: 0
G197: 0 | L197: 0 | N197: 0 | O197: 0 | S197: // | X197: // | AD197: 0 | AE197: 0 | AF197: 0 | AG197: 0 | AH197: 0 | AI197: 0 | AJ197: 0 | AK197: 0 | AL197: 0 | AM197: 0 | AN197: 0 | AO197: 0 | AP197: 0 | AQ197: 0 | AR197: 0 | AS197: 0 | AT197: 0 | AU197: 0 | AV197: 0 | AW197: 0 | AX197: 0 | AY197: 0
G198: 0 | L198: 0 | N198: 0 | O198: 0 | S198: // | X198: // | AD198: 0 | AE198: 0 | AF198: 0 | AG198: 0 | AH198: 0 | AI198: 0 | AJ198: 0 | AK198: 0 | AL198: 0 | AM198: 0 | AN198: 0 | AO198: 0 | AP198: 0 | AQ198: 0 | AR198: 0 | AS198: 0 | AT198: 0 | AU198: 0 | AV198: 0 | AW198: 0 | AX198: 0 | AY198: 0
G199: 0 | L199: 0 | N199: 0 | O199: 0 | S199: // | X199: // | Y199: =IF($F199="Employee",COUNTIF($X$19:$X$218,$B199&"/"&Y$18&"/Y")*$O199,"") ->  | AD199: 0 | AE199: 0 | AF199: 0 | AG199: 0 | AH199: 0 | AI199: 0 | AJ199: 0 | AK199: 0 | AL199: 0 | AM199: 0 | AN199: 0 | AO199: 0 | AP199: 0 | AQ199: 0 | AR199: 0 | AS199: 0 | AT199: 0 | AU199: 0 | AV199: 0 | AW199: 0 | AX199: 0 | AY199: 0
G200: 0 | L200: 0 | N200: 0 | O200: 0 | S200: // | X200: // | AD200: 0 | AE200: 0 | AF200: 0 | AG200: 0 | AH200: 0 | AI200: 0 | AJ200: 0 | AK200: 0 | AL200: 0 | AM200: 0 | AN200: 0 | AO200: 0 | AP200: 0 | AQ200: 0 | AR200: 0 | AS200: 0 | AT200: 0 | AU200: 0 | AV200: 0 | AW200: 0 | AX200: 0 | AY200: 0
G201: 0 | L201: 0 | N201: 0 | O201: 0 | S201: // | X201: // | AD201: 0 | AE201: 0 | AF201: 0 | AG201: 0 | AH201: =IF(ISNA($AC201),0,IF($P201<>"64 and over",ROUND(AH$15*AH$14*$AC201*AH$13,2),ROUND(AH$15*AH$14*AH$13,2)*3)*$O201) -> 0 | AI201: 0 | AJ201: 0 | AK201: 0 | AL201: 0 | AM201: 0 | AN201: 0 | AO201: 0 | AP201: 0 | AQ201: 0 | AR201: 0 | AS201: 0 | AT201: 0 | AU201: 0 | AV201: 0 | AW201: 0 | AX201: 0 | AY201: 0
... 18 more rows

Sheet Calc_Memo (hidden)
D1: Group Name: | E1: =Grp_Name -> Example Group
D2: Location: | E2: =Grp_County -> Maricopa
D3: Total Eligible Employees: | E3: =Total_EEs -> 7
D4: Effective Date: | E4: =TEXT(Eff_Dt,"mm/dd/yyyy") -> 04/01/2018
D5: Date of Proposal: | E5: =TEXT(TODAY(),"mm/dd/yyyy") -> 01/10/2018
O7: Single | P7: 2-Party | Q7: E/C/C | R7: Family
B8: 2018 Plans - Composite Rates | N8: Subs | O8: =Census!Y8 -> 3 | P8: =Census!Y9 -> 1 | Q8: =Census!Y10 -> 1 | R8: =Census!Y11 -> 2
N9: Tier Factor | O9: =Census!Z8 -> 1 | P9: =Census!Z9 -> 2 | Q9: =Census!Z10 -> 1.95 | R9: =Census!Z11 -> 3.3
B11: Health Net PPO | E11: Select plan with "X" | F11: Employee Only | G11: Employee + Spouse | H11: Employee + Child(ren) | I11: Family | J11: Total Monthly Premium | N11: Total Monthly Premium* | O11: Single | P11: 2-Party | Q11: E/C/C | R11: Family
B12: (Available in all counties statewide)
B13: =VLOOKUP($L13,Plan_tbl,26,FALSE) -> PPO 1 | C13: =VLOOKUP($L13,Plan_tbl,6,FALSE) -> Platinum 750 | D13: =VLOOKUP($L13,Plan_tbl,21,FALSE) -> $20/$40/$70/50% | F13: =ROUND(O13,2) -> 725.18 | G13: =ROUND(P13,2) -> 1450.36 | H13: 1414.1 | I13: 2393.09 | J13: =SUMPRODUCT($O$8:$R$8,F13:I13) -> 9826.18 | L13: 51485AZ0160003 | N13: =HLOOKUP(L13,Census!$AD$9:$DD$10,2,FALSE) -> 9826.18 | O13: =N13/Tier_Product -> 725.1793358 | P13: =$O13*P$9 -> 1450.358672 | Q13: =$O13*Q$9 -> 1414.099705 | R13: 2393.091808 | S13: =SUMPRODUCT($O$8:$R$8,O13:R13) -> 9826.18
B14: PPO 2 | C14: Gold 1000 | D14: $20/$50/$100/50% | F14: =ROUND(O14,2) -> 608.04 | G14: =ROUND(P14,2) -> 1216.08 | H14: =ROUND(Q14,2) -> 1185.68 | I14: =ROUND(R14,2) -> 2006.53 | J14: =SUMPRODUCT($O$8:$R$8,F14:I14) -> 8238.94 | L14: 51485AZ0160005 | N14: =HLOOKUP(L14,Census!$AD$9:$DD$10,2,FALSE) -> 8238.94 | O14: =N14/Tier_Product -> 608.0398524 | P14: =$O14*P$9 -> 1216.079705 | Q14: 1185.677712 | R14: 2006.531513 | S14: =SUMPRODUCT($O$8:$R$8,O14:R14) -> 8238.94
B15: PPO 3 | C15: Gold 2500 | D15: $20/$50/$100/50% | F15: 585.06 | G15: 1170.11 | H15: 1140.86 | I15: 1930.68 | J15: 7927.51 | L15: 51485AZ0160035 | N15: =HLOOKUP(L15,Census!$AD$9:$DD$10,2,FALSE) -> 7927.5 | O15: 585.0553506 | P15: 1170.110701 | Q15: 1140.857934 | R15: 1930.682657 | S15: 7927.5
B16: PPO 4 | C16: Silver 3000 | D16: $20/$70/$120/50% | F16: 488.95 | G16: 977.91 | H16: 953.46 | I16: 1613.55 | J16: 6625.32 | L16: 51485AZ0160036 | N16: =HLOOKUP(L16,Census!$AD$9:$DD$10,2,FALSE) -> 6625.34 | O16: 488.9549815 | P16: 977.9099631 | Q16: 953.462214 | R16: 1613.551439 | S16: 6625.34
B17: PPO 5 | C17: Silver 4000 | D17: $20/$70/$120/50% | F17: 438.34 | G17: 876.69 | H17: 854.77 | I17: 1446.53 | J17: 5939.54 | L17: 51485AZ0160033 | N17: =HLOOKUP(L17,Census!$AD$9:$DD$10,2,FALSE) -> 5939.56 | O17: 438.3439114 | P17: 876.6878229 | Q17: 854.7706273 | R17: 1446.534908 | S17: 5939.56
B18: PPO 6 | C18: Silver 5500 | D18: $20/$70/$120/50% | F18: 466.31 | G18: 932.61 | H18: 909.3 | I18: 1538.81 | J18: 6318.46 | L18: 51485AZ0160038 | N18: =HLOOKUP(L18,Census!$AD$9:$DD$10,2,FALSE) -> 6318.46 | O18: 466.3070111 | P18: 932.6140221 | Q18: 909.2986716 | R18: 1538.813137 | S18: 6318.46
B19: PPO 7 | C19: Bronze 5000 | D19: $20 /$75/$300/50% $500 Brand Deductible | F19: 406.4 | G19: 812.8 | H19: 792.48 | I19: 1341.12 | J19: 5506.72 | L19: 51485AZ0160039 | N19: =HLOOKUP(L19,Census!$AD$9:$DD$10,2,FALSE) -> 5506.74 | O19: 406.401476 | P19: 812.802952 | Q19: 792.4828782 | R19: 1341.124871 | S19: 5506.74
B20: PPO 8 | C20: Bronze 7350 | D20: 0% after deductible | F20: 353.45 | G20: 706.9 | H20: 689.22 | I20: 1166.38 | J20: 4789.23 | L20: 51485AZ0160040 | N20: =HLOOKUP(L20,Census!$AD$9:$DD$10,2,FALSE) -> 4789.23 | O20: 353.4487085 | P20: 706.897417 | Q20: 689.2249815 | R20: 1166.380738 | S20: 4789.23
B21: PPO 9 | C21: Bronze 5500 | D21: 50% after deductible | F21: 372.08 | G21: 744.16 | H21: 725.55 | I21: 1227.86 | J21: 5041.67 | L21: 51485AZ0160032 | N21: =HLOOKUP(L21,Census!$AD$9:$DD$10,2,FALSE) -> 5041.67 | O21: 372.0789668 | P21: 744.1579336 | Q21: 725.5539852 | R21: 1227.86059 | S21: 5041.67
B22: PPO 10 | C22: Silver HSA 3000 | D22: $20/$70/$120/50% after deductible | F22: 443.57 | G22: 887.13 | H22: 864.95 | I22: 1463.77 | J22: 6010.33 | L22: 51485AZ0160031 | N22: =HLOOKUP(L22,Census!$AD$9:$DD$10,2,FALSE) -> 6010.31 | O22: 443.5653137 | P22: 887.1306273 | Q22: 864.9523616 | R22: 1463.765535 | S22: 6010.31
B23: PPO 11 | C23: Silver HSA 4500 | D23: 0% after deductible | F23: 467.48 | G23: 934.95 | H23: 911.58 | I23: 1542.67 | J23: 6334.31 | L23: 51485AZ0160037 | N23: =HLOOKUP(L23,Census!$AD$9:$DD$10,2,FALSE) -> 6334.3 | O23: 467.4760148 | P23: 934.9520295 | Q23: 911.5782288 | R23: 1542.670849 | S23: 6334.3
B24: PPO 12 | C24: Bronze HSA 6550 | D24: 0% after deductible | F24: 380.43 | G24: 760.85 | H24: 741.83 | I24: 1255.41 | J24: 5154.79 | L24: 51485AZ0160034 | N24: =HLOOKUP(L24,Census!$AD$9:$DD$10,2,FALSE) -> 5154.77 | O24: 380.4258303 | P24: 760.8516605 | Q24: 741.830369 | R24: 1255.40524 | S24: 5154.77
B27: Health Net HMO | E27: Select plan with "X" | F27: Employee Only | G27: Employee + Spouse | H27: Employee + Child(ren) | I27: Family | J27: Total Monthly Premium
B28: (Available in all counties statewide)
B29: =VLOOKUP($L29,Plan_tbl,26,FALSE) -> HMO 1 | C29: =VLOOKUP($L29,Plan_tbl,6,FALSE) -> Gold 1000 | D29: =VLOOKUP($L29,Plan_tbl,21,FALSE) -> $10/$45/$90/50% | F29: =ROUND(O29,2) -> 576.61 | G29: =ROUND(P29,2) -> 1153.23 | H29: =ROUND(Q29,2) -> 1124.39 | I29: =ROUND(R29,2) -> 1902.82 | J29: =SUMPRODUCT($O$8:$R$8,F29:I29) -> 7813.09 | L29: 91450AZ0160005 | N29: =HLOOKUP(L29,Census!$AD$9:$DD$10,2,FALSE) -> 7813.1 | O29: =N29/Tier_Product -> 576.6125461 | P29: =$O29*P$9 -> 1153.225092 | Q29: 1124.394465 | R29: 1902.821402 | S29: =SUMPRODUCT($O$8:$R$8,O29:R29) -> 7813.1
B30: =VLOOKUP($L30,Plan_tbl,26,FALSE) -> HMO 2 | C30: =VLOOKUP($L30,Plan_tbl,6,FALSE) -> Gold 1500 | D30: =VLOOKUP($L30,Plan_tbl,21,FALSE) -> $10/$45/$90/50% | F30: =ROUND(O30,2) -> 557.89 | G30: =ROUND(P30,2) -> 1115.78 | H30: =ROUND(Q30,2) -> 1087.89 | I30: =ROUND(R30,2) -> 1841.04 | J30: =SUMPRODUCT($O$8:$R$8,F30:I30) -> 7559.42 | L30: 91450AZ0160020 | N30: =HLOOKUP(L30,Census!$AD$9:$DD$10,2,FALSE) -> 7559.42 | O30: =N30/Tier_Product -> 557.8907749 | P30: 1115.78155 | Q30: 1087.887011 | R30: 1841.039557 | S30: =SUMPRODUCT($O$8:$R$8,O30:R30) -> 7559.42
B31: =VLOOKUP($L31,Plan_tbl,26,FALSE) -> HMO 3 | C31: =VLOOKUP($L31,Plan_tbl,6,FALSE) -> Gold 3000 | D31: =VLOOKUP($L31,Plan_tbl,21,FALSE) -> $10/$45/$90/50% | F31: 543.42 | G31: 1086.85 | H31: 1059.67 | I31: 1793.3 | J31: 7363.38 | L31: 91450AZ0160021 | N31: =HLOOKUP(L31,Census!$AD$9:$DD$10,2,FALSE) -> 7363.38 | O31: =N31/Tier_Product -> 543.4228782 | P31: 1086.845756 | Q31: 1059.674613 | R31: 1793.295498 | S31: 7363.38
B32: =VLOOKUP($L32,Plan_tbl,26,FALSE) -> HMO 4 | C32: =VLOOKUP($L32,Plan_tbl,6,FALSE) -> Silver 4500 | D32: =VLOOKUP($L32,Plan_tbl,21,FALSE) -> $15/$60/$120/50% | F32: 478.12 | G32: 956.23 | H32: 932.33 | I32: 1577.79 | J32: 6478.5 | L32: 91450AZ0160019 | N32: =HLOOKUP(L32,Census!$AD$9:$DD$10,2,FALSE) -> 6478.49 | O32: =N32/Tier_Product -> 478.1173432 | P32: 956.2346863 | Q32: 932.3288192 | R32: 1577.787232 | S32: 6478.49
B33: =VLOOKUP($L33,Plan_tbl,26,FALSE) -> HMO 5 | C33: =VLOOKUP($L33,Plan_tbl,6,FALSE) -> Silver 6000 | D33: =VLOOKUP($L33,Plan_tbl,21,FALSE) -> $20/$75/$225/50% | F33: 473.81 | G33: 947.62 | H33: 923.93 | I33: 1563.57 | J33: 6420.12 | L33: 91450AZ0160022 | N33: =HLOOKUP(L33,Census!$AD$9:$DD$10,2,FALSE) -> 6420.1 | O33: =N33/Tier_Product -> 473.8081181 | P33: 947.6162362 | Q33: 923.9258303 | R33: 1563.56679 | S33: 6420.1
U34: Show_Memo
U35: =IF(OR(Rating_Area="Rating Area 4",Rating_Area="Rating Area 6"),"SHOW","HIDE") -> SHOW
B36: Health Net CommunityCare HMO | E36: Select plan with "X" | F36: Employee Only | G36: Employee + Spouse | H36: Employee + Child(ren) | I36: Family | J36: Total Monthly Premium | U36: SHOW
B37: (Available in Maricopa and Pima counties) | U37: SHOW
B38: =VLOOKUP($L38,Plan_tbl,26,FALSE) -> CC 1 | C38: =VLOOKUP($L38,Plan_tbl,6,FALSE) -> Gold 1000 | D38: =VLOOKUP($L38,Plan_tbl,21,FALSE) -> $10/$45/$90/50% | F38: =ROUND(O38,2) -> 497.59 | G38: =ROUND(P38,2) -> 995.18 | H38: =ROUND(Q38,2) -> 970.3 | I38: =ROUND(R38,2) -> 1642.04 | J38: =SUMPRODUCT($O$8:$R$8,F38:I38) -> 6742.33 | L38: 91450AZ0090025 | N38: =HLOOKUP(L38,Census!$AD$9:$DD$10,2,FALSE) -> 6742.32 | O38: =N38/Tier_Product -> 497.5881919 | P38: =$O38*P$9 -> 995.1763838 | Q38: 970.2969742 | R38: 1642.041033 | S38: =SUMPRODUCT($O$8:$R$8,O38:R38) -> 6742.32 | U38: SHOW
B39: =VLOOKUP($L39,Plan_tbl,26,FALSE) -> CC 2 | C39: =VLOOKUP($L39,Plan_tbl,6,FALSE) -> Gold 1500 | D39: =VLOOKUP($L39,Plan_tbl,21,FALSE) -> $10/$45/$90/50% | F39: =ROUND(O39,2) -> 481.44 | G39: =ROUND(P39,2) -> 962.87 | H39: =ROUND(Q39,2) -> 938.8 | I39: =ROUND(R39,2) -> 1588.74 | J39: =SUMPRODUCT($O$8:$R$8,F39:I39) -> 6523.47 | L39: 91450AZ0090027 | N39: =HLOOKUP(L39,Census!$AD$9:$DD$10,2,FALSE) -> 6523.46 | O39: =N39/Tier_Product -> 481.4361624 | P39: 962.8723247 | Q39: 938.8005166 | R39: 1588.739336 | S39: =SUMPRODUCT($O$8:$R$8,O39:R39) -> 6523.46 | U39: SHOW
B40: =VLOOKUP($L40,Plan_tbl,26,FALSE) -> CC 3 | C40: =VLOOKUP($L40,Plan_tbl,6,FALSE) -> Gold 3000 | D40: =VLOOKUP($L40,Plan_tbl,21,FALSE) -> $10/$45/$90/50% | F40: 468.95 | G40: 937.9 | H40: 914.45 | I40: 1547.54 | J40: 6354.28 | L40: 91450AZ0090028 | N40: =HLOOKUP(L40,Census!$AD$9:$DD$10,2,FALSE) -> 6354.28 | O40: =N40/Tier_Product -> 468.9505535 | P40: 937.901107 | Q40: 914.4535793 | R40: 1547.536827 | S40: 6354.28 | U40: SHOW
B41: =VLOOKUP($L41,Plan_tbl,26,FALSE) -> CC 4 | C41: =VLOOKUP($L41,Plan_tbl,6,FALSE) -> Silver 4500 | D41: =VLOOKUP($L41,Plan_tbl,21,FALSE) -> $15/$60/$120/50% | F41: 419.19 | G41: 838.38 | H41: 817.42 | I41: 1383.33 | J41: 5680.03 | L41: 91450AZ0090026 | N41: =HLOOKUP(L41,Census!$AD$9:$DD$10,2,FALSE) -> 5680.02 | O41: =N41/Tier_Product -> 419.1896679 | P41: 838.3793358 | Q41: 817.4198524 | R41: 1383.325904 | S41: 5680.02 | U41: SHOW
B42: =VLOOKUP($L42,Plan_tbl,26,FALSE) -> CC 5 | C42: =VLOOKUP($L42,Plan_tbl,6,FALSE) -> Silver 6000 | D42: =VLOOKUP($L42,Plan_tbl,21,FALSE) -> $20/$75/$225/50% | F42: 408.87 | G42: 817.75 | H42: 797.31 | I42: 1349.29 | J42: 5540.25 | L42: 91450AZ0090029 | N42: =HLOOKUP(L42,Census!$AD$9:$DD$10,2,FALSE) -> 5540.25 | O42: =N42/Tier_Product -> 408.8745387 | P42: 817.7490775 | Q42: 797.3053506 | R42: 1349.285978 | S42: 5540.25 | U42: SHOW
U43: SHOW
U44: SHOW
U45: SHOW
B46: 2018 Plans - Age Banded Rates | U46: SHOW
U47: SHOW
U48: SHOW
B49: Health Net PPO | E49: Select plan with "X" | F49: Total Monthly Premium | U49: SHOW
B50: (Available in all counties statewide) | U50: SHOW
B51: =VLOOKUP($L51,Plan_tbl,26,FALSE) -> PPO 1 | C51: =VLOOKUP($L51,Plan_tbl,6,FALSE) -> Platinum 750 | D51: =VLOOKUP($L51,Plan_tbl,21,FALSE) -> $20/$40/$70/50% | F51: =VLOOKUP($L51,$L$13:$N$42,3,FALSE) -> 9826.18 | L51: 51485AZ0160003 | U51: SHOW
B52: PPO 2 | C52: Gold 1000 | D52: $20/$50/$100/50% | F52: 8238.94 | L52: 51485AZ0160005 | U52: SHOW
B53: PPO 3 | C53: Gold 2500 | D53: $20/$50/$100/50% | F53: 7927.5 | L53: 51485AZ0160035 | U53: SHOW
B54: PPO 4 | C54: Silver 3000 | D54: $20/$70/$120/50% | F54: 6625.34 | L54: 51485AZ0160036 | U54: SHOW
B55: PPO 5 | C55: Silver 4000 | D55: $20/$70/$120/50% | F55: 5939.56 | L55: 51485AZ0160033 | U55: SHOW
B56: PPO 6 | C56: Silver 5500 | D56: $20/$70/$120/50% | F56: 6318.46 | L56: 51485AZ0160038 | U56: SHOW
B57: PPO 7 | C57: Bronze 5000 | D57: $20 /$75/$300/50% $500 Brand Deductible | F57: 5506.74 | L57: 51485AZ0160039
B58: PPO 8 | C58: Bronze 7350 | D58: 0% after deductible | F58: 4789.23 | L58: 51485AZ0160040
B59: PPO 9 | C59: Bronze 5500 | D59: 50% after deductible | F59: 5041.67 | L59: 51485AZ0160032
B60: PPO 10 | C60: Silver HSA 3000 | D60: $20/$70/$120/50% after deductible | F60: 6010.31 | L60: 51485AZ0160031
B61: PPO 11 | C61: Silver HSA 4500 | D61: 0% after deductible | F61: 6334.3 | L61: 51485AZ0160037
B62: PPO 12 | C62: Bronze HSA 6550 | D62: 0% after deductible | F62: 5154.77 | L62: 51485AZ0160034 | U62: SHOW
U63: SHOW
U64: SHOW
B65: Health Net HMO | E65: Select plan with "X" | F65: Total Monthly Premium | U65: SHOW
B66: (Available in all counties statewide) | U66: SHOW
B67: =VLOOKUP($L67,Plan_tbl,26,FALSE) -> HMO 1 | C67: =VLOOKUP($L67,Plan_tbl,6,FALSE) -> Gold 1000 | D67: =VLOOKUP($L67,Plan_tbl,21,FALSE) -> $10/$45/$90/50% | F67: =VLOOKUP($L67,$L$13:$N$42,3,FALSE) -> 7813.1 | L67: 91450AZ0160005 | U67: SHOW
B68: =VLOOKUP($L68,Plan_tbl,26,FALSE) -> HMO 2 | C68: =VLOOKUP($L68,Plan_tbl,6,FALSE) -> Gold 1500 | D68: =VLOOKUP($L68,Plan_tbl,21,FALSE) -> $10/$45/$90/50% | F68: =VLOOKUP($L68,$L$13:$N$42,3,FALSE) -> 7559.42 | L68: 91450AZ0160020
B69: =VLOOKUP($L69,Plan_tbl,26,FALSE) -> HMO 3 | C69: =VLOOKUP($L69,Plan_tbl,6,FALSE) -> Gold 3000 | D69: =VLOOKUP($L69,Plan_tbl,21,FALSE) -> $10/$45/$90/50% | F69: 7363.38 | L69: 91450AZ0160021
B70: =VLOOKUP($L70,Plan_tbl,26,FALSE) -> HMO 4 | C70: =VLOOKUP($L70,Plan_tbl,6,FALSE) -> Silver 4500 | D70: =VLOOKUP($L70,Plan_tbl,21,FALSE) -> $15/$60/$120/50% | F70: 6478.49 | L70: 91450AZ0160019
B71: =VLOOKUP($L71,Plan_tbl,26,FALSE) -> HMO 5 | C71: =VLOOKUP($L71,Plan_tbl,6,FALSE) -> Silver 6000 | D71: =VLOOKUP($L71,Plan_tbl,21,FALSE) -> $20/$75/$225/50% | F71: 6420.1 | L71: 91450AZ0160022 | U71: SHOW
U72: =IF(OR(Rating_Area="Rating Area 4",Rating_Area="Rating Area 6"),"SHOW","HIDE") -> SHOW
U73: SHOW
B74: Health Net CommunityCare HMO | E74: Select plan with "X" | F74: Total Monthly Premium | U74: SHOW
B75: (Available in Maricopa and Pima counties) | U75: SHOW
B76: =VLOOKUP($L76,Plan_tbl,26,FALSE) -> CC 1 | C76: =VLOOKUP($L76,Plan_tbl,6,FALSE) -> Gold 1000 | D76: =VLOOKUP($L76,Plan_tbl,21,FALSE) -> $10/$45/$90/50% | F76: =VLOOKUP($L76,$L$13:$N$42,3,FALSE) -> 6742.32 | L76: 91450AZ0090025 | U76: SHOW
B77: =VLOOKUP($L77,Plan_tbl,26,FALSE) -> CC 2 | C77: =VLOOKUP($L77,Plan_tbl,6,FALSE) -> Gold 1500 | D77: =VLOOKUP($L77,Plan_tbl,21,FALSE) -> $10/$45/$90/50% | F77: =VLOOKUP($L77,$L$13:$N$42,3,FALSE) -> 6523.46 | L77: 91450AZ0090027 | U77: SHOW
B78: =VLOOKUP($L78,Plan_tbl,26,FALSE) -> CC 3 | C78: =VLOOKUP($L78,Plan_tbl,6,FALSE) -> Gold 3000 | D78: =VLOOKUP($L78,Plan_tbl,21,FALSE) -> $10/$45/$90/50% | F78: 6354.28 | L78: 91450AZ0090028 | U78: SHOW
B79: =VLOOKUP($L79,Plan_tbl,26,FALSE) -> CC 4 | C79: =VLOOKUP($L79,Plan_tbl,6,FALSE) -> Silver 4500 | D79: =VLOOKUP($L79,Plan_tbl,21,FALSE) -> $15/$60/$120/50% | F79: 5680.02 | L79: 91450AZ0090026 | U79: SHOW
B80: =VLOOKUP($L80,Plan_tbl,26,FALSE) -> CC 5 | C80: =VLOOKUP($L80,Plan_tbl,6,FALSE) -> Silver 6000 | D80: =VLOOKUP($L80,Plan_tbl,21,FALSE) -> $20/$75/$225/50% | F80: 5540.25 | L80: 91450AZ0090029 | U80: SHOW

Sheet Calc_pg1 (hidden)
E1: Group Name: | F1: =Grp_Name -> Example Group
E2: Location: | F2: =Grp_County -> Maricopa
E3: Total Eligible Employees: | F3: =Total_EEs -> 7
E4: Effective Date: | F4: =TEXT(Eff_Dt,"mm/dd/yyyy") -> 04/01/2018
E5: Date of Proposal: | F5: =TEXT(TODAY(),"mm/dd/yyyy") -> 01/10/2018
B8: =VLOOKUP(D68,Plan_tbl,25,FALSE) -> Health Net PPO
D9: =VLOOKUP(D68,Plan_tbl,26,FALSE) -> PPO 1 | F9: =VLOOKUP(F68,Plan_tbl,26,FALSE) -> PPO 2 | H9: =VLOOKUP(H68,Plan_tbl,26,FALSE) -> PPO 3
D10: =VLOOKUP(D68,Plan_tbl,6,FALSE) -> Platinum 750 | F10: =VLOOKUP(F68,Plan_tbl,6,FALSE) -> Gold 1000 | H10: =VLOOKUP(H68,Plan_tbl,6,FALSE) -> Gold 2500
D11: ="Rx: "&VLOOKUP(D68,Plan_tbl,21,FALSE) -> Rx: $20/$40/$70/50% | F11: ="Rx: "&VLOOKUP(F68,Plan_tbl,21,FALSE) -> Rx: $20/$50/$100/50% | H11: ="Rx: "&VLOOKUP(H68,Plan_tbl,21,FALSE) -> Rx: $20/$50/$100/50% | K11: Employee Number | L11: Hide/Show
B12: Name | C12: Age | D12: Employee Only | E12: Dependents Total | F12: Employee Only | G12: Dependents Total | H12: Employee Only | I12: Dependents Total
B13: =VLOOKUP($K13,Census!$B$19:$C$218,2,FALSE) -> Employee 1 | C13: =VLOOKUP($K13,Census!$B$19:$G$218,6,FALSE) -> 27 | D13: =SUMIF(Census!$X$19:$X$218,$K13&"/Employee/Y",OFFSET(Census!$AD$19,0,MATCH(D$68,Census!$AD$18:$DD$18,0)-1,277,1)) -> 498.76 | E13: =SUMIF(Census!$B$19:$B$218,$K13,OFFSET(Census!$AD$19,0,MATCH(E$68,Census!$AD$18:$DD$18,0)-1,277,1))-D13 -> 851.41 | F13: =SUMIF(Census!$X$19:$X$218,$K13&"/Employee/Y",OFFSET(Census!$AD$19,0,MATCH(F$68,Census!$AD$18:$DD$18,0)-1,277,1)) -> 418.19 | G13: =SUMIF(Census!$B$19:$B$218,$K13,OFFSET(Census!$AD$19,0,MATCH(G$68,Census!$AD$18:$DD$18,0)-1,277,1))-F13 -> 713.88 | H13: =SUMIF(Census!$X$19:$X$218,$K13&"/Employee/Y",OFFSET(Census!$AD$19,0,MATCH(H$68,Census!$AD$18:$DD$18,0)-1,277,1)) -> 402.38 | I13: =SUMIF(Census!$B$19:$B$218,$K13,OFFSET(Census!$AD$19,0,MATCH(I$68,Census!$AD$18:$DD$18,0)-1,277,1))-H13 -> 686.9 | K13: 1 | L13: =IF(D13=0,"HIDE","SHOW") -> SHOW
B14: =VLOOKUP(K14,Census!$B$19:$C$218,2,FALSE) -> Employee 2 | C14: =VLOOKUP($K14,Census!$B$19:$G$218,6,FALSE) -> 41 | D14: =SUMIF(Census!$X$19:$X$218,$K14&"/Employee/Y",OFFSET(Census!$AD$19,0,MATCH(D$68,Census!$AD$18:$DD$18,0)-1,277,1)) -> 619.64 | E14: =SUMIF(Census!$B$19:$B$218,$K14,OFFSET(Census!$AD$19,0,MATCH(E$68,Census!$AD$18:$DD$18,0)-1,277,1))-D14 -> 0 | F14: =SUMIF(Census!$X$19:$X$218,$K14&"/Employee/Y",OFFSET(Census!$AD$19,0,MATCH(F$68,Census!$AD$18:$DD$18,0)-1,277,1)) -> 519.55 | G14: =SUMIF(Census!$B$19:$B$218,$K14,OFFSET(Census!$AD$19,0,MATCH(G$68,Census!$AD$18:$DD$18,0)-1,277,1))-F14 -> 0 | H14: =SUMIF(Census!$X$19:$X$218,$K14&"/Employee/Y",OFFSET(Census!$AD$19,0,MATCH(H$68,Census!$AD$18:$DD$18,0)-1,277,1)) -> 499.91 | I14: =SUMIF(Census!$B$19:$B$218,$K14,OFFSET(Census!$AD$19,0,MATCH(I$68,Census!$AD$18:$DD$18,0)-1,277,1))-H14 -> 0 | K14: =K13+1 -> 2 | L14: SHOW
B15: =VLOOKUP(K15,Census!$B$19:$C$218,2,FALSE) -> Employee 3 | C15: =VLOOKUP($K15,Census!$B$19:$G$218,6,FALSE) -> 43 | D15: =SUMIF(Census!$X$19:$X$218,$K15&"/Employee/Y",OFFSET(Census!$AD$19,0,MATCH(D$68,Census!$AD$18:$DD$18,0)-1,277,1)) -> 645.81 | E15: =SUMIF(Census!$B$19:$B$218,$K15,OFFSET(Census!$AD$19,0,MATCH(E$68,Census!$AD$18:$DD$18,0)-1,277,1))-D15 -> 0 | F15: =SUMIF(Census!$X$19:$X$218,$K15&"/Employee/Y",OFFSET(Census!$AD$19,0,MATCH(F$68,Census!$AD$18:$DD$18,0)-1,277,1)) -> 541.49 | G15: =SUMIF(Census!$B$19:$B$218,$K15,OFFSET(Census!$AD$19,0,MATCH(G$68,Census!$AD$18:$DD$18,0)-1,277,1))-F15 -> 0 | H15: =SUMIF(Census!$X$19:$X$218,$K15&"/Employee/Y",OFFSET(Census!$AD$19,0,MATCH(H$68,Census!$AD$18:$DD$18,0)-1,277,1)) -> 521.03 | I15: =SUMIF(Census!$B$19:$B$218,$K15,OFFSET(Census!$AD$19,0,MATCH(I$68,Census!$AD$18:$DD$18,0)-1,277,1))-H15 -> 0 | K15: =K14+1 -> 3 | L15: SHOW
B16: =VLOOKUP(K16,Census!$B$19:$C$218,2,FALSE) -> Smith, Amy | C16: =VLOOKUP($K16,Census!$B$19:$G$218,6,FALSE) -> 54 | D16: =SUMIF(Census!$X$19:$X$218,$K16&"/Employee/Y",OFFSET(Census!$AD$19,0,MATCH(D$68,Census!$AD$18:$DD$18,0)-1,277,1)) -> 1016.08 | E16: =SUMIF(Census!$B$19:$B$218,$K16,OFFSET(Census!$AD$19,0,MATCH(E$68,Census!$AD$18:$DD$18,0)-1,277,1))-D16 -> 2818.36 | F16: =SUMIF(Census!$X$19:$X$218,$K16&"/Employee/Y",OFFSET(Census!$AD$19,0,MATCH(F$68,Census!$AD$18:$DD$18,0)-1,277,1)) -> 851.95 | G16: =SUMIF(Census!$B$19:$B$218,$K16,OFFSET(Census!$AD$19,0,MATCH(G$68,Census!$AD$18:$DD$18,0)-1,277,1))-F16 -> 2363.11 | H16: =SUMIF(Census!$X$19:$X$218,$K16&"/Employee/Y",OFFSET(Census!$AD$19,0,MATCH(H$68,Census!$AD$18:$DD$18,0)-1,277,1)) -> 819.74 | I16: =SUMIF(Census!$B$19:$B$218,$K16,OFFSET(Census!$AD$19,0,MATCH(I$68,Census!$AD$18:$DD$18,0)-1,277,1))-H16 -> 2273.77 | K16: 4 | L16: SHOW
B17: =VLOOKUP(K17,Census!$B$19:$C$218,2,FALSE) -> Employee 5 | C17: =VLOOKUP($K17,Census!$B$19:$G$218,6,FALSE) -> 71 | D17: =SUMIF(Census!$X$19:$X$218,$K17&"/Employee/Y",OFFSET(Census!$AD$19,0,MATCH(D$68,Census!$AD$18:$DD$18,0)-1,277,1)) -> 1427.73 | E17: =SUMIF(Census!$B$19:$B$218,$K17,OFFSET(Census!$AD$19,0,MATCH(E$68,Census!$AD$18:$DD$18,0)-1,277,1))-D17 -> 0 | F17: =SUMIF(Census!$X$19:$X$218,$K17&"/Employee/Y",OFFSET(Census!$AD$19,0,MATCH(F$68,Census!$AD$18:$DD$18,0)-1,277,1)) -> 1197.12 | G17: =SUMIF(Census!$B$19:$B$218,$K17,OFFSET(Census!$AD$19,0,MATCH(G$68,Census!$AD$18:$DD$18,0)-1,277,1))-F17 -> 0 | H17: =SUMIF(Census!$X$19:$X$218,$K17&"/Employee/Y",OFFSET(Census!$AD$19,0,MATCH(H$68,Census!$AD$18:$DD$18,0)-1,277,1)) -> 1151.85 | I17: =SUMIF(Census!$B$19:$B$218,$K17,OFFSET(Census!$AD$19,0,MATCH(I$68,Census!$AD$18:$DD$18,0)-1,277,1))-H17 -> 0 | K17: 5 | L17: SHOW
B18: =VLOOKUP(K18,Census!$B$19:$C$218,2,FALSE) -> Employee 6 | C18: =VLOOKUP($K18,Census!$B$19:$G$218,6,FALSE) -> 37 | D18: =SUMIF(Census!$X$19:$X$218,$K18&"/Employee/Y",OFFSET(Census!$AD$19,0,MATCH(D$68,Census!$AD$18:$DD$18,0)-1,277,1)) -> 589.18 | E18: =SUMIF(Census!$B$19:$B$218,$K18,OFFSET(Census!$AD$19,0,MATCH(E$68,Census!$AD$18:$DD$18,0)-1,277,1))-D18 -> 364.07 | F18: =SUMIF(Census!$X$19:$X$218,$K18&"/Employee/Y",OFFSET(Census!$AD$19,0,MATCH(F$68,Census!$AD$18:$DD$18,0)-1,277,1)) -> 494.01 | G18: =SUMIF(Census!$B$19:$B$218,$K18,OFFSET(Census!$AD$19,0,MATCH(G$68,Census!$AD$18:$DD$18,0)-1,277,1))-F18 -> 305.26 | H18: =SUMIF(Census!$X$19:$X$218,$K18&"/Employee/Y",OFFSET(Census!$AD$19,0,MATCH(H$68,Census!$AD$18:$DD$18,0)-1,277,1)) -> 475.34 | I18: =SUMIF(Census!$B$19:$B$218,$K18,OFFSET(Census!$AD$19,0,MATCH(I$68,Census!$AD$18:$DD$18,0)-1,277,1))-H18 -> 293.73 | K18: 6 | L18: SHOW
B19: =VLOOKUP(K19,Census!$B$19:$C$218,2,FALSE) -> Wilson, Jim | C19: =VLOOKUP($K19,Census!$B$19:$G$218,6,FALSE) -> 28 | D19: =SUMIF(Census!$X$19:$X$218,$K19&"/Employee/Y",OFFSET(Census!$AD$19,0,MATCH(D$68,Census!$AD$18:$DD$18,0)-1,277,1)) -> 517.32 | E19: =SUMIF(Census!$B$19:$B$218,$K19,OFFSET(Census!$AD$19,0,MATCH(E$68,Census!$AD$18:$DD$18,0)-1,277,1))-D19 -> 477.82 | F19: =SUMIF(Census!$X$19:$X$218,$K19&"/Employee/Y",OFFSET(Census!$AD$19,0,MATCH(F$68,Census!$AD$18:$DD$18,0)-1,277,1)) -> 433.75 | G19: =SUMIF(Census!$B$19:$B$218,$K19,OFFSET(Census!$AD$19,0,MATCH(G$68,Census!$AD$18:$DD$18,0)-1,277,1))-F19 -> 400.63 | H19: =SUMIF(Census!$X$19:$X$218,$K19&"/Employee/Y",OFFSET(Census!$AD$19,0,MATCH(H$68,Census!$AD$18:$DD$18,0)-1,277,1)) -> 417.36 | I19: =SUMIF(Census!$B$19:$B$218,$K19,OFFSET(Census!$AD$19,0,MATCH(I$68,Census!$AD$18:$DD$18,0)-1,277,1))-H19 -> 385.49 | K19: 7 | L19: SHOW
B20: =VLOOKUP(K20,Census!$B$19:$C$218,2,FALSE) ->  | C20: =VLOOKUP($K20,Census!$B$19:$G$218,6,FALSE) ->  | D20: =SUMIF(Census!$X$19:$X$218,$K20&"/Employee/Y",OFFSET(Census!$AD$19,0,MATCH(D$68,Census!$AD$18:$DD$18,0)-1,277,1)) -> 0 | E20: =SUMIF(Census!$B$19:$B$218,$K20,OFFSET(Census!$AD$19,0,MATCH(E$68,Census!$AD$18:$DD$18,0)-1,277,1))-D20 -> 0 | F20: =SUMIF(Census!$X$19:$X$218,$K20&"/Employee/Y",OFFSET(Census!$AD$19,0,MATCH(F$68,Census!$AD$18:$DD$18,0)-1,277,1)) -> 0 | G20: =SUMIF(Census!$B$19:$B$218,$K20,OFFSET(Census!$AD$19,0,MATCH(G$68,Census!$AD$18:$DD$18,0)-1,277,1))-F20 -> 0 | H20: =SUMIF(Census!$X$19:$X$218,$K20&"/Employee/Y",OFFSET(Census!$AD$19,0,MATCH(H$68,Census!$AD$18:$DD$18,0)-1,277,1)) -> 0 | I20: =SUMIF(Census!$B$19:$B$218,$K20,OFFSET(Census!$AD$19,0,MATCH(I$68,Census!$AD$18:$DD$18,0)-1,277,1))-H20 -> 0 | K20: 8 | L20: HIDE
B21: =VLOOKUP(K21,Census!$B$19:$C$218,2,FALSE) ->  | C21: =VLOOKUP($K21,Census!$B$19:$G$218,6,FALSE) ->  | D21: =SUMIF(Census!$X$19:$X$218,$K21&"/Employee/Y",OFFSET(Census!$AD$19,0,MATCH(D$68,Census!$AD$18:$DD$18,0)-1,277,1)) -> 0 | E21: =SUMIF(Census!$B$19:$B$218,$K21,OFFSET(Census!$AD$19,0,MATCH(E$68,Census!$AD$18:$DD$18,0)-1,277,1))-D21 -> 0 | F21: =SUMIF(Census!$X$19:$X$218,$K21&"/Employee/Y",OFFSET(Census!$AD$19,0,MATCH(F$68,Census!$AD$18:$DD$18,0)-1,277,1)) -> 0 | G21: =SUMIF(Census!$B$19:$B$218,$K21,OFFSET(Census!$AD$19,0,MATCH(G$68,Census!$AD$18:$DD$18,0)-1,277,1))-F21 -> 0 | H21: =SUMIF(Census!$X$19:$X$218,$K21&"/Employee/Y",OFFSET(Census!$AD$19,0,MATCH(H$68,Census!$AD$18:$DD$18,0)-1,277,1)) -> 0 | I21: =SUMIF(Census!$B$19:$B$218,$K21,OFFSET(Census!$AD$19,0,MATCH(I$68,Census!$AD$18:$DD$18,0)-1,277,1))-H21 -> 0 | K21: 9 | L21: HIDE
B22: =VLOOKUP(K22,Census!$B$19:$C$218,2,FALSE) ->  | C22: =VLOOKUP($K22,Census!$B$19:$G$218,6,FALSE) ->  | D22: =SUMIF(Census!$X$19:$X$218,$K22&"/Employee/Y",OFFSET(Census!$AD$19,0,MATCH(D$68,Census!$AD$18:$DD$18,0)-1,277,1)) -> 0 | E22: =SUMIF(Census!$B$19:$B$218,$K22,OFFSET(Census!$AD$19,0,MATCH(E$68,Census!$AD$18:$DD$18,0)-1,277,1))-D22 -> 0 | F22: =SUMIF(Census!$X$19:$X$218,$K22&"/Employee/Y",OFFSET(Census!$AD$19,0,MATCH(F$68,Census!$AD$18:$DD$18,0)-1,277,1)) -> 0 | G22: =SUMIF(Census!$B$19:$B$218,$K22,OFFSET(Census!$AD$19,0,MATCH(G$68,Census!$AD$18:$DD$18,0)-1,277,1))-F22 -> 0 | H22: =SUMIF(Census!$X$19:$X$218,$K22&"/Employee/Y",OFFSET(Census!$AD$19,0,MATCH(H$68,Census!$AD$18:$DD$18,0)-1,277,1)) -> 0 | I22: =SUMIF(Census!$B$19:$B$218,$K22,OFFSET(Census!$AD$19,0,MATCH(I$68,Census!$AD$18:$DD$18,0)-1,277,1))-H22 -> 0 | K22: 10 | L22: HIDE
B23: =VLOOKUP(K23,Census!$B$19:$C$218,2,FALSE) ->  | C23: =VLOOKUP($K23,Census!$B$19:$G$218,6,FALSE) ->  | D23: =SUMIF(Census!$X$19:$X$218,$K23&"/Employee/Y",OFFSET(Census!$AD$19,0,MATCH(D$68,Census!$AD$18:$DD$18,0)-1,277,1)) -> 0 | E23: =SUMIF(Census!$B$19:$B$218,$K23,OFFSET(Census!$AD$19,0,MATCH(E$68,Census!$AD$18:$DD$18,0)-1,277,1))-D23 -> 0 | F23: =SUMIF(Census!$X$19:$X$218,$K23&"/Employee/Y",OFFSET(Census!$AD$19,0,MATCH(F$68,Census!$AD$18:$DD$18,0)-1,277,1)) -> 0 | G23: =SUMIF(Census!$B$19:$B$218,$K23,OFFSET(Census!$AD$19,0,MATCH(G$68,Census!$AD$18:$DD$18,0)-1,277,1))-F23 -> 0 | H23: =SUMIF(Census!$X$19:$X$218,$K23&"/Employee/Y",OFFSET(Census!$AD$19,0,MATCH(H$68,Census!$AD$18:$DD$18,0)-1,277,1)) -> 0 | I23: =SUMIF(Census!$B$19:$B$218,$K23,OFFSET(Census!$AD$19,0,MATCH(I$68,Census!$AD$18:$DD$18,0)-1,277,1))-H23 -> 0 | K23: 11 | L23: HIDE
B24: =VLOOKUP(K24,Census!$B$19:$C$218,2,FALSE) ->  | C24: =VLOOKUP($K24,Census!$B$19:$G$218,6,FALSE) ->  | D24: =SUMIF(Census!$X$19:$X$218,$K24&"/Employee/Y",OFFSET(Census!$AD$19,0,MATCH(D$68,Census!$AD$18:$DD$18,0)-1,277,1)) -> 0 | E24: =SUMIF(Census!$B$19:$B$218,$K24,OFFSET(Census!$AD$19,0,MATCH(E$68,Census!$AD$18:$DD$18,0)-1,277,1))-D24 -> 0 | F24: =SUMIF(Census!$X$19:$X$218,$K24&"/Employee/Y",OFFSET(Census!$AD$19,0,MATCH(F$68,Census!$AD$18:$DD$18,0)-1,277,1)) -> 0 | G24: =SUMIF(Census!$B$19:$B$218,$K24,OFFSET(Census!$AD$19,0,MATCH(G$68,Census!$AD$18:$DD$18,0)-1,277,1))-F24 -> 0 | H24: =SUMIF(Census!$X$19:$X$218,$K24&"/Employee/Y",OFFSET(Census!$AD$19,0,MATCH(H$68,Census!$AD$18:$DD$18,0)-1,277,1)) -> 0 | I24: =SUMIF(Census!$B$19:$B$218,$K24,OFFSET(Census!$AD$19,0,MATCH(I$68,Census!$AD$18:$DD$18,0)-1,277,1))-H24 -> 0 | K24: 12 | L24: HIDE
B25: =VLOOKUP(K25,Census!$B$19:$C$218,2,FALSE) ->  | C25: =VLOOKUP($K25,Census!$B$19:$G$218,6,FALSE) ->  | D25: =SUMIF(Census!$X$19:$X$218,$K25&"/Employee/Y",OFFSET(Census!$AD$19,0,MATCH(D$68,Census!$AD$18:$DD$18,0)-1,277,1)) -> 0 | E25: =SUMIF(Census!$B$19:$B$218,$K25,OFFSET(Census!$AD$19,0,MATCH(E$68,Census!$AD$18:$DD$18,0)-1,277,1))-D25 -> 0 | F25: =SUMIF(Census!$X$19:$X$218,$K25&"/Employee/Y",OFFSET(Census!$AD$19,0,MATCH(F$68,Census!$AD$18:$DD$18,0)-1,277,1)) -> 0 | G25: =SUMIF(Census!$B$19:$B$218,$K25,OFFSET(Census!$AD$19,0,MATCH(G$68,Census!$AD$18:$DD$18,0)-1,277,1))-F25 -> 0 | H25: =SUMIF(Census!$X$19:$X$218,$K25&"/Employee/Y",OFFSET(Census!$AD$19,0,MATCH(H$68,Census!$AD$18:$DD$18,0)-1,277,1)) -> 0 | I25: =SUMIF(Census!$B$19:$B$218,$K25,OFFSET(Census!$AD$19,0,MATCH(I$68,Census!$AD$18:$DD$18,0)-1,277,1))-H25 -> 0 | K25: 13 | L25: HIDE
B26: =VLOOKUP(K26,Census!$B$19:$C$218,2,FALSE) ->  | C26: =VLOOKUP($K26,Census!$B$19:$G$218,6,FALSE) ->  | D26: =SUMIF(Census!$X$19:$X$218,$K26&"/Employee/Y",OFFSET(Census!$AD$19,0,MATCH(D$68,Census!$AD$18:$DD$18,0)-1,277,1)) -> 0 | E26: =SUMIF(Census!$B$19:$B$218,$K26,OFFSET(Census!$AD$19,0,MATCH(E$68,Census!$AD$18:$DD$18,0)-1,277,1))-D26 -> 0 | F26: =SUMIF(Census!$X$19:$X$218,$K26&"/Employee/Y",OFFSET(Census!$AD$19,0,MATCH(F$68,Census!$AD$18:$DD$18,0)-1,277,1)) -> 0 | G26: =SUMIF(Census!$B$19:$B$218,$K26,OFFSET(Census!$AD$19,0,MATCH(G$68,Census!$AD$18:$DD$18,0)-1,277,1))-F26 -> 0 | H26: =SUMIF(Census!$X$19:$X$218,$K26&"/Employee/Y",OFFSET(Census!$AD$19,0,MATCH(H$68,Census!$AD$18:$DD$18,0)-1,277,1)) -> 0 | I26: =SUMIF(Census!$B$19:$B$218,$K26,OFFSET(Census!$AD$19,0,MATCH(I$68,Census!$AD$18:$DD$18,0)-1,277,1))-H26 -> 0 | K26: 14 | L26: HIDE
B27: =VLOOKUP(K27,Census!$B$19:$C$218,2,FALSE) ->  | C27: =VLOOKUP($K27,Census!$B$19:$G$218,6,FALSE) ->  | D27: =SUMIF(Census!$X$19:$X$218,$K27&"/Employee/Y",OFFSET(Census!$AD$19,0,MATCH(D$68,Census!$AD$18:$DD$18,0)-1,277,1)) -> 0 | E27: =SUMIF(Census!$B$19:$B$218,$K27,OFFSET(Census!$AD$19,0,MATCH(E$68,Census!$AD$18:$DD$18,0)-1,277,1))-D27 -> 0 | F27: =SUMIF(Census!$X$19:$X$218,$K27&"/Employee/Y",OFFSET(Census!$AD$19,0,MATCH(F$68,Census!$AD$18:$DD$18,0)-1,277,1)) -> 0 | G27: =SUMIF(Census!$B$19:$B$218,$K27,OFFSET(Census!$AD$19,0,MATCH(G$68,Census!$AD$18:$DD$18,0)-1,277,1))-F27 -> 0 | H27: =SUMIF(Census!$X$19:$X$218,$K27&"/Employee/Y",OFFSET(Census!$AD$19,0,MATCH(H$68,Census!$AD$18:$DD$18,0)-1,277,1)) -> 0 | I27: =SUMIF(Census!$B$19:$B$218,$K27,OFFSET(Census!$AD$19,0,MATCH(I$68,Census!$AD$18:$DD$18,0)-1,277,1))-H27 -> 0 | K27: 15 | L27: HIDE
B28: =VLOOKUP(K28,Census!$B$19:$C$218,2,FALSE) ->  | C28: =VLOOKUP($K28,Census!$B$19:$G$218,6,FALSE) ->  | D28: =SUMIF(Census!$X$19:$X$218,$K28&"/Employee/Y",OFFSET(Census!$AD$19,0,MATCH(D$68,Census!$AD$18:$DD$18,0)-1,277,1)) -> 0 | E28: =SUMIF(Census!$B$19:$B$218,$K28,OFFSET(Census!$AD$19,0,MATCH(E$68,Census!$AD$18:$DD$18,0)-1,277,1))-D28 -> 0 | F28: =SUMIF(Census!$X$19:$X$218,$K28&"/Employee/Y",OFFSET(Census!$AD$19,0,MATCH(F$68,Census!$AD$18:$DD$18,0)-1,277,1)) -> 0 | G28: =SUMIF(Census!$B$19:$B$218,$K28,OFFSET(Census!$AD$19,0,MATCH(G$68,Census!$AD$18:$DD$18,0)-1,277,1))-F28 -> 0 | H28: =SUMIF(Census!$X$19:$X$218,$K28&"/Employee/Y",OFFSET(Census!$AD$19,0,MATCH(H$68,Census!$AD$18:$DD$18,0)-1,277,1)) -> 0 | I28: =SUMIF(Census!$B$19:$B$218,$K28,OFFSET(Census!$AD$19,0,MATCH(I$68,Census!$AD$18:$DD$18,0)-1,277,1))-H28 -> 0 | K28: 16 | L28: HIDE
B29: =VLOOKUP(K29,Census!$B$19:$C$218,2,FALSE) ->  | C29: =VLOOKUP($K29,Census!$B$19:$G$218,6,FALSE) ->  | D29: =SUMIF(Census!$X$19:$X$218,$K29&"/Employee/Y",OFFSET(Census!$AD$19,0,MATCH(D$68,Census!$AD$18:$DD$18,0)-1,277,1)) -> 0 | E29: =SUMIF(Census!$B$19:$B$218,$K29,OFFSET(Census!$AD$19,0,MATCH(E$68,Census!$AD$18:$DD$18,0)-1,277,1))-D29 -> 0 | F29: =SUMIF(Census!$X$19:$X$218,$K29&"/Employee/Y",OFFSET(Census!$AD$19,0,MATCH(F$68,Census!$AD$18:$DD$18,0)-1,277,1)) -> 0 | G29: =SUMIF(Census!$B$19:$B$218,$K29,OFFSET(Census!$AD$19,0,MATCH(G$68,Census!$AD$18:$DD$18,0)-1,277,1))-F29 -> 0 | H29: =SUMIF(Census!$X$19:$X$218,$K29&"/Employee/Y",OFFSET(Census!$AD$19,0,MATCH(H$68,Census!$AD$18:$DD$18,0)-1,277,1)) -> 0 | I29: =SUMIF(Census!$B$19:$B$218,$K29,OFFSET(Census!$AD$19,0,MATCH(I$68,Census!$AD$18:$DD$18,0)-1,277,1))-H29 -> 0 | K29: 17 | L29: HIDE
B30: =VLOOKUP(K30,Census!$B$19:$C$218,2,FALSE) ->  | C30: =VLOOKUP($K30,Census!$B$19:$G$218,6,FALSE) ->  | D30: =SUMIF(Census!$X$19:$X$218,$K30&"/Employee/Y",OFFSET(Census!$AD$19,0,MATCH(D$68,Census!$AD$18:$DD$18,0)-1,277,1)) -> 0 | E30: =SUMIF(Census!$B$19:$B$218,$K30,OFFSET(Census!$AD$19,0,MATCH(E$68,Census!$AD$18:$DD$18,0)-1,277,1))-D30 -> 0 | F30: =SUMIF(Census!$X$19:$X$218,$K30&"/Employee/Y",OFFSET(Census!$AD$19,0,MATCH(F$68,Census!$AD$18:$DD$18,0)-1,277,1)) -> 0 | G30: =SUMIF(Census!$B$19:$B$218,$K30,OFFSET(Census!$AD$19,0,MATCH(G$68,Census!$AD$18:$DD$18,0)-1,277,1))-F30 -> 0 | H30: =SUMIF(Census!$X$19:$X$218,$K30&"/Employee/Y",OFFSET(Census!$AD$19,0,MATCH(H$68,Census!$AD$18:$DD$18,0)-1,277,1)) -> 0 | I30: =SUMIF(Census!$B$19:$B$218,$K30,OFFSET(Census!$AD$19,0,MATCH(I$68,Census!$AD$18:$DD$18,0)-1,277,1))-H30 -> 0 | K30: 18 | L30: HIDE
B31: =VLOOKUP(K31,Census!$B$19:$C$218,2,FALSE) ->  | C31: =VLOOKUP($K31,Census!$B$19:$G$218,6,FALSE) ->  | D31: =SUMIF(Census!$X$19:$X$218,$K31&"/Employee/Y",OFFSET(Census!$AD$19,0,MATCH(D$68,Census!$AD$18:$DD$18,0)-1,277,1)) -> 0 | E31: =SUMIF(Census!$B$19:$B$218,$K31,OFFSET(Census!$AD$19,0,MATCH(E$68,Census!$AD$18:$DD$18,0)-1,277,1))-D31 -> 0 | F31: =SUMIF(Census!$X$19:$X$218,$K31&"/Employee/Y",OFFSET(Census!$AD$19,0,MATCH(F$68,Census!$AD$18:$DD$18,0)-1,277,1)) -> 0 | G31: =SUMIF(Census!$B$19:$B$218,$K31,OFFSET(Census!$AD$19,0,MATCH(G$68,Census!$AD$18:$DD$18,0)-1,277,1))-F31 -> 0 | H31: =SUMIF(Census!$X$19:$X$218,$K31&"/Employee/Y",OFFSET(Census!$AD$19,0,MATCH(H$68,Census!$AD$18:$DD$18,0)-1,277,1)) -> 0 | I31: =SUMIF(Census!$B$19:$B$218,$K31,OFFSET(Census!$AD$19,0,MATCH(I$68,Census!$AD$18:$DD$18,0)-1,277,1))-H31 -> 0 | K31: 19 | L31: HIDE
B32: =VLOOKUP(K32,Census!$B$19:$C$218,2,FALSE) ->  | C32: =VLOOKUP($K32,Census!$B$19:$G$218,6,FALSE) ->  | D32: =SUMIF(Census!$X$19:$X$218,$K32&"/Employee/Y",OFFSET(Census!$AD$19,0,MATCH(D$68,Census!$AD$18:$DD$18,0)-1,277,1)) -> 0 | E32: =SUMIF(Census!$B$19:$B$218,$K32,OFFSET(Census!$AD$19,0,MATCH(E$68,Census!$AD$18:$DD$18,0)-1,277,1))-D32 -> 0 | F32: =SUMIF(Census!$X$19:$X$218,$K32&"/Employee/Y",OFFSET(Census!$AD$19,0,MATCH(F$68,Census!$AD$18:$DD$18,0)-1,277,1)) -> 0 | G32: =SUMIF(Census!$B$19:$B$218,$K32,OFFSET(Census!$AD$19,0,MATCH(G$68,Census!$AD$18:$DD$18,0)-1,277,1))-F32 -> 0 | H32: =SUMIF(Census!$X$19:$X$218,$K32&"/Employee/Y",OFFSET(Census!$AD$19,0,MATCH(H$68,Census!$AD$18:$DD$18,0)-1,277,1)) -> 0 | I32: =SUMIF(Census!$B$19:$B$218,$K32,OFFSET(Census!$AD$19,0,MATCH(I$68,Census!$AD$18:$DD$18,0)-1,277,1))-H32 -> 0 | K32: 20 | L32: HIDE
B33: =VLOOKUP(K33,Census!$B$19:$C$218,2,FALSE) ->  | C33: =VLOOKUP($K33,Census!$B$19:$G$218,6,FALSE) ->  | D33: =SUMIF(Census!$X$19:$X$218,$K33&"/Employee/Y",OFFSET(Census!$AD$19,0,MATCH(D$68,Census!$AD$18:$DD$18,0)-1,277,1)) -> 0 | E33: =SUMIF(Census!$B$19:$B$218,$K33,OFFSET(Census!$AD$19,0,MATCH(E$68,Census!$AD$18:$DD$18,0)-1,277,1))-D33 -> 0 | F33: =SUMIF(Census!$X$19:$X$218,$K33&"/Employee/Y",OFFSET(Census!$AD$19,0,MATCH(F$68,Census!$AD$18:$DD$18,0)-1,277,1)) -> 0 | G33: =SUMIF(Census!$B$19:$B$218,$K33,OFFSET(Census!$AD$19,0,MATCH(G$68,Census!$AD$18:$DD$18,0)-1,277,1))-F33 -> 0 | H33: =SUMIF(Census!$X$19:$X$218,$K33&"/Employee/Y",OFFSET(Census!$AD$19,0,MATCH(H$68,Census!$AD$18:$DD$18,0)-1,277,1)) -> 0 | I33: =SUMIF(Census!$B$19:$B$218,$K33,OFFSET(Census!$AD$19,0,MATCH(I$68,Census!$AD$18:$DD$18,0)-1,277,1))-H33 -> 0 | K33: 21 | L33: HIDE
B34: =VLOOKUP(K34,Census!$B$19:$C$218,2,FALSE) ->  | C34: =VLOOKUP($K34,Census!$B$19:$G$218,6,FALSE) ->  | D34: =SUMIF(Census!$X$19:$X$218,$K34&"/Employee/Y",OFFSET(Census!$AD$19,0,MATCH(D$68,Census!$AD$18:$DD$18,0)-1,277,1)) -> 0 | E34: =SUMIF(Census!$B$19:$B$218,$K34,OFFSET(Census!$AD$19,0,MATCH(E$68,Census!$AD$18:$DD$18,0)-1,277,1))-D34 -> 0 | F34: =SUMIF(Census!$X$19:$X$218,$K34&"/Employee/Y",OFFSET(Census!$AD$19,0,MATCH(F$68,Census!$AD$18:$DD$18,0)-1,277,1)) -> 0 | G34: =SUMIF(Census!$B$19:$B$218,$K34,OFFSET(Census!$AD$19,0,MATCH(G$68,Census!$AD$18:$DD$18,0)-1,277,1))-F34 -> 0 | H34: =SUMIF(Census!$X$19:$X$218,$K34&"/Employee/Y",OFFSET(Census!$AD$19,0,MATCH(H$68,Census!$AD$18:$DD$18,0)-1,277,1)) -> 0 | I34: =SUMIF(Census!$B$19:$B$218,$K34,OFFSET(Census!$AD$19,0,MATCH(I$68,Census!$AD$18:$DD$18,0)-1,277,1))-H34 -> 0 | K34: 22 | L34: HIDE
B35: =VLOOKUP(K35,Census!$B$19:$C$218,2,FALSE) ->  | C35: =VLOOKUP($K35,Census!$B$19:$G$218,6,FALSE) ->  | D35: =SUMIF(Census!$X$19:$X$218,$K35&"/Employee/Y",OFFSET(Census!$AD$19,0,MATCH(D$68,Census!$AD$18:$DD$18,0)-1,277,1)) -> 0 | E35: =SUMIF(Census!$B$19:$B$218,$K35,OFFSET(Census!$AD$19,0,MATCH(E$68,Census!$AD$18:$DD$18,0)-1,277,1))-D35 -> 0 | F35: =SUMIF(Census!$X$19:$X$218,$K35&"/Employee/Y",OFFSET(Census!$AD$19,0,MATCH(F$68,Census!$AD$18:$DD$18,0)-1,277,1)) -> 0 | G35: =SUMIF(Census!$B$19:$B$218,$K35,OFFSET(Census!$AD$19,0,MATCH(G$68,Census!$AD$18:$DD$18,0)-1,277,1))-F35 -> 0 | H35: =SUMIF(Census!$X$19:$X$218,$K35&"/Employee/Y",OFFSET(Census!$AD$19,0,MATCH(H$68,Census!$AD$18:$DD$18,0)-1,277,1)) -> 0 | I35: =SUMIF(Census!$B$19:$B$218,$K35,OFFSET(Census!$AD$19,0,MATCH(I$68,Census!$AD$18:$DD$18,0)-1,277,1))-H35 -> 0 | K35: 23 | L35: HIDE
B36: =VLOOKUP(K36,Census!$B$19:$C$218,2,FALSE) ->  | C36: =VLOOKUP($K36,Census!$B$19:$G$218,6,FALSE) ->  | D36: =SUMIF(Census!$X$19:$X$218,$K36&"/Employee/Y",OFFSET(Census!$AD$19,0,MATCH(D$68,Census!$AD$18:$DD$18,0)-1,277,1)) -> 0 | E36: =SUMIF(Census!$B$19:$B$218,$K36,OFFSET(Census!$AD$19,0,MATCH(E$68,Census!$AD$18:$DD$18,0)-1,277,1))-D36 -> 0 | F36: =SUMIF(Census!$X$19:$X$218,$K36&"/Employee/Y",OFFSET(Census!$AD$19,0,MATCH(F$68,Census!$AD$18:$DD$18,0)-1,277,1)) -> 0 | G36: =SUMIF(Census!$B$19:$B$218,$K36,OFFSET(Census!$AD$19,0,MATCH(G$68,Census!$AD$18:$DD$18,0)-1,277,1))-F36 -> 0 | H36: =SUMIF(Census!$X$19:$X$218,$K36&"/Employee/Y",OFFSET(Census!$AD$19,0,MATCH(H$68,Census!$AD$18:$DD$18,0)-1,277,1)) -> 0 | I36: =SUMIF(Census!$B$19:$B$218,$K36,OFFSET(Census!$AD$19,0,MATCH(I$68,Census!$AD$18:$DD$18,0)-1,277,1))-H36 -> 0 | K36: 24 | L36: HIDE
B37: =VLOOKUP(K37,Census!$B$19:$C$218,2,FALSE) ->  | C37: =VLOOKUP($K37,Census!$B$19:$G$218,6,FALSE) ->  | D37: =SUMIF(Census!$X$19:$X$218,$K37&"/Employee/Y",OFFSET(Census!$AD$19,0,MATCH(D$68,Census!$AD$18:$DD$18,0)-1,277,1)) -> 0 | E37: =SUMIF(Census!$B$19:$B$218,$K37,OFFSET(Census!$AD$19,0,MATCH(E$68,Census!$AD$18:$DD$18,0)-1,277,1))-D37 -> 0 | F37: =SUMIF(Census!$X$19:$X$218,$K37&"/Employee/Y",OFFSET(Census!$AD$19,0,MATCH(F$68,Census!$AD$18:$DD$18,0)-1,277,1)) -> 0 | G37: =SUMIF(Census!$B$19:$B$218,$K37,OFFSET(Census!$AD$19,0,MATCH(G$68,Census!$AD$18:$DD$18,0)-1,277,1))-F37 -> 0 | H37: =SUMIF(Census!$X$19:$X$218,$K37&"/Employee/Y",OFFSET(Census!$AD$19,0,MATCH(H$68,Census!$AD$18:$DD$18,0)-1,277,1)) -> 0 | I37: =SUMIF(Census!$B$19:$B$218,$K37,OFFSET(Census!$AD$19,0,MATCH(I$68,Census!$AD$18:$DD$18,0)-1,277,1))-H37 -> 0 | K37: 25 | L37: HIDE
B38: =VLOOKUP(K38,Census!$B$19:$C$218,2,FALSE) ->  | C38: =VLOOKUP($K38,Census!$B$19:$G$218,6,FALSE) ->  | D38: =SUMIF(Census!$X$19:$X$218,$K38&"/Employee/Y",OFFSET(Census!$AD$19,0,MATCH(D$68,Census!$AD$18:$DD$18,0)-1,277,1)) -> 0 | E38: =SUMIF(Census!$B$19:$B$218,$K38,OFFSET(Census!$AD$19,0,MATCH(E$68,Census!$AD$18:$DD$18,0)-1,277,1))-D38 -> 0 | F38: =SUMIF(Census!$X$19:$X$218,$K38&"/Employee/Y",OFFSET(Census!$AD$19,0,MATCH(F$68,Census!$AD$18:$DD$18,0)-1,277,1)) -> 0 | G38: =SUMIF(Census!$B$19:$B$218,$K38,OFFSET(Census!$AD$19,0,MATCH(G$68,Census!$AD$18:$DD$18,0)-1,277,1))-F38 -> 0 | H38: =SUMIF(Census!$X$19:$X$218,$K38&"/Employee/Y",OFFSET(Census!$AD$19,0,MATCH(H$68,Census!$AD$18:$DD$18,0)-1,277,1)) -> 0 | I38: =SUMIF(Census!$B$19:$B$218,$K38,OFFSET(Census!$AD$19,0,MATCH(I$68,Census!$AD$18:$DD$18,0)-1,277,1))-H38 -> 0 | K38: 26 | L38: HIDE
B39: =VLOOKUP(K39,Census!$B$19:$C$218,2,FALSE) ->  | C39: =VLOOKUP($K39,Census!$B$19:$G$218,6,FALSE) ->  | D39: =SUMIF(Census!$X$19:$X$218,$K39&"/Employee/Y",OFFSET(Census!$AD$19,0,MATCH(D$68,Census!$AD$18:$DD$18,0)-1,277,1)) -> 0 | E39: =SUMIF(Census!$B$19:$B$218,$K39,OFFSET(Census!$AD$19,0,MATCH(E$68,Census!$AD$18:$DD$18,0)-1,277,1))-D39 -> 0 | F39: =SUMIF(Census!$X$19:$X$218,$K39&"/Employee/Y",OFFSET(Census!$AD$19,0,MATCH(F$68,Census!$AD$18:$DD$18,0)-1,277,1)) -> 0 | G39: =SUMIF(Census!$B$19:$B$218,$K39,OFFSET(Census!$AD$19,0,MATCH(G$68,Census!$AD$18:$DD$18,0)-1,277,1))-F39 -> 0 | H39: =SUMIF(Census!$X$19:$X$218,$K39&"/Employee/Y",OFFSET(Census!$AD$19,0,MATCH(H$68,Census!$AD$18:$DD$18,0)-1,277,1)) -> 0 | I39: =SUMIF(Census!$B$19:$B$218,$K39,OFFSET(Census!$AD$19,0,MATCH(I$68,Census!$AD$18:$DD$18,0)-1,277,1))-H39 -> 0 | K39: 27 | L39: HIDE
B40: =VLOOKUP(K40,Census!$B$19:$C$218,2,FALSE) ->  | C40: =VLOOKUP($K40,Census!$B$19:$G$218,6,FALSE) ->  | D40: =SUMIF(Census!$X$19:$X$218,$K40&"/Employee/Y",OFFSET(Census!$AD$19,0,MATCH(D$68,Census!$AD$18:$DD$18,0)-1,277,1)) -> 0 | E40: =SUMIF(Census!$B$19:$B$218,$K40,OFFSET(Census!$AD$19,0,MATCH(E$68,Census!$AD$18:$DD$18,0)-1,277,1))-D40 -> 0 | F40: =SUMIF(Census!$X$19:$X$218,$K40&"/Employee/Y",OFFSET(Census!$AD$19,0,MATCH(F$68,Census!$AD$18:$DD$18,0)-1,277,1)) -> 0 | G40: =SUMIF(Census!$B$19:$B$218,$K40,OFFSET(Census!$AD$19,0,MATCH(G$68,Census!$AD$18:$DD$18,0)-1,277,1))-F40 -> 0 | H40: =SUMIF(Census!$X$19:$X$218,$K40&"/Employee/Y",OFFSET(Census!$AD$19,0,MATCH(H$68,Census!$AD$18:$DD$18,0)-1,277,1)) -> 0 | I40: =SUMIF(Census!$B$19:$B$218,$K40,OFFSET(Census!$AD$19,0,MATCH(I$68,Census!$AD$18:$DD$18,0)-1,277,1))-H40 -> 0 | K40: 28 | L40: HIDE
B41: =VLOOKUP(K41,Census!$B$19:$C$218,2,FALSE) ->  | C41: =VLOOKUP($K41,Census!$B$19:$G$218,6,FALSE) ->  | D41: =SUMIF(Census!$X$19:$X$218,$K41&"/Employee/Y",OFFSET(Census!$AD$19,0,MATCH(D$68,Census!$AD$18:$DD$18,0)-1,277,1)) -> 0 | E41: =SUMIF(Census!$B$19:$B$218,$K41,OFFSET(Census!$AD$19,0,MATCH(E$68,Census!$AD$18:$DD$18,0)-1,277,1))-D41 -> 0 | F41: =SUMIF(Census!$X$19:$X$218,$K41&"/Employee/Y",OFFSET(Census!$AD$19,0,MATCH(F$68,Census!$AD$18:$DD$18,0)-1,277,1)) -> 0 | G41: =SUMIF(Census!$B$19:$B$218,$K41,OFFSET(Census!$AD$19,0,MATCH(G$68,Census!$AD$18:$DD$18,0)-1,277,1))-F41 -> 0 | H41: =SUMIF(Census!$X$19:$X$218,$K41&"/Employee/Y",OFFSET(Census!$AD$19,0,MATCH(H$68,Census!$AD$18:$DD$18,0)-1,277,1)) -> 0 | I41: =SUMIF(Census!$B$19:$B$218,$K41,OFFSET(Census!$AD$19,0,MATCH(I$68,Census!$AD$18:$DD$18,0)-1,277,1))-H41 -> 0 | K41: 29 | L41: HIDE
B42: =VLOOKUP(K42,Census!$B$19:$C$218,2,FALSE) ->  | C42: =VLOOKUP($K42,Census!$B$19:$G$218,6,FALSE) ->  | D42: =SUMIF(Census!$X$19:$X$218,$K42&"/Employee/Y",OFFSET(Census!$AD$19,0,MATCH(D$68,Census!$AD$18:$DD$18,0)-1,277,1)) -> 0 | E42: =SUMIF(Census!$B$19:$B$218,$K42,OFFSET(Census!$AD$19,0,MATCH(E$68,Census!$AD$18:$DD$18,0)-1,277,1))-D42 -> 0 | F42: =SUMIF(Census!$X$19:$X$218,$K42&"/Employee/Y",OFFSET(Census!$AD$19,0,MATCH(F$68,Census!$AD$18:$DD$18,0)-1,277,1)) -> 0 | G42: =SUMIF(Census!$B$19:$B$218,$K42,OFFSET(Census!$AD$19,0,MATCH(G$68,Census!$AD$18:$DD$18,0)-1,277,1))-F42 -> 0 | H42: =SUMIF(Census!$X$19:$X$218,$K42&"/Employee/Y",OFFSET(Census!$AD$19,0,MATCH(H$68,Census!$AD$18:$DD$18,0)-1,277,1)) -> 0 | I42: =SUMIF(Census!$B$19:$B$218,$K42,OFFSET(Census!$AD$19,0,MATCH(I$68,Census!$AD$18:$DD$18,0)-1,277,1))-H42 -> 0 | K42: 30 | L42: HIDE
B43: =VLOOKUP(K43,Census!$B$19:$C$218,2,FALSE) ->  | C43: =VLOOKUP($K43,Census!$B$19:$G$218,6,FALSE) ->  | D43: =SUMIF(Census!$X$19:$X$218,$K43&"/Employee/Y",OFFSET(Census!$AD$19,0,MATCH(D$68,Census!$AD$18:$DD$18,0)-1,277,1)) -> 0 | E43: =SUMIF(Census!$B$19:$B$218,$K43,OFFSET(Census!$AD$19,0,MATCH(E$68,Census!$AD$18:$DD$18,0)-1,277,1))-D43 -> 0 | F43: =SUMIF(Census!$X$19:$X$218,$K43&"/Employee/Y",OFFSET(Census!$AD$19,0,MATCH(F$68,Census!$AD$18:$DD$18,0)-1,277,1)) -> 0 | G43: =SUMIF(Census!$B$19:$B$218,$K43,OFFSET(Census!$AD$19,0,MATCH(G$68,Census!$AD$18:$DD$18,0)-1,277,1))-F43 -> 0 | H43: =SUMIF(Census!$X$19:$X$218,$K43&"/Employee/Y",OFFSET(Census!$AD$19,0,MATCH(H$68,Census!$AD$18:$DD$18,0)-1,277,1)) -> 0 | I43: =SUMIF(Census!$B$19:$B$218,$K43,OFFSET(Census!$AD$19,0,MATCH(I$68,Census!$AD$18:$DD$18,0)-1,277,1))-H43 -> 0 | K43: 31 | L43: HIDE
B44: =VLOOKUP(K44,Census!$B$19:$C$218,2,FALSE) ->  | C44: =VLOOKUP($K44,Census!$B$19:$G$218,6,FALSE) ->  | D44: =SUMIF(Census!$X$19:$X$218,$K44&"/Employee/Y",OFFSET(Census!$AD$19,0,MATCH(D$68,Census!$AD$18:$DD$18,0)-1,277,1)) -> 0 | E44: =SUMIF(Census!$B$19:$B$218,$K44,OFFSET(Census!$AD$19,0,MATCH(E$68,Census!$AD$18:$DD$18,0)-1,277,1))-D44 -> 0 | F44: =SUMIF(Census!$X$19:$X$218,$K44&"/Employee/Y",OFFSET(Census!$AD$19,0,MATCH(F$68,Census!$AD$18:$DD$18,0)-1,277,1)) -> 0 | G44: =SUMIF(Census!$B$19:$B$218,$K44,OFFSET(Census!$AD$19,0,MATCH(G$68,Census!$AD$18:$DD$18,0)-1,277,1))-F44 -> 0 | H44: =SUMIF(Census!$X$19:$X$218,$K44&"/Employee/Y",OFFSET(Census!$AD$19,0,MATCH(H$68,Census!$AD$18:$DD$18,0)-1,277,1)) -> 0 | I44: =SUMIF(Census!$B$19:$B$218,$K44,OFFSET(Census!$AD$19,0,MATCH(I$68,Census!$AD$18:$DD$18,0)-1,277,1))-H44 -> 0 | K44: 32 | L44: HIDE
B45: =VLOOKUP(K45,Census!$B$19:$C$218,2,FALSE) ->  | C45: =VLOOKUP($K45,Census!$B$19:$G$218,6,FALSE) ->  | D45: =SUMIF(Census!$X$19:$X$218,$K45&"/Employee/Y",OFFSET(Census!$AD$19,0,MATCH(D$68,Census!$AD$18:$DD$18,0)-1,277,1)) -> 0 | E45: =SUMIF(Census!$B$19:$B$218,$K45,OFFSET(Census!$AD$19,0,MATCH(E$68,Census!$AD$18:$DD$18,0)-1,277,1))-D45 -> 0 | F45: =SUMIF(Census!$X$19:$X$218,$K45&"/Employee/Y",OFFSET(Census!$AD$19,0,MATCH(F$68,Census!$AD$18:$DD$18,0)-1,277,1)) -> 0 | G45: =SUMIF(Census!$B$19:$B$218,$K45,OFFSET(Census!$AD$19,0,MATCH(G$68,Census!$AD$18:$DD$18,0)-1,277,1))-F45 -> 0 | H45: =SUMIF(Census!$X$19:$X$218,$K45&"/Employee/Y",OFFSET(Census!$AD$19,0,MATCH(H$68,Census!$AD$18:$DD$18,0)-1,277,1)) -> 0 | I45: =SUMIF(Census!$B$19:$B$218,$K45,OFFSET(Census!$AD$19,0,MATCH(I$68,Census!$AD$18:$DD$18,0)-1,277,1))-H45 -> 0 | K45: 33 | L45: HIDE
B46: =VLOOKUP(K46,Census!$B$19:$C$218,2,FALSE) ->  | C46: =VLOOKUP($K46,Census!$B$19:$G$218,6,FALSE) ->  | D46: =SUMIF(Census!$X$19:$X$218,$K46&"/Employee/Y",OFFSET(Census!$AD$19,0,MATCH(D$68,Census!$AD$18:$DD$18,0)-1,277,1)) -> 0 | E46: =SUMIF(Census!$B$19:$B$218,$K46,OFFSET(Census!$AD$19,0,MATCH(E$68,Census!$AD$18:$DD$18,0)-1,277,1))-D46 -> 0 | F46: =SUMIF(Census!$X$19:$X$218,$K46&"/Employee/Y",OFFSET(Census!$AD$19,0,MATCH(F$68,Census!$AD$18:$DD$18,0)-1,277,1)) -> 0 | G46: =SUMIF(Census!$B$19:$B$218,$K46,OFFSET(Census!$AD$19,0,MATCH(G$68,Census!$AD$18:$DD$18,0)-1,277,1))-F46 -> 0 | H46: =SUMIF(Census!$X$19:$X$218,$K46&"/Employee/Y",OFFSET(Census!$AD$19,0,MATCH(H$68,Census!$AD$18:$DD$18,0)-1,277,1)) -> 0 | I46: =SUMIF(Census!$B$19:$B$218,$K46,OFFSET(Census!$AD$19,0,MATCH(I$68,Census!$AD$18:$DD$18,0)-1,277,1))-H46 -> 0 | K46: 34 | L46: HIDE
B47: =VLOOKUP(K47,Census!$B$19:$C$218,2,FALSE) ->  | C47: =VLOOKUP($K47,Census!$B$19:$G$218,6,FALSE) ->  | D47: =SUMIF(Census!$X$19:$X$218,$K47&"/Employee/Y",OFFSET(Census!$AD$19,0,MATCH(D$68,Census!$AD$18:$DD$18,0)-1,277,1)) -> 0 | E47: =SUMIF(Census!$B$19:$B$218,$K47,OFFSET(Census!$AD$19,0,MATCH(E$68,Census!$AD$18:$DD$18,0)-1,277,1))-D47 -> 0 | F47: =SUMIF(Census!$X$19:$X$218,$K47&"/Employee/Y",OFFSET(Census!$AD$19,0,MATCH(F$68,Census!$AD$18:$DD$18,0)-1,277,1)) -> 0 | G47: =SUMIF(Census!$B$19:$B$218,$K47,OFFSET(Census!$AD$19,0,MATCH(G$68,Census!$AD$18:$DD$18,0)-1,277,1))-F47 -> 0 | H47: =SUMIF(Census!$X$19:$X$218,$K47&"/Employee/Y",OFFSET(Census!$AD$19,0,MATCH(H$68,Census!$AD$18:$DD$18,0)-1,277,1)) -> 0 | I47: =SUMIF(Census!$B$19:$B$218,$K47,OFFSET(Census!$AD$19,0,MATCH(I$68,Census!$AD$18:$DD$18,0)-1,277,1))-H47 -> 0 | K47: 35 | L47: HIDE
B48: =VLOOKUP(K48,Census!$B$19:$C$218,2,FALSE) ->  | C48: =VLOOKUP($K48,Census!$B$19:$G$218,6,FALSE) ->  | D48: =SUMIF(Census!$X$19:$X$218,$K48&"/Employee/Y",OFFSET(Census!$AD$19,0,MATCH(D$68,Census!$AD$18:$DD$18,0)-1,277,1)) -> 0 | E48: =SUMIF(Census!$B$19:$B$218,$K48,OFFSET(Census!$AD$19,0,MATCH(E$68,Census!$AD$18:$DD$18,0)-1,277,1))-D48 -> 0 | F48: =SUMIF(Census!$X$19:$X$218,$K48&"/Employee/Y",OFFSET(Census!$AD$19,0,MATCH(F$68,Census!$AD$18:$DD$18,0)-1,277,1)) -> 0 | G48: =SUMIF(Census!$B$19:$B$218,$K48,OFFSET(Census!$AD$19,0,MATCH(G$68,Census!$AD$18:$DD$18,0)-1,277,1))-F48 -> 0 | H48: =SUMIF(Census!$X$19:$X$218,$K48&"/Employee/Y",OFFSET(Census!$AD$19,0,MATCH(H$68,Census!$AD$18:$DD$18,0)-1,277,1)) -> 0 | I48: =SUMIF(Census!$B$19:$B$218,$K48,OFFSET(Census!$AD$19,0,MATCH(I$68,Census!$AD$18:$DD$18,0)-1,277,1))-H48 -> 0 | K48: 36 | L48: HIDE
B49: =VLOOKUP(K49,Census!$B$19:$C$218,2,FALSE) ->  | C49: =VLOOKUP($K49,Census!$B$19:$G$218,6,FALSE) ->  | D49: =SUMIF(Census!$X$19:$X$218,$K49&"/Employee/Y",OFFSET(Census!$AD$19,0,MATCH(D$68,Census!$AD$18:$DD$18,0)-1,277,1)) -> 0 | E49: =SUMIF(Census!$B$19:$B$218,$K49,OFFSET(Census!$AD$19,0,MATCH(E$68,Census!$AD$18:$DD$18,0)-1,277,1))-D49 -> 0 | F49: =SUMIF(Census!$X$19:$X$218,$K49&"/Employee/Y",OFFSET(Census!$AD$19,0,MATCH(F$68,Census!$AD$18:$DD$18,0)-1,277,1)) -> 0 | G49: =SUMIF(Census!$B$19:$B$218,$K49,OFFSET(Census!$AD$19,0,MATCH(G$68,Census!$AD$18:$DD$18,0)-1,277,1))-F49 -> 0 | H49: =SUMIF(Census!$X$19:$X$218,$K49&"/Employee/Y",OFFSET(Census!$AD$19,0,MATCH(H$68,Census!$AD$18:$DD$18,0)-1,277,1)) -> 0 | I49: =SUMIF(Census!$B$19:$B$218,$K49,OFFSET(Census!$AD$19,0,MATCH(I$68,Census!$AD$18:$DD$18,0)-1,277,1))-H49 -> 0 | K49: 37 | L49: HIDE
B50: =VLOOKUP(K50,Census!$B$19:$C$218,2,FALSE) ->  | C50: =VLOOKUP($K50,Census!$B$19:$G$218,6,FALSE) ->  | D50: =SUMIF(Census!$X$19:$X$218,$K50&"/Employee/Y",OFFSET(Census!$AD$19,0,MATCH(D$68,Census!$AD$18:$DD$18,0)-1,277,1)) -> 0 | E50: =SUMIF(Census!$B$19:$B$218,$K50,OFFSET(Census!$AD$19,0,MATCH(E$68,Census!$AD$18:$DD$18,0)-1,277,1))-D50 -> 0 | F50: =SUMIF(Census!$X$19:$X$218,$K50&"/Employee/Y",OFFSET(Census!$AD$19,0,MATCH(F$68,Census!$AD$18:$DD$18,0)-1,277,1)) -> 0 | G50: =SUMIF(Census!$B$19:$B$218,$K50,OFFSET(Census!$AD$19,0,MATCH(G$68,Census!$AD$18:$DD$18,0)-1,277,1))-F50 -> 0 | H50: =SUMIF(Census!$X$19:$X$218,$K50&"/Employee/Y",OFFSET(Census!$AD$19,0,MATCH(H$68,Census!$AD$18:$DD$18,0)-1,277,1)) -> 0 | I50: =SUMIF(Census!$B$19:$B$218,$K50,OFFSET(Census!$AD$19,0,MATCH(I$68,Census!$AD$18:$DD$18,0)-1,277,1))-H50 -> 0 | K50: 38 | L50: HIDE
B51: =VLOOKUP(K51,Census!$B$19:$C$218,2,FALSE) ->  | C51: =VLOOKUP($K51,Census!$B$19:$G$218,6,FALSE) ->  | D51: =SUMIF(Census!$X$19:$X$218,$K51&"/Employee/Y",OFFSET(Census!$AD$19,0,MATCH(D$68,Census!$AD$18:$DD$18,0)-1,277,1)) -> 0 | E51: =SUMIF(Census!$B$19:$B$218,$K51,OFFSET(Census!$AD$19,0,MATCH(E$68,Census!$AD$18:$DD$18,0)-1,277,1))-D51 -> 0 | F51: =SUMIF(Census!$X$19:$X$218,$K51&"/Employee/Y",OFFSET(Census!$AD$19,0,MATCH(F$68,Census!$AD$18:$DD$18,0)-1,277,1)) -> 0 | G51: =SUMIF(Census!$B$19:$B$218,$K51,OFFSET(Census!$AD$19,0,MATCH(G$68,Census!$AD$18:$DD$18,0)-1,277,1))-F51 -> 0 | H51: =SUMIF(Census!$X$19:$X$218,$K51&"/Employee/Y",OFFSET(Census!$AD$19,0,MATCH(H$68,Census!$AD$18:$DD$18,0)-1,277,1)) -> 0 | I51: =SUMIF(Census!$B$19:$B$218,$K51,OFFSET(Census!$AD$19,0,MATCH(I$68,Census!$AD$18:$DD$18,0)-1,277,1))-H51 -> 0 | K51: 39 | L51: HIDE
B52: =VLOOKUP(K52,Census!$B$19:$C$218,2,FALSE) ->  | C52: =VLOOKUP($K52,Census!$B$19:$G$218,6,FALSE) ->  | D52: =SUMIF(Census!$X$19:$X$218,$K52&"/Employee/Y",OFFSET(Census!$AD$19,0,MATCH(D$68,Census!$AD$18:$DD$18,0)-1,277,1)) -> 0 | E52: =SUMIF(Census!$B$19:$B$218,$K52,OFFSET(Census!$AD$19,0,MATCH(E$68,Census!$AD$18:$DD$18,0)-1,277,1))-D52 -> 0 | F52: =SUMIF(Census!$X$19:$X$218,$K52&"/Employee/Y",OFFSET(Census!$AD$19,0,MATCH(F$68,Census!$AD$18:$DD$18,0)-1,277,1)) -> 0 | G52: =SUMIF(Census!$B$19:$B$218,$K52,OFFSET(Census!$AD$19,0,MATCH(G$68,Census!$AD$18:$DD$18,0)-1,277,1))-F52 -> 0 | H52: =SUMIF(Census!$X$19:$X$218,$K52&"/Employee/Y",OFFSET(Census!$AD$19,0,MATCH(H$68,Census!$AD$18:$DD$18,0)-1,277,1)) -> 0 | I52: =SUMIF(Census!$B$19:$B$218,$K52,OFFSET(Census!$AD$19,0,MATCH(I$68,Census!$AD$18:$DD$18,0)-1,277,1))-H52 -> 0 | K52: 40 | L52: HIDE
B53: =VLOOKUP(K53,Census!$B$19:$C$218,2,FALSE) ->  | C53: =VLOOKUP($K53,Census!$B$19:$G$218,6,FALSE) ->  | D53: =SUMIF(Census!$X$19:$X$218,$K53&"/Employee/Y",OFFSET(Census!$AD$19,0,MATCH(D$68,Census!$AD$18:$DD$18,0)-1,277,1)) -> 0 | E53: =SUMIF(Census!$B$19:$B$218,$K53,OFFSET(Census!$AD$19,0,MATCH(E$68,Census!$AD$18:$DD$18,0)-1,277,1))-D53 -> 0 | F53: =SUMIF(Census!$X$19:$X$218,$K53&"/Employee/Y",OFFSET(Census!$AD$19,0,MATCH(F$68,Census!$AD$18:$DD$18,0)-1,277,1)) -> 0 | G53: =SUMIF(Census!$B$19:$B$218,$K53,OFFSET(Census!$AD$19,0,MATCH(G$68,Census!$AD$18:$DD$18,0)-1,277,1))-F53 -> 0 | H53: =SUMIF(Census!$X$19:$X$218,$K53&"/Employee/Y",OFFSET(Census!$AD$19,0,MATCH(H$68,Census!$AD$18:$DD$18,0)-1,277,1)) -> 0 | I53: =SUMIF(Census!$B$19:$B$218,$K53,OFFSET(Census!$AD$19,0,MATCH(I$68,Census!$AD$18:$DD$18,0)-1,277,1))-H53 -> 0 | K53: 41 | L53: HIDE
B54: =VLOOKUP(K54,Census!$B$19:$C$218,2,FALSE) ->  | C54: =VLOOKUP($K54,Census!$B$19:$G$218,6,FALSE) ->  | D54: =SUMIF(Census!$X$19:$X$218,$K54&"/Employee/Y",OFFSET(Census!$AD$19,0,MATCH(D$68,Census!$AD$18:$DD$18,0)-1,277,1)) -> 0 | E54: =SUMIF(Census!$B$19:$B$218,$K54,OFFSET(Census!$AD$19,0,MATCH(E$68,Census!$AD$18:$DD$18,0)-1,277,1))-D54 -> 0 | F54: =SUMIF(Census!$X$19:$X$218,$K54&"/Employee/Y",OFFSET(Census!$AD$19,0,MATCH(F$68,Census!$AD$18:$DD$18,0)-1,277,1)) -> 0 | G54: =SUMIF(Census!$B$19:$B$218,$K54,OFFSET(Census!$AD$19,0,MATCH(G$68,Census!$AD$18:$DD$18,0)-1,277,1))-F54 -> 0 | H54: =SUMIF(Census!$X$19:$X$218,$K54&"/Employee/Y",OFFSET(Census!$AD$19,0,MATCH(H$68,Census!$AD$18:$DD$18,0)-1,277,1)) -> 0 | I54: =SUMIF(Census!$B$19:$B$218,$K54,OFFSET(Census!$AD$19,0,MATCH(I$68,Census!$AD$18:$DD$18,0)-1,277,1))-H54 -> 0 | K54: 42 | L54: HIDE
B55: =VLOOKUP(K55,Census!$B$19:$C$218,2,FALSE) ->  | C55: =VLOOKUP($K55,Census!$B$19:$G$218,6,FALSE) ->  | D55: =SUMIF(Census!$X$19:$X$218,$K55&"/Employee/Y",OFFSET(Census!$AD$19,0,MATCH(D$68,Census!$AD$18:$DD$18,0)-1,277,1)) -> 0 | E55: =SUMIF(Census!$B$19:$B$218,$K55,OFFSET(Census!$AD$19,0,MATCH(E$68,Census!$AD$18:$DD$18,0)-1,277,1))-D55 -> 0 | F55: =SUMIF(Census!$X$19:$X$218,$K55&"/Employee/Y",OFFSET(Census!$AD$19,0,MATCH(F$68,Census!$AD$18:$DD$18,0)-1,277,1)) -> 0 | G55: =SUMIF(Census!$B$19:$B$218,$K55,OFFSET(Census!$AD$19,0,MATCH(G$68,Census!$AD$18:$DD$18,0)-1,277,1))-F55 -> 0 | H55: =SUMIF(Census!$X$19:$X$218,$K55&"/Employee/Y",OFFSET(Census!$AD$19,0,MATCH(H$68,Census!$AD$18:$DD$18,0)-1,277,1)) -> 0 | I55: =SUMIF(Census!$B$19:$B$218,$K55,OFFSET(Census!$AD$19,0,MATCH(I$68,Census!$AD$18:$DD$18,0)-1,277,1))-H55 -> 0 | K55: 43 | L55: HIDE
B56: =VLOOKUP(K56,Census!$B$19:$C$218,2,FALSE) ->  | C56: =VLOOKUP($K56,Census!$B$19:$G$218,6,FALSE) ->  | D56: =SUMIF(Census!$X$19:$X$218,$K56&"/Employee/Y",OFFSET(Census!$AD$19,0,MATCH(D$68,Census!$AD$18:$DD$18,0)-1,277,1)) -> 0 | E56: =SUMIF(Census!$B$19:$B$218,$K56,OFFSET(Census!$AD$19,0,MATCH(E$68,Census!$AD$18:$DD$18,0)-1,277,1))-D56 -> 0 | F56: =SUMIF(Census!$X$19:$X$218,$K56&"/Employee/Y",OFFSET(Census!$AD$19,0,MATCH(F$68,Census!$AD$18:$DD$18,0)-1,277,1)) -> 0 | G56: =SUMIF(Census!$B$19:$B$218,$K56,OFFSET(Census!$AD$19,0,MATCH(G$68,Census!$AD$18:$DD$18,0)-1,277,1))-F56 -> 0 | H56: =SUMIF(Census!$X$19:$X$218,$K56&"/Employee/Y",OFFSET(Census!$AD$19,0,MATCH(H$68,Census!$AD$18:$DD$18,0)-1,277,1)) -> 0 | I56: =SUMIF(Census!$B$19:$B$218,$K56,OFFSET(Census!$AD$19,0,MATCH(I$68,Census!$AD$18:$DD$18,0)-1,277,1))-H56 -> 0 | K56: 44 | L56: HIDE
B57: =VLOOKUP(K57,Census!$B$19:$C$218,2,FALSE) ->  | C57: =VLOOKUP($K57,Census!$B$19:$G$218,6,FALSE) ->  | D57: =SUMIF(Census!$X$19:$X$218,$K57&"/Employee/Y",OFFSET(Census!$AD$19,0,MATCH(D$68,Census!$AD$18:$DD$18,0)-1,277,1)) -> 0 | E57: =SUMIF(Census!$B$19:$B$218,$K57,OFFSET(Census!$AD$19,0,MATCH(E$68,Census!$AD$18:$DD$18,0)-1,277,1))-D57 -> 0 | F57: =SUMIF(Census!$X$19:$X$218,$K57&"/Employee/Y",OFFSET(Census!$AD$19,0,MATCH(F$68,Census!$AD$18:$DD$18,0)-1,277,1)) -> 0 | G57: =SUMIF(Census!$B$19:$B$218,$K57,OFFSET(Census!$AD$19,0,MATCH(G$68,Census!$AD$18:$DD$18,0)-1,277,1))-F57 -> 0 | H57: =SUMIF(Census!$X$19:$X$218,$K57&"/Employee/Y",OFFSET(Census!$AD$19,0,MATCH(H$68,Census!$AD$18:$DD$18,0)-1,277,1)) -> 0 | I57: =SUMIF(Census!$B$19:$B$218,$K57,OFFSET(Census!$AD$19,0,MATCH(I$68,Census!$AD$18:$DD$18,0)-1,277,1))-H57 -> 0 | K57: 45 | L57: HIDE
B58: =VLOOKUP(K58,Census!$B$19:$C$218,2,FALSE) ->  | C58: =VLOOKUP($K58,Census!$B$19:$G$218,6,FALSE) ->  | D58: =SUMIF(Census!$X$19:$X$218,$K58&"/Employee/Y",OFFSET(Census!$AD$19,0,MATCH(D$68,Census!$AD$18:$DD$18,0)-1,277,1)) -> 0 | E58: =SUMIF(Census!$B$19:$B$218,$K58,OFFSET(Census!$AD$19,0,MATCH(E$68,Census!$AD$18:$DD$18,0)-1,277,1))-D58 -> 0 | F58: =SUMIF(Census!$X$19:$X$218,$K58&"/Employee/Y",OFFSET(Census!$AD$19,0,MATCH(F$68,Census!$AD$18:$DD$18,0)-1,277,1)) -> 0 | G58: =SUMIF(Census!$B$19:$B$218,$K58,OFFSET(Census!$AD$19,0,MATCH(G$68,Census!$AD$18:$DD$18,0)-1,277,1))-F58 -> 0 | H58: =SUMIF(Census!$X$19:$X$218,$K58&"/Employee/Y",OFFSET(Census!$AD$19,0,MATCH(H$68,Census!$AD$18:$DD$18,0)-1,277,1)) -> 0 | I58: =SUMIF(Census!$B$19:$B$218,$K58,OFFSET(Census!$AD$19,0,MATCH(I$68,Census!$AD$18:$DD$18,0)-1,277,1))-H58 -> 0 | K58: 46 | L58: HIDE
B59: =VLOOKUP(K59,Census!$B$19:$C$218,2,FALSE) ->  | C59: =VLOOKUP($K59,Census!$B$19:$G$218,6,FALSE) ->  | D59: =SUMIF(Census!$X$19:$X$218,$K59&"/Employee/Y",OFFSET(Census!$AD$19,0,MATCH(D$68,Census!$AD$18:$DD$18,0)-1,277,1)) -> 0 | E59: =SUMIF(Census!$B$19:$B$218,$K59,OFFSET(Census!$AD$19,0,MATCH(E$68,Census!$AD$18:$DD$18,0)-1,277,1))-D59 -> 0 | F59: =SUMIF(Census!$X$19:$X$218,$K59&"/Employee/Y",OFFSET(Census!$AD$19,0,MATCH(F$68,Census!$AD$18:$DD$18,0)-1,277,1)) -> 0 | G59: =SUMIF(Census!$B$19:$B$218,$K59,OFFSET(Census!$AD$19,0,MATCH(G$68,Census!$AD$18:$DD$18,0)-1,277,1))-F59 -> 0 | H59: =SUMIF(Census!$X$19:$X$218,$K59&"/Employee/Y",OFFSET(Census!$AD$19,0,MATCH(H$68,Census!$AD$18:$DD$18,0)-1,277,1)) -> 0 | I59: =SUMIF(Census!$B$19:$B$218,$K59,OFFSET(Census!$AD$19,0,MATCH(I$68,Census!$AD$18:$DD$18,0)-1,277,1))-H59 -> 0 | K59: 47 | L59: HIDE
B60: =VLOOKUP(K60,Census!$B$19:$C$218,2,FALSE) ->  | C60: =VLOOKUP($K60,Census!$B$19:$G$218,6,FALSE) ->  | D60: =SUMIF(Census!$X$19:$X$218,$K60&"/Employee/Y",OFFSET(Census!$AD$19,0,MATCH(D$68,Census!$AD$18:$DD$18,0)-1,277,1)) -> 0 | E60: =SUMIF(Census!$B$19:$B$218,$K60,OFFSET(Census!$AD$19,0,MATCH(E$68,Census!$AD$18:$DD$18,0)-1,277,1))-D60 -> 0 | F60: =SUMIF(Census!$X$19:$X$218,$K60&"/Employee/Y",OFFSET(Census!$AD$19,0,MATCH(F$68,Census!$AD$18:$DD$18,0)-1,277,1)) -> 0 | G60: =SUMIF(Census!$B$19:$B$218,$K60,OFFSET(Census!$AD$19,0,MATCH(G$68,Census!$AD$18:$DD$18,0)-1,277,1))-F60 -> 0 | H60: =SUMIF(Census!$X$19:$X$218,$K60&"/Employee/Y",OFFSET(Census!$AD$19,0,MATCH(H$68,Census!$AD$18:$DD$18,0)-1,277,1)) -> 0 | I60: =SUMIF(Census!$B$19:$B$218,$K60,OFFSET(Census!$AD$19,0,MATCH(I$68,Census!$AD$18:$DD$18,0)-1,277,1))-H60 -> 0 | K60: 48 | L60: HIDE
B61: =VLOOKUP(K61,Census!$B$19:$C$218,2,FALSE) ->  | C61: =VLOOKUP($K61,Census!$B$19:$G$218,6,FALSE) ->  | D61: =SUMIF(Census!$X$19:$X$218,$K61&"/Employee/Y",OFFSET(Census!$AD$19,0,MATCH(D$68,Census!$AD$18:$DD$18,0)-1,277,1)) -> 0 | E61: =SUMIF(Census!$B$19:$B$218,$K61,OFFSET(Census!$AD$19,0,MATCH(E$68,Census!$AD$18:$DD$18,0)-1,277,1))-D61 -> 0 | F61: =SUMIF(Census!$X$19:$X$218,$K61&"/Employee/Y",OFFSET(Census!$AD$19,0,MATCH(F$68,Census!$AD$18:$DD$18,0)-1,277,1)) -> 0 | G61: =SUMIF(Census!$B$19:$B$218,$K61,OFFSET(Census!$AD$19,0,MATCH(G$68,Census!$AD$18:$DD$18,0)-1,277,1))-F61 -> 0 | H61: =SUMIF(Census!$X$19:$X$218,$K61&"/Employee/Y",OFFSET(Census!$AD$19,0,MATCH(H$68,Census!$AD$18:$DD$18,0)-1,277,1)) -> 0 | I61: =SUMIF(Census!$B$19:$B$218,$K61,OFFSET(Census!$AD$19,0,MATCH(I$68,Census!$AD$18:$DD$18,0)-1,277,1))-H61 -> 0 | K61: 49 | L61: HIDE
B62: =VLOOKUP(K62,Census!$B$19:$C$218,2,FALSE) ->  | C62: =VLOOKUP($K62,Census!$B$19:$G$218,6,FALSE) ->  | D62: =SUMIF(Census!$X$19:$X$218,$K62&"/Employee/Y",OFFSET(Census!$AD$19,0,MATCH(D$68,Census!$AD$18:$DD$18,0)-1,277,1)) -> 0 | E62: =SUMIF(Census!$B$19:$B$218,$K62,OFFSET(Census!$AD$19,0,MATCH(E$68,Census!$AD$18:$DD$18,0)-1,277,1))-D62 -> 0 | F62: =SUMIF(Census!$X$19:$X$218,$K62&"/Employee/Y",OFFSET(Census!$AD$19,0,MATCH(F$68,Census!$AD$18:$DD$18,0)-1,277,1)) -> 0 | G62: =SUMIF(Census!$B$19:$B$218,$K62,OFFSET(Census!$AD$19,0,MATCH(G$68,Census!$AD$18:$DD$18,0)-1,277,1))-F62 -> 0 | H62: =SUMIF(Census!$X$19:$X$218,$K62&"/Employee/Y",OFFSET(Census!$AD$19,0,MATCH(H$68,Census!$AD$18:$DD$18,0)-1,277,1)) -> 0 | I62: =SUMIF(Census!$B$19:$B$218,$K62,OFFSET(Census!$AD$19,0,MATCH(I$68,Census!$AD$18:$DD$18,0)-1,277,1))-H62 -> 0 | K62: 50 | L62: HIDE
B64: Total | D64: =SUM(D13:D62) -> 5314.52 | E64: 4511.66 | F64: 4456.06 | G64: 3782.88 | H64: 4287.61 | I64: 3639.89
B65: Total Monthly Premium | D65: =SUM(D64:E64) -> 9826.18 | F65: =SUM(F64:G64) -> 8238.94 | H65: =SUM(H64:I64) -> 7927.5
B66: Average Premium | D66: =D64/Subs -> 759.2171429 | E66: =IF(Dependents=0,0,E64/Dependents) -> 451.166 | F66: =F64/Subs -> 636.58 | G66: =IF(Dependents=0,0,G64/Dependents) -> 378.288 | H66: =H64/Subs -> 612.5157143 | I66: =IF(Dependents=0,0,I64/Dependents) -> 363.989
D68: =INDEX(Plan_tbl,D69,1) -> 51485AZ0160003 | E68: =D68 -> 51485AZ0160003 | F68: =INDEX(Plan_tbl,F69,1) -> 51485AZ0160005 | G68: =F68 -> 51485AZ0160005 | H68: =INDEX(Plan_tbl,H69,1) -> 51485AZ0160035 | I68: =H68 -> 51485AZ0160035
D69: 1 | F69: 2 | H69: 3

Sheet Calc_pg2 (hidden)
E1: Group Name: | F1: =Grp_Name -> Example Group
E2: Location: | F2: =Grp_County -> Maricopa
E3: Total Eligible Employees: | F3: =Total_EEs -> 7
E4: Effective Date: | F4: =TEXT(Eff_Dt,"mm/dd/yyyy") -> 04/01/2018
E5: Date of Proposal: | F5: =TEXT(TODAY(),"mm/dd/yyyy") -> 01/10/2018
B8: =VLOOKUP(D68,Plan_tbl,25,FALSE) -> Health Net PPO
D9: =VLOOKUP(D68,Plan_tbl,26,FALSE) -> PPO 4 | F9: =VLOOKUP(F68,Plan_tbl,26,FALSE) -> PPO 5 | H9: =VLOOKUP(H68,Plan_tbl,26,FALSE) -> PPO 6 | J9: =VLOOKUP(J68,Plan_tbl,26,FALSE) -> PPO 7 | L9: =VLOOKUP(L68,Plan_tbl,26,FALSE) -> PPO 8 | N9: =VLOOKUP(N68,Plan_tbl,26,FALSE) -> PPO 9
D10: =VLOOKUP(D68,Plan_tbl,6,FALSE) -> Silver 3000 | F10: =VLOOKUP(F68,Plan_tbl,6,FALSE) -> Silver 4000 | H10: =VLOOKUP(H68,Plan_tbl,6,FALSE) -> Silver 5500 | J10: =VLOOKUP(J68,Plan_tbl,6,FALSE) -> Bronze 5000 | L10: =VLOOKUP(L68,Plan_tbl,6,FALSE) -> Bronze 7350 | N10: =VLOOKUP(N68,Plan_tbl,6,FALSE) -> Bronze 5500
D11: ="Rx: "&VLOOKUP(D68,Plan_tbl,21,FALSE) -> Rx: $20/$70/$120/50% | F11: ="Rx: "&VLOOKUP(F68,Plan_tbl,21,FALSE) -> Rx: $20/$70/$120/50% | H11: ="Rx: "&VLOOKUP(H68,Plan_tbl,21,FALSE) -> Rx: $20/$70/$120/50% | J11: ="Rx: "&VLOOKUP(J68,Plan_tbl,21,FALSE) -> Rx: $20 /$75/$300/50% $500 Brand Deductible | L11: ="Rx: "&VLOOKUP(L68,Plan_tbl,21,FALSE) -> Rx: 0% after deductible | N11: ="Rx: "&VLOOKUP(N68,Plan_tbl,21,FALSE) -> Rx: 50% after deductible | Q11: Employee Number | R11: Hide/Show
B12: Name | C12: Age | D12: Employee Only | E12: Dependents Total | F12: Employee Only | G12: Dependents Total | H12: Employee Only | I12: Dependents Total | J12: Employee Only | K12: Dependents Total | L12: Employee Only | M12: Dependents Total | N12: Employee Only | O12: Dependents Total
B13: =VLOOKUP($Q13,Census!$B$19:$C$218,2,FALSE) -> Employee 1 | C13: =VLOOKUP($Q13,Census!$B$19:$G$218,6,FALSE) -> 27 | D13: =SUMIF(Census!$X$19:$X$218,$Q13&"/Employee/Y",OFFSET(Census!$AD$19,0,MATCH(D$68,Census!$AD$18:$DD$18,0)-1,277,1)) -> 336.29 | E13: =SUMIF(Census!$B$19:$B$218,$Q13,OFFSET(Census!$AD$19,0,MATCH(E$68,Census!$AD$18:$DD$18,0)-1,277,1))-D13 -> 574.07 | F13: =SUMIF(Census!$X$19:$X$218,$Q13&"/Employee/Y",OFFSET(Census!$AD$19,0,MATCH(F$68,Census!$AD$18:$DD$18,0)-1,277,1)) -> 301.48 | G13: =SUMIF(Census!$B$19:$B$218,$Q13,OFFSET(Census!$AD$19,0,MATCH(G$68,Census!$AD$18:$DD$18,0)-1,277,1))-F13 -> 514.65 | H13: =SUMIF(Census!$X$19:$X$218,$Q13&"/Employee/Y",OFFSET(Census!$AD$19,0,MATCH(H$68,Census!$AD$18:$DD$18,0)-1,277,1)) -> 320.71 | I13: =SUMIF(Census!$B$19:$B$218,$Q13,OFFSET(Census!$AD$19,0,MATCH(I$68,Census!$AD$18:$DD$18,0)-1,277,1))-H13 -> 547.48 | J13: =SUMIF(Census!$X$19:$X$218,$Q13&"/Employee/Y",OFFSET(Census!$AD$19,0,MATCH(J$68,Census!$AD$18:$DD$18,0)-1,277,1)) -> 279.51 | K13: =SUMIF(Census!$B$19:$B$218,$Q13,OFFSET(Census!$AD$19,0,MATCH(K$68,Census!$AD$18:$DD$18,0)-1,277,1))-J13 -> 477.14 | L13: =SUMIF(Census!$X$19:$X$218,$Q13&"/Employee/Y",OFFSET(Census!$AD$19,0,MATCH(L$68,Census!$AD$18:$DD$18,0)-1,277,1)) -> 243.09 | M13: =SUMIF(Census!$B$19:$B$218,$Q13,OFFSET(Census!$AD$19,0,MATCH(M$68,Census!$AD$18:$DD$18,0)-1,277,1))-L13 -> 414.97 | N13: =SUMIF(Census!$X$19:$X$218,$Q13&"/Employee/Y",OFFSET(Census!$AD$19,0,MATCH(N$68,Census!$AD$18:$DD$18,0)-1,277,1)) -> 255.91 | O13: =SUMIF(Census!$B$19:$B$218,$Q13,OFFSET(Census!$AD$19,0,MATCH(O$68,Census!$AD$18:$DD$18,0)-1,277,1))-N13 -> 436.85 | Q13: 1 | R13: =IF(D13=0,"HIDE","SHOW") -> SHOW
B14: =VLOOKUP(Q14,Census!$B$19:$C$218,2,FALSE) -> Employee 2 | C14: =VLOOKUP($Q14,Census!$B$19:$G$218,6,FALSE) -> 41 | D14: =SUMIF(Census!$X$19:$X$218,$Q14&"/Employee/Y",OFFSET(Census!$AD$19,0,MATCH(D$68,Census!$AD$18:$DD$18,0)-1,277,1)) -> 417.79 | E14: =SUMIF(Census!$B$19:$B$218,$Q14,OFFSET(Census!$AD$19,0,MATCH(E$68,Census!$AD$18:$DD$18,0)-1,277,1))-D14 -> 0 | F14: =SUMIF(Census!$X$19:$X$218,$Q14&"/Employee/Y",OFFSET(Census!$AD$19,0,MATCH(F$68,Census!$AD$18:$DD$18,0)-1,277,1)) -> 374.55 | G14: =SUMIF(Census!$B$19:$B$218,$Q14,OFFSET(Census!$AD$19,0,MATCH(G$68,Census!$AD$18:$DD$18,0)-1,277,1))-F14 -> 0 | H14: =SUMIF(Census!$X$19:$X$218,$Q14&"/Employee/Y",OFFSET(Census!$AD$19,0,MATCH(H$68,Census!$AD$18:$DD$18,0)-1,277,1)) -> 398.44 | I14: =SUMIF(Census!$B$19:$B$218,$Q14,OFFSET(Census!$AD$19,0,MATCH(I$68,Census!$AD$18:$DD$18,0)-1,277,1))-H14 -> 0 | J14: =SUMIF(Census!$X$19:$X$218,$Q14&"/Employee/Y",OFFSET(Census!$AD$19,0,MATCH(J$68,Census!$AD$18:$DD$18,0)-1,277,1)) -> 347.26 | K14: =SUMIF(Census!$B$19:$B$218,$Q14,OFFSET(Census!$AD$19,0,MATCH(K$68,Census!$AD$18:$DD$18,0)-1,277,1))-J14 -> 0 | L14: =SUMIF(Census!$X$19:$X$218,$Q14&"/Employee/Y",OFFSET(Census!$AD$19,0,MATCH(L$68,Census!$AD$18:$DD$18,0)-1,277,1)) -> 302.01 | M14: =SUMIF(Census!$B$19:$B$218,$Q14,OFFSET(Census!$AD$19,0,MATCH(M$68,Census!$AD$18:$DD$18,0)-1,277,1))-L14 -> 0 | N14: =SUMIF(Census!$X$19:$X$218,$Q14&"/Employee/Y",OFFSET(Census!$AD$19,0,MATCH(N$68,Census!$AD$18:$DD$18,0)-1,277,1)) -> 317.93 | O14: =SUMIF(Census!$B$19:$B$218,$Q14,OFFSET(Census!$AD$19,0,MATCH(O$68,Census!$AD$18:$DD$18,0)-1,277,1))-N14 -> 0 | Q14: =Q13+1 -> 2 | R14: SHOW
B15: =VLOOKUP(Q15,Census!$B$19:$C$218,2,FALSE) -> Employee 3 | C15: =VLOOKUP($Q15,Census!$B$19:$G$218,6,FALSE) -> 43 | D15: =SUMIF(Census!$X$19:$X$218,$Q15&"/Employee/Y",OFFSET(Census!$AD$19,0,MATCH(D$68,Census!$AD$18:$DD$18,0)-1,277,1)) -> 435.44 | E15: =SUMIF(Census!$B$19:$B$218,$Q15,OFFSET(Census!$AD$19,0,MATCH(E$68,Census!$AD$18:$DD$18,0)-1,277,1))-D15 -> 0 | F15: =SUMIF(Census!$X$19:$X$218,$Q15&"/Employee/Y",OFFSET(Census!$AD$19,0,MATCH(F$68,Census!$AD$18:$DD$18,0)-1,277,1)) -> 390.37 | G15: =SUMIF(Census!$B$19:$B$218,$Q15,OFFSET(Census!$AD$19,0,MATCH(G$68,Census!$AD$18:$DD$18,0)-1,277,1))-F15 -> 0 | H15: =SUMIF(Census!$X$19:$X$218,$Q15&"/Employee/Y",OFFSET(Census!$AD$19,0,MATCH(H$68,Census!$AD$18:$DD$18,0)-1,277,1)) -> 415.27 | I15: =SUMIF(Census!$B$19:$B$218,$Q15,OFFSET(Census!$AD$19,0,MATCH(I$68,Census!$AD$18:$DD$18,0)-1,277,1))-H15 -> 0 | J15: =SUMIF(Census!$X$19:$X$218,$Q15&"/Employee/Y",OFFSET(Census!$AD$19,0,MATCH(J$68,Census!$AD$18:$DD$18,0)-1,277,1)) -> 361.92 | K15: =SUMIF(Census!$B$19:$B$218,$Q15,OFFSET(Census!$AD$19,0,MATCH(K$68,Census!$AD$18:$DD$18,0)-1,277,1))-J15 -> 0 | L15: =SUMIF(Census!$X$19:$X$218,$Q15&"/Employee/Y",OFFSET(Census!$AD$19,0,MATCH(L$68,Census!$AD$18:$DD$18,0)-1,277,1)) -> 314.77 | M15: =SUMIF(Census!$B$19:$B$218,$Q15,OFFSET(Census!$AD$19,0,MATCH(M$68,Census!$AD$18:$DD$18,0)-1,277,1))-L15 -> 0 | N15: =SUMIF(Census!$X$19:$X$218,$Q15&"/Employee/Y",OFFSET(Census!$AD$19,0,MATCH(N$68,Census!$AD$18:$DD$18,0)-1,277,1)) -> 331.36 | O15: =SUMIF(Census!$B$19:$B$218,$Q15,OFFSET(Census!$AD$19,0,MATCH(O$68,Census!$AD$18:$DD$18,0)-1,277,1))-N15 -> 0 | Q15: =Q14+1 -> 3 | R15: SHOW
B16: =VLOOKUP(Q16,Census!$B$19:$C$218,2,FALSE) -> Smith, Amy | C16: =VLOOKUP($Q16,Census!$B$19:$G$218,6,FALSE) -> 54 | D16: =SUMIF(Census!$X$19:$X$218,$Q16&"/Employee/Y",OFFSET(Census!$AD$19,0,MATCH(D$68,Census!$AD$18:$DD$18,0)-1,277,1)) -> 685.09 | E16: =SUMIF(Census!$B$19:$B$218,$Q16,OFFSET(Census!$AD$19,0,MATCH(E$68,Census!$AD$18:$DD$18,0)-1,277,1))-D16 -> 1900.28 | F16: =SUMIF(Census!$X$19:$X$218,$Q16&"/Employee/Y",OFFSET(Census!$AD$19,0,MATCH(F$68,Census!$AD$18:$DD$18,0)-1,277,1)) -> 614.18 | G16: =SUMIF(Census!$B$19:$B$218,$Q16,OFFSET(Census!$AD$19,0,MATCH(G$68,Census!$AD$18:$DD$18,0)-1,277,1))-F16 -> 1703.59 | H16: =SUMIF(Census!$X$19:$X$218,$Q16&"/Employee/Y",OFFSET(Census!$AD$19,0,MATCH(H$68,Census!$AD$18:$DD$18,0)-1,277,1)) -> 653.36 | I16: =SUMIF(Census!$B$19:$B$218,$Q16,OFFSET(Census!$AD$19,0,MATCH(I$68,Census!$AD$18:$DD$18,0)-1,277,1))-H16 -> 1812.27 | J16: =SUMIF(Census!$X$19:$X$218,$Q16&"/Employee/Y",OFFSET(Census!$AD$19,0,MATCH(J$68,Census!$AD$18:$DD$18,0)-1,277,1)) -> 569.42 | K16: =SUMIF(Census!$B$19:$B$218,$Q16,OFFSET(Census!$AD$19,0,MATCH(K$68,Census!$AD$18:$DD$18,0)-1,277,1))-J16 -> 1579.45 | L16: =SUMIF(Census!$X$19:$X$218,$Q16&"/Employee/Y",OFFSET(Census!$AD$19,0,MATCH(L$68,Census!$AD$18:$DD$18,0)-1,277,1)) -> 495.23 | M16: =SUMIF(Census!$B$19:$B$218,$Q16,OFFSET(Census!$AD$19,0,MATCH(M$68,Census!$AD$18:$DD$18,0)-1,277,1))-L16 -> 1373.65 | N16: =SUMIF(Census!$X$19:$X$218,$Q16&"/Employee/Y",OFFSET(Census!$AD$19,0,MATCH(N$68,Census!$AD$18:$DD$18,0)-1,277,1)) -> 521.33 | O16: =SUMIF(Census!$B$19:$B$218,$Q16,OFFSET(Census!$AD$19,0,MATCH(O$68,Census!$AD$18:$DD$18,0)-1,277,1))-N16 -> 1446.06 | Q16: 4 | R16: SHOW
B17: =VLOOKUP(Q17,Census!$B$19:$C$218,2,FALSE) -> Employee 5 | C17: =VLOOKUP($Q17,Census!$B$19:$G$218,6,FALSE) -> 71 | D17: =SUMIF(Census!$X$19:$X$218,$Q17&"/Employee/Y",OFFSET(Census!$AD$19,0,MATCH(D$68,Census!$AD$18:$DD$18,0)-1,277,1)) -> 962.67 | E17: =SUMIF(Census!$B$19:$B$218,$Q17,OFFSET(Census!$AD$19,0,MATCH(E$68,Census!$AD$18:$DD$18,0)-1,277,1))-D17 -> 0 | F17: =SUMIF(Census!$X$19:$X$218,$Q17&"/Employee/Y",OFFSET(Census!$AD$19,0,MATCH(F$68,Census!$AD$18:$DD$18,0)-1,277,1)) -> 863.01 | G17: =SUMIF(Census!$B$19:$B$218,$Q17,OFFSET(Census!$AD$19,0,MATCH(G$68,Census!$AD$18:$DD$18,0)-1,277,1))-F17 -> 0 | H17: =SUMIF(Census!$X$19:$X$218,$Q17&"/Employee/Y",OFFSET(Census!$AD$19,0,MATCH(H$68,Census!$AD$18:$DD$18,0)-1,277,1)) -> 918.06 | I17: =SUMIF(Census!$B$19:$B$218,$Q17,OFFSET(Census!$AD$19,0,MATCH(I$68,Census!$AD$18:$DD$18,0)-1,277,1))-H17 -> 0 | J17: =SUMIF(Census!$X$19:$X$218,$Q17&"/Employee/Y",OFFSET(Census!$AD$19,0,MATCH(J$68,Census!$AD$18:$DD$18,0)-1,277,1)) -> 800.13 | K17: =SUMIF(Census!$B$19:$B$218,$Q17,OFFSET(Census!$AD$19,0,MATCH(K$68,Census!$AD$18:$DD$18,0)-1,277,1))-J17 -> 0 | L17: =SUMIF(Census!$X$19:$X$218,$Q17&"/Employee/Y",OFFSET(Census!$AD$19,0,MATCH(L$68,Census!$AD$18:$DD$18,0)-1,277,1)) -> 695.88 | M17: =SUMIF(Census!$B$19:$B$218,$Q17,OFFSET(Census!$AD$19,0,MATCH(M$68,Census!$AD$18:$DD$18,0)-1,277,1))-L17 -> 0 | N17: =SUMIF(Census!$X$19:$X$218,$Q17&"/Employee/Y",OFFSET(Census!$AD$19,0,MATCH(N$68,Census!$AD$18:$DD$18,0)-1,277,1)) -> 732.54 | O17: =SUMIF(Census!$B$19:$B$218,$Q17,OFFSET(Census!$AD$19,0,MATCH(O$68,Census!$AD$18:$DD$18,0)-1,277,1))-N17 -> 0 | Q17: 5 | R17: SHOW
B18: =VLOOKUP(Q18,Census!$B$19:$C$218,2,FALSE) -> Employee 6 | C18: =VLOOKUP($Q18,Census!$B$19:$G$218,6,FALSE) -> 37 | D18: =SUMIF(Census!$X$19:$X$218,$Q18&"/Employee/Y",OFFSET(Census!$AD$19,0,MATCH(D$68,Census!$AD$18:$DD$18,0)-1,277,1)) -> 397.26 | E18: =SUMIF(Census!$B$19:$B$218,$Q18,OFFSET(Census!$AD$19,0,MATCH(E$68,Census!$AD$18:$DD$18,0)-1,277,1))-D18 -> 245.48 | F18: =SUMIF(Census!$X$19:$X$218,$Q18&"/Employee/Y",OFFSET(Census!$AD$19,0,MATCH(F$68,Census!$AD$18:$DD$18,0)-1,277,1)) -> 356.14 | G18: =SUMIF(Census!$B$19:$B$218,$Q18,OFFSET(Census!$AD$19,0,MATCH(G$68,Census!$AD$18:$DD$18,0)-1,277,1))-F18 -> 220.07 | H18: =SUMIF(Census!$X$19:$X$218,$Q18&"/Employee/Y",OFFSET(Census!$AD$19,0,MATCH(H$68,Census!$AD$18:$DD$18,0)-1,277,1)) -> 378.86 | I18: =SUMIF(Census!$B$19:$B$218,$Q18,OFFSET(Census!$AD$19,0,MATCH(I$68,Census!$AD$18:$DD$18,0)-1,277,1))-H18 -> 234.11 | J18: =SUMIF(Census!$X$19:$X$218,$Q18&"/Employee/Y",OFFSET(Census!$AD$19,0,MATCH(J$68,Census!$AD$18:$DD$18,0)-1,277,1)) -> 330.19 | K18: =SUMIF(Census!$B$19:$B$218,$Q18,OFFSET(Census!$AD$19,0,MATCH(K$68,Census!$AD$18:$DD$18,0)-1,277,1))-J18 -> 204.03 | L18: =SUMIF(Census!$X$19:$X$218,$Q18&"/Employee/Y",OFFSET(Census!$AD$19,0,MATCH(L$68,Census!$AD$18:$DD$18,0)-1,277,1)) -> 287.16 | M18: =SUMIF(Census!$B$19:$B$218,$Q18,OFFSET(Census!$AD$19,0,MATCH(M$68,Census!$AD$18:$DD$18,0)-1,277,1))-L18 -> 177.45 | N18: =SUMIF(Census!$X$19:$X$218,$Q18&"/Employee/Y",OFFSET(Census!$AD$19,0,MATCH(N$68,Census!$AD$18:$DD$18,0)-1,277,1)) -> 302.3 | O18: =SUMIF(Census!$B$19:$B$218,$Q18,OFFSET(Census!$AD$19,0,MATCH(O$68,Census!$AD$18:$DD$18,0)-1,277,1))-N18 -> 186.8 | Q18: 6 | R18: SHOW
B19: =VLOOKUP(Q19,Census!$B$19:$C$218,2,FALSE) -> Wilson, Jim | C19: =VLOOKUP($Q19,Census!$B$19:$G$218,6,FALSE) -> 28 | D19: =SUMIF(Census!$X$19:$X$218,$Q19&"/Employee/Y",OFFSET(Census!$AD$19,0,MATCH(D$68,Census!$AD$18:$DD$18,0)-1,277,1)) -> 348.8 | E19: =SUMIF(Census!$B$19:$B$218,$Q19,OFFSET(Census!$AD$19,0,MATCH(E$68,Census!$AD$18:$DD$18,0)-1,277,1))-D19 -> 322.17 | F19: =SUMIF(Census!$X$19:$X$218,$Q19&"/Employee/Y",OFFSET(Census!$AD$19,0,MATCH(F$68,Census!$AD$18:$DD$18,0)-1,277,1)) -> 312.7 | G19: =SUMIF(Census!$B$19:$B$218,$Q19,OFFSET(Census!$AD$19,0,MATCH(G$68,Census!$AD$18:$DD$18,0)-1,277,1))-F19 -> 288.82 | H19: =SUMIF(Census!$X$19:$X$218,$Q19&"/Employee/Y",OFFSET(Census!$AD$19,0,MATCH(H$68,Census!$AD$18:$DD$18,0)-1,277,1)) -> 332.65 | I19: =SUMIF(Census!$B$19:$B$218,$Q19,OFFSET(Census!$AD$19,0,MATCH(I$68,Census!$AD$18:$DD$18,0)-1,277,1))-H19 -> 307.25 | J19: =SUMIF(Census!$X$19:$X$218,$Q19&"/Employee/Y",OFFSET(Census!$AD$19,0,MATCH(J$68,Census!$AD$18:$DD$18,0)-1,277,1)) -> 289.91 | K19: =SUMIF(Census!$B$19:$B$218,$Q19,OFFSET(Census!$AD$19,0,MATCH(K$68,Census!$AD$18:$DD$18,0)-1,277,1))-J19 -> 267.78 | L19: =SUMIF(Census!$X$19:$X$218,$Q19&"/Employee/Y",OFFSET(Census!$AD$19,0,MATCH(L$68,Census!$AD$18:$DD$18,0)-1,277,1)) -> 252.14 | M19: =SUMIF(Census!$B$19:$B$218,$Q19,OFFSET(Census!$AD$19,0,MATCH(M$68,Census!$AD$18:$DD$18,0)-1,277,1))-L19 -> 232.88 | N19: =SUMIF(Census!$X$19:$X$218,$Q19&"/Employee/Y",OFFSET(Census!$AD$19,0,MATCH(N$68,Census!$AD$18:$DD$18,0)-1,277,1)) -> 265.43 | O19: =SUMIF(Census!$B$19:$B$218,$Q19,OFFSET(Census!$AD$19,0,MATCH(O$68,Census!$AD$18:$DD$18,0)-1,277,1))-N19 -> 245.16 | Q19: 7 | R19: SHOW
B20: =VLOOKUP(Q20,Census!$B$19:$C$218,2,FALSE) ->  | C20: =VLOOKUP($Q20,Census!$B$19:$G$218,6,FALSE) ->  | D20: =SUMIF(Census!$X$19:$X$218,$Q20&"/Employee/Y",OFFSET(Census!$AD$19,0,MATCH(D$68,Census!$AD$18:$DD$18,0)-1,277,1)) -> 0 | E20: =SUMIF(Census!$B$19:$B$218,$Q20,OFFSET(Census!$AD$19,0,MATCH(E$68,Census!$AD$18:$DD$18,0)-1,277,1))-D20 -> 0 | F20: =SUMIF(Census!$X$19:$X$218,$Q20&"/Employee/Y",OFFSET(Census!$AD$19,0,MATCH(F$68,Census!$AD$18:$DD$18,0)-1,277,1)) -> 0 | G20: =SUMIF(Census!$B$19:$B$218,$Q20,OFFSET(Census!$AD$19,0,MATCH(G$68,Census!$AD$18:$DD$18,0)-1,277,1))-F20 -> 0 | H20: =SUMIF(Census!$X$19:$X$218,$Q20&"/Employee/Y",OFFSET(Census!$AD$19,0,MATCH(H$68,Census!$AD$18:$DD$18,0)-1,277,1)) -> 0 | I20: =SUMIF(Census!$B$19:$B$218,$Q20,OFFSET(Census!$AD$19,0,MATCH(I$68,Census!$AD$18:$DD$18,0)-1,277,1))-H20 -> 0 | J20: =SUMIF(Census!$X$19:$X$218,$Q20&"/Employee/Y",OFFSET(Census!$AD$19,0,MATCH(J$68,Census!$AD$18:$DD$18,0)-1,277,1)) -> 0 | K20: =SUMIF(Census!$B$19:$B$218,$Q20,OFFSET(Census!$AD$19,0,MATCH(K$68,Census!$AD$18:$DD$18,0)-1,277,1))-J20 -> 0 | L20: =SUMIF(Census!$X$19:$X$218,$Q20&"/Employee/Y",OFFSET(Census!$AD$19,0,MATCH(L$68,Census!$AD$18:$DD$18,0)-1,277,1)) -> 0 | M20: =SUMIF(Census!$B$19:$B$218,$Q20,OFFSET(Census!$AD$19,0,MATCH(M$68,Census!$AD$18:$DD$18,0)-1,277,1))-L20 -> 0 | N20: =SUMIF(Census!$X$19:$X$218,$Q20&"/Employee/Y",OFFSET(Census!$AD$19,0,MATCH(N$68,Census!$AD$18:$DD$18,0)-1,277,1)) -> 0 | O20: =SUMIF(Census!$B$19:$B$218,$Q20,OFFSET(Census!$AD$19,0,MATCH(O$68,Census!$AD$18:$DD$18,0)-1,277,1))-N20 -> 0 | Q20: 8 | R20: HIDE
B21: =VLOOKUP(Q21,Census!$B$19:$C$218,2,FALSE) ->  | C21: =VLOOKUP($Q21,Census!$B$19:$G$218,6,FALSE) ->  | D21: =SUMIF(Census!$X$19:$X$218,$Q21&"/Employee/Y",OFFSET(Census!$AD$19,0,MATCH(D$68,Census!$AD$18:$DD$18,0)-1,277,1)) -> 0 | E21: =SUMIF(Census!$B$19:$B$218,$Q21,OFFSET(Census!$AD$19,0,MATCH(E$68,Census!$AD$18:$DD$18,0)-1,277,1))-D21 -> 0 | F21: =SUMIF(Census!$X$19:$X$218,$Q21&"/Employee/Y",OFFSET(Census!$AD$19,0,MATCH(F$68,Census!$AD$18:$DD$18,0)-1,277,1)) -> 0 | G21: =SUMIF(Census!$B$19:$B$218,$Q21,OFFSET(Census!$AD$19,0,MATCH(G$68,Census!$AD$18:$DD$18,0)-1,277,1))-F21 -> 0 | H21: =SUMIF(Census!$X$19:$X$218,$Q21&"/Employee/Y",OFFSET(Census!$AD$19,0,MATCH(H$68,Census!$AD$18:$DD$18,0)-1,277,1)) -> 0 | I21: =SUMIF(Census!$B$19:$B$218,$Q21,OFFSET(Census!$AD$19,0,MATCH(I$68,Census!$AD$18:$DD$18,0)-1,277,1))-H21 -> 0 | J21: =SUMIF(Census!$X$19:$X$218,$Q21&"/Employee/Y",OFFSET(Census!$AD$19,0,MATCH(J$68,Census!$AD$18:$DD$18,0)-1,277,1)) -> 0 | K21: =SUMIF(Census!$B$19:$B$218,$Q21,OFFSET(Census!$AD$19,0,MATCH(K$68,Census!$AD$18:$DD$18,0)-1,277,1))-J21 -> 0 | L21: =SUMIF(Census!$X$19:$X$218,$Q21&"/Employee/Y",OFFSET(Census!$AD$19,0,MATCH(L$68,Census!$AD$18:$DD$18,0)-1,277,1)) -> 0 | M21: =SUMIF(Census!$B$19:$B$218,$Q21,OFFSET(Census!$AD$19,0,MATCH(M$68,Census!$AD$18:$DD$18,0)-1,277,1))-L21 -> 0 | N21: =SUMIF(Census!$X$19:$X$218,$Q21&"/Employee/Y",OFFSET(Census!$AD$19,0,MATCH(N$68,Census!$AD$18:$DD$18,0)-1,277,1)) -> 0 | O21: =SUMIF(Census!$B$19:$B$218,$Q21,OFFSET(Census!$AD$19,0,MATCH(O$68,Census!$AD$18:$DD$18,0)-1,277,1))-N21 -> 0 | Q21: 9 | R21: HIDE
B22: =VLOOKUP(Q22,Census!$B$19:$C$218,2,FALSE) ->  | C22: =VLOOKUP($Q22,Census!$B$19:$G$218,6,FALSE) ->  | D22: =SUMIF(Census!$X$19:$X$218,$Q22&"/Employee/Y",OFFSET(Census!$AD$19,0,MATCH(D$68,Census!$AD$18:$DD$18,0)-1,277,1)) -> 0 | E22: =SUMIF(Census!$B$19:$B$218,$Q22,OFFSET(Census!$AD$19,0,MATCH(E$68,Census!$AD$18:$DD$18,0)-1,277,1))-D22 -> 0 | F22: =SUMIF(Census!$X$19:$X$218,$Q22&"/Employee/Y",OFFSET(Census!$AD$19,0,MATCH(F$68,Census!$AD$18:$DD$18,0)-1,277,1)) -> 0 | G22: =SUMIF(Census!$B$19:$B$218,$Q22,OFFSET(Census!$AD$19,0,MATCH(G$68,Census!$AD$18:$DD$18,0)-1,277,1))-F22 -> 0 | H22: =SUMIF(Census!$X$19:$X$218,$Q22&"/Employee/Y",OFFSET(Census!$AD$19,0,MATCH(H$68,Census!$AD$18:$DD$18,0)-1,277,1)) -> 0 | I22: =SUMIF(Census!$B$19:$B$218,$Q22,OFFSET(Census!$AD$19,0,MATCH(I$68,Census!$AD$18:$DD$18,0)-1,277,1))-H22 -> 0 | J22: =SUMIF(Census!$X$19:$X$218,$Q22&"/Employee/Y",OFFSET(Census!$AD$19,0,MATCH(J$68,Census!$AD$18:$DD$18,0)-1,277,1)) -> 0 | K22: =SUMIF(Census!$B$19:$B$218,$Q22,OFFSET(Census!$AD$19,0,MATCH(K$68,Census!$AD$18:$DD$18,0)-1,277,1))-J22 -> 0 | L22: =SUMIF(Census!$X$19:$X$218,$Q22&"/Employee/Y",OFFSET(Census!$AD$19,0,MATCH(L$68,Census!$AD$18:$DD$18,0)-1,277,1)) -> 0 | M22: =SUMIF(Census!$B$19:$B$218,$Q22,OFFSET(Census!$AD$19,0,MATCH(M$68,Census!$AD$18:$DD$18,0)-1,277,1))-L22 -> 0 | N22: =SUMIF(Census!$X$19:$X$218,$Q22&"/Employee/Y",OFFSET(Census!$AD$19,0,MATCH(N$68,Census!$AD$18:$DD$18,0)-1,277,1)) -> 0 | O22: =SUMIF(Census!$B$19:$B$218,$Q22,OFFSET(Census!$AD$19,0,MATCH(O$68,Census!$AD$18:$DD$18,0)-1,277,1))-N22 -> 0 | Q22: 10 | R22: HIDE
B23: =VLOOKUP(Q23,Census!$B$19:$C$218,2,FALSE) ->  | C23: =VLOOKUP($Q23,Census!$B$19:$G$218,6,FALSE) ->  | D23: =SUMIF(Census!$X$19:$X$218,$Q23&"/Employee/Y",OFFSET(Census!$AD$19,0,MATCH(D$68,Census!$AD$18:$DD$18,0)-1,277,1)) -> 0 | E23: =SUMIF(Census!$B$19:$B$218,$Q23,OFFSET(Census!$AD$19,0,MATCH(E$68,Census!$AD$18:$DD$18,0)-1,277,1))-D23 -> 0 | F23: =SUMIF(Census!$X$19:$X$218,$Q23&"/Employee/Y",OFFSET(Census!$AD$19,0,MATCH(F$68,Census!$AD$18:$DD$18,0)-1,277,1)) -> 0 | G23: =SUMIF(Census!$B$19:$B$218,$Q23,OFFSET(Census!$AD$19,0,MATCH(G$68,Census!$AD$18:$DD$18,0)-1,277,1))-F23 -> 0 | H23: =SUMIF(Census!$X$19:$X$218,$Q23&"/Employee/Y",OFFSET(Census!$AD$19,0,MATCH(H$68,Census!$AD$18:$DD$18,0)-1,277,1)) -> 0 | I23: =SUMIF(Census!$B$19:$B$218,$Q23,OFFSET(Census!$AD$19,0,MATCH(I$68,Census!$AD$18:$DD$18,0)-1,277,1))-H23 -> 0 | J23: =SUMIF(Census!$X$19:$X$218,$Q23&"/Employee/Y",OFFSET(Census!$AD$19,0,MATCH(J$68,Census!$AD$18:$DD$18,0)-1,277,1)) -> 0 | K23: =SUMIF(Census!$B$19:$B$218,$Q23,OFFSET(Census!$AD$19,0,MATCH(K$68,Census!$AD$18:$DD$18,0)-1,277,1))-J23 -> 0 | L23: =SUMIF(Census!$X$19:$X$218,$Q23&"/Employee/Y",OFFSET(Census!$AD$19,0,MATCH(L$68,Census!$AD$18:$DD$18,0)-1,277,1)) -> 0 | M23: =SUMIF(Census!$B$19:$B$218,$Q23,OFFSET(Census!$AD$19,0,MATCH(M$68,Census!$AD$18:$DD$18,0)-1,277,1))-L23 -> 0 | N23: =SUMIF(Census!$X$19:$X$218,$Q23&"/Employee/Y",OFFSET(Census!$AD$19,0,MATCH(N$68,Census!$AD$18:$DD$18,0)-1,277,1)) -> 0 | O23: =SUMIF(Census!$B$19:$B$218,$Q23,OFFSET(Census!$AD$19,0,MATCH(O$68,Census!$AD$18:$DD$18,0)-1,277,1))-N23 -> 0 | Q23: 11 | R23: HIDE
B24: =VLOOKUP(Q24,Census!$B$19:$C$218,2,FALSE) ->  | C24: =VLOOKUP($Q24,Census!$B$19:$G$218,6,FALSE) ->  | D24: =SUMIF(Census!$X$19:$X$218,$Q24&"/Employee/Y",OFFSET(Census!$AD$19,0,MATCH(D$68,Census!$AD$18:$DD$18,0)-1,277,1)) -> 0 | E24: =SUMIF(Census!$B$19:$B$218,$Q24,OFFSET(Census!$AD$19,0,MATCH(E$68,Census!$AD$18:$DD$18,0)-1,277,1))-D24 -> 0 | F24: =SUMIF(Census!$X$19:$X$218,$Q24&"/Employee/Y",OFFSET(Census!$AD$19,0,MATCH(F$68,Census!$AD$18:$DD$18,0)-1,277,1)) -> 0 | G24: =SUMIF(Census!$B$19:$B$218,$Q24,OFFSET(Census!$AD$19,0,MATCH(G$68,Census!$AD$18:$DD$18,0)-1,277,1))-F24 -> 0 | H24: =SUMIF(Census!$X$19:$X$218,$Q24&"/Employee/Y",OFFSET(Census!$AD$19,0,MATCH(H$68,Census!$AD$18:$DD$18,0)-1,277,1)) -> 0 | I24: =SUMIF(Census!$B$19:$B$218,$Q24,OFFSET(Census!$AD$19,0,MATCH(I$68,Census!$AD$18:$DD$18,0)-1,277,1))-H24 -> 0 | J24: =SUMIF(Census!$X$19:$X$218,$Q24&"/Employee/Y",OFFSET(Census!$AD$19,0,MATCH(J$68,Census!$AD$18:$DD$18,0)-1,277,1)) -> 0 | K24: =SUMIF(Census!$B$19:$B$218,$Q24,OFFSET(Census!$AD$19,0,MATCH(K$68,Census!$AD$18:$DD$18,0)-1,277,1))-J24 -> 0 | L24: =SUMIF(Census!$X$19:$X$218,$Q24&"/Employee/Y",OFFSET(Census!$AD$19,0,MATCH(L$68,Census!$AD$18:$DD$18,0)-1,277,1)) -> 0 | M24: =SUMIF(Census!$B$19:$B$218,$Q24,OFFSET(Census!$AD$19,0,MATCH(M$68,Census!$AD$18:$DD$18,0)-1,277,1))-L24 -> 0 | N24: =SUMIF(Census!$X$19:$X$218,$Q24&"/Employee/Y",OFFSET(Census!$AD$19,0,MATCH(N$68,Census!$AD$18:$DD$18,0)-1,277,1)) -> 0 | O24: =SUMIF(Census!$B$19:$B$218,$Q24,OFFSET(Census!$AD$19,0,MATCH(O$68,Census!$AD$18:$DD$18,0)-1,277,1))-N24 -> 0 | Q24: 12 | R24: HIDE
B25: =VLOOKUP(Q25,Census!$B$19:$C$218,2,FALSE) ->  | C25: =VLOOKUP($Q25,Census!$B$19:$G$218,6,FALSE) ->  | D25: =SUMIF(Census!$X$19:$X$218,$Q25&"/Employee/Y",OFFSET(Census!$AD$19,0,MATCH(D$68,Census!$AD$18:$DD$18,0)-1,277,1)) -> 0 | E25: =SUMIF(Census!$B$19:$B$218,$Q25,OFFSET(Census!$AD$19,0,MATCH(E$68,Census!$AD$18:$DD$18,0)-1,277,1))-D25 -> 0 | F25: =SUMIF(Census!$X$19:$X$218,$Q25&"/Employee/Y",OFFSET(Census!$AD$19,0,MATCH(F$68,Census!$AD$18:$DD$18,0)-1,277,1)) -> 0 | G25: =SUMIF(Census!$B$19:$B$218,$Q25,OFFSET(Census!$AD$19,0,MATCH(G$68,Census!$AD$18:$DD$18,0)-1,277,1))-F25 -> 0 | H25: =SUMIF(Census!$X$19:$X$218,$Q25&"/Employee/Y",OFFSET(Census!$AD$19,0,MATCH(H$68,Census!$AD$18:$DD$18,0)-1,277,1)) -> 0 | I25: =SUMIF(Census!$B$19:$B$218,$Q25,OFFSET(Census!$AD$19,0,MATCH(I$68,Census!$AD$18:$DD$18,0)-1,277,1))-H25 -> 0 | J25: =SUMIF(Census!$X$19:$X$218,$Q25&"/Employee/Y",OFFSET(Census!$AD$19,0,MATCH(J$68,Census!$AD$18:$DD$18,0)-1,277,1)) -> 0 | K25: =SUMIF(Census!$B$19:$B$218,$Q25,OFFSET(Census!$AD$19,0,MATCH(K$68,Census!$AD$18:$DD$18,0)-1,277,1))-J25 -> 0 | L25: =SUMIF(Census!$X$19:$X$218,$Q25&"/Employee/Y",OFFSET(Census!$AD$19,0,MATCH(L$68,Census!$AD$18:$DD$18,0)-1,277,1)) -> 0 | M25: =SUMIF(Census!$B$19:$B$218,$Q25,OFFSET(Census!$AD$19,0,MATCH(M$68,Census!$AD$18:$DD$18,0)-1,277,1))-L25 -> 0 | N25: =SUMIF(Census!$X$19:$X$218,$Q25&"/Employee/Y",OFFSET(Census!$AD$19,0,MATCH(N$68,Census!$AD$18:$DD$18,0)-1,277,1)) -> 0 | O25: =SUMIF(Census!$B$19:$B$218,$Q25,OFFSET(Census!$AD$19,0,MATCH(O$68,Census!$AD$18:$DD$18,0)-1,277,1))-N25 -> 0 | Q25: 13 | R25: HIDE
B26: =VLOOKUP(Q26,Census!$B$19:$C$218,2,FALSE) ->  | C26: =VLOOKUP($Q26,Census!$B$19:$G$218,6,FALSE) ->  | D26: =SUMIF(Census!$X$19:$X$218,$Q26&"/Employee/Y",OFFSET(Census!$AD$19,0,MATCH(D$68,Census!$AD$18:$DD$18,0)-1,277,1)) -> 0 | E26: =SUMIF(Census!$B$19:$B$218,$Q26,OFFSET(Census!$AD$19,0,MATCH(E$68,Census!$AD$18:$DD$18,0)-1,277,1))-D26 -> 0 | F26: =SUMIF(Census!$X$19:$X$218,$Q26&"/Employee/Y",OFFSET(Census!$AD$19,0,MATCH(F$68,Census!$AD$18:$DD$18,0)-1,277,1)) -> 0 | G26: =SUMIF(Census!$B$19:$B$218,$Q26,OFFSET(Census!$AD$19,0,MATCH(G$68,Census!$AD$18:$DD$18,0)-1,277,1))-F26 -> 0 | H26: =SUMIF(Census!$X$19:$X$218,$Q26&"/Employee/Y",OFFSET(Census!$AD$19,0,MATCH(H$68,Census!$AD$18:$DD$18,0)-1,277,1)) -> 0 | I26: =SUMIF(Census!$B$19:$B$218,$Q26,OFFSET(Census!$AD$19,0,MATCH(I$68,Census!$AD$18:$DD$18,0)-1,277,1))-H26 -> 0 | J26: =SUMIF(Census!$X$19:$X$218,$Q26&"/Employee/Y",OFFSET(Census!$AD$19,0,MATCH(J$68,Census!$AD$18:$DD$18,0)-1,277,1)) -> 0 | K26: =SUMIF(Census!$B$19:$B$218,$Q26,OFFSET(Census!$AD$19,0,MATCH(K$68,Census!$AD$18:$DD$18,0)-1,277,1))-J26 -> 0 | L26: =SUMIF(Census!$X$19:$X$218,$Q26&"/Employee/Y",OFFSET(Census!$AD$19,0,MATCH(L$68,Census!$AD$18:$DD$18,0)-1,277,1)) -> 0 | M26: =SUMIF(Census!$B$19:$B$218,$Q26,OFFSET(Census!$AD$19,0,MATCH(M$68,Census!$AD$18:$DD$18,0)-1,277,1))-L26 -> 0 | N26: =SUMIF(Census!$X$19:$X$218,$Q26&"/Employee/Y",OFFSET(Census!$AD$19,0,MATCH(N$68,Census!$AD$18:$DD$18,0)-1,277,1)) -> 0 | O26: =SUMIF(Census!$B$19:$B$218,$Q26,OFFSET(Census!$AD$19,0,MATCH(O$68,Census!$AD$18:$DD$18,0)-1,277,1))-N26 -> 0 | Q26: 14 | R26: HIDE
B27: =VLOOKUP(Q27,Census!$B$19:$C$218,2,FALSE) ->  | C27: =VLOOKUP($Q27,Census!$B$19:$G$218,6,FALSE) ->  | D27: =SUMIF(Census!$X$19:$X$218,$Q27&"/Employee/Y",OFFSET(Census!$AD$19,0,MATCH(D$68,Census!$AD$18:$DD$18,0)-1,277,1)) -> 0 | E27: =SUMIF(Census!$B$19:$B$218,$Q27,OFFSET(Census!$AD$19,0,MATCH(E$68,Census!$AD$18:$DD$18,0)-1,277,1))-D27 -> 0 | F27: =SUMIF(Census!$X$19:$X$218,$Q27&"/Employee/Y",OFFSET(Census!$AD$19,0,MATCH(F$68,Census!$AD$18:$DD$18,0)-1,277,1)) -> 0 | G27: =SUMIF(Census!$B$19:$B$218,$Q27,OFFSET(Census!$AD$19,0,MATCH(G$68,Census!$AD$18:$DD$18,0)-1,277,1))-F27 -> 0 | H27: =SUMIF(Census!$X$19:$X$218,$Q27&"/Employee/Y",OFFSET(Census!$AD$19,0,MATCH(H$68,Census!$AD$18:$DD$18,0)-1,277,1)) -> 0 | I27: =SUMIF(Census!$B$19:$B$218,$Q27,OFFSET(Census!$AD$19,0,MATCH(I$68,Census!$AD$18:$DD$18,0)-1,277,1))-H27 -> 0 | J27: =SUMIF(Census!$X$19:$X$218,$Q27&"/Employee/Y",OFFSET(Census!$AD$19,0,MATCH(J$68,Census!$AD$18:$DD$18,0)-1,277,1)) -> 0 | K27: =SUMIF(Census!$B$19:$B$218,$Q27,OFFSET(Census!$AD$19,0,MATCH(K$68,Census!$AD$18:$DD$18,0)-1,277,1))-J27 -> 0 | L27: =SUMIF(Census!$X$19:$X$218,$Q27&"/Employee/Y",OFFSET(Census!$AD$19,0,MATCH(L$68,Census!$AD$18:$DD$18,0)-1,277,1)) -> 0 | M27: =SUMIF(Census!$B$19:$B$218,$Q27,OFFSET(Census!$AD$19,0,MATCH(M$68,Census!$AD$18:$DD$18,0)-1,277,1))-L27 -> 0 | N27: =SUMIF(Census!$X$19:$X$218,$Q27&"/Employee/Y",OFFSET(Census!$AD$19,0,MATCH(N$68,Census!$AD$18:$DD$18,0)-1,277,1)) -> 0 | O27: =SUMIF(Census!$B$19:$B$218,$Q27,OFFSET(Census!$AD$19,0,MATCH(O$68,Census!$AD$18:$DD$18,0)-1,277,1))-N27 -> 0 | Q27: 15 | R27: HIDE
B28: =VLOOKUP(Q28,Census!$B$19:$C$218,2,FALSE) ->  | C28: =VLOOKUP($Q28,Census!$B$19:$G$218,6,FALSE) ->  | D28: =SUMIF(Census!$X$19:$X$218,$Q28&"/Employee/Y",OFFSET(Census!$AD$19,0,MATCH(D$68,Census!$AD$18:$DD$18,0)-1,277,1)) -> 0 | E28: =SUMIF(Census!$B$19:$B$218,$Q28,OFFSET(Census!$AD$19,0,MATCH(E$68,Census!$AD$18:$DD$18,0)-1,277,1))-D28 -> 0 | F28: =SUMIF(Census!$X$19:$X$218,$Q28&"/Employee/Y",OFFSET(Census!$AD$19,0,MATCH(F$68,Census!$AD$18:$DD$18,0)-1,277,1)) -> 0 | G28: =SUMIF(Census!$B$19:$B$218,$Q28,OFFSET(Census!$AD$19,0,MATCH(G$68,Census!$AD$18:$DD$18,0)-1,277,1))-F28 -> 0 | H28: =SUMIF(Census!$X$19:$X$218,$Q28&"/Employee/Y",OFFSET(Census!$AD$19,0,MATCH(H$68,Census!$AD$18:$DD$18,0)-1,277,1)) -> 0 | I28: =SUMIF(Census!$B$19:$B$218,$Q28,OFFSET(Census!$AD$19,0,MATCH(I$68,Census!$AD$18:$DD$18,0)-1,277,1))-H28 -> 0 | J28: =SUMIF(Census!$X$19:$X$218,$Q28&"/Employee/Y",OFFSET(Census!$AD$19,0,MATCH(J$68,Census!$AD$18:$DD$18,0)-1,277,1)) -> 0 | K28: =SUMIF(Census!$B$19:$B$218,$Q28,OFFSET(Census!$AD$19,0,MATCH(K$68,Census!$AD$18:$DD$18,0)-1,277,1))-J28 -> 0 | L28: =SUMIF(Census!$X$19:$X$218,$Q28&"/Employee/Y",OFFSET(Census!$AD$19,0,MATCH(L$68,Census!$AD$18:$DD$18,0)-1,277,1)) -> 0 | M28: =SUMIF(Census!$B$19:$B$218,$Q28,OFFSET(Census!$AD$19,0,MATCH(M$68,Census!$AD$18:$DD$18,0)-1,277,1))-L28 -> 0 | N28: =SUMIF(Census!$X$19:$X$218,$Q28&"/Employee/Y",OFFSET(Census!$AD$19,0,MATCH(N$68,Census!$AD$18:$DD$18,0)-1,277,1)) -> 0 | O28: =SUMIF(Census!$B$19:$B$218,$Q28,OFFSET(Census!$AD$19,0,MATCH(O$68,Census!$AD$18:$DD$18,0)-1,277,1))-N28 -> 0 | Q28: 16 | R28: HIDE
B29: =VLOOKUP(Q29,Census!$B$19:$C$218,2,FALSE) ->  | C29: =VLOOKUP($Q29,Census!$B$19:$G$218,6,FALSE) ->  | D29: =SUMIF(Census!$X$19:$X$218,$Q29&"/Employee/Y",OFFSET(Census!$AD$19,0,MATCH(D$68,Census!$AD$18:$DD$18,0)-1,277,1)) -> 0 | E29: =SUMIF(Census!$B$19:$B$218,$Q29,OFFSET(Census!$AD$19,0,MATCH(E$68,Census!$AD$18:$DD$18,0)-1,277,1))-D29 -> 0 | F29: =SUMIF(Census!$X$19:$X$218,$Q29&"/Employee/Y",OFFSET(Census!$AD$19,0,MATCH(F$68,Census!$AD$18:$DD$18,0)-1,277,1)) -> 0 | G29: =SUMIF(Census!$B$19:$B$218,$Q29,OFFSET(Census!$AD$19,0,MATCH(G$68,Census!$AD$18:$DD$18,0)-1,277,1))-F29 -> 0 | H29: =SUMIF(Census!$X$19:$X$218,$Q29&"/Employee/Y",OFFSET(Census!$AD$19,0,MATCH(H$68,Census!$AD$18:$DD$18,0)-1,277,1)) -> 0 | I29: =SUMIF(Census!$B$19:$B$218,$Q29,OFFSET(Census!$AD$19,0,MATCH(I$68,Census!$AD$18:$DD$18,0)-1,277,1))-H29 -> 0 | J29: =SUMIF(Census!$X$19:$X$218,$Q29&"/Employee/Y",OFFSET(Census!$AD$19,0,MATCH(J$68,Census!$AD$18:$DD$18,0)-1,277,1)) -> 0 | K29: =SUMIF(Census!$B$19:$B$218,$Q29,OFFSET(Census!$AD$19,0,MATCH(K$68,Census!$AD$18:$DD$18,0)-1,277,1))-J29 -> 0 | L29: =SUMIF(Census!$X$19:$X$218,$Q29&"/Employee/Y",OFFSET(Census!$AD$19,0,MATCH(L$68,Census!$AD$18:$DD$18,0)-1,277,1)) -> 0 | M29: =SUMIF(Census!$B$19:$B$218,$Q29,OFFSET(Census!$AD$19,0,MATCH(M$68,Census!$AD$18:$DD$18,0)-1,277,1))-L29 -> 0 | N29: =SUMIF(Census!$X$19:$X$218,$Q29&"/Employee/Y",OFFSET(Census!$AD$19,0,MATCH(N$68,Census!$AD$18:$DD$18,0)-1,277,1)) -> 0 | O29: =SUMIF(Census!$B$19:$B$218,$Q29,OFFSET(Census!$AD$19,0,MATCH(O$68,Census!$AD$18:$DD$18,0)-1,277,1))-N29 -> 0 | Q29: 17 | R29: HIDE
B30: =VLOOKUP(Q30,Census!$B$19:$C$218,2,FALSE) ->  | C30: =VLOOKUP($Q30,Census!$B$19:$G$218,6,FALSE) ->  | D30: =SUMIF(Census!$X$19:$X$218,$Q30&"/Employee/Y",OFFSET(Census!$AD$19,0,MATCH(D$68,Census!$AD$18:$DD$18,0)-1,277,1)) -> 0 | E30: =SUMIF(Census!$B$19:$B$218,$Q30,OFFSET(Census!$AD$19,0,MATCH(E$68,Census!$AD$18:$DD$18,0)-1,277,1))-D30 -> 0 | F30: =SUMIF(Census!$X$19:$X$218,$Q30&"/Employee/Y",OFFSET(Census!$AD$19,0,MATCH(F$68,Census!$AD$18:$DD$18,0)-1,277,1)) -> 0 | G30: =SUMIF(Census!$B$19:$B$218,$Q30,OFFSET(Census!$AD$19,0,MATCH(G$68,Census!$AD$18:$DD$18,0)-1,277,1))-F30 -> 0 | H30: =SUMIF(Census!$X$19:$X$218,$Q30&"/Employee/Y",OFFSET(Census!$AD$19,0,MATCH(H$68,Census!$AD$18:$DD$18,0)-1,277,1)) -> 0 | I30: =SUMIF(Census!$B$19:$B$218,$Q30,OFFSET(Census!$AD$19,0,MATCH(I$68,Census!$AD$18:$DD$18,0)-1,277,1))-H30 -> 0 | J30: =SUMIF(Census!$X$19:$X$218,$Q30&"/Employee/Y",OFFSET(Census!$AD$19,0,MATCH(J$68,Census!$AD$18:$DD$18,0)-1,277,1)) -> 0 | K30: =SUMIF(Census!$B$19:$B$218,$Q30,OFFSET(Census!$AD$19,0,MATCH(K$68,Census!$AD$18:$DD$18,0)-1,277,1))-J30 -> 0 | L30: =SUMIF(Census!$X$19:$X$218,$Q30&"/Employee/Y",OFFSET(Census!$AD$19,0,MATCH(L$68,Census!$AD$18:$DD$18,0)-1,277,1)) -> 0 | M30: =SUMIF(Census!$B$19:$B$218,$Q30,OFFSET(Census!$AD$19,0,MATCH(M$68,Census!$AD$18:$DD$18,0)-1,277,1))-L30 -> 0 | N30: =SUMIF(Census!$X$19:$X$218,$Q30&"/Employee/Y",OFFSET(Census!$AD$19,0,MATCH(N$68,Census!$AD$18:$DD$18,0)-1,277,1)) -> 0 | O30: =SUMIF(Census!$B$19:$B$218,$Q30,OFFSET(Census!$AD$19,0,MATCH(O$68,Census!$AD$18:$DD$18,0)-1,277,1))-N30 -> 0 | Q30: 18 | R30: HIDE
B31: =VLOOKUP(Q31,Census!$B$19:$C$218,2,FALSE) ->  | C31: =VLOOKUP($Q31,Census!$B$19:$G$218,6,FALSE) ->  | D31: =SUMIF(Census!$X$19:$X$218,$Q31&"/Employee/Y",OFFSET(Census!$AD$19,0,MATCH(D$68,Census!$AD$18:$DD$18,0)-1,277,1)) -> 0 | E31: =SUMIF(Census!$B$19:$B$218,$Q31,OFFSET(Census!$AD$19,0,MATCH(E$68,Census!$AD$18:$DD$18,0)-1,277,1))-D31 -> 0 | F31: =SUMIF(Census!$X$19:$X$218,$Q31&"/Employee/Y",OFFSET(Census!$AD$19,0,MATCH(F$68,Census!$AD$18:$DD$18,0)-1,277,1)) -> 0 | G31: =SUMIF(Census!$B$19:$B$218,$Q31,OFFSET(Census!$AD$19,0,MATCH(G$68,Census!$AD$18:$DD$18,0)-1,277,1))-F31 -> 0 | H31: =SUMIF(Census!$X$19:$X$218,$Q31&"/Employee/Y",OFFSET(Census!$AD$19,0,MATCH(H$68,Census!$AD$18:$DD$18,0)-1,277,1)) -> 0 | I31: =SUMIF(Census!$B$19:$B$218,$Q31,OFFSET(Census!$AD$19,0,MATCH(I$68,Census!$AD$18:$DD$18,0)-1,277,1))-H31 -> 0 | J31: =SUMIF(Census!$X$19:$X$218,$Q31&"/Employee/Y",OFFSET(Census!$AD$19,0,MATCH(J$68,Census!$AD$18:$DD$18,0)-1,277,1)) -> 0 | K31: =SUMIF(Census!$B$19:$B$218,$Q31,OFFSET(Census!$AD$19,0,MATCH(K$68,Census!$AD$18:$DD$18,0)-1,277,1))-J31 -> 0 | L31: =SUMIF(Census!$X$19:$X$218,$Q31&"/Employee/Y",OFFSET(Census!$AD$19,0,MATCH(L$68,Census!$AD$18:$DD$18,0)-1,277,1)) -> 0 | M31: =SUMIF(Census!$B$19:$B$218,$Q31,OFFSET(Census!$AD$19,0,MATCH(M$68,Census!$AD$18:$DD$18,0)-1,277,1))-L31 -> 0 | N31: =SUMIF(Census!$X$19:$X$218,$Q31&"/Employee/Y",OFFSET(Census!$AD$19,0,MATCH(N$68,Census!$AD$18:$DD$18,0)-1,277,1)) -> 0 | O31: =SUMIF(Census!$B$19:$B$218,$Q31,OFFSET(Census!$AD$19,0,MATCH(O$68,Census!$AD$18:$DD$18,0)-1,277,1))-N31 -> 0 | Q31: 19 | R31: HIDE
B32: =VLOOKUP(Q32,Census!$B$19:$C$218,2,FALSE) ->  | C32: =VLOOKUP($Q32,Census!$B$19:$G$218,6,FALSE) ->  | D32: =SUMIF(Census!$X$19:$X$218,$Q32&"/Employee/Y",OFFSET(Census!$AD$19,0,MATCH(D$68,Census!$AD$18:$DD$18,0)-1,277,1)) -> 0 | E32: =SUMIF(Census!$B$19:$B$218,$Q32,OFFSET(Census!$AD$19,0,MATCH(E$68,Census!$AD$18:$DD$18,0)-1,277,1))-D32 -> 0 | F32: =SUMIF(Census!$X$19:$X$218,$Q32&"/Employee/Y",OFFSET(Census!$AD$19,0,MATCH(F$68,Census!$AD$18:$DD$18,0)-1,277,1)) -> 0 | G32: =SUMIF(Census!$B$19:$B$218,$Q32,OFFSET(Census!$AD$19,0,MATCH(G$68,Census!$AD$18:$DD$18,0)-1,277,1))-F32 -> 0 | H32: =SUMIF(Census!$X$19:$X$218,$Q32&"/Employee/Y",OFFSET(Census!$AD$19,0,MATCH(H$68,Census!$AD$18:$DD$18,0)-1,277,1)) -> 0 | I32: =SUMIF(Census!$B$19:$B$218,$Q32,OFFSET(Census!$AD$19,0,MATCH(I$68,Census!$AD$18:$DD$18,0)-1,277,1))-H32 -> 0 | J32: =SUMIF(Census!$X$19:$X$218,$Q32&"/Employee/Y",OFFSET(Census!$AD$19,0,MATCH(J$68,Census!$AD$18:$DD$18,0)-1,277,1)) -> 0 | K32: =SUMIF(Census!$B$19:$B$218,$Q32,OFFSET(Census!$AD$19,0,MATCH(K$68,Census!$AD$18:$DD$18,0)-1,277,1))-J32 -> 0 | L32: =SUMIF(Census!$X$19:$X$218,$Q32&"/Employee/Y",OFFSET(Census!$AD$19,0,MATCH(L$68,Census!$AD$18:$DD$18,0)-1,277,1)) -> 0 | M32: =SUMIF(Census!$B$19:$B$218,$Q32,OFFSET(Census!$AD$19,0,MATCH(M$68,Census!$AD$18:$DD$18,0)-1,277,1))-L32 -> 0 | N32: =SUMIF(Census!$X$19:$X$218,$Q32&"/Employee/Y",OFFSET(Census!$AD$19,0,MATCH(N$68,Census!$AD$18:$DD$18,0)-1,277,1)) -> 0 | O32: =SUMIF(Census!$B$19:$B$218,$Q32,OFFSET(Census!$AD$19,0,MATCH(O$68,Census!$AD$18:$DD$18,0)-1,277,1))-N32 -> 0 | Q32: 20 | R32: HIDE
B33: =VLOOKUP(Q33,Census!$B$19:$C$218,2,FALSE) ->  | C33: =VLOOKUP($Q33,Census!$B$19:$G$218,6,FALSE) ->  | D33: =SUMIF(Census!$X$19:$X$218,$Q33&"/Employee/Y",OFFSET(Census!$AD$19,0,MATCH(D$68,Census!$AD$18:$DD$18,0)-1,277,1)) -> 0 | E33: =SUMIF(Census!$B$19:$B$218,$Q33,OFFSET(Census!$AD$19,0,MATCH(E$68,Census!$AD$18:$DD$18,0)-1,277,1))-D33 -> 0 | F33: =SUMIF(Census!$X$19:$X$218,$Q33&"/Employee/Y",OFFSET(Census!$AD$19,0,MATCH(F$68,Census!$AD$18:$DD$18,0)-1,277,1)) -> 0 | G33: =SUMIF(Census!$B$19:$B$218,$Q33,OFFSET(Census!$AD$19,0,MATCH(G$68,Census!$AD$18:$DD$18,0)-1,277,1))-F33 -> 0 | H33: =SUMIF(Census!$X$19:$X$218,$Q33&"/Employee/Y",OFFSET(Census!$AD$19,0,MATCH(H$68,Census!$AD$18:$DD$18,0)-1,277,1)) -> 0 | I33: =SUMIF(Census!$B$19:$B$218,$Q33,OFFSET(Census!$AD$19,0,MATCH(I$68,Census!$AD$18:$DD$18,0)-1,277,1))-H33 -> 0 | J33: =SUMIF(Census!$X$19:$X$218,$Q33&"/Employee/Y",OFFSET(Census!$AD$19,0,MATCH(J$68,Census!$AD$18:$DD$18,0)-1,277,1)) -> 0 | K33: =SUMIF(Census!$B$19:$B$218,$Q33,OFFSET(Census!$AD$19,0,MATCH(K$68,Census!$AD$18:$DD$18,0)-1,277,1))-J33 -> 0 | L33: =SUMIF(Census!$X$19:$X$218,$Q33&"/Employee/Y",OFFSET(Census!$AD$19,0,MATCH(L$68,Census!$AD$18:$DD$18,0)-1,277,1)) -> 0 | M33: =SUMIF(Census!$B$19:$B$218,$Q33,OFFSET(Census!$AD$19,0,MATCH(M$68,Census!$AD$18:$DD$18,0)-1,277,1))-L33 -> 0 | N33: =SUMIF(Census!$X$19:$X$218,$Q33&"/Employee/Y",OFFSET(Census!$AD$19,0,MATCH(N$68,Census!$AD$18:$DD$18,0)-1,277,1)) -> 0 | O33: =SUMIF(Census!$B$19:$B$218,$Q33,OFFSET(Census!$AD$19,0,MATCH(O$68,Census!$AD$18:$DD$18,0)-1,277,1))-N33 -> 0 | Q33: 21 | R33: HIDE
B34: =VLOOKUP(Q34,Census!$B$19:$C$218,2,FALSE) ->  | C34: =VLOOKUP($Q34,Census!$B$19:$G$218,6,FALSE) ->  | D34: =SUMIF(Census!$X$19:$X$218,$Q34&"/Employee/Y",OFFSET(Census!$AD$19,0,MATCH(D$68,Census!$AD$18:$DD$18,0)-1,277,1)) -> 0 | E34: =SUMIF(Census!$B$19:$B$218,$Q34,OFFSET(Census!$AD$19,0,MATCH(E$68,Census!$AD$18:$DD$18,0)-1,277,1))-D34 -> 0 | F34: =SUMIF(Census!$X$19:$X$218,$Q34&"/Employee/Y",OFFSET(Census!$AD$19,0,MATCH(F$68,Census!$AD$18:$DD$18,0)-1,277,1)) -> 0 | G34: =SUMIF(Census!$B$19:$B$218,$Q34,OFFSET(Census!$AD$19,0,MATCH(G$68,Census!$AD$18:$DD$18,0)-1,277,1))-F34 -> 0 | H34: =SUMIF(Census!$X$19:$X$218,$Q34&"/Employee/Y",OFFSET(Census!$AD$19,0,MATCH(H$68,Census!$AD$18:$DD$18,0)-1,277,1)) -> 0 | I34: =SUMIF(Census!$B$19:$B$218,$Q34,OFFSET(Census!$AD$19,0,MATCH(I$68,Census!$AD$18:$DD$18,0)-1,277,1))-H34 -> 0 | J34: =SUMIF(Census!$X$19:$X$218,$Q34&"/Employee/Y",OFFSET(Census!$AD$19,0,MATCH(J$68,Census!$AD$18:$DD$18,0)-1,277,1)) -> 0 | K34: =SUMIF(Census!$B$19:$B$218,$Q34,OFFSET(Census!$AD$19,0,MATCH(K$68,Census!$AD$18:$DD$18,0)-1,277,1))-J34 -> 0 | L34: =SUMIF(Census!$X$19:$X$218,$Q34&"/Employee/Y",OFFSET(Census!$AD$19,0,MATCH(L$68,Census!$AD$18:$DD$18,0)-1,277,1)) -> 0 | M34: =SUMIF(Census!$B$19:$B$218,$Q34,OFFSET(Census!$AD$19,0,MATCH(M$68,Census!$AD$18:$DD$18,0)-1,277,1))-L34 -> 0 | N34: =SUMIF(Census!$X$19:$X$218,$Q34&"/Employee/Y",OFFSET(Census!$AD$19,0,MATCH(N$68,Census!$AD$18:$DD$18,0)-1,277,1)) -> 0 | O34: =SUMIF(Census!$B$19:$B$218,$Q34,OFFSET(Census!$AD$19,0,MATCH(O$68,Census!$AD$18:$DD$18,0)-1,277,1))-N34 -> 0 | Q34: 22 | R34: HIDE
B35: =VLOOKUP(Q35,Census!$B$19:$C$218,2,FALSE) ->  | C35: =VLOOKUP($Q35,Census!$B$19:$G$218,6,FALSE) ->  | D35: =SUMIF(Census!$X$19:$X$218,$Q35&"/Employee/Y",OFFSET(Census!$AD$19,0,MATCH(D$68,Census!$AD$18:$DD$18,0)-1,277,1)) -> 0 | E35: =SUMIF(Census!$B$19:$B$218,$Q35,OFFSET(Census!$AD$19,0,MATCH(E$68,Census!$AD$18:$DD$18,0)-1,277,1))-D35 -> 0 | F35: =SUMIF(Census!$X$19:$X$218,$Q35&"/Employee/Y",OFFSET(Census!$AD$19,0,MATCH(F$68,Census!$AD$18:$DD$18,0)-1,277,1)) -> 0 | G35: =SUMIF(Census!$B$19:$B$218,$Q35,OFFSET(Census!$AD$19,0,MATCH(G$68,Census!$AD$18:$DD$18,0)-1,277,1))-F35 -> 0 | H35: =SUMIF(Census!$X$19:$X$218,$Q35&"/Employee/Y",OFFSET(Census!$AD$19,0,MATCH(H$68,Census!$AD$18:$DD$18,0)-1,277,1)) -> 0 | I35: =SUMIF(Census!$B$19:$B$218,$Q35,OFFSET(Census!$AD$19,0,MATCH(I$68,Census!$AD$18:$DD$18,0)-1,277,1))-H35 -> 0 | J35: =SUMIF(Census!$X$19:$X$218,$Q35&"/Employee/Y",OFFSET(Census!$AD$19,0,MATCH(J$68,Census!$AD$18:$DD$18,0)-1,277,1)) -> 0 | K35: =SUMIF(Census!$B$19:$B$218,$Q35,OFFSET(Census!$AD$19,0,MATCH(K$68,Census!$AD$18:$DD$18,0)-1,277,1))-J35 -> 0 | L35: =SUMIF(Census!$X$19:$X$218,$Q35&"/Employee/Y",OFFSET(Census!$AD$19,0,MATCH(L$68,Census!$AD$18:$DD$18,0)-1,277,1)) -> 0 | M35: =SUMIF(Census!$B$19:$B$218,$Q35,OFFSET(Census!$AD$19,0,MATCH(M$68,Census!$AD$18:$DD$18,0)-1,277,1))-L35 -> 0 | N35: =SUMIF(Census!$X$19:$X$218,$Q35&"/Employee/Y",OFFSET(Census!$AD$19,0,MATCH(N$68,Census!$AD$18:$DD$18,0)-1,277,1)) -> 0 | O35: =SUMIF(Census!$B$19:$B$218,$Q35,OFFSET(Census!$AD$19,0,MATCH(O$68,Census!$AD$18:$DD$18,0)-1,277,1))-N35 -> 0 | Q35: 23 | R35: HIDE
B36: =VLOOKUP(Q36,Census!$B$19:$C$218,2,FALSE) ->  | C36: =VLOOKUP($Q36,Census!$B$19:$G$218,6,FALSE) ->  | D36: =SUMIF(Census!$X$19:$X$218,$Q36&"/Employee/Y",OFFSET(Census!$AD$19,0,MATCH(D$68,Census!$AD$18:$DD$18,0)-1,277,1)) -> 0 | E36: =SUMIF(Census!$B$19:$B$218,$Q36,OFFSET(Census!$AD$19,0,MATCH(E$68,Census!$AD$18:$DD$18,0)-1,277,1))-D36 -> 0 | F36: =SUMIF(Census!$X$19:$X$218,$Q36&"/Employee/Y",OFFSET(Census!$AD$19,0,MATCH(F$68,Census!$AD$18:$DD$18,0)-1,277,1)) -> 0 | G36: =SUMIF(Census!$B$19:$B$218,$Q36,OFFSET(Census!$AD$19,0,MATCH(G$68,Census!$AD$18:$DD$18,0)-1,277,1))-F36 -> 0 | H36: =SUMIF(Census!$X$19:$X$218,$Q36&"/Employee/Y",OFFSET(Census!$AD$19,0,MATCH(H$68,Census!$AD$18:$DD$18,0)-1,277,1)) -> 0 | I36: =SUMIF(Census!$B$19:$B$218,$Q36,OFFSET(Census!$AD$19,0,MATCH(I$68,Census!$AD$18:$DD$18,0)-1,277,1))-H36 -> 0 | J36: =SUMIF(Census!$X$19:$X$218,$Q36&"/Employee/Y",OFFSET(Census!$AD$19,0,MATCH(J$68,Census!$AD$18:$DD$18,0)-1,277,1)) -> 0 | K36: =SUMIF(Census!$B$19:$B$218,$Q36,OFFSET(Census!$AD$19,0,MATCH(K$68,Census!$AD$18:$DD$18,0)-1,277,1))-J36 -> 0 | L36: =SUMIF(Census!$X$19:$X$218,$Q36&"/Employee/Y",OFFSET(Census!$AD$19,0,MATCH(L$68,Census!$AD$18:$DD$18,0)-1,277,1)) -> 0 | M36: =SUMIF(Census!$B$19:$B$218,$Q36,OFFSET(Census!$AD$19,0,MATCH(M$68,Census!$AD$18:$DD$18,0)-1,277,1))-L36 -> 0 | N36: =SUMIF(Census!$X$19:$X$218,$Q36&"/Employee/Y",OFFSET(Census!$AD$19,0,MATCH(N$68,Census!$AD$18:$DD$18,0)-1,277,1)) -> 0 | O36: =SUMIF(Census!$B$19:$B$218,$Q36,OFFSET(Census!$AD$19,0,MATCH(O$68,Census!$AD$18:$DD$18,0)-1,277,1))-N36 -> 0 | Q36: 24 | R36: HIDE
B37: =VLOOKUP(Q37,Census!$B$19:$C$218,2,FALSE) ->  | C37: =VLOOKUP($Q37,Census!$B$19:$G$218,6,FALSE) ->  | D37: =SUMIF(Census!$X$19:$X$218,$Q37&"/Employee/Y",OFFSET(Census!$AD$19,0,MATCH(D$68,Census!$AD$18:$DD$18,0)-1,277,1)) -> 0 | E37: =SUMIF(Census!$B$19:$B$218,$Q37,OFFSET(Census!$AD$19,0,MATCH(E$68,Census!$AD$18:$DD$18,0)-1,277,1))-D37 -> 0 | F37: =SUMIF(Census!$X$19:$X$218,$Q37&"/Employee/Y",OFFSET(Census!$AD$19,0,MATCH(F$68,Census!$AD$18:$DD$18,0)-1,277,1)) -> 0 | G37: =SUMIF(Census!$B$19:$B$218,$Q37,OFFSET(Census!$AD$19,0,MATCH(G$68,Census!$AD$18:$DD$18,0)-1,277,1))-F37 -> 0 | H37: =SUMIF(Census!$X$19:$X$218,$Q37&"/Employee/Y",OFFSET(Census!$AD$19,0,MATCH(H$68,Census!$AD$18:$DD$18,0)-1,277,1)) -> 0 | I37: =SUMIF(Census!$B$19:$B$218,$Q37,OFFSET(Census!$AD$19,0,MATCH(I$68,Census!$AD$18:$DD$18,0)-1,277,1))-H37 -> 0 | J37: =SUMIF(Census!$X$19:$X$218,$Q37&"/Employee/Y",OFFSET(Census!$AD$19,0,MATCH(J$68,Census!$AD$18:$DD$18,0)-1,277,1)) -> 0 | K37: =SUMIF(Census!$B$19:$B$218,$Q37,OFFSET(Census!$AD$19,0,MATCH(K$68,Census!$AD$18:$DD$18,0)-1,277,1))-J37 -> 0 | L37: =SUMIF(Census!$X$19:$X$218,$Q37&"/Employee/Y",OFFSET(Census!$AD$19,0,MATCH(L$68,Census!$AD$18:$DD$18,0)-1,277,1)) -> 0 | M37: =SUMIF(Census!$B$19:$B$218,$Q37,OFFSET(Census!$AD$19,0,MATCH(M$68,Census!$AD$18:$DD$18,0)-1,277,1))-L37 -> 0 | N37: =SUMIF(Census!$X$19:$X$218,$Q37&"/Employee/Y",OFFSET(Census!$AD$19,0,MATCH(N$68,Census!$AD$18:$DD$18,0)-1,277,1)) -> 0 | O37: =SUMIF(Census!$B$19:$B$218,$Q37,OFFSET(Census!$AD$19,0,MATCH(O$68,Census!$AD$18:$DD$18,0)-1,277,1))-N37 -> 0 | Q37: 25 | R37: HIDE
B38: =VLOOKUP(Q38,Census!$B$19:$C$218,2,FALSE) ->  | C38: =VLOOKUP($Q38,Census!$B$19:$G$218,6,FALSE) ->  | D38: =SUMIF(Census!$X$19:$X$218,$Q38&"/Employee/Y",OFFSET(Census!$AD$19,0,MATCH(D$68,Census!$AD$18:$DD$18,0)-1,277,1)) -> 0 | E38: =SUMIF(Census!$B$19:$B$218,$Q38,OFFSET(Census!$AD$19,0,MATCH(E$68,Census!$AD$18:$DD$18,0)-1,277,1))-D38 -> 0 | F38: =SUMIF(Census!$X$19:$X$218,$Q38&"/Employee/Y",OFFSET(Census!$AD$19,0,MATCH(F$68,Census!$AD$18:$DD$18,0)-1,277,1)) -> 0 | G38: =SUMIF(Census!$B$19:$B$218,$Q38,OFFSET(Census!$AD$19,0,MATCH(G$68,Census!$AD$18:$DD$18,0)-1,277,1))-F38 -> 0 | H38: =SUMIF(Census!$X$19:$X$218,$Q38&"/Employee/Y",OFFSET(Census!$AD$19,0,MATCH(H$68,Census!$AD$18:$DD$18,0)-1,277,1)) -> 0 | I38: =SUMIF(Census!$B$19:$B$218,$Q38,OFFSET(Census!$AD$19,0,MATCH(I$68,Census!$AD$18:$DD$18,0)-1,277,1))-H38 -> 0 | J38: =SUMIF(Census!$X$19:$X$218,$Q38&"/Employee/Y",OFFSET(Census!$AD$19,0,MATCH(J$68,Census!$AD$18:$DD$18,0)-1,277,1)) -> 0 | K38: =SUMIF(Census!$B$19:$B$218,$Q38,OFFSET(Census!$AD$19,0,MATCH(K$68,Census!$AD$18:$DD$18,0)-1,277,1))-J38 -> 0 | L38: =SUMIF(Census!$X$19:$X$218,$Q38&"/Employee/Y",OFFSET(Census!$AD$19,0,MATCH(L$68,Census!$AD$18:$DD$18,0)-1,277,1)) -> 0 | M38: =SUMIF(Census!$B$19:$B$218,$Q38,OFFSET(Census!$AD$19,0,MATCH(M$68,Census!$AD$18:$DD$18,0)-1,277,1))-L38 -> 0 | N38: =SUMIF(Census!$X$19:$X$218,$Q38&"/Employee/Y",OFFSET(Census!$AD$19,0,MATCH(N$68,Census!$AD$18:$DD$18,0)-1,277,1)) -> 0 | O38: =SUMIF(Census!$B$19:$B$218,$Q38,OFFSET(Census!$AD$19,0,MATCH(O$68,Census!$AD$18:$DD$18,0)-1,277,1))-N38 -> 0 | Q38: 26 | R38: HIDE
B39: =VLOOKUP(Q39,Census!$B$19:$C$218,2,FALSE) ->  | C39: =VLOOKUP($Q39,Census!$B$19:$G$218,6,FALSE) ->  | D39: =SUMIF(Census!$X$19:$X$218,$Q39&"/Employee/Y",OFFSET(Census!$AD$19,0,MATCH(D$68,Census!$AD$18:$DD$18,0)-1,277,1)) -> 0 | E39: =SUMIF(Census!$B$19:$B$218,$Q39,OFFSET(Census!$AD$19,0,MATCH(E$68,Census!$AD$18:$DD$18,0)-1,277,1))-D39 -> 0 | F39: =SUMIF(Census!$X$19:$X$218,$Q39&"/Employee/Y",OFFSET(Census!$AD$19,0,MATCH(F$68,Census!$AD$18:$DD$18,0)-1,277,1)) -> 0 | G39: =SUMIF(Census!$B$19:$B$218,$Q39,OFFSET(Census!$AD$19,0,MATCH(G$68,Census!$AD$18:$DD$18,0)-1,277,1))-F39 -> 0 | H39: =SUMIF(Census!$X$19:$X$218,$Q39&"/Employee/Y",OFFSET(Census!$AD$19,0,MATCH(H$68,Census!$AD$18:$DD$18,0)-1,277,1)) -> 0 | I39: =SUMIF(Census!$B$19:$B$218,$Q39,OFFSET(Census!$AD$19,0,MATCH(I$68,Census!$AD$18:$DD$18,0)-1,277,1))-H39 -> 0 | J39: =SUMIF(Census!$X$19:$X$218,$Q39&"/Employee/Y",OFFSET(Census!$AD$19,0,MATCH(J$68,Census!$AD$18:$DD$18,0)-1,277,1)) -> 0 | K39: =SUMIF(Census!$B$19:$B$218,$Q39,OFFSET(Census!$AD$19,0,MATCH(K$68,Census!$AD$18:$DD$18,0)-1,277,1))-J39 -> 0 | L39: =SUMIF(Census!$X$19:$X$218,$Q39&"/Employee/Y",OFFSET(Census!$AD$19,0,MATCH(L$68,Census!$AD$18:$DD$18,0)-1,277,1)) -> 0 | M39: =SUMIF(Census!$B$19:$B$218,$Q39,OFFSET(Census!$AD$19,0,MATCH(M$68,Census!$AD$18:$DD$18,0)-1,277,1))-L39 -> 0 | N39: =SUMIF(Census!$X$19:$X$218,$Q39&"/Employee/Y",OFFSET(Census!$AD$19,0,MATCH(N$68,Census!$AD$18:$DD$18,0)-1,277,1)) -> 0 | O39: =SUMIF(Census!$B$19:$B$218,$Q39,OFFSET(Census!$AD$19,0,MATCH(O$68,Census!$AD$18:$DD$18,0)-1,277,1))-N39 -> 0 | Q39: 27 | R39: HIDE
B40: =VLOOKUP(Q40,Census!$B$19:$C$218,2,FALSE) ->  | C40: =VLOOKUP($Q40,Census!$B$19:$G$218,6,FALSE) ->  | D40: =SUMIF(Census!$X$19:$X$218,$Q40&"/Employee/Y",OFFSET(Census!$AD$19,0,MATCH(D$68,Census!$AD$18:$DD$18,0)-1,277,1)) -> 0 | E40: =SUMIF(Census!$B$19:$B$218,$Q40,OFFSET(Census!$AD$19,0,MATCH(E$68,Census!$AD$18:$DD$18,0)-1,277,1))-D40 -> 0 | F40: =SUMIF(Census!$X$19:$X$218,$Q40&"/Employee/Y",OFFSET(Census!$AD$19,0,MATCH(F$68,Census!$AD$18:$DD$18,0)-1,277,1)) -> 0 | G40: =SUMIF(Census!$B$19:$B$218,$Q40,OFFSET(Census!$AD$19,0,MATCH(G$68,Census!$AD$18:$DD$18,0)-1,277,1))-F40 -> 0 | H40: =SUMIF(Census!$X$19:$X$218,$Q40&"/Employee/Y",OFFSET(Census!$AD$19,0,MATCH(H$68,Census!$AD$18:$DD$18,0)-1,277,1)) -> 0 | I40: =SUMIF(Census!$B$19:$B$218,$Q40,OFFSET(Census!$AD$19,0,MATCH(I$68,Census!$AD$18:$DD$18,0)-1,277,1))-H40 -> 0 | J40: =SUMIF(Census!$X$19:$X$218,$Q40&"/Employee/Y",OFFSET(Census!$AD$19,0,MATCH(J$68,Census!$AD$18:$DD$18,0)-1,277,1)) -> 0 | K40: =SUMIF(Census!$B$19:$B$218,$Q40,OFFSET(Census!$AD$19,0,MATCH(K$68,Census!$AD$18:$DD$18,0)-1,277,1))-J40 -> 0 | L40: =SUMIF(Census!$X$19:$X$218,$Q40&"/Employee/Y",OFFSET(Census!$AD$19,0,MATCH(L$68,Census!$AD$18:$DD$18,0)-1,277,1)) -> 0 | M40: =SUMIF(Census!$B$19:$B$218,$Q40,OFFSET(Census!$AD$19,0,MATCH(M$68,Census!$AD$18:$DD$18,0)-1,277,1))-L40 -> 0 | N40: =SUMIF(Census!$X$19:$X$218,$Q40&"/Employee/Y",OFFSET(Census!$AD$19,0,MATCH(N$68,Census!$AD$18:$DD$18,0)-1,277,1)) -> 0 | O40: =SUMIF(Census!$B$19:$B$218,$Q40,OFFSET(Census!$AD$19,0,MATCH(O$68,Census!$AD$18:$DD$18,0)-1,277,1))-N40 -> 0 | Q40: 28 | R40: HIDE
B41: =VLOOKUP(Q41,Census!$B$19:$C$218,2,FALSE) ->  | C41: =VLOOKUP($Q41,Census!$B$19:$G$218,6,FALSE) ->  | D41: =SUMIF(Census!$X$19:$X$218,$Q41&"/Employee/Y",OFFSET(Census!$AD$19,0,MATCH(D$68,Census!$AD$18:$DD$18,0)-1,277,1)) -> 0 | E41: =SUMIF(Census!$B$19:$B$218,$Q41,OFFSET(Census!$AD$19,0,MATCH(E$68,Census!$AD$18:$DD$18,0)-1,277,1))-D41 -> 0 | F41: =SUMIF(Census!$X$19:$X$218,$Q41&"/Employee/Y",OFFSET(Census!$AD$19,0,MATCH(F$68,Census!$AD$18:$DD$18,0)-1,277,1)) -> 0 | G41: =SUMIF(Census!$B$19:$B$218,$Q41,OFFSET(Census!$AD$19,0,MATCH(G$68,Census!$AD$18:$DD$18,0)-1,277,1))-F41 -> 0 | H41: =SUMIF(Census!$X$19:$X$218,$Q41&"/Employee/Y",OFFSET(Census!$AD$19,0,MATCH(H$68,Census!$AD$18:$DD$18,0)-1,277,1)) -> 0 | I41: =SUMIF(Census!$B$19:$B$218,$Q41,OFFSET(Census!$AD$19,0,MATCH(I$68,Census!$AD$18:$DD$18,0)-1,277,1))-H41 -> 0 | J41: =SUMIF(Census!$X$19:$X$218,$Q41&"/Employee/Y",OFFSET(Census!$AD$19,0,MATCH(J$68,Census!$AD$18:$DD$18,0)-1,277,1)) -> 0 | K41: =SUMIF(Census!$B$19:$B$218,$Q41,OFFSET(Census!$AD$19,0,MATCH(K$68,Census!$AD$18:$DD$18,0)-1,277,1))-J41 -> 0 | L41: =SUMIF(Census!$X$19:$X$218,$Q41&"/Employee/Y",OFFSET(Census!$AD$19,0,MATCH(L$68,Census!$AD$18:$DD$18,0)-1,277,1)) -> 0 | M41: =SUMIF(Census!$B$19:$B$218,$Q41,OFFSET(Census!$AD$19,0,MATCH(M$68,Census!$AD$18:$DD$18,0)-1,277,1))-L41 -> 0 | N41: =SUMIF(Census!$X$19:$X$218,$Q41&"/Employee/Y",OFFSET(Census!$AD$19,0,MATCH(N$68,Census!$AD$18:$DD$18,0)-1,277,1)) -> 0 | O41: =SUMIF(Census!$B$19:$B$218,$Q41,OFFSET(Census!$AD$19,0,MATCH(O$68,Census!$AD$18:$DD$18,0)-1,277,1))-N41 -> 0 | Q41: 29 | R41: HIDE
B42: =VLOOKUP(Q42,Census!$B$19:$C$218,2,FALSE) ->  | C42: =VLOOKUP($Q42,Census!$B$19:$G$218,6,FALSE) ->  | D42: =SUMIF(Census!$X$19:$X$218,$Q42&"/Employee/Y",OFFSET(Census!$AD$19,0,MATCH(D$68,Census!$AD$18:$DD$18,0)-1,277,1)) -> 0 | E42: =SUMIF(Census!$B$19:$B$218,$Q42,OFFSET(Census!$AD$19,0,MATCH(E$68,Census!$AD$18:$DD$18,0)-1,277,1))-D42 -> 0 | F42: =SUMIF(Census!$X$19:$X$218,$Q42&"/Employee/Y",OFFSET(Census!$AD$19,0,MATCH(F$68,Census!$AD$18:$DD$18,0)-1,277,1)) -> 0 | G42: =SUMIF(Census!$B$19:$B$218,$Q42,OFFSET(Census!$AD$19,0,MATCH(G$68,Census!$AD$18:$DD$18,0)-1,277,1))-F42 -> 0 | H42: =SUMIF(Census!$X$19:$X$218,$Q42&"/Employee/Y",OFFSET(Census!$AD$19,0,MATCH(H$68,Census!$AD$18:$DD$18,0)-1,277,1)) -> 0 | I42: =SUMIF(Census!$B$19:$B$218,$Q42,OFFSET(Census!$AD$19,0,MATCH(I$68,Census!$AD$18:$DD$18,0)-1,277,1))-H42 -> 0 | J42: =SUMIF(Census!$X$19:$X$218,$Q42&"/Employee/Y",OFFSET(Census!$AD$19,0,MATCH(J$68,Census!$AD$18:$DD$18,0)-1,277,1)) -> 0 | K42: =SUMIF(Census!$B$19:$B$218,$Q42,OFFSET(Census!$AD$19,0,MATCH(K$68,Census!$AD$18:$DD$18,0)-1,277,1))-J42 -> 0 | L42: =SUMIF(Census!$X$19:$X$218,$Q42&"/Employee/Y",OFFSET(Census!$AD$19,0,MATCH(L$68,Census!$AD$18:$DD$18,0)-1,277,1)) -> 0 | M42: =SUMIF(Census!$B$19:$B$218,$Q42,OFFSET(Census!$AD$19,0,MATCH(M$68,Census!$AD$18:$DD$18,0)-1,277,1))-L42 -> 0 | N42: =SUMIF(Census!$X$19:$X$218,$Q42&"/Employee/Y",OFFSET(Census!$AD$19,0,MATCH(N$68,Census!$AD$18:$DD$18,0)-1,277,1)) -> 0 | O42: =SUMIF(Census!$B$19:$B$218,$Q42,OFFSET(Census!$AD$19,0,MATCH(O$68,Census!$AD$18:$DD$18,0)-1,277,1))-N42 -> 0 | Q42: 30 | R42: HIDE
B43: =VLOOKUP(Q43,Census!$B$19:$C$218,2,FALSE) ->  | C43: =VLOOKUP($Q43,Census!$B$19:$G$218,6,FALSE) ->  | D43: =SUMIF(Census!$X$19:$X$218,$Q43&"/Employee/Y",OFFSET(Census!$AD$19,0,MATCH(D$68,Census!$AD$18:$DD$18,0)-1,277,1)) -> 0 | E43: =SUMIF(Census!$B$19:$B$218,$Q43,OFFSET(Census!$AD$19,0,MATCH(E$68,Census!$AD$18:$DD$18,0)-1,277,1))-D43 -> 0 | F43: =SUMIF(Census!$X$19:$X$218,$Q43&"/Employee/Y",OFFSET(Census!$AD$19,0,MATCH(F$68,Census!$AD$18:$DD$18,0)-1,277,1)) -> 0 | G43: =SUMIF(Census!$B$19:$B$218,$Q43,OFFSET(Census!$AD$19,0,MATCH(G$68,Census!$AD$18:$DD$18,0)-1,277,1))-F43 -> 0 | H43: =SUMIF(Census!$X$19:$X$218,$Q43&"/Employee/Y",OFFSET(Census!$AD$19,0,MATCH(H$68,Census!$AD$18:$DD$18,0)-1,277,1)) -> 0 | I43: =SUMIF(Census!$B$19:$B$218,$Q43,OFFSET(Census!$AD$19,0,MATCH(I$68,Census!$AD$18:$DD$18,0)-1,277,1))-H43 -> 0 | J43: =SUMIF(Census!$X$19:$X$218,$Q43&"/Employee/Y",OFFSET(Census!$AD$19,0,MATCH(J$68,Census!$AD$18:$DD$18,0)-1,277,1)) -> 0 | K43: =SUMIF(Census!$B$19:$B$218,$Q43,OFFSET(Census!$AD$19,0,MATCH(K$68,Census!$AD$18:$DD$18,0)-1,277,1))-J43 -> 0 | L43: =SUMIF(Census!$X$19:$X$218,$Q43&"/Employee/Y",OFFSET(Census!$AD$19,0,MATCH(L$68,Census!$AD$18:$DD$18,0)-1,277,1)) -> 0 | M43: =SUMIF(Census!$B$19:$B$218,$Q43,OFFSET(Census!$AD$19,0,MATCH(M$68,Census!$AD$18:$DD$18,0)-1,277,1))-L43 -> 0 | N43: =SUMIF(Census!$X$19:$X$218,$Q43&"/Employee/Y",OFFSET(Census!$AD$19,0,MATCH(N$68,Census!$AD$18:$DD$18,0)-1,277,1)) -> 0 | O43: =SUMIF(Census!$B$19:$B$218,$Q43,OFFSET(Census!$AD$19,0,MATCH(O$68,Census!$AD$18:$DD$18,0)-1,277,1))-N43 -> 0 | Q43: 31 | R43: HIDE
B44: =VLOOKUP(Q44,Census!$B$19:$C$218,2,FALSE) ->  | C44: =VLOOKUP($Q44,Census!$B$19:$G$218,6,FALSE) ->  | D44: =SUMIF(Census!$X$19:$X$218,$Q44&"/Employee/Y",OFFSET(Census!$AD$19,0,MATCH(D$68,Census!$AD$18:$DD$18,0)-1,277,1)) -> 0 | E44: =SUMIF(Census!$B$19:$B$218,$Q44,OFFSET(Census!$AD$19,0,MATCH(E$68,Census!$AD$18:$DD$18,0)-1,277,1))-D44 -> 0 | F44: =SUMIF(Census!$X$19:$X$218,$Q44&"/Employee/Y",OFFSET(Census!$AD$19,0,MATCH(F$68,Census!$AD$18:$DD$18,0)-1,277,1)) -> 0 | G44: =SUMIF(Census!$B$19:$B$218,$Q44,OFFSET(Census!$AD$19,0,MATCH(G$68,Census!$AD$18:$DD$18,0)-1,277,1))-F44 -> 0 | H44: =SUMIF(Census!$X$19:$X$218,$Q44&"/Employee/Y",OFFSET(Census!$AD$19,0,MATCH(H$68,Census!$AD$18:$DD$18,0)-1,277,1)) -> 0 | I44: =SUMIF(Census!$B$19:$B$218,$Q44,OFFSET(Census!$AD$19,0,MATCH(I$68,Census!$AD$18:$DD$18,0)-1,277,1))-H44 -> 0 | J44: =SUMIF(Census!$X$19:$X$218,$Q44&"/Employee/Y",OFFSET(Census!$AD$19,0,MATCH(J$68,Census!$AD$18:$DD$18,0)-1,277,1)) -> 0 | K44: =SUMIF(Census!$B$19:$B$218,$Q44,OFFSET(Census!$AD$19,0,MATCH(K$68,Census!$AD$18:$DD$18,0)-1,277,1))-J44 -> 0 | L44: =SUMIF(Census!$X$19:$X$218,$Q44&"/Employee/Y",OFFSET(Census!$AD$19,0,MATCH(L$68,Census!$AD$18:$DD$18,0)-1,277,1)) -> 0 | M44: =SUMIF(Census!$B$19:$B$218,$Q44,OFFSET(Census!$AD$19,0,MATCH(M$68,Census!$AD$18:$DD$18,0)-1,277,1))-L44 -> 0 | N44: =SUMIF(Census!$X$19:$X$218,$Q44&"/Employee/Y",OFFSET(Census!$AD$19,0,MATCH(N$68,Census!$AD$18:$DD$18,0)-1,277,1)) -> 0 | O44: =SUMIF(Census!$B$19:$B$218,$Q44,OFFSET(Census!$AD$19,0,MATCH(O$68,Census!$AD$18:$DD$18,0)-1,277,1))-N44 -> 0 | Q44: 32 | R44: HIDE
B45: =VLOOKUP(Q45,Census!$B$19:$C$218,2,FALSE) ->  | C45: =VLOOKUP($Q45,Census!$B$19:$G$218,6,FALSE) ->  | D45: =SUMIF(Census!$X$19:$X$218,$Q45&"/Employee/Y",OFFSET(Census!$AD$19,0,MATCH(D$68,Census!$AD$18:$DD$18,0)-1,277,1)) -> 0 | E45: =SUMIF(Census!$B$19:$B$218,$Q45,OFFSET(Census!$AD$19,0,MATCH(E$68,Census!$AD$18:$DD$18,0)-1,277,1))-D45 -> 0 | F45: =SUMIF(Census!$X$19:$X$218,$Q45&"/Employee/Y",OFFSET(Census!$AD$19,0,MATCH(F$68,Census!$AD$18:$DD$18,0)-1,277,1)) -> 0 | G45: =SUMIF(Census!$B$19:$B$218,$Q45,OFFSET(Census!$AD$19,0,MATCH(G$68,Census!$AD$18:$DD$18,0)-1,277,1))-F45 -> 0 | H45: =SUMIF(Census!$X$19:$X$218,$Q45&"/Employee/Y",OFFSET(Census!$AD$19,0,MATCH(H$68,Census!$AD$18:$DD$18,0)-1,277,1)) -> 0 | I45: =SUMIF(Census!$B$19:$B$218,$Q45,OFFSET(Census!$AD$19,0,MATCH(I$68,Census!$AD$18:$DD$18,0)-1,277,1))-H45 -> 0 | J45: =SUMIF(Census!$X$19:$X$218,$Q45&"/Employee/Y",OFFSET(Census!$AD$19,0,MATCH(J$68,Census!$AD$18:$DD$18,0)-1,277,1)) -> 0 | K45: =SUMIF(Census!$B$19:$B$218,$Q45,OFFSET(Census!$AD$19,0,MATCH(K$68,Census!$AD$18:$DD$18,0)-1,277,1))-J45 -> 0 | L45: =SUMIF(Census!$X$19:$X$218,$Q45&"/Employee/Y",OFFSET(Census!$AD$19,0,MATCH(L$68,Census!$AD$18:$DD$18,0)-1,277,1)) -> 0 | M45: =SUMIF(Census!$B$19:$B$218,$Q45,OFFSET(Census!$AD$19,0,MATCH(M$68,Census!$AD$18:$DD$18,0)-1,277,1))-L45 -> 0 | N45: =SUMIF(Census!$X$19:$X$218,$Q45&"/Employee/Y",OFFSET(Census!$AD$19,0,MATCH(N$68,Census!$AD$18:$DD$18,0)-1,277,1)) -> 0 | O45: =SUMIF(Census!$B$19:$B$218,$Q45,OFFSET(Census!$AD$19,0,MATCH(O$68,Census!$AD$18:$DD$18,0)-1,277,1))-N45 -> 0 | Q45: 33 | R45: =IF(D45=0,"HIDE","SHOW") -> HIDE
B46: =VLOOKUP(Q46,Census!$B$19:$C$218,2,FALSE) ->  | C46: =VLOOKUP($Q46,Census!$B$19:$G$218,6,FALSE) ->  | D46: =SUMIF(Census!$X$19:$X$218,$Q46&"/Employee/Y",OFFSET(Census!$AD$19,0,MATCH(D$68,Census!$AD$18:$DD$18,0)-1,277,1)) -> 0 | E46: =SUMIF(Census!$B$19:$B$218,$Q46,OFFSET(Census!$AD$19,0,MATCH(E$68,Census!$AD$18:$DD$18,0)-1,277,1))-D46 -> 0 | F46: =SUMIF(Census!$X$19:$X$218,$Q46&"/Employee/Y",OFFSET(Census!$AD$19,0,MATCH(F$68,Census!$AD$18:$DD$18,0)-1,277,1)) -> 0 | G46: =SUMIF(Census!$B$19:$B$218,$Q46,OFFSET(Census!$AD$19,0,MATCH(G$68,Census!$AD$18:$DD$18,0)-1,277,1))-F46 -> 0 | H46: =SUMIF(Census!$X$19:$X$218,$Q46&"/Employee/Y",OFFSET(Census!$AD$19,0,MATCH(H$68,Census!$AD$18:$DD$18,0)-1,277,1)) -> 0 | I46: =SUMIF(Census!$B$19:$B$218,$Q46,OFFSET(Census!$AD$19,0,MATCH(I$68,Census!$AD$18:$DD$18,0)-1,277,1))-H46 -> 0 | J46: =SUMIF(Census!$X$19:$X$218,$Q46&"/Employee/Y",OFFSET(Census!$AD$19,0,MATCH(J$68,Census!$AD$18:$DD$18,0)-1,277,1)) -> 0 | K46: =SUMIF(Census!$B$19:$B$218,$Q46,OFFSET(Census!$AD$19,0,MATCH(K$68,Census!$AD$18:$DD$18,0)-1,277,1))-J46 -> 0 | L46: =SUMIF(Census!$X$19:$X$218,$Q46&"/Employee/Y",OFFSET(Census!$AD$19,0,MATCH(L$68,Census!$AD$18:$DD$18,0)-1,277,1)) -> 0 | M46: =SUMIF(Census!$B$19:$B$218,$Q46,OFFSET(Census!$AD$19,0,MATCH(M$68,Census!$AD$18:$DD$18,0)-1,277,1))-L46 -> 0 | N46: =SUMIF(Census!$X$19:$X$218,$Q46&"/Employee/Y",OFFSET(Census!$AD$19,0,MATCH(N$68,Census!$AD$18:$DD$18,0)-1,277,1)) -> 0 | O46: =SUMIF(Census!$B$19:$B$218,$Q46,OFFSET(Census!$AD$19,0,MATCH(O$68,Census!$AD$18:$DD$18,0)-1,277,1))-N46 -> 0 | Q46: 34 | R46: HIDE
B47: =VLOOKUP(Q47,Census!$B$19:$C$218,2,FALSE) ->  | C47: =VLOOKUP($Q47,Census!$B$19:$G$218,6,FALSE) ->  | D47: =SUMIF(Census!$X$19:$X$218,$Q47&"/Employee/Y",OFFSET(Census!$AD$19,0,MATCH(D$68,Census!$AD$18:$DD$18,0)-1,277,1)) -> 0 | E47: =SUMIF(Census!$B$19:$B$218,$Q47,OFFSET(Census!$AD$19,0,MATCH(E$68,Census!$AD$18:$DD$18,0)-1,277,1))-D47 -> 0 | F47: =SUMIF(Census!$X$19:$X$218,$Q47&"/Employee/Y",OFFSET(Census!$AD$19,0,MATCH(F$68,Census!$AD$18:$DD$18,0)-1,277,1)) -> 0 | G47: =SUMIF(Census!$B$19:$B$218,$Q47,OFFSET(Census!$AD$19,0,MATCH(G$68,Census!$AD$18:$DD$18,0)-1,277,1))-F47 -> 0 | H47: =SUMIF(Census!$X$19:$X$218,$Q47&"/Employee/Y",OFFSET(Census!$AD$19,0,MATCH(H$68,Census!$AD$18:$DD$18,0)-1,277,1)) -> 0 | I47: =SUMIF(Census!$B$19:$B$218,$Q47,OFFSET(Census!$AD$19,0,MATCH(I$68,Census!$AD$18:$DD$18,0)-1,277,1))-H47 -> 0 | J47: =SUMIF(Census!$X$19:$X$218,$Q47&"/Employee/Y",OFFSET(Census!$AD$19,0,MATCH(J$68,Census!$AD$18:$DD$18,0)-1,277,1)) -> 0 | K47: =SUMIF(Census!$B$19:$B$218,$Q47,OFFSET(Census!$AD$19,0,MATCH(K$68,Census!$AD$18:$DD$18,0)-1,277,1))-J47 -> 0 | L47: =SUMIF(Census!$X$19:$X$218,$Q47&"/Employee/Y",OFFSET(Census!$AD$19,0,MATCH(L$68,Census!$AD$18:$DD$18,0)-1,277,1)) -> 0 | M47: =SUMIF(Census!$B$19:$B$218,$Q47,OFFSET(Census!$AD$19,0,MATCH(M$68,Census!$AD$18:$DD$18,0)-1,277,1))-L47 -> 0 | N47: =SUMIF(Census!$X$19:$X$218,$Q47&"/Employee/Y",OFFSET(Census!$AD$19,0,MATCH(N$68,Census!$AD$18:$DD$18,0)-1,277,1)) -> 0 | O47: =SUMIF(Census!$B$19:$B$218,$Q47,OFFSET(Census!$AD$19,0,MATCH(O$68,Census!$AD$18:$DD$18,0)-1,277,1))-N47 -> 0 | Q47: 35 | R47: HIDE
B48: =VLOOKUP(Q48,Census!$B$19:$C$218,2,FALSE) ->  | C48: =VLOOKUP($Q48,Census!$B$19:$G$218,6,FALSE) ->  | D48: =SUMIF(Census!$X$19:$X$218,$Q48&"/Employee/Y",OFFSET(Census!$AD$19,0,MATCH(D$68,Census!$AD$18:$DD$18,0)-1,277,1)) -> 0 | E48: =SUMIF(Census!$B$19:$B$218,$Q48,OFFSET(Census!$AD$19,0,MATCH(E$68,Census!$AD$18:$DD$18,0)-1,277,1))-D48 -> 0 | F48: =SUMIF(Census!$X$19:$X$218,$Q48&"/Employee/Y",OFFSET(Census!$AD$19,0,MATCH(F$68,Census!$AD$18:$DD$18,0)-1,277,1)) -> 0 | G48: =SUMIF(Census!$B$19:$B$218,$Q48,OFFSET(Census!$AD$19,0,MATCH(G$68,Census!$AD$18:$DD$18,0)-1,277,1))-F48 -> 0 | H48: =SUMIF(Census!$X$19:$X$218,$Q48&"/Employee/Y",OFFSET(Census!$AD$19,0,MATCH(H$68,Census!$AD$18:$DD$18,0)-1,277,1)) -> 0 | I48: =SUMIF(Census!$B$19:$B$218,$Q48,OFFSET(Census!$AD$19,0,MATCH(I$68,Census!$AD$18:$DD$18,0)-1,277,1))-H48 -> 0 | J48: =SUMIF(Census!$X$19:$X$218,$Q48&"/Employee/Y",OFFSET(Census!$AD$19,0,MATCH(J$68,Census!$AD$18:$DD$18,0)-1,277,1)) -> 0 | K48: =SUMIF(Census!$B$19:$B$218,$Q48,OFFSET(Census!$AD$19,0,MATCH(K$68,Census!$AD$18:$DD$18,0)-1,277,1))-J48 -> 0 | L48: =SUMIF(Census!$X$19:$X$218,$Q48&"/Employee/Y",OFFSET(Census!$AD$19,0,MATCH(L$68,Census!$AD$18:$DD$18,0)-1,277,1)) -> 0 | M48: =SUMIF(Census!$B$19:$B$218,$Q48,OFFSET(Census!$AD$19,0,MATCH(M$68,Census!$AD$18:$DD$18,0)-1,277,1))-L48 -> 0 | N48: =SUMIF(Census!$X$19:$X$218,$Q48&"/Employee/Y",OFFSET(Census!$AD$19,0,MATCH(N$68,Census!$AD$18:$DD$18,0)-1,277,1)) -> 0 | O48: =SUMIF(Census!$B$19:$B$218,$Q48,OFFSET(Census!$AD$19,0,MATCH(O$68,Census!$AD$18:$DD$18,0)-1,277,1))-N48 -> 0 | Q48: 36 | R48: HIDE
B49: =VLOOKUP(Q49,Census!$B$19:$C$218,2,FALSE) ->  | C49: =VLOOKUP($Q49,Census!$B$19:$G$218,6,FALSE) ->  | D49: =SUMIF(Census!$X$19:$X$218,$Q49&"/Employee/Y",OFFSET(Census!$AD$19,0,MATCH(D$68,Census!$AD$18:$DD$18,0)-1,277,1)) -> 0 | E49: =SUMIF(Census!$B$19:$B$218,$Q49,OFFSET(Census!$AD$19,0,MATCH(E$68,Census!$AD$18:$DD$18,0)-1,277,1))-D49 -> 0 | F49: =SUMIF(Census!$X$19:$X$218,$Q49&"/Employee/Y",OFFSET(Census!$AD$19,0,MATCH(F$68,Census!$AD$18:$DD$18,0)-1,277,1)) -> 0 | G49: =SUMIF(Census!$B$19:$B$218,$Q49,OFFSET(Census!$AD$19,0,MATCH(G$68,Census!$AD$18:$DD$18,0)-1,277,1))-F49 -> 0 | H49: =SUMIF(Census!$X$19:$X$218,$Q49&"/Employee/Y",OFFSET(Census!$AD$19,0,MATCH(H$68,Census!$AD$18:$DD$18,0)-1,277,1)) -> 0 | I49: =SUMIF(Census!$B$19:$B$218,$Q49,OFFSET(Census!$AD$19,0,MATCH(I$68,Census!$AD$18:$DD$18,0)-1,277,1))-H49 -> 0 | J49: =SUMIF(Census!$X$19:$X$218,$Q49&"/Employee/Y",OFFSET(Census!$AD$19,0,MATCH(J$68,Census!$AD$18:$DD$18,0)-1,277,1)) -> 0 | K49: =SUMIF(Census!$B$19:$B$218,$Q49,OFFSET(Census!$AD$19,0,MATCH(K$68,Census!$AD$18:$DD$18,0)-1,277,1))-J49 -> 0 | L49: =SUMIF(Census!$X$19:$X$218,$Q49&"/Employee/Y",OFFSET(Census!$AD$19,0,MATCH(L$68,Census!$AD$18:$DD$18,0)-1,277,1)) -> 0 | M49: =SUMIF(Census!$B$19:$B$218,$Q49,OFFSET(Census!$AD$19,0,MATCH(M$68,Census!$AD$18:$DD$18,0)-1,277,1))-L49 -> 0 | N49: =SUMIF(Census!$X$19:$X$218,$Q49&"/Employee/Y",OFFSET(Census!$AD$19,0,MATCH(N$68,Census!$AD$18:$DD$18,0)-1,277,1)) -> 0 | O49: =SUMIF(Census!$B$19:$B$218,$Q49,OFFSET(Census!$AD$19,0,MATCH(O$68,Census!$AD$18:$DD$18,0)-1,277,1))-N49 -> 0 | Q49: 37 | R49: HIDE
B50: =VLOOKUP(Q50,Census!$B$19:$C$218,2,FALSE) ->  | C50: =VLOOKUP($Q50,Census!$B$19:$G$218,6,FALSE) ->  | D50: =SUMIF(Census!$X$19:$X$218,$Q50&"/Employee/Y",OFFSET(Census!$AD$19,0,MATCH(D$68,Census!$AD$18:$DD$18,0)-1,277,1)) -> 0 | E50: =SUMIF(Census!$B$19:$B$218,$Q50,OFFSET(Census!$AD$19,0,MATCH(E$68,Census!$AD$18:$DD$18,0)-1,277,1))-D50 -> 0 | F50: =SUMIF(Census!$X$19:$X$218,$Q50&"/Employee/Y",OFFSET(Census!$AD$19,0,MATCH(F$68,Census!$AD$18:$DD$18,0)-1,277,1)) -> 0 | G50: =SUMIF(Census!$B$19:$B$218,$Q50,OFFSET(Census!$AD$19,0,MATCH(G$68,Census!$AD$18:$DD$18,0)-1,277,1))-F50 -> 0 | H50: =SUMIF(Census!$X$19:$X$218,$Q50&"/Employee/Y",OFFSET(Census!$AD$19,0,MATCH(H$68,Census!$AD$18:$DD$18,0)-1,277,1)) -> 0 | I50: =SUMIF(Census!$B$19:$B$218,$Q50,OFFSET(Census!$AD$19,0,MATCH(I$68,Census!$AD$18:$DD$18,0)-1,277,1))-H50 -> 0 | J50: =SUMIF(Census!$X$19:$X$218,$Q50&"/Employee/Y",OFFSET(Census!$AD$19,0,MATCH(J$68,Census!$AD$18:$DD$18,0)-1,277,1)) -> 0 | K50: =SUMIF(Census!$B$19:$B$218,$Q50,OFFSET(Census!$AD$19,0,MATCH(K$68,Census!$AD$18:$DD$18,0)-1,277,1))-J50 -> 0 | L50: =SUMIF(Census!$X$19:$X$218,$Q50&"/Employee/Y",OFFSET(Census!$AD$19,0,MATCH(L$68,Census!$AD$18:$DD$18,0)-1,277,1)) -> 0 | M50: =SUMIF(Census!$B$19:$B$218,$Q50,OFFSET(Census!$AD$19,0,MATCH(M$68,Census!$AD$18:$DD$18,0)-1,277,1))-L50 -> 0 | N50: =SUMIF(Census!$X$19:$X$218,$Q50&"/Employee/Y",OFFSET(Census!$AD$19,0,MATCH(N$68,Census!$AD$18:$DD$18,0)-1,277,1)) -> 0 | O50: =SUMIF(Census!$B$19:$B$218,$Q50,OFFSET(Census!$AD$19,0,MATCH(O$68,Census!$AD$18:$DD$18,0)-1,277,1))-N50 -> 0 | Q50: 38 | R50: HIDE
B51: =VLOOKUP(Q51,Census!$B$19:$C$218,2,FALSE) ->  | C51: =VLOOKUP($Q51,Census!$B$19:$G$218,6,FALSE) ->  | D51: =SUMIF(Census!$X$19:$X$218,$Q51&"/Employee/Y",OFFSET(Census!$AD$19,0,MATCH(D$68,Census!$AD$18:$DD$18,0)-1,277,1)) -> 0 | E51: =SUMIF(Census!$B$19:$B$218,$Q51,OFFSET(Census!$AD$19,0,MATCH(E$68,Census!$AD$18:$DD$18,0)-1,277,1))-D51 -> 0 | F51: =SUMIF(Census!$X$19:$X$218,$Q51&"/Employee/Y",OFFSET(Census!$AD$19,0,MATCH(F$68,Census!$AD$18:$DD$18,0)-1,277,1)) -> 0 | G51: =SUMIF(Census!$B$19:$B$218,$Q51,OFFSET(Census!$AD$19,0,MATCH(G$68,Census!$AD$18:$DD$18,0)-1,277,1))-F51 -> 0 | H51: =SUMIF(Census!$X$19:$X$218,$Q51&"/Employee/Y",OFFSET(Census!$AD$19,0,MATCH(H$68,Census!$AD$18:$DD$18,0)-1,277,1)) -> 0 | I51: =SUMIF(Census!$B$19:$B$218,$Q51,OFFSET(Census!$AD$19,0,MATCH(I$68,Census!$AD$18:$DD$18,0)-1,277,1))-H51 -> 0 | J51: =SUMIF(Census!$X$19:$X$218,$Q51&"/Employee/Y",OFFSET(Census!$AD$19,0,MATCH(J$68,Census!$AD$18:$DD$18,0)-1,277,1)) -> 0 | K51: =SUMIF(Census!$B$19:$B$218,$Q51,OFFSET(Census!$AD$19,0,MATCH(K$68,Census!$AD$18:$DD$18,0)-1,277,1))-J51 -> 0 | L51: =SUMIF(Census!$X$19:$X$218,$Q51&"/Employee/Y",OFFSET(Census!$AD$19,0,MATCH(L$68,Census!$AD$18:$DD$18,0)-1,277,1)) -> 0 | M51: =SUMIF(Census!$B$19:$B$218,$Q51,OFFSET(Census!$AD$19,0,MATCH(M$68,Census!$AD$18:$DD$18,0)-1,277,1))-L51 -> 0 | N51: =SUMIF(Census!$X$19:$X$218,$Q51&"/Employee/Y",OFFSET(Census!$AD$19,0,MATCH(N$68,Census!$AD$18:$DD$18,0)-1,277,1)) -> 0 | O51: =SUMIF(Census!$B$19:$B$218,$Q51,OFFSET(Census!$AD$19,0,MATCH(O$68,Census!$AD$18:$DD$18,0)-1,277,1))-N51 -> 0 | Q51: 39 | R51: HIDE
B52: =VLOOKUP(Q52,Census!$B$19:$C$218,2,FALSE) ->  | C52: =VLOOKUP($Q52,Census!$B$19:$G$218,6,FALSE) ->  | D52: =SUMIF(Census!$X$19:$X$218,$Q52&"/Employee/Y",OFFSET(Census!$AD$19,0,MATCH(D$68,Census!$AD$18:$DD$18,0)-1,277,1)) -> 0 | E52: =SUMIF(Census!$B$19:$B$218,$Q52,OFFSET(Census!$AD$19,0,MATCH(E$68,Census!$AD$18:$DD$18,0)-1,277,1))-D52 -> 0 | F52: =SUMIF(Census!$X$19:$X$218,$Q52&"/Employee/Y",OFFSET(Census!$AD$19,0,MATCH(F$68,Census!$AD$18:$DD$18,0)-1,277,1)) -> 0 | G52: =SUMIF(Census!$B$19:$B$218,$Q52,OFFSET(Census!$AD$19,0,MATCH(G$68,Census!$AD$18:$DD$18,0)-1,277,1))-F52 -> 0 | H52: =SUMIF(Census!$X$19:$X$218,$Q52&"/Employee/Y",OFFSET(Census!$AD$19,0,MATCH(H$68,Census!$AD$18:$DD$18,0)-1,277,1)) -> 0 | I52: =SUMIF(Census!$B$19:$B$218,$Q52,OFFSET(Census!$AD$19,0,MATCH(I$68,Census!$AD$18:$DD$18,0)-1,277,1))-H52 -> 0 | J52: =SUMIF(Census!$X$19:$X$218,$Q52&"/Employee/Y",OFFSET(Census!$AD$19,0,MATCH(J$68,Census!$AD$18:$DD$18,0)-1,277,1)) -> 0 | K52: =SUMIF(Census!$B$19:$B$218,$Q52,OFFSET(Census!$AD$19,0,MATCH(K$68,Census!$AD$18:$DD$18,0)-1,277,1))-J52 -> 0 | L52: =SUMIF(Census!$X$19:$X$218,$Q52&"/Employee/Y",OFFSET(Census!$AD$19,0,MATCH(L$68,Census!$AD$18:$DD$18,0)-1,277,1)) -> 0 | M52: =SUMIF(Census!$B$19:$B$218,$Q52,OFFSET(Census!$AD$19,0,MATCH(M$68,Census!$AD$18:$DD$18,0)-1,277,1))-L52 -> 0 | N52: =SUMIF(Census!$X$19:$X$218,$Q52&"/Employee/Y",OFFSET(Census!$AD$19,0,MATCH(N$68,Census!$AD$18:$DD$18,0)-1,277,1)) -> 0 | O52: =SUMIF(Census!$B$19:$B$218,$Q52,OFFSET(Census!$AD$19,0,MATCH(O$68,Census!$AD$18:$DD$18,0)-1,277,1))-N52 -> 0 | Q52: 40 | R52: HIDE
B53: =VLOOKUP(Q53,Census!$B$19:$C$218,2,FALSE) ->  | C53: =VLOOKUP($Q53,Census!$B$19:$G$218,6,FALSE) ->  | D53: =SUMIF(Census!$X$19:$X$218,$Q53&"/Employee/Y",OFFSET(Census!$AD$19,0,MATCH(D$68,Census!$AD$18:$DD$18,0)-1,277,1)) -> 0 | E53: =SUMIF(Census!$B$19:$B$218,$Q53,OFFSET(Census!$AD$19,0,MATCH(E$68,Census!$AD$18:$DD$18,0)-1,277,1))-D53 -> 0 | F53: =SUMIF(Census!$X$19:$X$218,$Q53&"/Employee/Y",OFFSET(Census!$AD$19,0,MATCH(F$68,Census!$AD$18:$DD$18,0)-1,277,1)) -> 0 | G53: =SUMIF(Census!$B$19:$B$218,$Q53,OFFSET(Census!$AD$19,0,MATCH(G$68,Census!$AD$18:$DD$18,0)-1,277,1))-F53 -> 0 | H53: =SUMIF(Census!$X$19:$X$218,$Q53&"/Employee/Y",OFFSET(Census!$AD$19,0,MATCH(H$68,Census!$AD$18:$DD$18,0)-1,277,1)) -> 0 | I53: =SUMIF(Census!$B$19:$B$218,$Q53,OFFSET(Census!$AD$19,0,MATCH(I$68,Census!$AD$18:$DD$18,0)-1,277,1))-H53 -> 0 | J53: =SUMIF(Census!$X$19:$X$218,$Q53&"/Employee/Y",OFFSET(Census!$AD$19,0,MATCH(J$68,Census!$AD$18:$DD$18,0)-1,277,1)) -> 0 | K53: =SUMIF(Census!$B$19:$B$218,$Q53,OFFSET(Census!$AD$19,0,MATCH(K$68,Census!$AD$18:$DD$18,0)-1,277,1))-J53 -> 0 | L53: =SUMIF(Census!$X$19:$X$218,$Q53&"/Employee/Y",OFFSET(Census!$AD$19,0,MATCH(L$68,Census!$AD$18:$DD$18,0)-1,277,1)) -> 0 | M53: =SUMIF(Census!$B$19:$B$218,$Q53,OFFSET(Census!$AD$19,0,MATCH(M$68,Census!$AD$18:$DD$18,0)-1,277,1))-L53 -> 0 | N53: =SUMIF(Census!$X$19:$X$218,$Q53&"/Employee/Y",OFFSET(Census!$AD$19,0,MATCH(N$68,Census!$AD$18:$DD$18,0)-1,277,1)) -> 0 | O53: =SUMIF(Census!$B$19:$B$218,$Q53,OFFSET(Census!$AD$19,0,MATCH(O$68,Census!$AD$18:$DD$18,0)-1,277,1))-N53 -> 0 | Q53: 41 | R53: HIDE
B54: =VLOOKUP(Q54,Census!$B$19:$C$218,2,FALSE) ->  | C54: =VLOOKUP($Q54,Census!$B$19:$G$218,6,FALSE) ->  | D54: =SUMIF(Census!$X$19:$X$218,$Q54&"/Employee/Y",OFFSET(Census!$AD$19,0,MATCH(D$68,Census!$AD$18:$DD$18,0)-1,277,1)) -> 0 | E54: =SUMIF(Census!$B$19:$B$218,$Q54,OFFSET(Census!$AD$19,0,MATCH(E$68,Census!$AD$18:$DD$18,0)-1,277,1))-D54 -> 0 | F54: =SUMIF(Census!$X$19:$X$218,$Q54&"/Employee/Y",OFFSET(Census!$AD$19,0,MATCH(F$68,Census!$AD$18:$DD$18,0)-1,277,1)) -> 0 | G54: =SUMIF(Census!$B$19:$B$218,$Q54,OFFSET(Census!$AD$19,0,MATCH(G$68,Census!$AD$18:$DD$18,0)-1,277,1))-F54 -> 0 | H54: =SUMIF(Census!$X$19:$X$218,$Q54&"/Employee/Y",OFFSET(Census!$AD$19,0,MATCH(H$68,Census!$AD$18:$DD$18,0)-1,277,1)) -> 0 | I54: =SUMIF(Census!$B$19:$B$218,$Q54,OFFSET(Census!$AD$19,0,MATCH(I$68,Census!$AD$18:$DD$18,0)-1,277,1))-H54 -> 0 | J54: =SUMIF(Census!$X$19:$X$218,$Q54&"/Employee/Y",OFFSET(Census!$AD$19,0,MATCH(J$68,Census!$AD$18:$DD$18,0)-1,277,1)) -> 0 | K54: =SUMIF(Census!$B$19:$B$218,$Q54,OFFSET(Census!$AD$19,0,MATCH(K$68,Census!$AD$18:$DD$18,0)-1,277,1))-J54 -> 0 | L54: =SUMIF(Census!$X$19:$X$218,$Q54&"/Employee/Y",OFFSET(Census!$AD$19,0,MATCH(L$68,Census!$AD$18:$DD$18,0)-1,277,1)) -> 0 | M54: =SUMIF(Census!$B$19:$B$218,$Q54,OFFSET(Census!$AD$19,0,MATCH(M$68,Census!$AD$18:$DD$18,0)-1,277,1))-L54 -> 0 | N54: =SUMIF(Census!$X$19:$X$218,$Q54&"/Employee/Y",OFFSET(Census!$AD$19,0,MATCH(N$68,Census!$AD$18:$DD$18,0)-1,277,1)) -> 0 | O54: =SUMIF(Census!$B$19:$B$218,$Q54,OFFSET(Census!$AD$19,0,MATCH(O$68,Census!$AD$18:$DD$18,0)-1,277,1))-N54 -> 0 | Q54: 42 | R54: HIDE
B55: =VLOOKUP(Q55,Census!$B$19:$C$218,2,FALSE) ->  | C55: =VLOOKUP($Q55,Census!$B$19:$G$218,6,FALSE) ->  | D55: =SUMIF(Census!$X$19:$X$218,$Q55&"/Employee/Y",OFFSET(Census!$AD$19,0,MATCH(D$68,Census!$AD$18:$DD$18,0)-1,277,1)) -> 0 | E55: =SUMIF(Census!$B$19:$B$218,$Q55,OFFSET(Census!$AD$19,0,MATCH(E$68,Census!$AD$18:$DD$18,0)-1,277,1))-D55 -> 0 | F55: =SUMIF(Census!$X$19:$X$218,$Q55&"/Employee/Y",OFFSET(Census!$AD$19,0,MATCH(F$68,Census!$AD$18:$DD$18,0)-1,277,1)) -> 0 | G55: =SUMIF(Census!$B$19:$B$218,$Q55,OFFSET(Census!$AD$19,0,MATCH(G$68,Census!$AD$18:$DD$18,0)-1,277,1))-F55 -> 0 | H55: =SUMIF(Census!$X$19:$X$218,$Q55&"/Employee/Y",OFFSET(Census!$AD$19,0,MATCH(H$68,Census!$AD$18:$DD$18,0)-1,277,1)) -> 0 | I55: =SUMIF(Census!$B$19:$B$218,$Q55,OFFSET(Census!$AD$19,0,MATCH(I$68,Census!$AD$18:$DD$18,0)-1,277,1))-H55 -> 0 | J55: =SUMIF(Census!$X$19:$X$218,$Q55&"/Employee/Y",OFFSET(Census!$AD$19,0,MATCH(J$68,Census!$AD$18:$DD$18,0)-1,277,1)) -> 0 | K55: =SUMIF(Census!$B$19:$B$218,$Q55,OFFSET(Census!$AD$19,0,MATCH(K$68,Census!$AD$18:$DD$18,0)-1,277,1))-J55 -> 0 | L55: =SUMIF(Census!$X$19:$X$218,$Q55&"/Employee/Y",OFFSET(Census!$AD$19,0,MATCH(L$68,Census!$AD$18:$DD$18,0)-1,277,1)) -> 0 | M55: =SUMIF(Census!$B$19:$B$218,$Q55,OFFSET(Census!$AD$19,0,MATCH(M$68,Census!$AD$18:$DD$18,0)-1,277,1))-L55 -> 0 | N55: =SUMIF(Census!$X$19:$X$218,$Q55&"/Employee/Y",OFFSET(Census!$AD$19,0,MATCH(N$68,Census!$AD$18:$DD$18,0)-1,277,1)) -> 0 | O55: =SUMIF(Census!$B$19:$B$218,$Q55,OFFSET(Census!$AD$19,0,MATCH(O$68,Census!$AD$18:$DD$18,0)-1,277,1))-N55 -> 0 | Q55: 43 | R55: HIDE
B56: =VLOOKUP(Q56,Census!$B$19:$C$218,2,FALSE) ->  | C56: =VLOOKUP($Q56,Census!$B$19:$G$218,6,FALSE) ->  | D56: =SUMIF(Census!$X$19:$X$218,$Q56&"/Employee/Y",OFFSET(Census!$AD$19,0,MATCH(D$68,Census!$AD$18:$DD$18,0)-1,277,1)) -> 0 | E56: =SUMIF(Census!$B$19:$B$218,$Q56,OFFSET(Census!$AD$19,0,MATCH(E$68,Census!$AD$18:$DD$18,0)-1,277,1))-D56 -> 0 | F56: =SUMIF(Census!$X$19:$X$218,$Q56&"/Employee/Y",OFFSET(Census!$AD$19,0,MATCH(F$68,Census!$AD$18:$DD$18,0)-1,277,1)) -> 0 | G56: =SUMIF(Census!$B$19:$B$218,$Q56,OFFSET(Census!$AD$19,0,MATCH(G$68,Census!$AD$18:$DD$18,0)-1,277,1))-F56 -> 0 | H56: =SUMIF(Census!$X$19:$X$218,$Q56&"/Employee/Y",OFFSET(Census!$AD$19,0,MATCH(H$68,Census!$AD$18:$DD$18,0)-1,277,1)) -> 0 | I56: =SUMIF(Census!$B$19:$B$218,$Q56,OFFSET(Census!$AD$19,0,MATCH(I$68,Census!$AD$18:$DD$18,0)-1,277,1))-H56 -> 0 | J56: =SUMIF(Census!$X$19:$X$218,$Q56&"/Employee/Y",OFFSET(Census!$AD$19,0,MATCH(J$68,Census!$AD$18:$DD$18,0)-1,277,1)) -> 0 | K56: =SUMIF(Census!$B$19:$B$218,$Q56,OFFSET(Census!$AD$19,0,MATCH(K$68,Census!$AD$18:$DD$18,0)-1,277,1))-J56 -> 0 | L56: =SUMIF(Census!$X$19:$X$218,$Q56&"/Employee/Y",OFFSET(Census!$AD$19,0,MATCH(L$68,Census!$AD$18:$DD$18,0)-1,277,1)) -> 0 | M56: =SUMIF(Census!$B$19:$B$218,$Q56,OFFSET(Census!$AD$19,0,MATCH(M$68,Census!$AD$18:$DD$18,0)-1,277,1))-L56 -> 0 | N56: =SUMIF(Census!$X$19:$X$218,$Q56&"/Employee/Y",OFFSET(Census!$AD$19,0,MATCH(N$68,Census!$AD$18:$DD$18,0)-1,277,1)) -> 0 | O56: =SUMIF(Census!$B$19:$B$218,$Q56,OFFSET(Census!$AD$19,0,MATCH(O$68,Census!$AD$18:$DD$18,0)-1,277,1))-N56 -> 0 | Q56: 44 | R56: HIDE
B57: =VLOOKUP(Q57,Census!$B$19:$C$218,2,FALSE) ->  | C57: =VLOOKUP($Q57,Census!$B$19:$G$218,6,FALSE) ->  | D57: =SUMIF(Census!$X$19:$X$218,$Q57&"/Employee/Y",OFFSET(Census!$AD$19,0,MATCH(D$68,Census!$AD$18:$DD$18,0)-1,277,1)) -> 0 | E57: =SUMIF(Census!$B$19:$B$218,$Q57,OFFSET(Census!$AD$19,0,MATCH(E$68,Census!$AD$18:$DD$18,0)-1,277,1))-D57 -> 0 | F57: =SUMIF(Census!$X$19:$X$218,$Q57&"/Employee/Y",OFFSET(Census!$AD$19,0,MATCH(F$68,Census!$AD$18:$DD$18,0)-1,277,1)) -> 0 | G57: =SUMIF(Census!$B$19:$B$218,$Q57,OFFSET(Census!$AD$19,0,MATCH(G$68,Census!$AD$18:$DD$18,0)-1,277,1))-F57 -> 0 | H57: =SUMIF(Census!$X$19:$X$218,$Q57&"/Employee/Y",OFFSET(Census!$AD$19,0,MATCH(H$68,Census!$AD$18:$DD$18,0)-1,277,1)) -> 0 | I57: =SUMIF(Census!$B$19:$B$218,$Q57,OFFSET(Census!$AD$19,0,MATCH(I$68,Census!$AD$18:$DD$18,0)-1,277,1))-H57 -> 0 | J57: =SUMIF(Census!$X$19:$X$218,$Q57&"/Employee/Y",OFFSET(Census!$AD$19,0,MATCH(J$68,Census!$AD$18:$DD$18,0)-1,277,1)) -> 0 | K57: =SUMIF(Census!$B$19:$B$218,$Q57,OFFSET(Census!$AD$19,0,MATCH(K$68,Census!$AD$18:$DD$18,0)-1,277,1))-J57 -> 0 | L57: =SUMIF(Census!$X$19:$X$218,$Q57&"/Employee/Y",OFFSET(Census!$AD$19,0,MATCH(L$68,Census!$AD$18:$DD$18,0)-1,277,1)) -> 0 | M57: =SUMIF(Census!$B$19:$B$218,$Q57,OFFSET(Census!$AD$19,0,MATCH(M$68,Census!$AD$18:$DD$18,0)-1,277,1))-L57 -> 0 | N57: =SUMIF(Census!$X$19:$X$218,$Q57&"/Employee/Y",OFFSET(Census!$AD$19,0,MATCH(N$68,Census!$AD$18:$DD$18,0)-1,277,1)) -> 0 | O57: =SUMIF(Census!$B$19:$B$218,$Q57,OFFSET(Census!$AD$19,0,MATCH(O$68,Census!$AD$18:$DD$18,0)-1,277,1))-N57 -> 0 | Q57: 45 | R57: HIDE
B58: =VLOOKUP(Q58,Census!$B$19:$C$218,2,FALSE) ->  | C58: =VLOOKUP($Q58,Census!$B$19:$G$218,6,FALSE) ->  | D58: =SUMIF(Census!$X$19:$X$218,$Q58&"/Employee/Y",OFFSET(Census!$AD$19,0,MATCH(D$68,Census!$AD$18:$DD$18,0)-1,277,1)) -> 0 | E58: =SUMIF(Census!$B$19:$B$218,$Q58,OFFSET(Census!$AD$19,0,MATCH(E$68,Census!$AD$18:$DD$18,0)-1,277,1))-D58 -> 0 | F58: =SUMIF(Census!$X$19:$X$218,$Q58&"/Employee/Y",OFFSET(Census!$AD$19,0,MATCH(F$68,Census!$AD$18:$DD$18,0)-1,277,1)) -> 0 | G58: =SUMIF(Census!$B$19:$B$218,$Q58,OFFSET(Census!$AD$19,0,MATCH(G$68,Census!$AD$18:$DD$18,0)-1,277,1))-F58 -> 0 | H58: =SUMIF(Census!$X$19:$X$218,$Q58&"/Employee/Y",OFFSET(Census!$AD$19,0,MATCH(H$68,Census!$AD$18:$DD$18,0)-1,277,1)) -> 0 | I58: =SUMIF(Census!$B$19:$B$218,$Q58,OFFSET(Census!$AD$19,0,MATCH(I$68,Census!$AD$18:$DD$18,0)-1,277,1))-H58 -> 0 | J58: =SUMIF(Census!$X$19:$X$218,$Q58&"/Employee/Y",OFFSET(Census!$AD$19,0,MATCH(J$68,Census!$AD$18:$DD$18,0)-1,277,1)) -> 0 | K58: =SUMIF(Census!$B$19:$B$218,$Q58,OFFSET(Census!$AD$19,0,MATCH(K$68,Census!$AD$18:$DD$18,0)-1,277,1))-J58 -> 0 | L58: =SUMIF(Census!$X$19:$X$218,$Q58&"/Employee/Y",OFFSET(Census!$AD$19,0,MATCH(L$68,Census!$AD$18:$DD$18,0)-1,277,1)) -> 0 | M58: =SUMIF(Census!$B$19:$B$218,$Q58,OFFSET(Census!$AD$19,0,MATCH(M$68,Census!$AD$18:$DD$18,0)-1,277,1))-L58 -> 0 | N58: =SUMIF(Census!$X$19:$X$218,$Q58&"/Employee/Y",OFFSET(Census!$AD$19,0,MATCH(N$68,Census!$AD$18:$DD$18,0)-1,277,1)) -> 0 | O58: =SUMIF(Census!$B$19:$B$218,$Q58,OFFSET(Census!$AD$19,0,MATCH(O$68,Census!$AD$18:$DD$18,0)-1,277,1))-N58 -> 0 | Q58: 46 | R58: HIDE
B59: =VLOOKUP(Q59,Census!$B$19:$C$218,2,FALSE) ->  | C59: =VLOOKUP($Q59,Census!$B$19:$G$218,6,FALSE) ->  | D59: =SUMIF(Census!$X$19:$X$218,$Q59&"/Employee/Y",OFFSET(Census!$AD$19,0,MATCH(D$68,Census!$AD$18:$DD$18,0)-1,277,1)) -> 0 | E59: =SUMIF(Census!$B$19:$B$218,$Q59,OFFSET(Census!$AD$19,0,MATCH(E$68,Census!$AD$18:$DD$18,0)-1,277,1))-D59 -> 0 | F59: =SUMIF(Census!$X$19:$X$218,$Q59&"/Employee/Y",OFFSET(Census!$AD$19,0,MATCH(F$68,Census!$AD$18:$DD$18,0)-1,277,1)) -> 0 | G59: =SUMIF(Census!$B$19:$B$218,$Q59,OFFSET(Census!$AD$19,0,MATCH(G$68,Census!$AD$18:$DD$18,0)-1,277,1))-F59 -> 0 | H59: =SUMIF(Census!$X$19:$X$218,$Q59&"/Employee/Y",OFFSET(Census!$AD$19,0,MATCH(H$68,Census!$AD$18:$DD$18,0)-1,277,1)) -> 0 | I59: =SUMIF(Census!$B$19:$B$218,$Q59,OFFSET(Census!$AD$19,0,MATCH(I$68,Census!$AD$18:$DD$18,0)-1,277,1))-H59 -> 0 | J59: =SUMIF(Census!$X$19:$X$218,$Q59&"/Employee/Y",OFFSET(Census!$AD$19,0,MATCH(J$68,Census!$AD$18:$DD$18,0)-1,277,1)) -> 0 | K59: =SUMIF(Census!$B$19:$B$218,$Q59,OFFSET(Census!$AD$19,0,MATCH(K$68,Census!$AD$18:$DD$18,0)-1,277,1))-J59 -> 0 | L59: =SUMIF(Census!$X$19:$X$218,$Q59&"/Employee/Y",OFFSET(Census!$AD$19,0,MATCH(L$68,Census!$AD$18:$DD$18,0)-1,277,1)) -> 0 | M59: =SUMIF(Census!$B$19:$B$218,$Q59,OFFSET(Census!$AD$19,0,MATCH(M$68,Census!$AD$18:$DD$18,0)-1,277,1))-L59 -> 0 | N59: =SUMIF(Census!$X$19:$X$218,$Q59&"/Employee/Y",OFFSET(Census!$AD$19,0,MATCH(N$68,Census!$AD$18:$DD$18,0)-1,277,1)) -> 0 | O59: =SUMIF(Census!$B$19:$B$218,$Q59,OFFSET(Census!$AD$19,0,MATCH(O$68,Census!$AD$18:$DD$18,0)-1,277,1))-N59 -> 0 | Q59: 47 | R59: HIDE
B60: =VLOOKUP(Q60,Census!$B$19:$C$218,2,FALSE) ->  | C60: =VLOOKUP($Q60,Census!$B$19:$G$218,6,FALSE) ->  | D60: =SUMIF(Census!$X$19:$X$218,$Q60&"/Employee/Y",OFFSET(Census!$AD$19,0,MATCH(D$68,Census!$AD$18:$DD$18,0)-1,277,1)) -> 0 | E60: =SUMIF(Census!$B$19:$B$218,$Q60,OFFSET(Census!$AD$19,0,MATCH(E$68,Census!$AD$18:$DD$18,0)-1,277,1))-D60 -> 0 | F60: =SUMIF(Census!$X$19:$X$218,$Q60&"/Employee/Y",OFFSET(Census!$AD$19,0,MATCH(F$68,Census!$AD$18:$DD$18,0)-1,277,1)) -> 0 | G60: =SUMIF(Census!$B$19:$B$218,$Q60,OFFSET(Census!$AD$19,0,MATCH(G$68,Census!$AD$18:$DD$18,0)-1,277,1))-F60 -> 0 | H60: =SUMIF(Census!$X$19:$X$218,$Q60&"/Employee/Y",OFFSET(Census!$AD$19,0,MATCH(H$68,Census!$AD$18:$DD$18,0)-1,277,1)) -> 0 | I60: =SUMIF(Census!$B$19:$B$218,$Q60,OFFSET(Census!$AD$19,0,MATCH(I$68,Census!$AD$18:$DD$18,0)-1,277,1))-H60 -> 0 | J60: =SUMIF(Census!$X$19:$X$218,$Q60&"/Employee/Y",OFFSET(Census!$AD$19,0,MATCH(J$68,Census!$AD$18:$DD$18,0)-1,277,1)) -> 0 | K60: =SUMIF(Census!$B$19:$B$218,$Q60,OFFSET(Census!$AD$19,0,MATCH(K$68,Census!$AD$18:$DD$18,0)-1,277,1))-J60 -> 0 | L60: =SUMIF(Census!$X$19:$X$218,$Q60&"/Employee/Y",OFFSET(Census!$AD$19,0,MATCH(L$68,Census!$AD$18:$DD$18,0)-1,277,1)) -> 0 | M60: =SUMIF(Census!$B$19:$B$218,$Q60,OFFSET(Census!$AD$19,0,MATCH(M$68,Census!$AD$18:$DD$18,0)-1,277,1))-L60 -> 0 | N60: =SUMIF(Census!$X$19:$X$218,$Q60&"/Employee/Y",OFFSET(Census!$AD$19,0,MATCH(N$68,Census!$AD$18:$DD$18,0)-1,277,1)) -> 0 | O60: =SUMIF(Census!$B$19:$B$218,$Q60,OFFSET(Census!$AD$19,0,MATCH(O$68,Census!$AD$18:$DD$18,0)-1,277,1))-N60 -> 0 | Q60: 48 | R60: HIDE
B61: =VLOOKUP(Q61,Census!$B$19:$C$218,2,FALSE) ->  | C61: =VLOOKUP($Q61,Census!$B$19:$G$218,6,FALSE) ->  | D61: =SUMIF(Census!$X$19:$X$218,$Q61&"/Employee/Y",OFFSET(Census!$AD$19,0,MATCH(D$68,Census!$AD$18:$DD$18,0)-1,277,1)) -> 0 | E61: =SUMIF(Census!$B$19:$B$218,$Q61,OFFSET(Census!$AD$19,0,MATCH(E$68,Census!$AD$18:$DD$18,0)-1,277,1))-D61 -> 0 | F61: =SUMIF(Census!$X$19:$X$218,$Q61&"/Employee/Y",OFFSET(Census!$AD$19,0,MATCH(F$68,Census!$AD$18:$DD$18,0)-1,277,1)) -> 0 | G61: =SUMIF(Census!$B$19:$B$218,$Q61,OFFSET(Census!$AD$19,0,MATCH(G$68,Census!$AD$18:$DD$18,0)-1,277,1))-F61 -> 0 | H61: =SUMIF(Census!$X$19:$X$218,$Q61&"/Employee/Y",OFFSET(Census!$AD$19,0,MATCH(H$68,Census!$AD$18:$DD$18,0)-1,277,1)) -> 0 | I61: =SUMIF(Census!$B$19:$B$218,$Q61,OFFSET(Census!$AD$19,0,MATCH(I$68,Census!$AD$18:$DD$18,0)-1,277,1))-H61 -> 0 | J61: =SUMIF(Census!$X$19:$X$218,$Q61&"/Employee/Y",OFFSET(Census!$AD$19,0,MATCH(J$68,Census!$AD$18:$DD$18,0)-1,277,1)) -> 0 | K61: =SUMIF(Census!$B$19:$B$218,$Q61,OFFSET(Census!$AD$19,0,MATCH(K$68,Census!$AD$18:$DD$18,0)-1,277,1))-J61 -> 0 | L61: =SUMIF(Census!$X$19:$X$218,$Q61&"/Employee/Y",OFFSET(Census!$AD$19,0,MATCH(L$68,Census!$AD$18:$DD$18,0)-1,277,1)) -> 0 | M61: =SUMIF(Census!$B$19:$B$218,$Q61,OFFSET(Census!$AD$19,0,MATCH(M$68,Census!$AD$18:$DD$18,0)-1,277,1))-L61 -> 0 | N61: =SUMIF(Census!$X$19:$X$218,$Q61&"/Employee/Y",OFFSET(Census!$AD$19,0,MATCH(N$68,Census!$AD$18:$DD$18,0)-1,277,1)) -> 0 | O61: =SUMIF(Census!$B$19:$B$218,$Q61,OFFSET(Census!$AD$19,0,MATCH(O$68,Census!$AD$18:$DD$18,0)-1,277,1))-N61 -> 0 | Q61: 49 | R61: HIDE
B62: =VLOOKUP(Q62,Census!$B$19:$C$218,2,FALSE) ->  | C62: =VLOOKUP($Q62,Census!$B$19:$G$218,6,FALSE) ->  | D62: =SUMIF(Census!$X$19:$X$218,$Q62&"/Employee/Y",OFFSET(Census!$AD$19,0,MATCH(D$68,Census!$AD$18:$DD$18,0)-1,277,1)) -> 0 | E62: =SUMIF(Census!$B$19:$B$218,$Q62,OFFSET(Census!$AD$19,0,MATCH(E$68,Census!$AD$18:$DD$18,0)-1,277,1))-D62 -> 0 | F62: =SUMIF(Census!$X$19:$X$218,$Q62&"/Employee/Y",OFFSET(Census!$AD$19,0,MATCH(F$68,Census!$AD$18:$DD$18,0)-1,277,1)) -> 0 | G62: =SUMIF(Census!$B$19:$B$218,$Q62,OFFSET(Census!$AD$19,0,MATCH(G$68,Census!$AD$18:$DD$18,0)-1,277,1))-F62 -> 0 | H62: =SUMIF(Census!$X$19:$X$218,$Q62&"/Employee/Y",OFFSET(Census!$AD$19,0,MATCH(H$68,Census!$AD$18:$DD$18,0)-1,277,1)) -> 0 | I62: =SUMIF(Census!$B$19:$B$218,$Q62,OFFSET(Census!$AD$19,0,MATCH(I$68,Census!$AD$18:$DD$18,0)-1,277,1))-H62 -> 0 | J62: =SUMIF(Census!$X$19:$X$218,$Q62&"/Employee/Y",OFFSET(Census!$AD$19,0,MATCH(J$68,Census!$AD$18:$DD$18,0)-1,277,1)) -> 0 | K62: =SUMIF(Census!$B$19:$B$218,$Q62,OFFSET(Census!$AD$19,0,MATCH(K$68,Census!$AD$18:$DD$18,0)-1,277,1))-J62 -> 0 | L62: =SUMIF(Census!$X$19:$X$218,$Q62&"/Employee/Y",OFFSET(Census!$AD$19,0,MATCH(L$68,Census!$AD$18:$DD$18,0)-1,277,1)) -> 0 | M62: =SUMIF(Census!$B$19:$B$218,$Q62,OFFSET(Census!$AD$19,0,MATCH(M$68,Census!$AD$18:$DD$18,0)-1,277,1))-L62 -> 0 | N62: =SUMIF(Census!$X$19:$X$218,$Q62&"/Employee/Y",OFFSET(Census!$AD$19,0,MATCH(N$68,Census!$AD$18:$DD$18,0)-1,277,1)) -> 0 | O62: =SUMIF(Census!$B$19:$B$218,$Q62,OFFSET(Census!$AD$19,0,MATCH(O$68,Census!$AD$18:$DD$18,0)-1,277,1))-N62 -> 0 | Q62: 50 | R62: HIDE
B64: Total | D64: =SUM(D13:D62) -> 3583.34 | E64: 3042 | F64: =SUM(F13:F62) -> 3212.43 | G64: 2727.13 | H64: 3417.35 | I64: 2901.11 | J64: 2978.34 | K64: 2528.4 | L64: =SUM(L13:L62) -> 2590.28 | M64: 2198.95 | N64: 2726.8 | O64: 2314.87
B65: Total Monthly Premium | D65: =SUM(D64:E64) -> 6625.34 | F65: =SUM(F64:G64) -> 5939.56 | H65: =SUM(H64:I64) -> 6318.46 | J65: =SUM(J64:K64) -> 5506.74 | L65: =SUM(L64:M64) -> 4789.23 | N65: =SUM(N64:O64) -> 5041.67
B66: Average Premium | D66: =D64/Subs -> 511.9057143 | E66: =IF(Dependents=0,0,E64/Dependents) -> 304.2 | F66: =F64/Subs -> 458.9185714 | G66: =IF(Dependents=0,0,G64/Dependents) -> 272.713 | H66: =H64/Subs -> 488.1928571 | I66: =IF(Dependents=0,0,I64/Dependents) -> 290.111 | J66: =J64/Subs -> 425.4771429 | K66: =IF(Dependents=0,0,K64/Dependents) -> 252.84 | L66: =L64/Subs -> 370.04 | M66: =IF(Dependents=0,0,M64/Dependents) -> 219.895 | N66: =N64/Subs -> 389.5428571 | O66: =IF(Dependents=0,0,O64/Dependents) -> 231.487
D68: =INDEX(Plan_tbl,D69,1) -> 51485AZ0160036 | E68: =D68 -> 51485AZ0160036 | F68: =INDEX(Plan_tbl,F69,1) -> 51485AZ0160033 | G68: =F68 -> 51485AZ0160033 | H68: =INDEX(Plan_tbl,H69,1) -> 51485AZ0160038 | I68: =H68 -> 51485AZ0160038 | J68: =INDEX(Plan_tbl,J69,1) -> 51485AZ0160039 | K68: =J68 -> 51485AZ0160039 | L68: =INDEX(Plan_tbl,L69,1) -> 51485AZ0160040 | M68: =L68 -> 51485AZ0160040 | N68: =INDEX(Plan_tbl,N69,1) -> 51485AZ0160032 | O68: =N68 -> 51485AZ0160032
D69: 4 | F69: 5 | H69: 6 | J69: 7 | L69: 8 | N69: 9

Sheet Calc_pg3 (hidden)
E1: Group Name: | F1: =Grp_Name -> Example Group
E2: Location: | F2: =Grp_County -> Maricopa
E3: Total Eligible Employees: | F3: =Total_EEs -> 7
E4: Effective Date: | F4: =TEXT(Eff_Dt,"mm/dd/yyyy") -> 04/01/2018
E5: Date of Proposal: | F5: =TEXT(TODAY(),"mm/dd/yyyy") -> 01/10/2018
B8: =VLOOKUP(D68,Plan_tbl,25,FALSE) -> Health Net PPO
D9: =VLOOKUP(D68,Plan_tbl,26,FALSE) -> PPO 10 | F9: =VLOOKUP(F68,Plan_tbl,26,FALSE) -> PPO 11 | H9: =VLOOKUP(H68,Plan_tbl,26,FALSE) -> PPO 12
D10: =VLOOKUP(D68,Plan_tbl,6,FALSE) -> Silver HSA 3000 | F10: =VLOOKUP(F68,Plan_tbl,6,FALSE) -> Silver HSA 4500 | H10: =VLOOKUP(H68,Plan_tbl,6,FALSE) -> Bronze HSA 6550
D11: ="Rx: "&VLOOKUP(D68,Plan_tbl,21,FALSE) -> Rx: $20/$70/$120/50% after deductible | F11: ="Rx: "&VLOOKUP(F68,Plan_tbl,21,FALSE) -> Rx: 0% after deductible | H11: ="Rx: "&VLOOKUP(H68,Plan_tbl,21,FALSE) -> Rx: 0% after deductible | K11: Employee Number | L11: Hide/Show
B12: Name | C12: Age | D12: Employee Only | E12: Dependents Total | F12: Employee Only | G12: Dependents Total | H12: Employee Only | I12: Dependents Total
B13: =VLOOKUP($K13,Census!$B$19:$C$218,2,FALSE) -> Employee 1 | C13: =VLOOKUP($K13,Census!$B$19:$G$218,6,FALSE) -> 27 | D13: =SUMIF(Census!$X$19:$X$218,$K13&"/Employee/Y",OFFSET(Census!$AD$19,0,MATCH(D$68,Census!$AD$18:$DD$18,0)-1,277,1)) -> 305.07 | E13: =SUMIF(Census!$B$19:$B$218,$K13,OFFSET(Census!$AD$19,0,MATCH(E$68,Census!$AD$18:$DD$18,0)-1,277,1))-D13 -> 520.78 | F13: =SUMIF(Census!$X$19:$X$218,$K13&"/Employee/Y",OFFSET(Census!$AD$19,0,MATCH(F$68,Census!$AD$18:$DD$18,0)-1,277,1)) -> 321.52 | G13: =SUMIF(Census!$B$19:$B$218,$K13,OFFSET(Census!$AD$19,0,MATCH(G$68,Census!$AD$18:$DD$18,0)-1,277,1))-F13 -> 548.84 | H13: =SUMIF(Census!$X$19:$X$218,$K13&"/Employee/Y",OFFSET(Census!$AD$19,0,MATCH(H$68,Census!$AD$18:$DD$18,0)-1,277,1)) -> 261.65 | I13: =SUMIF(Census!$B$19:$B$218,$K13,OFFSET(Census!$AD$19,0,MATCH(I$68,Census!$AD$18:$DD$18,0)-1,277,1))-H13 -> 446.65 | K13: 1 | L13: =IF(D13=0,"HIDE","SHOW") -> SHOW
B14: =VLOOKUP(K14,Census!$B$19:$C$218,2,FALSE) -> Employee 2 | C14: =VLOOKUP($K14,Census!$B$19:$G$218,6,FALSE) -> 41 | D14: =SUMIF(Census!$X$19:$X$218,$K14&"/Employee/Y",OFFSET(Census!$AD$19,0,MATCH(D$68,Census!$AD$18:$DD$18,0)-1,277,1)) -> 379.01 | E14: =SUMIF(Census!$B$19:$B$218,$K14,OFFSET(Census!$AD$19,0,MATCH(E$68,Census!$AD$18:$DD$18,0)-1,277,1))-D14 -> 0 | F14: =SUMIF(Census!$X$19:$X$218,$K14&"/Employee/Y",OFFSET(Census!$AD$19,0,MATCH(F$68,Census!$AD$18:$DD$18,0)-1,277,1)) -> 399.44 | G14: =SUMIF(Census!$B$19:$B$218,$K14,OFFSET(Census!$AD$19,0,MATCH(G$68,Census!$AD$18:$DD$18,0)-1,277,1))-F14 -> 0 | H14: =SUMIF(Census!$X$19:$X$218,$K14&"/Employee/Y",OFFSET(Census!$AD$19,0,MATCH(H$68,Census!$AD$18:$DD$18,0)-1,277,1)) -> 325.06 | I14: =SUMIF(Census!$B$19:$B$218,$K14,OFFSET(Census!$AD$19,0,MATCH(I$68,Census!$AD$18:$DD$18,0)-1,277,1))-H14 -> 0 | K14: =K13+1 -> 2 | L14: SHOW
B15: =VLOOKUP(K15,Census!$B$19:$C$218,2,FALSE) -> Employee 3 | C15: =VLOOKUP($K15,Census!$B$19:$G$218,6,FALSE) -> 43 | D15: =SUMIF(Census!$X$19:$X$218,$K15&"/Employee/Y",OFFSET(Census!$AD$19,0,MATCH(D$68,Census!$AD$18:$DD$18,0)-1,277,1)) -> 395.02 | E15: =SUMIF(Census!$B$19:$B$218,$K15,OFFSET(Census!$AD$19,0,MATCH(E$68,Census!$AD$18:$DD$18,0)-1,277,1))-D15 -> 0 | F15: =SUMIF(Census!$X$19:$X$218,$K15&"/Employee/Y",OFFSET(Census!$AD$19,0,MATCH(F$68,Census!$AD$18:$DD$18,0)-1,277,1)) -> 416.31 | G15: =SUMIF(Census!$B$19:$B$218,$K15,OFFSET(Census!$AD$19,0,MATCH(G$68,Census!$AD$18:$DD$18,0)-1,277,1))-F15 -> 0 | H15: =SUMIF(Census!$X$19:$X$218,$K15&"/Employee/Y",OFFSET(Census!$AD$19,0,MATCH(H$68,Census!$AD$18:$DD$18,0)-1,277,1)) -> 338.79 | I15: =SUMIF(Census!$B$19:$B$218,$K15,OFFSET(Census!$AD$19,0,MATCH(I$68,Census!$AD$18:$DD$18,0)-1,277,1))-H15 -> 0 | K15: =K14+1 -> 3 | L15: SHOW
B16: =VLOOKUP(K16,Census!$B$19:$C$218,2,FALSE) -> Smith, Amy | C16: =VLOOKUP($K16,Census!$B$19:$G$218,6,FALSE) -> 54 | D16: =SUMIF(Census!$X$19:$X$218,$K16&"/Employee/Y",OFFSET(Census!$AD$19,0,MATCH(D$68,Census!$AD$18:$DD$18,0)-1,277,1)) -> 621.5 | E16: =SUMIF(Census!$B$19:$B$218,$K16,OFFSET(Census!$AD$19,0,MATCH(E$68,Census!$AD$18:$DD$18,0)-1,277,1))-D16 -> 1723.88 | F16: =SUMIF(Census!$X$19:$X$218,$K16&"/Employee/Y",OFFSET(Census!$AD$19,0,MATCH(F$68,Census!$AD$18:$DD$18,0)-1,277,1)) -> 655 | G16: =SUMIF(Census!$B$19:$B$218,$K16,OFFSET(Census!$AD$19,0,MATCH(G$68,Census!$AD$18:$DD$18,0)-1,277,1))-F16 -> 1816.82 | H16: =SUMIF(Census!$X$19:$X$218,$K16&"/Employee/Y",OFFSET(Census!$AD$19,0,MATCH(H$68,Census!$AD$18:$DD$18,0)-1,277,1)) -> 533.03 | I16: =SUMIF(Census!$B$19:$B$218,$K16,OFFSET(Census!$AD$19,0,MATCH(I$68,Census!$AD$18:$DD$18,0)-1,277,1))-H16 -> 1478.5 | K16: 4 | L16: SHOW
B17: =VLOOKUP(K17,Census!$B$19:$C$218,2,FALSE) -> Employee 5 | C17: =VLOOKUP($K17,Census!$B$19:$G$218,6,FALSE) -> 71 | D17: =SUMIF(Census!$X$19:$X$218,$K17&"/Employee/Y",OFFSET(Census!$AD$19,0,MATCH(D$68,Census!$AD$18:$DD$18,0)-1,277,1)) -> 873.3 | E17: =SUMIF(Census!$B$19:$B$218,$K17,OFFSET(Census!$AD$19,0,MATCH(E$68,Census!$AD$18:$DD$18,0)-1,277,1))-D17 -> 0 | F17: =SUMIF(Census!$X$19:$X$218,$K17&"/Employee/Y",OFFSET(Census!$AD$19,0,MATCH(F$68,Census!$AD$18:$DD$18,0)-1,277,1)) -> 920.37 | G17: =SUMIF(Census!$B$19:$B$218,$K17,OFFSET(Census!$AD$19,0,MATCH(G$68,Census!$AD$18:$DD$18,0)-1,277,1))-F17 -> 0 | H17: =SUMIF(Census!$X$19:$X$218,$K17&"/Employee/Y",OFFSET(Census!$AD$19,0,MATCH(H$68,Census!$AD$18:$DD$18,0)-1,277,1)) -> 748.98 | I17: =SUMIF(Census!$B$19:$B$218,$K17,OFFSET(Census!$AD$19,0,MATCH(I$68,Census!$AD$18:$DD$18,0)-1,277,1))-H17 -> 0 | K17: 5 | L17: SHOW
B18: =VLOOKUP(K18,Census!$B$19:$C$218,2,FALSE) -> Employee 6 | C18: =VLOOKUP($K18,Census!$B$19:$G$218,6,FALSE) -> 37 | D18: =SUMIF(Census!$X$19:$X$218,$K18&"/Employee/Y",OFFSET(Census!$AD$19,0,MATCH(D$68,Census!$AD$18:$DD$18,0)-1,277,1)) -> 360.38 | E18: =SUMIF(Census!$B$19:$B$218,$K18,OFFSET(Census!$AD$19,0,MATCH(E$68,Census!$AD$18:$DD$18,0)-1,277,1))-D18 -> 222.69 | F18: =SUMIF(Census!$X$19:$X$218,$K18&"/Employee/Y",OFFSET(Census!$AD$19,0,MATCH(F$68,Census!$AD$18:$DD$18,0)-1,277,1)) -> 379.81 | G18: =SUMIF(Census!$B$19:$B$218,$K18,OFFSET(Census!$AD$19,0,MATCH(G$68,Census!$AD$18:$DD$18,0)-1,277,1))-F18 -> 234.69 | H18: =SUMIF(Census!$X$19:$X$218,$K18&"/Employee/Y",OFFSET(Census!$AD$19,0,MATCH(H$68,Census!$AD$18:$DD$18,0)-1,277,1)) -> 309.08 | I18: =SUMIF(Census!$B$19:$B$218,$K18,OFFSET(Census!$AD$19,0,MATCH(I$68,Census!$AD$18:$DD$18,0)-1,277,1))-H18 -> 190.99 | K18: 6 | L18: SHOW
B19: =VLOOKUP(K19,Census!$B$19:$C$218,2,FALSE) -> Wilson, Jim | C19: =VLOOKUP($K19,Census!$B$19:$G$218,6,FALSE) -> 28 | D19: =SUMIF(Census!$X$19:$X$218,$K19&"/Employee/Y",OFFSET(Census!$AD$19,0,MATCH(D$68,Census!$AD$18:$DD$18,0)-1,277,1)) -> 316.42 | E19: =SUMIF(Census!$B$19:$B$218,$K19,OFFSET(Census!$AD$19,0,MATCH(E$68,Census!$AD$18:$DD$18,0)-1,277,1))-D19 -> 292.26 | F19: =SUMIF(Census!$X$19:$X$218,$K19&"/Employee/Y",OFFSET(Census!$AD$19,0,MATCH(F$68,Census!$AD$18:$DD$18,0)-1,277,1)) -> 333.48 | G19: =SUMIF(Census!$B$19:$B$218,$K19,OFFSET(Census!$AD$19,0,MATCH(G$68,Census!$AD$18:$DD$18,0)-1,277,1))-F19 -> 308.02 | H19: =SUMIF(Census!$X$19:$X$218,$K19&"/Employee/Y",OFFSET(Census!$AD$19,0,MATCH(H$68,Census!$AD$18:$DD$18,0)-1,277,1)) -> 271.38 | I19: =SUMIF(Census!$B$19:$B$218,$K19,OFFSET(Census!$AD$19,0,MATCH(I$68,Census!$AD$18:$DD$18,0)-1,277,1))-H19 -> 250.66 | K19: 7 | L19: SHOW
B20: =VLOOKUP(K20,Census!$B$19:$C$218,2,FALSE) ->  | C20: =VLOOKUP($K20,Census!$B$19:$G$218,6,FALSE) ->  | D20: =SUMIF(Census!$X$19:$X$218,$K20&"/Employee/Y",OFFSET(Census!$AD$19,0,MATCH(D$68,Census!$AD$18:$DD$18,0)-1,277,1)) -> 0 | E20: =SUMIF(Census!$B$19:$B$218,$K20,OFFSET(Census!$AD$19,0,MATCH(E$68,Census!$AD$18:$DD$18,0)-1,277,1))-D20 -> 0 | F20: =SUMIF(Census!$X$19:$X$218,$K20&"/Employee/Y",OFFSET(Census!$AD$19,0,MATCH(F$68,Census!$AD$18:$DD$18,0)-1,277,1)) -> 0 | G20: =SUMIF(Census!$B$19:$B$218,$K20,OFFSET(Census!$AD$19,0,MATCH(G$68,Census!$AD$18:$DD$18,0)-1,277,1))-F20 -> 0 | H20: =SUMIF(Census!$X$19:$X$218,$K20&"/Employee/Y",OFFSET(Census!$AD$19,0,MATCH(H$68,Census!$AD$18:$DD$18,0)-1,277,1)) -> 0 | I20: =SUMIF(Census!$B$19:$B$218,$K20,OFFSET(Census!$AD$19,0,MATCH(I$68,Census!$AD$18:$DD$18,0)-1,277,1))-H20 -> 0 | K20: 8 | L20: HIDE
B21: =VLOOKUP(K21,Census!$B$19:$C$218,2,FALSE) ->  | C21: =VLOOKUP($K21,Census!$B$19:$G$218,6,FALSE) ->  | D21: =SUMIF(Census!$X$19:$X$218,$K21&"/Employee/Y",OFFSET(Census!$AD$19,0,MATCH(D$68,Census!$AD$18:$DD$18,0)-1,277,1)) -> 0 | E21: =SUMIF(Census!$B$19:$B$218,$K21,OFFSET(Census!$AD$19,0,MATCH(E$68,Census!$AD$18:$DD$18,0)-1,277,1))-D21 -> 0 | F21: =SUMIF(Census!$X$19:$X$218,$K21&"/Employee/Y",OFFSET(Census!$AD$19,0,MATCH(F$68,Census!$AD$18:$DD$18,0)-1,277,1)) -> 0 | G21: =SUMIF(Census!$B$19:$B$218,$K21,OFFSET(Census!$AD$19,0,MATCH(G$68,Census!$AD$18:$DD$18,0)-1,277,1))-F21 -> 0 | H21: =SUMIF(Census!$X$19:$X$218,$K21&"/Employee/Y",OFFSET(Census!$AD$19,0,MATCH(H$68,Census!$AD$18:$DD$18,0)-1,277,1)) -> 0 | I21: =SUMIF(Census!$B$19:$B$218,$K21,OFFSET(Census!$AD$19,0,MATCH(I$68,Census!$AD$18:$DD$18,0)-1,277,1))-H21 -> 0 | K21: 9 | L21: HIDE
B22: =VLOOKUP(K22,Census!$B$19:$C$218,2,FALSE) ->  | C22: =VLOOKUP($K22,Census!$B$19:$G$218,6,FALSE) ->  | D22: =SUMIF(Census!$X$19:$X$218,$K22&"/Employee/Y",OFFSET(Census!$AD$19,0,MATCH(D$68,Census!$AD$18:$DD$18,0)-1,277,1)) -> 0 | E22: =SUMIF(Census!$B$19:$B$218,$K22,OFFSET(Census!$AD$19,0,MATCH(E$68,Census!$AD$18:$DD$18,0)-1,277,1))-D22 -> 0 | F22: =SUMIF(Census!$X$19:$X$218,$K22&"/Employee/Y",OFFSET(Census!$AD$19,0,MATCH(F$68,Census!$AD$18:$DD$18,0)-1,277,1)) -> 0 | G22: =SUMIF(Census!$B$19:$B$218,$K22,OFFSET(Census!$AD$19,0,MATCH(G$68,Census!$AD$18:$DD$18,0)-1,277,1))-F22 -> 0 | H22: =SUMIF(Census!$X$19:$X$218,$K22&"/Employee/Y",OFFSET(Census!$AD$19,0,MATCH(H$68,Census!$AD$18:$DD$18,0)-1,277,1)) -> 0 | I22: =SUMIF(Census!$B$19:$B$218,$K22,OFFSET(Census!$AD$19,0,MATCH(I$68,Census!$AD$18:$DD$18,0)-1,277,1))-H22 -> 0 | K22: 10 | L22: HIDE
B23: =VLOOKUP(K23,Census!$B$19:$C$218,2,FALSE) ->  | C23: =VLOOKUP($K23,Census!$B$19:$G$218,6,FALSE) ->  | D23: =SUMIF(Census!$X$19:$X$218,$K23&"/Employee/Y",OFFSET(Census!$AD$19,0,MATCH(D$68,Census!$AD$18:$DD$18,0)-1,277,1)) -> 0 | E23: =SUMIF(Census!$B$19:$B$218,$K23,OFFSET(Census!$AD$19,0,MATCH(E$68,Census!$AD$18:$DD$18,0)-1,277,1))-D23 -> 0 | F23: =SUMIF(Census!$X$19:$X$218,$K23&"/Employee/Y",OFFSET(Census!$AD$19,0,MATCH(F$68,Census!$AD$18:$DD$18,0)-1,277,1)) -> 0 | G23: =SUMIF(Census!$B$19:$B$218,$K23,OFFSET(Census!$AD$19,0,MATCH(G$68,Census!$AD$18:$DD$18,0)-1,277,1))-F23 -> 0 | H23: =SUMIF(Census!$X$19:$X$218,$K23&"/Employee/Y",OFFSET(Census!$AD$19,0,MATCH(H$68,Census!$AD$18:$DD$18,0)-1,277,1)) -> 0 | I23: =SUMIF(Census!$B$19:$B$218,$K23,OFFSET(Census!$AD$19,0,MATCH(I$68,Census!$AD$18:$DD$18,0)-1,277,1))-H23 -> 0 | K23: 11 | L23: HIDE
B24: =VLOOKUP(K24,Census!$B$19:$C$218,2,FALSE) ->  | C24: =VLOOKUP($K24,Census!$B$19:$G$218,6,FALSE) ->  | D24: =SUMIF(Census!$X$19:$X$218,$K24&"/Employee/Y",OFFSET(Census!$AD$19,0,MATCH(D$68,Census!$AD$18:$DD$18,0)-1,277,1)) -> 0 | E24: =SUMIF(Census!$B$19:$B$218,$K24,OFFSET(Census!$AD$19,0,MATCH(E$68,Census!$AD$18:$DD$18,0)-1,277,1))-D24 -> 0 | F24: =SUMIF(Census!$X$19:$X$218,$K24&"/Employee/Y",OFFSET(Census!$AD$19,0,MATCH(F$68,Census!$AD$18:$DD$18,0)-1,277,1)) -> 0 | G24: =SUMIF(Census!$B$19:$B$218,$K24,OFFSET(Census!$AD$19,0,MATCH(G$68,Census!$AD$18:$DD$18,0)-1,277,1))-F24 -> 0 | H24: =SUMIF(Census!$X$19:$X$218,$K24&"/Employee/Y",OFFSET(Census!$AD$19,0,MATCH(H$68,Census!$AD$18:$DD$18,0)-1,277,1)) -> 0 | I24: =SUMIF(Census!$B$19:$B$218,$K24,OFFSET(Census!$AD$19,0,MATCH(I$68,Census!$AD$18:$DD$18,0)-1,277,1))-H24 -> 0 | K24: 12 | L24: HIDE
B25: =VLOOKUP(K25,Census!$B$19:$C$218,2,FALSE) ->  | C25: =VLOOKUP($K25,Census!$B$19:$G$218,6,FALSE) ->  | D25: =SUMIF(Census!$X$19:$X$218,$K25&"/Employee/Y",OFFSET(Census!$AD$19,0,MATCH(D$68,Census!$AD$18:$DD$18,0)-1,277,1)) -> 0 | E25: =SUMIF(Census!$B$19:$B$218,$K25,OFFSET(Census!$AD$19,0,MATCH(E$68,Census!$AD$18:$DD$18,0)-1,277,1))-D25 -> 0 | F25: =SUMIF(Census!$X$19:$X$218,$K25&"/Employee/Y",OFFSET(Census!$AD$19,0,MATCH(F$68,Census!$AD$18:$DD$18,0)-1,277,1)) -> 0 | G25: =SUMIF(Census!$B$19:$B$218,$K25,OFFSET(Census!$AD$19,0,MATCH(G$68,Census!$AD$18:$DD$18,0)-1,277,1))-F25 -> 0 | H25: =SUMIF(Census!$X$19:$X$218,$K25&"/Employee/Y",OFFSET(Census!$AD$19,0,MATCH(H$68,Census!$AD$18:$DD$18,0)-1,277,1)) -> 0 | I25: =SUMIF(Census!$B$19:$B$218,$K25,OFFSET(Census!$AD$19,0,MATCH(I$68,Census!$AD$18:$DD$18,0)-1,277,1))-H25 -> 0 | K25: 13 | L25: HIDE
B26: =VLOOKUP(K26,Census!$B$19:$C$218,2,FALSE) ->  | C26: =VLOOKUP($K26,Census!$B$19:$G$218,6,FALSE) ->  | D26: =SUMIF(Census!$X$19:$X$218,$K26&"/Employee/Y",OFFSET(Census!$AD$19,0,MATCH(D$68,Census!$AD$18:$DD$18,0)-1,277,1)) -> 0 | E26: =SUMIF(Census!$B$19:$B$218,$K26,OFFSET(Census!$AD$19,0,MATCH(E$68,Census!$AD$18:$DD$18,0)-1,277,1))-D26 -> 0 | F26: =SUMIF(Census!$X$19:$X$218,$K26&"/Employee/Y",OFFSET(Census!$AD$19,0,MATCH(F$68,Census!$AD$18:$DD$18,0)-1,277,1)) -> 0 | G26: =SUMIF(Census!$B$19:$B$218,$K26,OFFSET(Census!$AD$19,0,MATCH(G$68,Census!$AD$18:$DD$18,0)-1,277,1))-F26 -> 0 | H26: =SUMIF(Census!$X$19:$X$218,$K26&"/Employee/Y",OFFSET(Census!$AD$19,0,MATCH(H$68,Census!$AD$18:$DD$18,0)-1,277,1)) -> 0 | I26: =SUMIF(Census!$B$19:$B$218,$K26,OFFSET(Census!$AD$19,0,MATCH(I$68,Census!$AD$18:$DD$18,0)-1,277,1))-H26 -> 0 | K26: 14 | L26: HIDE
B27: =VLOOKUP(K27,Census!$B$19:$C$218,2,FALSE) ->  | C27: =VLOOKUP($K27,Census!$B$19:$G$218,6,FALSE) ->  | D27: =SUMIF(Census!$X$19:$X$218,$K27&"/Employee/Y",OFFSET(Census!$AD$19,0,MATCH(D$68,Census!$AD$18:$DD$18,0)-1,277,1)) -> 0 | E27: =SUMIF(Census!$B$19:$B$218,$K27,OFFSET(Census!$AD$19,0,MATCH(E$68,Census!$AD$18:$DD$18,0)-1,277,1))-D27 -> 0 | F27: =SUMIF(Census!$X$19:$X$218,$K27&"/Employee/Y",OFFSET(Census!$AD$19,0,MATCH(F$68,Census!$AD$18:$DD$18,0)-1,277,1)) -> 0 | G27: =SUMIF(Census!$B$19:$B$218,$K27,OFFSET(Census!$AD$19,0,MATCH(G$68,Census!$AD$18:$DD$18,0)-1,277,1))-F27 -> 0 | H27: =SUMIF(Census!$X$19:$X$218,$K27&"/Employee/Y",OFFSET(Census!$AD$19,0,MATCH(H$68,Census!$AD$18:$DD$18,0)-1,277,1)) -> 0 | I27: =SUMIF(Census!$B$19:$B$218,$K27,OFFSET(Census!$AD$19,0,MATCH(I$68,Census!$AD$18:$DD$18,0)-1,277,1))-H27 -> 0 | K27: 15 | L27: HIDE
B28: =VLOOKUP(K28,Census!$B$19:$C$218,2,FALSE) ->  | C28: =VLOOKUP($K28,Census!$B$19:$G$218,6,FALSE) ->  | D28: =SUMIF(Census!$X$19:$X$218,$K28&"/Employee/Y",OFFSET(Census!$AD$19,0,MATCH(D$68,Census!$AD$18:$DD$18,0)-1,277,1)) -> 0 | E28: =SUMIF(Census!$B$19:$B$218,$K28,OFFSET(Census!$AD$19,0,MATCH(E$68,Census!$AD$18:$DD$18,0)-1,277,1))-D28 -> 0 | F28: =SUMIF(Census!$X$19:$X$218,$K28&"/Employee/Y",OFFSET(Census!$AD$19,0,MATCH(F$68,Census!$AD$18:$DD$18,0)-1,277,1)) -> 0 | G28: =SUMIF(Census!$B$19:$B$218,$K28,OFFSET(Census!$AD$19,0,MATCH(G$68,Census!$AD$18:$DD$18,0)-1,277,1))-F28 -> 0 | H28: =SUMIF(Census!$X$19:$X$218,$K28&"/Employee/Y",OFFSET(Census!$AD$19,0,MATCH(H$68,Census!$AD$18:$DD$18,0)-1,277,1)) -> 0 | I28: =SUMIF(Census!$B$19:$B$218,$K28,OFFSET(Census!$AD$19,0,MATCH(I$68,Census!$AD$18:$DD$18,0)-1,277,1))-H28 -> 0 | K28: 16 | L28: HIDE
B29: =VLOOKUP(K29,Census!$B$19:$C$218,2,FALSE) ->  | C29: =VLOOKUP($K29,Census!$B$19:$G$218,6,FALSE) ->  | D29: =SUMIF(Census!$X$19:$X$218,$K29&"/Employee/Y",OFFSET(Census!$AD$19,0,MATCH(D$68,Census!$AD$18:$DD$18,0)-1,277,1)) -> 0 | E29: =SUMIF(Census!$B$19:$B$218,$K29,OFFSET(Census!$AD$19,0,MATCH(E$68,Census!$AD$18:$DD$18,0)-1,277,1))-D29 -> 0 | F29: =SUMIF(Census!$X$19:$X$218,$K29&"/Employee/Y",OFFSET(Census!$AD$19,0,MATCH(F$68,Census!$AD$18:$DD$18,0)-1,277,1)) -> 0 | G29: =SUMIF(Census!$B$19:$B$218,$K29,OFFSET(Census!$AD$19,0,MATCH(G$68,Census!$AD$18:$DD$18,0)-1,277,1))-F29 -> 0 | H29: =SUMIF(Census!$X$19:$X$218,$K29&"/Employee/Y",OFFSET(Census!$AD$19,0,MATCH(H$68,Census!$AD$18:$DD$18,0)-1,277,1)) -> 0 | I29: =SUMIF(Census!$B$19:$B$218,$K29,OFFSET(Census!$AD$19,0,MATCH(I$68,Census!$AD$18:$DD$18,0)-1,277,1))-H29 -> 0 | K29: 17 | L29: HIDE
B30: =VLOOKUP(K30,Census!$B$19:$C$218,2,FALSE) ->  | C30: =VLOOKUP($K30,Census!$B$19:$G$218,6,FALSE) ->  | D30: =SUMIF(Census!$X$19:$X$218,$K30&"/Employee/Y",OFFSET(Census!$AD$19,0,MATCH(D$68,Census!$AD$18:$DD$18,0)-1,277,1)) -> 0 | E30: =SUMIF(Census!$B$19:$B$218,$K30,OFFSET(Census!$AD$19,0,MATCH(E$68,Census!$AD$18:$DD$18,0)-1,277,1))-D30 -> 0 | F30: =SUMIF(Census!$X$19:$X$218,$K30&"/Employee/Y",OFFSET(Census!$AD$19,0,MATCH(F$68,Census!$AD$18:$DD$18,0)-1,277,1)) -> 0 | G30: =SUMIF(Census!$B$19:$B$218,$K30,OFFSET(Census!$AD$19,0,MATCH(G$68,Census!$AD$18:$DD$18,0)-1,277,1))-F30 -> 0 | H30: =SUMIF(Census!$X$19:$X$218,$K30&"/Employee/Y",OFFSET(Census!$AD$19,0,MATCH(H$68,Census!$AD$18:$DD$18,0)-1,277,1)) -> 0 | I30: =SUMIF(Census!$B$19:$B$218,$K30,OFFSET(Census!$AD$19,0,MATCH(I$68,Census!$AD$18:$DD$18,0)-1,277,1))-H30 -> 0 | K30: 18 | L30: HIDE
B31: =VLOOKUP(K31,Census!$B$19:$C$218,2,FALSE) ->  | C31: =VLOOKUP($K31,Census!$B$19:$G$218,6,FALSE) ->  | D31: =SUMIF(Census!$X$19:$X$218,$K31&"/Employee/Y",OFFSET(Census!$AD$19,0,MATCH(D$68,Census!$AD$18:$DD$18,0)-1,277,1)) -> 0 | E31: =SUMIF(Census!$B$19:$B$218,$K31,OFFSET(Census!$AD$19,0,MATCH(E$68,Census!$AD$18:$DD$18,0)-1,277,1))-D31 -> 0 | F31: =SUMIF(Census!$X$19:$X$218,$K31&"/Employee/Y",OFFSET(Census!$AD$19,0,MATCH(F$68,Census!$AD$18:$DD$18,0)-1,277,1)) -> 0 | G31: =SUMIF(Census!$B$19:$B$218,$K31,OFFSET(Census!$AD$19,0,MATCH(G$68,Census!$AD$18:$DD$18,0)-1,277,1))-F31 -> 0 | H31: =SUMIF(Census!$X$19:$X$218,$K31&"/Employee/Y",OFFSET(Census!$AD$19,0,MATCH(H$68,Census!$AD$18:$DD$18,0)-1,277,1)) -> 0 | I31: =SUMIF(Census!$B$19:$B$218,$K31,OFFSET(Census!$AD$19,0,MATCH(I$68,Census!$AD$18:$DD$18,0)-1,277,1))-H31 -> 0 | K31: 19 | L31: HIDE
B32: =VLOOKUP(K32,Census!$B$19:$C$218,2,FALSE) ->  | C32: =VLOOKUP($K32,Census!$B$19:$G$218,6,FALSE) ->  | D32: =SUMIF(Census!$X$19:$X$218,$K32&"/Employee/Y",OFFSET(Census!$AD$19,0,MATCH(D$68,Census!$AD$18:$DD$18,0)-1,277,1)) -> 0 | E32: =SUMIF(Census!$B$19:$B$218,$K32,OFFSET(Census!$AD$19,0,MATCH(E$68,Census!$AD$18:$DD$18,0)-1,277,1))-D32 -> 0 | F32: =SUMIF(Census!$X$19:$X$218,$K32&"/Employee/Y",OFFSET(Census!$AD$19,0,MATCH(F$68,Census!$AD$18:$DD$18,0)-1,277,1)) -> 0 | G32: =SUMIF(Census!$B$19:$B$218,$K32,OFFSET(Census!$AD$19,0,MATCH(G$68,Census!$AD$18:$DD$18,0)-1,277,1))-F32 -> 0 | H32: =SUMIF(Census!$X$19:$X$218,$K32&"/Employee/Y",OFFSET(Census!$AD$19,0,MATCH(H$68,Census!$AD$18:$DD$18,0)-1,277,1)) -> 0 | I32: =SUMIF(Census!$B$19:$B$218,$K32,OFFSET(Census!$AD$19,0,MATCH(I$68,Census!$AD$18:$DD$18,0)-1,277,1))-H32 -> 0 | K32: 20 | L32: HIDE
B33: =VLOOKUP(K33,Census!$B$19:$C$218,2,FALSE) ->  | C33: =VLOOKUP($K33,Census!$B$19:$G$218,6,FALSE) ->  | D33: =SUMIF(Census!$X$19:$X$218,$K33&"/Employee/Y",OFFSET(Census!$AD$19,0,MATCH(D$68,Census!$AD$18:$DD$18,0)-1,277,1)) -> 0 | E33: =SUMIF(Census!$B$19:$B$218,$K33,OFFSET(Census!$AD$19,0,MATCH(E$68,Census!$AD$18:$DD$18,0)-1,277,1))-D33 -> 0 | F33: =SUMIF(Census!$X$19:$X$218,$K33&"/Employee/Y",OFFSET(Census!$AD$19,0,MATCH(F$68,Census!$AD$18:$DD$18,0)-1,277,1)) -> 0 | G33: =SUMIF(Census!$B$19:$B$218,$K33,OFFSET(Census!$AD$19,0,MATCH(G$68,Census!$AD$18:$DD$18,0)-1,277,1))-F33 -> 0 | H33: =SUMIF(Census!$X$19:$X$218,$K33&"/Employee/Y",OFFSET(Census!$AD$19,0,MATCH(H$68,Census!$AD$18:$DD$18,0)-1,277,1)) -> 0 | I33: =SUMIF(Census!$B$19:$B$218,$K33,OFFSET(Census!$AD$19,0,MATCH(I$68,Census!$AD$18:$DD$18,0)-1,277,1))-H33 -> 0 | K33: 21 | L33: HIDE
B34: =VLOOKUP(K34,Census!$B$19:$C$218,2,FALSE) ->  | C34: =VLOOKUP($K34,Census!$B$19:$G$218,6,FALSE) ->  | D34: =SUMIF(Census!$X$19:$X$218,$K34&"/Employee/Y",OFFSET(Census!$AD$19,0,MATCH(D$68,Census!$AD$18:$DD$18,0)-1,277,1)) -> 0 | E34: =SUMIF(Census!$B$19:$B$218,$K34,OFFSET(Census!$AD$19,0,MATCH(E$68,Census!$AD$18:$DD$18,0)-1,277,1))-D34 -> 0 | F34: =SUMIF(Census!$X$19:$X$218,$K34&"/Employee/Y",OFFSET(Census!$AD$19,0,MATCH(F$68,Census!$AD$18:$DD$18,0)-1,277,1)) -> 0 | G34: =SUMIF(Census!$B$19:$B$218,$K34,OFFSET(Census!$AD$19,0,MATCH(G$68,Census!$AD$18:$DD$18,0)-1,277,1))-F34 -> 0 | H34: =SUMIF(Census!$X$19:$X$218,$K34&"/Employee/Y",OFFSET(Census!$AD$19,0,MATCH(H$68,Census!$AD$18:$DD$18,0)-1,277,1)) -> 0 | I34: =SUMIF(Census!$B$19:$B$218,$K34,OFFSET(Census!$AD$19,0,MATCH(I$68,Census!$AD$18:$DD$18,0)-1,277,1))-H34 -> 0 | K34: 22 | L34: HIDE
B35: =VLOOKUP(K35,Census!$B$19:$C$218,2,FALSE) ->  | C35: =VLOOKUP($K35,Census!$B$19:$G$218,6,FALSE) ->  | D35: =SUMIF(Census!$X$19:$X$218,$K35&"/Employee/Y",OFFSET(Census!$AD$19,0,MATCH(D$68,Census!$AD$18:$DD$18,0)-1,277,1)) -> 0 | E35: =SUMIF(Census!$B$19:$B$218,$K35,OFFSET(Census!$AD$19,0,MATCH(E$68,Census!$AD$18:$DD$18,0)-1,277,1))-D35 -> 0 | F35: =SUMIF(Census!$X$19:$X$218,$K35&"/Employee/Y",OFFSET(Census!$AD$19,0,MATCH(F$68,Census!$AD$18:$DD$18,0)-1,277,1)) -> 0 | G35: =SUMIF(Census!$B$19:$B$218,$K35,OFFSET(Census!$AD$19,0,MATCH(G$68,Census!$AD$18:$DD$18,0)-1,277,1))-F35 -> 0 | H35: =SUMIF(Census!$X$19:$X$218,$K35&"/Employee/Y",OFFSET(Census!$AD$19,0,MATCH(H$68,Census!$AD$18:$DD$18,0)-1,277,1)) -> 0 | I35: =SUMIF(Census!$B$19:$B$218,$K35,OFFSET(Census!$AD$19,0,MATCH(I$68,Census!$AD$18:$DD$18,0)-1,277,1))-H35 -> 0 | K35: 23 | L35: HIDE
B36: =VLOOKUP(K36,Census!$B$19:$C$218,2,FALSE) ->  | C36: =VLOOKUP($K36,Census!$B$19:$G$218,6,FALSE) ->  | D36: =SUMIF(Census!$X$19:$X$218,$K36&"/Employee/Y",OFFSET(Census!$AD$19,0,MATCH(D$68,Census!$AD$18:$DD$18,0)-1,277,1)) -> 0 | E36: =SUMIF(Census!$B$19:$B$218,$K36,OFFSET(Census!$AD$19,0,MATCH(E$68,Census!$AD$18:$DD$18,0)-1,277,1))-D36 -> 0 | F36: =SUMIF(Census!$X$19:$X$218,$K36&"/Employee/Y",OFFSET(Census!$AD$19,0,MATCH(F$68,Census!$AD$18:$DD$18,0)-1,277,1)) -> 0 | G36: =SUMIF(Census!$B$19:$B$218,$K36,OFFSET(Census!$AD$19,0,MATCH(G$68,Census!$AD$18:$DD$18,0)-1,277,1))-F36 -> 0 | H36: =SUMIF(Census!$X$19:$X$218,$K36&"/Employee/Y",OFFSET(Census!$AD$19,0,MATCH(H$68,Census!$AD$18:$DD$18,0)-1,277,1)) -> 0 | I36: =SUMIF(Census!$B$19:$B$218,$K36,OFFSET(Census!$AD$19,0,MATCH(I$68,Census!$AD$18:$DD$18,0)-1,277,1))-H36 -> 0 | K36: 24 | L36: HIDE
B37: =VLOOKUP(K37,Census!$B$19:$C$218,2,FALSE) ->  | C37: =VLOOKUP($K37,Census!$B$19:$G$218,6,FALSE) ->  | D37: =SUMIF(Census!$X$19:$X$218,$K37&"/Employee/Y",OFFSET(Census!$AD$19,0,MATCH(D$68,Census!$AD$18:$DD$18,0)-1,277,1)) -> 0 | E37: =SUMIF(Census!$B$19:$B$218,$K37,OFFSET(Census!$AD$19,0,MATCH(E$68,Census!$AD$18:$DD$18,0)-1,277,1))-D37 -> 0 | F37: =SUMIF(Census!$X$19:$X$218,$K37&"/Employee/Y",OFFSET(Census!$AD$19,0,MATCH(F$68,Census!$AD$18:$DD$18,0)-1,277,1)) -> 0 | G37: =SUMIF(Census!$B$19:$B$218,$K37,OFFSET(Census!$AD$19,0,MATCH(G$68,Census!$AD$18:$DD$18,0)-1,277,1))-F37 -> 0 | H37: =SUMIF(Census!$X$19:$X$218,$K37&"/Employee/Y",OFFSET(Census!$AD$19,0,MATCH(H$68,Census!$AD$18:$DD$18,0)-1,277,1)) -> 0 | I37: =SUMIF(Census!$B$19:$B$218,$K37,OFFSET(Census!$AD$19,0,MATCH(I$68,Census!$AD$18:$DD$18,0)-1,277,1))-H37 -> 0 | K37: 25 | L37: HIDE
B38: =VLOOKUP(K38,Census!$B$19:$C$218,2,FALSE) ->  | C38: =VLOOKUP($K38,Census!$B$19:$G$218,6,FALSE) ->  | D38: =SUMIF(Census!$X$19:$X$218,$K38&"/Employee/Y",OFFSET(Census!$AD$19,0,MATCH(D$68,Census!$AD$18:$DD$18,0)-1,277,1)) -> 0 | E38: =SUMIF(Census!$B$19:$B$218,$K38,OFFSET(Census!$AD$19,0,MATCH(E$68,Census!$AD$18:$DD$18,0)-1,277,1))-D38 -> 0 | F38: =SUMIF(Census!$X$19:$X$218,$K38&"/Employee/Y",OFFSET(Census!$AD$19,0,MATCH(F$68,Census!$AD$18:$DD$18,0)-1,277,1)) -> 0 | G38: =SUMIF(Census!$B$19:$B$218,$K38,OFFSET(Census!$AD$19,0,MATCH(G$68,Census!$AD$18:$DD$18,0)-1,277,1))-F38 -> 0 | H38: =SUMIF(Census!$X$19:$X$218,$K38&"/Employee/Y",OFFSET(Census!$AD$19,0,MATCH(H$68,Census!$AD$18:$DD$18,0)-1,277,1)) -> 0 | I38: =SUMIF(Census!$B$19:$B$218,$K38,OFFSET(Census!$AD$19,0,MATCH(I$68,Census!$AD$18:$DD$18,0)-1,277,1))-H38 -> 0 | K38: 26 | L38: HIDE
B39: =VLOOKUP(K39,Census!$B$19:$C$218,2,FALSE) ->  | C39: =VLOOKUP($K39,Census!$B$19:$G$218,6,FALSE) ->  | D39: =SUMIF(Census!$X$19:$X$218,$K39&"/Employee/Y",OFFSET(Census!$AD$19,0,MATCH(D$68,Census!$AD$18:$DD$18,0)-1,277,1)) -> 0 | E39: =SUMIF(Census!$B$19:$B$218,$K39,OFFSET(Census!$AD$19,0,MATCH(E$68,Census!$AD$18:$DD$18,0)-1,277,1))-D39 -> 0 | F39: =SUMIF(Census!$X$19:$X$218,$K39&"/Employee/Y",OFFSET(Census!$AD$19,0,MATCH(F$68,Census!$AD$18:$DD$18,0)-1,277,1)) -> 0 | G39: =SUMIF(Census!$B$19:$B$218,$K39,OFFSET(Census!$AD$19,0,MATCH(G$68,Census!$AD$18:$DD$18,0)-1,277,1))-F39 -> 0 | H39: =SUMIF(Census!$X$19:$X$218,$K39&"/Employee/Y",OFFSET(Census!$AD$19,0,MATCH(H$68,Census!$AD$18:$DD$18,0)-1,277,1)) -> 0 | I39: =SUMIF(Census!$B$19:$B$218,$K39,OFFSET(Census!$AD$19,0,MATCH(I$68,Census!$AD$18:$DD$18,0)-1,277,1))-H39 -> 0 | K39: 27 | L39: HIDE
B40: =VLOOKUP(K40,Census!$B$19:$C$218,2,FALSE) ->  | C40: =VLOOKUP($K40,Census!$B$19:$G$218,6,FALSE) ->  | D40: =SUMIF(Census!$X$19:$X$218,$K40&"/Employee/Y",OFFSET(Census!$AD$19,0,MATCH(D$68,Census!$AD$18:$DD$18,0)-1,277,1)) -> 0 | E40: =SUMIF(Census!$B$19:$B$218,$K40,OFFSET(Census!$AD$19,0,MATCH(E$68,Census!$AD$18:$DD$18,0)-1,277,1))-D40 -> 0 | F40: =SUMIF(Census!$X$19:$X$218,$K40&"/Employee/Y",OFFSET(Census!$AD$19,0,MATCH(F$68,Census!$AD$18:$DD$18,0)-1,277,1)) -> 0 | G40: =SUMIF(Census!$B$19:$B$218,$K40,OFFSET(Census!$AD$19,0,MATCH(G$68,Census!$AD$18:$DD$18,0)-1,277,1))-F40 -> 0 | H40: =SUMIF(Census!$X$19:$X$218,$K40&"/Employee/Y",OFFSET(Census!$AD$19,0,MATCH(H$68,Census!$AD$18:$DD$18,0)-1,277,1)) -> 0 | I40: =SUMIF(Census!$B$19:$B$218,$K40,OFFSET(Census!$AD$19,0,MATCH(I$68,Census!$AD$18:$DD$18,0)-1,277,1))-H40 -> 0 | K40: 28 | L40: HIDE
B41: =VLOOKUP(K41,Census!$B$19:$C$218,2,FALSE) ->  | C41: =VLOOKUP($K41,Census!$B$19:$G$218,6,FALSE) ->  | D41: =SUMIF(Census!$X$19:$X$218,$K41&"/Employee/Y",OFFSET(Census!$AD$19,0,MATCH(D$68,Census!$AD$18:$DD$18,0)-1,277,1)) -> 0 | E41: =SUMIF(Census!$B$19:$B$218,$K41,OFFSET(Census!$AD$19,0,MATCH(E$68,Census!$AD$18:$DD$18,0)-1,277,1))-D41 -> 0 | F41: =SUMIF(Census!$X$19:$X$218,$K41&"/Employee/Y",OFFSET(Census!$AD$19,0,MATCH(F$68,Census!$AD$18:$DD$18,0)-1,277,1)) -> 0 | G41: =SUMIF(Census!$B$19:$B$218,$K41,OFFSET(Census!$AD$19,0,MATCH(G$68,Census!$AD$18:$DD$18,0)-1,277,1))-F41 -> 0 | H41: =SUMIF(Census!$X$19:$X$218,$K41&"/Employee/Y",OFFSET(Census!$AD$19,0,MATCH(H$68,Census!$AD$18:$DD$18,0)-1,277,1)) -> 0 | I41: =SUMIF(Census!$B$19:$B$218,$K41,OFFSET(Census!$AD$19,0,MATCH(I$68,Census!$AD$18:$DD$18,0)-1,277,1))-H41 -> 0 | K41: 29 | L41: HIDE
B42: =VLOOKUP(K42,Census!$B$19:$C$218,2,FALSE) ->  | C42: =VLOOKUP($K42,Census!$B$19:$G$218,6,FALSE) ->  | D42: =SUMIF(Census!$X$19:$X$218,$K42&"/Employee/Y",OFFSET(Census!$AD$19,0,MATCH(D$68,Census!$AD$18:$DD$18,0)-1,277,1)) -> 0 | E42: =SUMIF(Census!$B$19:$B$218,$K42,OFFSET(Census!$AD$19,0,MATCH(E$68,Census!$AD$18:$DD$18,0)-1,277,1))-D42 -> 0 | F42: =SUMIF(Census!$X$19:$X$218,$K42&"/Employee/Y",OFFSET(Census!$AD$19,0,MATCH(F$68,Census!$AD$18:$DD$18,0)-1,277,1)) -> 0 | G42: =SUMIF(Census!$B$19:$B$218,$K42,OFFSET(Census!$AD$19,0,MATCH(G$68,Census!$AD$18:$DD$18,0)-1,277,1))-F42 -> 0 | H42: =SUMIF(Census!$X$19:$X$218,$K42&"/Employee/Y",OFFSET(Census!$AD$19,0,MATCH(H$68,Census!$AD$18:$DD$18,0)-1,277,1)) -> 0 | I42: =SUMIF(Census!$B$19:$B$218,$K42,OFFSET(Census!$AD$19,0,MATCH(I$68,Census!$AD$18:$DD$18,0)-1,277,1))-H42 -> 0 | K42: 30 | L42: HIDE
B43: =VLOOKUP(K43,Census!$B$19:$C$218,2,FALSE) ->  | C43: =VLOOKUP($K43,Census!$B$19:$G$218,6,FALSE) ->  | D43: =SUMIF(Census!$X$19:$X$218,$K43&"/Employee/Y",OFFSET(Census!$AD$19,0,MATCH(D$68,Census!$AD$18:$DD$18,0)-1,277,1)) -> 0 | E43: =SUMIF(Census!$B$19:$B$218,$K43,OFFSET(Census!$AD$19,0,MATCH(E$68,Census!$AD$18:$DD$18,0)-1,277,1))-D43 -> 0 | F43: =SUMIF(Census!$X$19:$X$218,$K43&"/Employee/Y",OFFSET(Census!$AD$19,0,MATCH(F$68,Census!$AD$18:$DD$18,0)-1,277,1)) -> 0 | G43: =SUMIF(Census!$B$19:$B$218,$K43,OFFSET(Census!$AD$19,0,MATCH(G$68,Census!$AD$18:$DD$18,0)-1,277,1))-F43 -> 0 | H43: =SUMIF(Census!$X$19:$X$218,$K43&"/Employee/Y",OFFSET(Census!$AD$19,0,MATCH(H$68,Census!$AD$18:$DD$18,0)-1,277,1)) -> 0 | I43: =SUMIF(Census!$B$19:$B$218,$K43,OFFSET(Census!$AD$19,0,MATCH(I$68,Census!$AD$18:$DD$18,0)-1,277,1))-H43 -> 0 | K43: 31 | L43: HIDE
B44: =VLOOKUP(K44,Census!$B$19:$C$218,2,FALSE) ->  | C44: =VLOOKUP($K44,Census!$B$19:$G$218,6,FALSE) ->  | D44: =SUMIF(Census!$X$19:$X$218,$K44&"/Employee/Y",OFFSET(Census!$AD$19,0,MATCH(D$68,Census!$AD$18:$DD$18,0)-1,277,1)) -> 0 | E44: =SUMIF(Census!$B$19:$B$218,$K44,OFFSET(Census!$AD$19,0,MATCH(E$68,Census!$AD$18:$DD$18,0)-1,277,1))-D44 -> 0 | F44: =SUMIF(Census!$X$19:$X$218,$K44&"/Employee/Y",OFFSET(Census!$AD$19,0,MATCH(F$68,Census!$AD$18:$DD$18,0)-1,277,1)) -> 0 | G44: =SUMIF(Census!$B$19:$B$218,$K44,OFFSET(Census!$AD$19,0,MATCH(G$68,Census!$AD$18:$DD$18,0)-1,277,1))-F44 -> 0 | H44: =SUMIF(Census!$X$19:$X$218,$K44&"/Employee/Y",OFFSET(Census!$AD$19,0,MATCH(H$68,Census!$AD$18:$DD$18,0)-1,277,1)) -> 0 | I44: =SUMIF(Census!$B$19:$B$218,$K44,OFFSET(Census!$AD$19,0,MATCH(I$68,Census!$AD$18:$DD$18,0)-1,277,1))-H44 -> 0 | K44: 32 | L44: HIDE
B45: =VLOOKUP(K45,Census!$B$19:$C$218,2,FALSE) ->  | C45: =VLOOKUP($K45,Census!$B$19:$G$218,6,FALSE) ->  | D45: =SUMIF(Census!$X$19:$X$218,$K45&"/Employee/Y",OFFSET(Census!$AD$19,0,MATCH(D$68,Census!$AD$18:$DD$18,0)-1,277,1)) -> 0 | E45: =SUMIF(Census!$B$19:$B$218,$K45,OFFSET(Census!$AD$19,0,MATCH(E$68,Census!$AD$18:$DD$18,0)-1,277,1))-D45 -> 0 | F45: =SUMIF(Census!$X$19:$X$218,$K45&"/Employee/Y",OFFSET(Census!$AD$19,0,MATCH(F$68,Census!$AD$18:$DD$18,0)-1,277,1)) -> 0 | G45: =SUMIF(Census!$B$19:$B$218,$K45,OFFSET(Census!$AD$19,0,MATCH(G$68,Census!$AD$18:$DD$18,0)-1,277,1))-F45 -> 0 | H45: =SUMIF(Census!$X$19:$X$218,$K45&"/Employee/Y",OFFSET(Census!$AD$19,0,MATCH(H$68,Census!$AD$18:$DD$18,0)-1,277,1)) -> 0 | I45: =SUMIF(Census!$B$19:$B$218,$K45,OFFSET(Census!$AD$19,0,MATCH(I$68,Census!$AD$18:$DD$18,0)-1,277,1))-H45 -> 0 | K45: 33 | L45: =IF(D45=0,"HIDE","SHOW") -> HIDE
B46: =VLOOKUP(K46,Census!$B$19:$C$218,2,FALSE) ->  | C46: =VLOOKUP($K46,Census!$B$19:$G$218,6,FALSE) ->  | D46: =SUMIF(Census!$X$19:$X$218,$K46&"/Employee/Y",OFFSET(Census!$AD$19,0,MATCH(D$68,Census!$AD$18:$DD$18,0)-1,277,1)) -> 0 | E46: =SUMIF(Census!$B$19:$B$218,$K46,OFFSET(Census!$AD$19,0,MATCH(E$68,Census!$AD$18:$DD$18,0)-1,277,1))-D46 -> 0 | F46: =SUMIF(Census!$X$19:$X$218,$K46&"/Employee/Y",OFFSET(Census!$AD$19,0,MATCH(F$68,Census!$AD$18:$DD$18,0)-1,277,1)) -> 0 | G46: =SUMIF(Census!$B$19:$B$218,$K46,OFFSET(Census!$AD$19,0,MATCH(G$68,Census!$AD$18:$DD$18,0)-1,277,1))-F46 -> 0 | H46: =SUMIF(Census!$X$19:$X$218,$K46&"/Employee/Y",OFFSET(Census!$AD$19,0,MATCH(H$68,Census!$AD$18:$DD$18,0)-1,277,1)) -> 0 | I46: =SUMIF(Census!$B$19:$B$218,$K46,OFFSET(Census!$AD$19,0,MATCH(I$68,Census!$AD$18:$DD$18,0)-1,277,1))-H46 -> 0 | K46: 34 | L46: HIDE
B47: =VLOOKUP(K47,Census!$B$19:$C$218,2,FALSE) ->  | C47: =VLOOKUP($K47,Census!$B$19:$G$218,6,FALSE) ->  | D47: =SUMIF(Census!$X$19:$X$218,$K47&"/Employee/Y",OFFSET(Census!$AD$19,0,MATCH(D$68,Census!$AD$18:$DD$18,0)-1,277,1)) -> 0 | E47: =SUMIF(Census!$B$19:$B$218,$K47,OFFSET(Census!$AD$19,0,MATCH(E$68,Census!$AD$18:$DD$18,0)-1,277,1))-D47 -> 0 | F47: =SUMIF(Census!$X$19:$X$218,$K47&"/Employee/Y",OFFSET(Census!$AD$19,0,MATCH(F$68,Census!$AD$18:$DD$18,0)-1,277,1)) -> 0 | G47: =SUMIF(Census!$B$19:$B$218,$K47,OFFSET(Census!$AD$19,0,MATCH(G$68,Census!$AD$18:$DD$18,0)-1,277,1))-F47 -> 0 | H47: =SUMIF(Census!$X$19:$X$218,$K47&"/Employee/Y",OFFSET(Census!$AD$19,0,MATCH(H$68,Census!$AD$18:$DD$18,0)-1,277,1)) -> 0 | I47: =SUMIF(Census!$B$19:$B$218,$K47,OFFSET(Census!$AD$19,0,MATCH(I$68,Census!$AD$18:$DD$18,0)-1,277,1))-H47 -> 0 | K47: 35 | L47: HIDE
B48: =VLOOKUP(K48,Census!$B$19:$C$218,2,FALSE) ->  | C48: =VLOOKUP($K48,Census!$B$19:$G$218,6,FALSE) ->  | D48: =SUMIF(Census!$X$19:$X$218,$K48&"/Employee/Y",OFFSET(Census!$AD$19,0,MATCH(D$68,Census!$AD$18:$DD$18,0)-1,277,1)) -> 0 | E48: =SUMIF(Census!$B$19:$B$218,$K48,OFFSET(Census!$AD$19,0,MATCH(E$68,Census!$AD$18:$DD$18,0)-1,277,1))-D48 -> 0 | F48: =SUMIF(Census!$X$19:$X$218,$K48&"/Employee/Y",OFFSET(Census!$AD$19,0,MATCH(F$68,Census!$AD$18:$DD$18,0)-1,277,1)) -> 0 | G48: =SUMIF(Census!$B$19:$B$218,$K48,OFFSET(Census!$AD$19,0,MATCH(G$68,Census!$AD$18:$DD$18,0)-1,277,1))-F48 -> 0 | H48: =SUMIF(Census!$X$19:$X$218,$K48&"/Employee/Y",OFFSET(Census!$AD$19,0,MATCH(H$68,Census!$AD$18:$DD$18,0)-1,277,1)) -> 0 | I48: =SUMIF(Census!$B$19:$B$218,$K48,OFFSET(Census!$AD$19,0,MATCH(I$68,Census!$AD$18:$DD$18,0)-1,277,1))-H48 -> 0 | K48: 36 | L48: HIDE
B49: =VLOOKUP(K49,Census!$B$19:$C$218,2,FALSE) ->  | C49: =VLOOKUP($K49,Census!$B$19:$G$218,6,FALSE) ->  | D49: =SUMIF(Census!$X$19:$X$218,$K49&"/Employee/Y",OFFSET(Census!$AD$19,0,MATCH(D$68,Census!$AD$18:$DD$18,0)-1,277,1)) -> 0 | E49: =SUMIF(Census!$B$19:$B$218,$K49,OFFSET(Census!$AD$19,0,MATCH(E$68,Census!$AD$18:$DD$18,0)-1,277,1))-D49 -> 0 | F49: =SUMIF(Census!$X$19:$X$218,$K49&"/Employee/Y",OFFSET(Census!$AD$19,0,MATCH(F$68,Census!$AD$18:$DD$18,0)-1,277,1)) -> 0 | G49: =SUMIF(Census!$B$19:$B$218,$K49,OFFSET(Census!$AD$19,0,MATCH(G$68,Census!$AD$18:$DD$18,0)-1,277,1))-F49 -> 0 | H49: =SUMIF(Census!$X$19:$X$218,$K49&"/Employee/Y",OFFSET(Census!$AD$19,0,MATCH(H$68,Census!$AD$18:$DD$18,0)-1,277,1)) -> 0 | I49: =SUMIF(Census!$B$19:$B$218,$K49,OFFSET(Census!$AD$19,0,MATCH(I$68,Census!$AD$18:$DD$18,0)-1,277,1))-H49 -> 0 | K49: 37 | L49: HIDE
B50: =VLOOKUP(K50,Census!$B$19:$C$218,2,FALSE) ->  | C50: =VLOOKUP($K50,Census!$B$19:$G$218,6,FALSE) ->  | D50: =SUMIF(Census!$X$19:$X$218,$K50&"/Employee/Y",OFFSET(Census!$AD$19,0,MATCH(D$68,Census!$AD$18:$DD$18,0)-1,277,1)) -> 0 | E50: =SUMIF(Census!$B$19:$B$218,$K50,OFFSET(Census!$AD$19,0,MATCH(E$68,Census!$AD$18:$DD$18,0)-1,277,1))-D50 -> 0 | F50: =SUMIF(Census!$X$19:$X$218,$K50&"/Employee/Y",OFFSET(Census!$AD$19,0,MATCH(F$68,Census!$AD$18:$DD$18,0)-1,277,1)) -> 0 | G50: =SUMIF(Census!$B$19:$B$218,$K50,OFFSET(Census!$AD$19,0,MATCH(G$68,Census!$AD$18:$DD$18,0)-1,277,1))-F50 -> 0 | H50: =SUMIF(Census!$X$19:$X$218,$K50&"/Employee/Y",OFFSET(Census!$AD$19,0,MATCH(H$68,Census!$AD$18:$DD$18,0)-1,277,1)) -> 0 | I50: =SUMIF(Census!$B$19:$B$218,$K50,OFFSET(Census!$AD$19,0,MATCH(I$68,Census!$AD$18:$DD$18,0)-1,277,1))-H50 -> 0 | K50: 38 | L50: HIDE
B51: =VLOOKUP(K51,Census!$B$19:$C$218,2,FALSE) ->  | C51: =VLOOKUP($K51,Census!$B$19:$G$218,6,FALSE) ->  | D51: =SUMIF(Census!$X$19:$X$218,$K51&"/Employee/Y",OFFSET(Census!$AD$19,0,MATCH(D$68,Census!$AD$18:$DD$18,0)-1,277,1)) -> 0 | E51: =SUMIF(Census!$B$19:$B$218,$K51,OFFSET(Census!$AD$19,0,MATCH(E$68,Census!$AD$18:$DD$18,0)-1,277,1))-D51 -> 0 | F51: =SUMIF(Census!$X$19:$X$218,$K51&"/Employee/Y",OFFSET(Census!$AD$19,0,MATCH(F$68,Census!$AD$18:$DD$18,0)-1,277,1)) -> 0 | G51: =SUMIF(Census!$B$19:$B$218,$K51,OFFSET(Census!$AD$19,0,MATCH(G$68,Census!$AD$18:$DD$18,0)-1,277,1))-F51 -> 0 | H51: =SUMIF(Census!$X$19:$X$218,$K51&"/Employee/Y",OFFSET(Census!$AD$19,0,MATCH(H$68,Census!$AD$18:$DD$18,0)-1,277,1)) -> 0 | I51: =SUMIF(Census!$B$19:$B$218,$K51,OFFSET(Census!$AD$19,0,MATCH(I$68,Census!$AD$18:$DD$18,0)-1,277,1))-H51 -> 0 | K51: 39 | L51: HIDE
B52: =VLOOKUP(K52,Census!$B$19:$C$218,2,FALSE) ->  | C52: =VLOOKUP($K52,Census!$B$19:$G$218,6,FALSE) ->  | D52: =SUMIF(Census!$X$19:$X$218,$K52&"/Employee/Y",OFFSET(Census!$AD$19,0,MATCH(D$68,Census!$AD$18:$DD$18,0)-1,277,1)) -> 0 | E52: =SUMIF(Census!$B$19:$B$218,$K52,OFFSET(Census!$AD$19,0,MATCH(E$68,Census!$AD$18:$DD$18,0)-1,277,1))-D52 -> 0 | F52: =SUMIF(Census!$X$19:$X$218,$K52&"/Employee/Y",OFFSET(Census!$AD$19,0,MATCH(F$68,Census!$AD$18:$DD$18,0)-1,277,1)) -> 0 | G52: =SUMIF(Census!$B$19:$B$218,$K52,OFFSET(Census!$AD$19,0,MATCH(G$68,Census!$AD$18:$DD$18,0)-1,277,1))-F52 -> 0 | H52: =SUMIF(Census!$X$19:$X$218,$K52&"/Employee/Y",OFFSET(Census!$AD$19,0,MATCH(H$68,Census!$AD$18:$DD$18,0)-1,277,1)) -> 0 | I52: =SUMIF(Census!$B$19:$B$218,$K52,OFFSET(Census!$AD$19,0,MATCH(I$68,Census!$AD$18:$DD$18,0)-1,277,1))-H52 -> 0 | K52: 40 | L52: HIDE
B53: =VLOOKUP(K53,Census!$B$19:$C$218,2,FALSE) ->  | C53: =VLOOKUP($K53,Census!$B$19:$G$218,6,FALSE) ->  | D53: =SUMIF(Census!$X$19:$X$218,$K53&"/Employee/Y",OFFSET(Census!$AD$19,0,MATCH(D$68,Census!$AD$18:$DD$18,0)-1,277,1)) -> 0 | E53: =SUMIF(Census!$B$19:$B$218,$K53,OFFSET(Census!$AD$19,0,MATCH(E$68,Census!$AD$18:$DD$18,0)-1,277,1))-D53 -> 0 | F53: =SUMIF(Census!$X$19:$X$218,$K53&"/Employee/Y",OFFSET(Census!$AD$19,0,MATCH(F$68,Census!$AD$18:$DD$18,0)-1,277,1)) -> 0 | G53: =SUMIF(Census!$B$19:$B$218,$K53,OFFSET(Census!$AD$19,0,MATCH(G$68,Census!$AD$18:$DD$18,0)-1,277,1))-F53 -> 0 | H53: =SUMIF(Census!$X$19:$X$218,$K53&"/Employee/Y",OFFSET(Census!$AD$19,0,MATCH(H$68,Census!$AD$18:$DD$18,0)-1,277,1)) -> 0 | I53: =SUMIF(Census!$B$19:$B$218,$K53,OFFSET(Census!$AD$19,0,MATCH(I$68,Census!$AD$18:$DD$18,0)-1,277,1))-H53 -> 0 | K53: 41 | L53: HIDE
B54: =VLOOKUP(K54,Census!$B$19:$C$218,2,FALSE) ->  | C54: =VLOOKUP($K54,Census!$B$19:$G$218,6,FALSE) ->  | D54: =SUMIF(Census!$X$19:$X$218,$K54&"/Employee/Y",OFFSET(Census!$AD$19,0,MATCH(D$68,Census!$AD$18:$DD$18,0)-1,277,1)) -> 0 | E54: =SUMIF(Census!$B$19:$B$218,$K54,OFFSET(Census!$AD$19,0,MATCH(E$68,Census!$AD$18:$DD$18,0)-1,277,1))-D54 -> 0 | F54: =SUMIF(Census!$X$19:$X$218,$K54&"/Employee/Y",OFFSET(Census!$AD$19,0,MATCH(F$68,Census!$AD$18:$DD$18,0)-1,277,1)) -> 0 | G54: =SUMIF(Census!$B$19:$B$218,$K54,OFFSET(Census!$AD$19,0,MATCH(G$68,Census!$AD$18:$DD$18,0)-1,277,1))-F54 -> 0 | H54: =SUMIF(Census!$X$19:$X$218,$K54&"/Employee/Y",OFFSET(Census!$AD$19,0,MATCH(H$68,Census!$AD$18:$DD$18,0)-1,277,1)) -> 0 | I54: =SUMIF(Census!$B$19:$B$218,$K54,OFFSET(Census!$AD$19,0,MATCH(I$68,Census!$AD$18:$DD$18,0)-1,277,1))-H54 -> 0 | K54: 42 | L54: HIDE
B55: =VLOOKUP(K55,Census!$B$19:$C$218,2,FALSE) ->  | C55: =VLOOKUP($K55,Census!$B$19:$G$218,6,FALSE) ->  | D55: =SUMIF(Census!$X$19:$X$218,$K55&"/Employee/Y",OFFSET(Census!$AD$19,0,MATCH(D$68,Census!$AD$18:$DD$18,0)-1,277,1)) -> 0 | E55: =SUMIF(Census!$B$19:$B$218,$K55,OFFSET(Census!$AD$19,0,MATCH(E$68,Census!$AD$18:$DD$18,0)-1,277,1))-D55 -> 0 | F55: =SUMIF(Census!$X$19:$X$218,$K55&"/Employee/Y",OFFSET(Census!$AD$19,0,MATCH(F$68,Census!$AD$18:$DD$18,0)-1,277,1)) -> 0 | G55: =SUMIF(Census!$B$19:$B$218,$K55,OFFSET(Census!$AD$19,0,MATCH(G$68,Census!$AD$18:$DD$18,0)-1,277,1))-F55 -> 0 | H55: =SUMIF(Census!$X$19:$X$218,$K55&"/Employee/Y",OFFSET(Census!$AD$19,0,MATCH(H$68,Census!$AD$18:$DD$18,0)-1,277,1)) -> 0 | I55: =SUMIF(Census!$B$19:$B$218,$K55,OFFSET(Census!$AD$19,0,MATCH(I$68,Census!$AD$18:$DD$18,0)-1,277,1))-H55 -> 0 | K55: 43 | L55: HIDE
B56: =VLOOKUP(K56,Census!$B$19:$C$218,2,FALSE) ->  | C56: =VLOOKUP($K56,Census!$B$19:$G$218,6,FALSE) ->  | D56: =SUMIF(Census!$X$19:$X$218,$K56&"/Employee/Y",OFFSET(Census!$AD$19,0,MATCH(D$68,Census!$AD$18:$DD$18,0)-1,277,1)) -> 0 | E56: =SUMIF(Census!$B$19:$B$218,$K56,OFFSET(Census!$AD$19,0,MATCH(E$68,Census!$AD$18:$DD$18,0)-1,277,1))-D56 -> 0 | F56: =SUMIF(Census!$X$19:$X$218,$K56&"/Employee/Y",OFFSET(Census!$AD$19,0,MATCH(F$68,Census!$AD$18:$DD$18,0)-1,277,1)) -> 0 | G56: =SUMIF(Census!$B$19:$B$218,$K56,OFFSET(Census!$AD$19,0,MATCH(G$68,Census!$AD$18:$DD$18,0)-1,277,1))-F56 -> 0 | H56: =SUMIF(Census!$X$19:$X$218,$K56&"/Employee/Y",OFFSET(Census!$AD$19,0,MATCH(H$68,Census!$AD$18:$DD$18,0)-1,277,1)) -> 0 | I56: =SUMIF(Census!$B$19:$B$218,$K56,OFFSET(Census!$AD$19,0,MATCH(I$68,Census!$AD$18:$DD$18,0)-1,277,1))-H56 -> 0 | K56: 44 | L56: HIDE
B57: =VLOOKUP(K57,Census!$B$19:$C$218,2,FALSE) ->  | C57: =VLOOKUP($K57,Census!$B$19:$G$218,6,FALSE) ->  | D57: =SUMIF(Census!$X$19:$X$218,$K57&"/Employee/Y",OFFSET(Census!$AD$19,0,MATCH(D$68,Census!$AD$18:$DD$18,0)-1,277,1)) -> 0 | E57: =SUMIF(Census!$B$19:$B$218,$K57,OFFSET(Census!$AD$19,0,MATCH(E$68,Census!$AD$18:$DD$18,0)-1,277,1))-D57 -> 0 | F57: =SUMIF(Census!$X$19:$X$218,$K57&"/Employee/Y",OFFSET(Census!$AD$19,0,MATCH(F$68,Census!$AD$18:$DD$18,0)-1,277,1)) -> 0 | G57: =SUMIF(Census!$B$19:$B$218,$K57,OFFSET(Census!$AD$19,0,MATCH(G$68,Census!$AD$18:$DD$18,0)-1,277,1))-F57 -> 0 | H57: =SUMIF(Census!$X$19:$X$218,$K57&"/Employee/Y",OFFSET(Census!$AD$19,0,MATCH(H$68,Census!$AD$18:$DD$18,0)-1,277,1)) -> 0 | I57: =SUMIF(Census!$B$19:$B$218,$K57,OFFSET(Census!$AD$19,0,MATCH(I$68,Census!$AD$18:$DD$18,0)-1,277,1))-H57 -> 0 | K57: 45 | L57: HIDE
B58: =VLOOKUP(K58,Census!$B$19:$C$218,2,FALSE) ->  | C58: =VLOOKUP($K58,Census!$B$19:$G$218,6,FALSE) ->  | D58: =SUMIF(Census!$X$19:$X$218,$K58&"/Employee/Y",OFFSET(Census!$AD$19,0,MATCH(D$68,Census!$AD$18:$DD$18,0)-1,277,1)) -> 0 | E58: =SUMIF(Census!$B$19:$B$218,$K58,OFFSET(Census!$AD$19,0,MATCH(E$68,Census!$AD$18:$DD$18,0)-1,277,1))-D58 -> 0 | F58: =SUMIF(Census!$X$19:$X$218,$K58&"/Employee/Y",OFFSET(Census!$AD$19,0,MATCH(F$68,Census!$AD$18:$DD$18,0)-1,277,1)) -> 0 | G58: =SUMIF(Census!$B$19:$B$218,$K58,OFFSET(Census!$AD$19,0,MATCH(G$68,Census!$AD$18:$DD$18,0)-1,277,1))-F58 -> 0 | H58: =SUMIF(Census!$X$19:$X$218,$K58&"/Employee/Y",OFFSET(Census!$AD$19,0,MATCH(H$68,Census!$AD$18:$DD$18,0)-1,277,1)) -> 0 | I58: =SUMIF(Census!$B$19:$B$218,$K58,OFFSET(Census!$AD$19,0,MATCH(I$68,Census!$AD$18:$DD$18,0)-1,277,1))-H58 -> 0 | K58: 46 | L58: HIDE
B59: =VLOOKUP(K59,Census!$B$19:$C$218,2,FALSE) ->  | C59: =VLOOKUP($K59,Census!$B$19:$G$218,6,FALSE) ->  | D59: =SUMIF(Census!$X$19:$X$218,$K59&"/Employee/Y",OFFSET(Census!$AD$19,0,MATCH(D$68,Census!$AD$18:$DD$18,0)-1,277,1)) -> 0 | E59: =SUMIF(Census!$B$19:$B$218,$K59,OFFSET(Census!$AD$19,0,MATCH(E$68,Census!$AD$18:$DD$18,0)-1,277,1))-D59 -> 0 | F59: =SUMIF(Census!$X$19:$X$218,$K59&"/Employee/Y",OFFSET(Census!$AD$19,0,MATCH(F$68,Census!$AD$18:$DD$18,0)-1,277,1)) -> 0 | G59: =SUMIF(Census!$B$19:$B$218,$K59,OFFSET(Census!$AD$19,0,MATCH(G$68,Census!$AD$18:$DD$18,0)-1,277,1))-F59 -> 0 | H59: =SUMIF(Census!$X$19:$X$218,$K59&"/Employee/Y",OFFSET(Census!$AD$19,0,MATCH(H$68,Census!$AD$18:$DD$18,0)-1,277,1)) -> 0 | I59: =SUMIF(Census!$B$19:$B$218,$K59,OFFSET(Census!$AD$19,0,MATCH(I$68,Census!$AD$18:$DD$18,0)-1,277,1))-H59 -> 0 | K59: 47 | L59: HIDE
B60: =VLOOKUP(K60,Census!$B$19:$C$218,2,FALSE) ->  | C60: =VLOOKUP($K60,Census!$B$19:$G$218,6,FALSE) ->  | D60: =SUMIF(Census!$X$19:$X$218,$K60&"/Employee/Y",OFFSET(Census!$AD$19,0,MATCH(D$68,Census!$AD$18:$DD$18,0)-1,277,1)) -> 0 | E60: =SUMIF(Census!$B$19:$B$218,$K60,OFFSET(Census!$AD$19,0,MATCH(E$68,Census!$AD$18:$DD$18,0)-1,277,1))-D60 -> 0 | F60: =SUMIF(Census!$X$19:$X$218,$K60&"/Employee/Y",OFFSET(Census!$AD$19,0,MATCH(F$68,Census!$AD$18:$DD$18,0)-1,277,1)) -> 0 | G60: =SUMIF(Census!$B$19:$B$218,$K60,OFFSET(Census!$AD$19,0,MATCH(G$68,Census!$AD$18:$DD$18,0)-1,277,1))-F60 -> 0 | H60: =SUMIF(Census!$X$19:$X$218,$K60&"/Employee/Y",OFFSET(Census!$AD$19,0,MATCH(H$68,Census!$AD$18:$DD$18,0)-1,277,1)) -> 0 | I60: =SUMIF(Census!$B$19:$B$218,$K60,OFFSET(Census!$AD$19,0,MATCH(I$68,Census!$AD$18:$DD$18,0)-1,277,1))-H60 -> 0 | K60: 48 | L60: HIDE
B61: =VLOOKUP(K61,Census!$B$19:$C$218,2,FALSE) ->  | C61: =VLOOKUP($K61,Census!$B$19:$G$218,6,FALSE) ->  | D61: =SUMIF(Census!$X$19:$X$218,$K61&"/Employee/Y",OFFSET(Census!$AD$19,0,MATCH(D$68,Census!$AD$18:$DD$18,0)-1,277,1)) -> 0 | E61: =SUMIF(Census!$B$19:$B$218,$K61,OFFSET(Census!$AD$19,0,MATCH(E$68,Census!$AD$18:$DD$18,0)-1,277,1))-D61 -> 0 | F61: =SUMIF(Census!$X$19:$X$218,$K61&"/Employee/Y",OFFSET(Census!$AD$19,0,MATCH(F$68,Census!$AD$18:$DD$18,0)-1,277,1)) -> 0 | G61: =SUMIF(Census!$B$19:$B$218,$K61,OFFSET(Census!$AD$19,0,MATCH(G$68,Census!$AD$18:$DD$18,0)-1,277,1))-F61 -> 0 | H61: =SUMIF(Census!$X$19:$X$218,$K61&"/Employee/Y",OFFSET(Census!$AD$19,0,MATCH(H$68,Census!$AD$18:$DD$18,0)-1,277,1)) -> 0 | I61: =SUMIF(Census!$B$19:$B$218,$K61,OFFSET(Census!$AD$19,0,MATCH(I$68,Census!$AD$18:$DD$18,0)-1,277,1))-H61 -> 0 | K61: 49 | L61: HIDE
B62: =VLOOKUP(K62,Census!$B$19:$C$218,2,FALSE) ->  | C62: =VLOOKUP($K62,Census!$B$19:$G$218,6,FALSE) ->  | D62: =SUMIF(Census!$X$19:$X$218,$K62&"/Employee/Y",OFFSET(Census!$AD$19,0,MATCH(D$68,Census!$AD$18:$DD$18,0)-1,277,1)) -> 0 | E62: =SUMIF(Census!$B$19:$B$218,$K62,OFFSET(Census!$AD$19,0,MATCH(E$68,Census!$AD$18:$DD$18,0)-1,277,1))-D62 -> 0 | F62: =SUMIF(Census!$X$19:$X$218,$K62&"/Employee/Y",OFFSET(Census!$AD$19,0,MATCH(F$68,Census!$AD$18:$DD$18,0)-1,277,1)) -> 0 | G62: =SUMIF(Census!$B$19:$B$218,$K62,OFFSET(Census!$AD$19,0,MATCH(G$68,Census!$AD$18:$DD$18,0)-1,277,1))-F62 -> 0 | H62: =SUMIF(Census!$X$19:$X$218,$K62&"/Employee/Y",OFFSET(Census!$AD$19,0,MATCH(H$68,Census!$AD$18:$DD$18,0)-1,277,1)) -> 0 | I62: =SUMIF(Census!$B$19:$B$218,$K62,OFFSET(Census!$AD$19,0,MATCH(I$68,Census!$AD$18:$DD$18,0)-1,277,1))-H62 -> 0 | K62: 50 | L62: HIDE
B64: Total | D64: =SUM(D13:D62) -> 3250.7 | E64: 2759.61 | F64: =SUM(F13:F62) -> 3425.93 | G64: 2908.37 | H64: 2787.97 | I64: 2366.8
B65: Total Monthly Premium | D65: =SUM(D64:E64) -> 6010.31 | F65: =SUM(F64:G64) -> 6334.3 | H65: =SUM(H64:I64) -> 5154.77
B66: Average Premium | D66: =D64/Subs -> 464.3857143 | E66: =IF(Dependents=0,0,E64/Dependents) -> 275.961 | F66: =F64/Subs -> 489.4185714 | G66: =IF(Dependents=0,0,G64/Dependents) -> 290.837 | H66: =H64/Subs -> 398.2814286 | I66: =IF(Dependents=0,0,I64/Dependents) -> 236.68
D68: =INDEX(Plan_tbl,D69,1) -> 51485AZ0160031 | E68: =D68 -> 51485AZ0160031 | F68: =INDEX(Plan_tbl,F69,1) -> 51485AZ0160037 | G68: =F68 -> 51485AZ0160037 | H68: =INDEX(Plan_tbl,H69,1) -> 51485AZ0160034 | I68: =H68 -> 51485AZ0160034
D69: 10 | F69: 11 | H69: 12

Sheet Calc_pg4 (hidden)
E1: Group Name: | F1: =Grp_Name -> Example Group
E2: Location: | F2: =Grp_County -> Maricopa
E3: Total Eligible Employees: | F3: =Total_EEs -> 7
E4: Effective Date: | F4: =TEXT(Eff_Dt,"mm/dd/yyyy") -> 04/01/2018
E5: Date of Proposal: | F5: =TEXT(TODAY(),"mm/dd/yyyy") -> 01/10/2018
B8: =VLOOKUP(D68,Plan_tbl,25,FALSE) -> Health Net HMO
D9: =VLOOKUP(D68,Plan_tbl,26,FALSE) -> HMO 1 | F9: =VLOOKUP(F68,Plan_tbl,26,FALSE) -> HMO 2 | H9: =VLOOKUP(H68,Plan_tbl,26,FALSE) -> HMO 3 | J9: =VLOOKUP(J68,Plan_tbl,26,FALSE) -> HMO 4 | L9: =VLOOKUP(L68,Plan_tbl,26,FALSE) -> HMO 5
D10: =VLOOKUP(D68,Plan_tbl,6,FALSE) -> Gold 1000 | F10: =VLOOKUP(F68,Plan_tbl,6,FALSE) -> Gold 1500 | H10: =VLOOKUP(H68,Plan_tbl,6,FALSE) -> Gold 3000 | J10: =VLOOKUP(J68,Plan_tbl,6,FALSE) -> Silver 4500 | L10: =VLOOKUP(L68,Plan_tbl,6,FALSE) -> Silver 6000
D11: ="Rx: "&VLOOKUP(D68,Plan_tbl,21,FALSE) -> Rx: $10/$45/$90/50% | F11: ="Rx: "&VLOOKUP(F68,Plan_tbl,21,FALSE) -> Rx: $10/$45/$90/50% | H11: ="Rx: "&VLOOKUP(H68,Plan_tbl,21,FALSE) -> Rx: $10/$45/$90/50% | J11: ="Rx: "&VLOOKUP(J68,Plan_tbl,21,FALSE) -> Rx: $15/$60/$120/50% | L11: ="Rx: "&VLOOKUP(L68,Plan_tbl,21,FALSE) -> Rx: $20/$75/$225/50% | O11: Employee Number | P11: Hide/Show
B12: Name | C12: Age | D12: Employee Only | E12: Dependents Total | F12: Employee Only | G12: Dependents Total | H12: Employee Only | I12: Dependents Total | J12: Employee Only | K12: Dependents Total | L12: Employee Only | M12: Dependents Total
B13: =VLOOKUP($O13,Census!$B$19:$C$218,2,FALSE) -> Employee 1 | C13: =VLOOKUP($O13,Census!$B$19:$G$218,6,FALSE) -> 27 | D13: =SUMIF(Census!$X$19:$X$218,$O13&"/Employee/Y",OFFSET(Census!$AD$19,0,MATCH(D$68,Census!$AD$18:$DD$18,0)-1,277,1)) -> 396.58 | E13: =SUMIF(Census!$B$19:$B$218,$O13,OFFSET(Census!$AD$19,0,MATCH(E$68,Census!$AD$18:$DD$18,0)-1,277,1))-D13 -> 676.98 | F13: =SUMIF(Census!$X$19:$X$218,$O13&"/Employee/Y",OFFSET(Census!$AD$19,0,MATCH(F$68,Census!$AD$18:$DD$18,0)-1,277,1)) -> 383.7 | G13: =SUMIF(Census!$B$19:$B$218,$O13,OFFSET(Census!$AD$19,0,MATCH(G$68,Census!$AD$18:$DD$18,0)-1,277,1))-F13 -> 655 | H13: =SUMIF(Census!$X$19:$X$218,$O13&"/Employee/Y",OFFSET(Census!$AD$19,0,MATCH(H$68,Census!$AD$18:$DD$18,0)-1,277,1)) -> 373.75 | I13: =SUMIF(Census!$B$19:$B$218,$O13,OFFSET(Census!$AD$19,0,MATCH(I$68,Census!$AD$18:$DD$18,0)-1,277,1))-H13 -> 638.01 | J13: =SUMIF(Census!$X$19:$X$218,$O13&"/Employee/Y",OFFSET(Census!$AD$19,0,MATCH(J$68,Census!$AD$18:$DD$18,0)-1,277,1)) -> 328.84 | K13: =SUMIF(Census!$B$19:$B$218,$O13,OFFSET(Census!$AD$19,0,MATCH(K$68,Census!$AD$18:$DD$18,0)-1,277,1))-J13 -> 561.34 | L13: =SUMIF(Census!$X$19:$X$218,$O13&"/Employee/Y",OFFSET(Census!$AD$19,0,MATCH(L$68,Census!$AD$18:$DD$18,0)-1,277,1)) -> 325.87 | M13: =SUMIF(Census!$B$19:$B$218,$O13,OFFSET(Census!$AD$19,0,MATCH(M$68,Census!$AD$18:$DD$18,0)-1,277,1))-L13 -> 556.28 | O13: 1 | P13: =IF(D13=0,"HIDE","SHOW") -> SHOW
B14: =VLOOKUP(O14,Census!$B$19:$C$218,2,FALSE) -> Employee 2 | C14: =VLOOKUP($O14,Census!$B$19:$G$218,6,FALSE) -> 41 | D14: =SUMIF(Census!$X$19:$X$218,$O14&"/Employee/Y",OFFSET(Census!$AD$19,0,MATCH(D$68,Census!$AD$18:$DD$18,0)-1,277,1)) -> 492.69 | E14: =SUMIF(Census!$B$19:$B$218,$O14,OFFSET(Census!$AD$19,0,MATCH(E$68,Census!$AD$18:$DD$18,0)-1,277,1))-D14 -> 0 | F14: =SUMIF(Census!$X$19:$X$218,$O14&"/Employee/Y",OFFSET(Census!$AD$19,0,MATCH(F$68,Census!$AD$18:$DD$18,0)-1,277,1)) -> 476.7 | G14: =SUMIF(Census!$B$19:$B$218,$O14,OFFSET(Census!$AD$19,0,MATCH(G$68,Census!$AD$18:$DD$18,0)-1,277,1))-F14 -> 0 | H14: =SUMIF(Census!$X$19:$X$218,$O14&"/Employee/Y",OFFSET(Census!$AD$19,0,MATCH(H$68,Census!$AD$18:$DD$18,0)-1,277,1)) -> 464.34 | I14: =SUMIF(Census!$B$19:$B$218,$O14,OFFSET(Census!$AD$19,0,MATCH(I$68,Census!$AD$18:$DD$18,0)-1,277,1))-H14 -> 0 | J14: =SUMIF(Census!$X$19:$X$218,$O14&"/Employee/Y",OFFSET(Census!$AD$19,0,MATCH(J$68,Census!$AD$18:$DD$18,0)-1,277,1)) -> 408.53 | K14: =SUMIF(Census!$B$19:$B$218,$O14,OFFSET(Census!$AD$19,0,MATCH(K$68,Census!$AD$18:$DD$18,0)-1,277,1))-J14 -> 0 | L14: =SUMIF(Census!$X$19:$X$218,$O14&"/Employee/Y",OFFSET(Census!$AD$19,0,MATCH(L$68,Census!$AD$18:$DD$18,0)-1,277,1)) -> 404.85 | M14: =SUMIF(Census!$B$19:$B$218,$O14,OFFSET(Census!$AD$19,0,MATCH(M$68,Census!$AD$18:$DD$18,0)-1,277,1))-L14 -> 0 | O14: =O13+1 -> 2 | P14: SHOW
B15: =VLOOKUP(O15,Census!$B$19:$C$218,2,FALSE) -> Employee 3 | C15: =VLOOKUP($O15,Census!$B$19:$G$218,6,FALSE) -> 43 | D15: =SUMIF(Census!$X$19:$X$218,$O15&"/Employee/Y",OFFSET(Census!$AD$19,0,MATCH(D$68,Census!$AD$18:$DD$18,0)-1,277,1)) -> 513.51 | E15: =SUMIF(Census!$B$19:$B$218,$O15,OFFSET(Census!$AD$19,0,MATCH(E$68,Census!$AD$18:$DD$18,0)-1,277,1))-D15 -> 0 | F15: =SUMIF(Census!$X$19:$X$218,$O15&"/Employee/Y",OFFSET(Census!$AD$19,0,MATCH(F$68,Census!$AD$18:$DD$18,0)-1,277,1)) -> 496.83 | G15: =SUMIF(Census!$B$19:$B$218,$O15,OFFSET(Census!$AD$19,0,MATCH(G$68,Census!$AD$18:$DD$18,0)-1,277,1))-F15 -> 0 | H15: =SUMIF(Census!$X$19:$X$218,$O15&"/Employee/Y",OFFSET(Census!$AD$19,0,MATCH(H$68,Census!$AD$18:$DD$18,0)-1,277,1)) -> 483.95 | I15: =SUMIF(Census!$B$19:$B$218,$O15,OFFSET(Census!$AD$19,0,MATCH(I$68,Census!$AD$18:$DD$18,0)-1,277,1))-H15 -> 0 | J15: =SUMIF(Census!$X$19:$X$218,$O15&"/Employee/Y",OFFSET(Census!$AD$19,0,MATCH(J$68,Census!$AD$18:$DD$18,0)-1,277,1)) -> 425.79 | K15: =SUMIF(Census!$B$19:$B$218,$O15,OFFSET(Census!$AD$19,0,MATCH(K$68,Census!$AD$18:$DD$18,0)-1,277,1))-J15 -> 0 | L15: =SUMIF(Census!$X$19:$X$218,$O15&"/Employee/Y",OFFSET(Census!$AD$19,0,MATCH(L$68,Census!$AD$18:$DD$18,0)-1,277,1)) -> 421.95 | M15: =SUMIF(Census!$B$19:$B$218,$O15,OFFSET(Census!$AD$19,0,MATCH(M$68,Census!$AD$18:$DD$18,0)-1,277,1))-L15 -> 0 | O15: =O14+1 -> 3 | P15: SHOW
B16: =VLOOKUP(O16,Census!$B$19:$C$218,2,FALSE) -> Smith, Amy | C16: =VLOOKUP($O16,Census!$B$19:$G$218,6,FALSE) -> 54 | D16: =SUMIF(Census!$X$19:$X$218,$O16&"/Employee/Y",OFFSET(Census!$AD$19,0,MATCH(D$68,Census!$AD$18:$DD$18,0)-1,277,1)) -> 807.91 | E16: =SUMIF(Census!$B$19:$B$218,$O16,OFFSET(Census!$AD$19,0,MATCH(E$68,Census!$AD$18:$DD$18,0)-1,277,1))-D16 -> 2240.97 | F16: =SUMIF(Census!$X$19:$X$218,$O16&"/Employee/Y",OFFSET(Census!$AD$19,0,MATCH(F$68,Census!$AD$18:$DD$18,0)-1,277,1)) -> 781.68 | G16: =SUMIF(Census!$B$19:$B$218,$O16,OFFSET(Census!$AD$19,0,MATCH(G$68,Census!$AD$18:$DD$18,0)-1,277,1))-F16 -> 2168.2 | H16: =SUMIF(Census!$X$19:$X$218,$O16&"/Employee/Y",OFFSET(Census!$AD$19,0,MATCH(H$68,Census!$AD$18:$DD$18,0)-1,277,1)) -> 761.41 | I16: =SUMIF(Census!$B$19:$B$218,$O16,OFFSET(Census!$AD$19,0,MATCH(I$68,Census!$AD$18:$DD$18,0)-1,277,1))-H16 -> 2111.98 | J16: =SUMIF(Census!$X$19:$X$218,$O16&"/Employee/Y",OFFSET(Census!$AD$19,0,MATCH(J$68,Census!$AD$18:$DD$18,0)-1,277,1)) -> 669.91 | K16: =SUMIF(Census!$B$19:$B$218,$O16,OFFSET(Census!$AD$19,0,MATCH(K$68,Census!$AD$18:$DD$18,0)-1,277,1))-J16 -> 1858.18 | L16: =SUMIF(Census!$X$19:$X$218,$O16&"/Employee/Y",OFFSET(Census!$AD$19,0,MATCH(L$68,Census!$AD$18:$DD$18,0)-1,277,1)) -> 663.87 | M16: =SUMIF(Census!$B$19:$B$218,$O16,OFFSET(Census!$AD$19,0,MATCH(M$68,Census!$AD$18:$DD$18,0)-1,277,1))-L16 -> 1841.42 | O16: 4 | P16: SHOW
B17: =VLOOKUP(O17,Census!$B$19:$C$218,2,FALSE) -> Employee 5 | C17: =VLOOKUP($O17,Census!$B$19:$G$218,6,FALSE) -> 71 | D17: =SUMIF(Census!$X$19:$X$218,$O17&"/Employee/Y",OFFSET(Census!$AD$19,0,MATCH(D$68,Census!$AD$18:$DD$18,0)-1,277,1)) -> 1135.23 | E17: =SUMIF(Census!$B$19:$B$218,$O17,OFFSET(Census!$AD$19,0,MATCH(E$68,Census!$AD$18:$DD$18,0)-1,277,1))-D17 -> 0 | F17: =SUMIF(Census!$X$19:$X$218,$O17&"/Employee/Y",OFFSET(Census!$AD$19,0,MATCH(F$68,Census!$AD$18:$DD$18,0)-1,277,1)) -> 1098.39 | G17: =SUMIF(Census!$B$19:$B$218,$O17,OFFSET(Census!$AD$19,0,MATCH(G$68,Census!$AD$18:$DD$18,0)-1,277,1))-F17 -> 0 | H17: =SUMIF(Census!$X$19:$X$218,$O17&"/Employee/Y",OFFSET(Census!$AD$19,0,MATCH(H$68,Census!$AD$18:$DD$18,0)-1,277,1)) -> 1069.89 | I17: =SUMIF(Census!$B$19:$B$218,$O17,OFFSET(Census!$AD$19,0,MATCH(I$68,Census!$AD$18:$DD$18,0)-1,277,1))-H17 -> 0 | J17: =SUMIF(Census!$X$19:$X$218,$O17&"/Employee/Y",OFFSET(Census!$AD$19,0,MATCH(J$68,Census!$AD$18:$DD$18,0)-1,277,1)) -> 941.31 | K17: =SUMIF(Census!$B$19:$B$218,$O17,OFFSET(Census!$AD$19,0,MATCH(K$68,Census!$AD$18:$DD$18,0)-1,277,1))-J17 -> 0 | L17: =SUMIF(Census!$X$19:$X$218,$O17&"/Employee/Y",OFFSET(Census!$AD$19,0,MATCH(L$68,Census!$AD$18:$DD$18,0)-1,277,1)) -> 932.85 | M17: =SUMIF(Census!$B$19:$B$218,$O17,OFFSET(Census!$AD$19,0,MATCH(M$68,Census!$AD$18:$DD$18,0)-1,277,1))-L17 -> 0 | O17: 5 | P17: SHOW
B18: =VLOOKUP(O18,Census!$B$19:$C$218,2,FALSE) -> Employee 6 | C18: =VLOOKUP($O18,Census!$B$19:$G$218,6,FALSE) -> 37 | D18: =SUMIF(Census!$X$19:$X$218,$O18&"/Employee/Y",OFFSET(Census!$AD$19,0,MATCH(D$68,Census!$AD$18:$DD$18,0)-1,277,1)) -> 468.48 | E18: =SUMIF(Census!$B$19:$B$218,$O18,OFFSET(Census!$AD$19,0,MATCH(E$68,Census!$AD$18:$DD$18,0)-1,277,1))-D18 -> 289.49 | F18: =SUMIF(Census!$X$19:$X$218,$O18&"/Employee/Y",OFFSET(Census!$AD$19,0,MATCH(F$68,Census!$AD$18:$DD$18,0)-1,277,1)) -> 453.26 | G18: =SUMIF(Census!$B$19:$B$218,$O18,OFFSET(Census!$AD$19,0,MATCH(G$68,Census!$AD$18:$DD$18,0)-1,277,1))-F18 -> 280.09 | H18: =SUMIF(Census!$X$19:$X$218,$O18&"/Employee/Y",OFFSET(Census!$AD$19,0,MATCH(H$68,Census!$AD$18:$DD$18,0)-1,277,1)) -> 441.51 | I18: =SUMIF(Census!$B$19:$B$218,$O18,OFFSET(Census!$AD$19,0,MATCH(I$68,Census!$AD$18:$DD$18,0)-1,277,1))-H18 -> 272.82 | J18: =SUMIF(Census!$X$19:$X$218,$O18&"/Employee/Y",OFFSET(Census!$AD$19,0,MATCH(J$68,Census!$AD$18:$DD$18,0)-1,277,1)) -> 388.45 | K18: =SUMIF(Census!$B$19:$B$218,$O18,OFFSET(Census!$AD$19,0,MATCH(K$68,Census!$AD$18:$DD$18,0)-1,277,1))-J18 -> 240.04 | L18: =SUMIF(Census!$X$19:$X$218,$O18&"/Employee/Y",OFFSET(Census!$AD$19,0,MATCH(L$68,Census!$AD$18:$DD$18,0)-1,277,1)) -> 384.95 | M18: =SUMIF(Census!$B$19:$B$218,$O18,OFFSET(Census!$AD$19,0,MATCH(M$68,Census!$AD$18:$DD$18,0)-1,277,1))-L18 -> 237.87 | O18: 6 | P18: SHOW
B19: =VLOOKUP(O19,Census!$B$19:$C$218,2,FALSE) -> Wilson, Jim | C19: =VLOOKUP($O19,Census!$B$19:$G$218,6,FALSE) -> 28 | D19: =SUMIF(Census!$X$19:$X$218,$O19&"/Employee/Y",OFFSET(Census!$AD$19,0,MATCH(D$68,Census!$AD$18:$DD$18,0)-1,277,1)) -> 411.33 | E19: =SUMIF(Census!$B$19:$B$218,$O19,OFFSET(Census!$AD$19,0,MATCH(E$68,Census!$AD$18:$DD$18,0)-1,277,1))-D19 -> 379.93 | F19: =SUMIF(Census!$X$19:$X$218,$O19&"/Employee/Y",OFFSET(Census!$AD$19,0,MATCH(F$68,Census!$AD$18:$DD$18,0)-1,277,1)) -> 397.98 | G19: =SUMIF(Census!$B$19:$B$218,$O19,OFFSET(Census!$AD$19,0,MATCH(G$68,Census!$AD$18:$DD$18,0)-1,277,1))-F19 -> 367.59 | H19: =SUMIF(Census!$X$19:$X$218,$O19&"/Employee/Y",OFFSET(Census!$AD$19,0,MATCH(H$68,Census!$AD$18:$DD$18,0)-1,277,1)) -> 387.66 | I19: =SUMIF(Census!$B$19:$B$218,$O19,OFFSET(Census!$AD$19,0,MATCH(I$68,Census!$AD$18:$DD$18,0)-1,277,1))-H19 -> 358.06 | J19: =SUMIF(Census!$X$19:$X$218,$O19&"/Employee/Y",OFFSET(Census!$AD$19,0,MATCH(J$68,Census!$AD$18:$DD$18,0)-1,277,1)) -> 341.07 | K19: =SUMIF(Census!$B$19:$B$218,$O19,OFFSET(Census!$AD$19,0,MATCH(K$68,Census!$AD$18:$DD$18,0)-1,277,1))-J19 -> 315.03 | L19: =SUMIF(Census!$X$19:$X$218,$O19&"/Employee/Y",OFFSET(Census!$AD$19,0,MATCH(L$68,Census!$AD$18:$DD$18,0)-1,277,1)) -> 338 | M19: =SUMIF(Census!$B$19:$B$218,$O19,OFFSET(Census!$AD$19,0,MATCH(M$68,Census!$AD$18:$DD$18,0)-1,277,1))-L19 -> 312.19 | O19: 7 | P19: SHOW
B20: =VLOOKUP(O20,Census!$B$19:$C$218,2,FALSE) ->  | C20: =VLOOKUP($O20,Census!$B$19:$G$218,6,FALSE) ->  | D20: =SUMIF(Census!$X$19:$X$218,$O20&"/Employee/Y",OFFSET(Census!$AD$19,0,MATCH(D$68,Census!$AD$18:$DD$18,0)-1,277,1)) -> 0 | E20: =SUMIF(Census!$B$19:$B$218,$O20,OFFSET(Census!$AD$19,0,MATCH(E$68,Census!$AD$18:$DD$18,0)-1,277,1))-D20 -> 0 | F20: =SUMIF(Census!$X$19:$X$218,$O20&"/Employee/Y",OFFSET(Census!$AD$19,0,MATCH(F$68,Census!$AD$18:$DD$18,0)-1,277,1)) -> 0 | G20: =SUMIF(Census!$B$19:$B$218,$O20,OFFSET(Census!$AD$19,0,MATCH(G$68,Census!$AD$18:$DD$18,0)-1,277,1))-F20 -> 0 | H20: =SUMIF(Census!$X$19:$X$218,$O20&"/Employee/Y",OFFSET(Census!$AD$19,0,MATCH(H$68,Census!$AD$18:$DD$18,0)-1,277,1)) -> 0 | I20: =SUMIF(Census!$B$19:$B$218,$O20,OFFSET(Census!$AD$19,0,MATCH(I$68,Census!$AD$18:$DD$18,0)-1,277,1))-H20 -> 0 | J20: =SUMIF(Census!$X$19:$X$218,$O20&"/Employee/Y",OFFSET(Census!$AD$19,0,MATCH(J$68,Census!$AD$18:$DD$18,0)-1,277,1)) -> 0 | K20: =SUMIF(Census!$B$19:$B$218,$O20,OFFSET(Census!$AD$19,0,MATCH(K$68,Census!$AD$18:$DD$18,0)-1,277,1))-J20 -> 0 | L20: =SUMIF(Census!$X$19:$X$218,$O20&"/Employee/Y",OFFSET(Census!$AD$19,0,MATCH(L$68,Census!$AD$18:$DD$18,0)-1,277,1)) -> 0 | M20: =SUMIF(Census!$B$19:$B$218,$O20,OFFSET(Census!$AD$19,0,MATCH(M$68,Census!$AD$18:$DD$18,0)-1,277,1))-L20 -> 0 | O20: 8 | P20: HIDE
B21: =VLOOKUP(O21,Census!$B$19:$C$218,2,FALSE) ->  | C21: =VLOOKUP($O21,Census!$B$19:$G$218,6,FALSE) ->  | D21: =SUMIF(Census!$X$19:$X$218,$O21&"/Employee/Y",OFFSET(Census!$AD$19,0,MATCH(D$68,Census!$AD$18:$DD$18,0)-1,277,1)) -> 0 | E21: =SUMIF(Census!$B$19:$B$218,$O21,OFFSET(Census!$AD$19,0,MATCH(E$68,Census!$AD$18:$DD$18,0)-1,277,1))-D21 -> 0 | F21: =SUMIF(Census!$X$19:$X$218,$O21&"/Employee/Y",OFFSET(Census!$AD$19,0,MATCH(F$68,Census!$AD$18:$DD$18,0)-1,277,1)) -> 0 | G21: =SUMIF(Census!$B$19:$B$218,$O21,OFFSET(Census!$AD$19,0,MATCH(G$68,Census!$AD$18:$DD$18,0)-1,277,1))-F21 -> 0 | H21: =SUMIF(Census!$X$19:$X$218,$O21&"/Employee/Y",OFFSET(Census!$AD$19,0,MATCH(H$68,Census!$AD$18:$DD$18,0)-1,277,1)) -> 0 | I21: =SUMIF(Census!$B$19:$B$218,$O21,OFFSET(Census!$AD$19,0,MATCH(I$68,Census!$AD$18:$DD$18,0)-1,277,1))-H21 -> 0 | J21: =SUMIF(Census!$X$19:$X$218,$O21&"/Employee/Y",OFFSET(Census!$AD$19,0,MATCH(J$68,Census!$AD$18:$DD$18,0)-1,277,1)) -> 0 | K21: =SUMIF(Census!$B$19:$B$218,$O21,OFFSET(Census!$AD$19,0,MATCH(K$68,Census!$AD$18:$DD$18,0)-1,277,1))-J21 -> 0 | L21: =SUMIF(Census!$X$19:$X$218,$O21&"/Employee/Y",OFFSET(Census!$AD$19,0,MATCH(L$68,Census!$AD$18:$DD$18,0)-1,277,1)) -> 0 | M21: =SUMIF(Census!$B$19:$B$218,$O21,OFFSET(Census!$AD$19,0,MATCH(M$68,Census!$AD$18:$DD$18,0)-1,277,1))-L21 -> 0 | O21: 9 | P21: HIDE
B22: =VLOOKUP(O22,Census!$B$19:$C$218,2,FALSE) ->  | C22: =VLOOKUP($O22,Census!$B$19:$G$218,6,FALSE) ->  | D22: =SUMIF(Census!$X$19:$X$218,$O22&"/Employee/Y",OFFSET(Census!$AD$19,0,MATCH(D$68,Census!$AD$18:$DD$18,0)-1,277,1)) -> 0 | E22: =SUMIF(Census!$B$19:$B$218,$O22,OFFSET(Census!$AD$19,0,MATCH(E$68,Census!$AD$18:$DD$18,0)-1,277,1))-D22 -> 0 | F22: =SUMIF(Census!$X$19:$X$218,$O22&"/Employee/Y",OFFSET(Census!$AD$19,0,MATCH(F$68,Census!$AD$18:$DD$18,0)-1,277,1)) -> 0 | G22: =SUMIF(Census!$B$19:$B$218,$O22,OFFSET(Census!$AD$19,0,MATCH(G$68,Census!$AD$18:$DD$18,0)-1,277,1))-F22 -> 0 | H22: =SUMIF(Census!$X$19:$X$218,$O22&"/Employee/Y",OFFSET(Census!$AD$19,0,MATCH(H$68,Census!$AD$18:$DD$18,0)-1,277,1)) -> 0 | I22: =SUMIF(Census!$B$19:$B$218,$O22,OFFSET(Census!$AD$19,0,MATCH(I$68,Census!$AD$18:$DD$18,0)-1,277,1))-H22 -> 0 | J22: =SUMIF(Census!$X$19:$X$218,$O22&"/Employee/Y",OFFSET(Census!$AD$19,0,MATCH(J$68,Census!$AD$18:$DD$18,0)-1,277,1)) -> 0 | K22: =SUMIF(Census!$B$19:$B$218,$O22,OFFSET(Census!$AD$19,0,MATCH(K$68,Census!$AD$18:$DD$18,0)-1,277,1))-J22 -> 0 | L22: =SUMIF(Census!$X$19:$X$218,$O22&"/Employee/Y",OFFSET(Census!$AD$19,0,MATCH(L$68,Census!$AD$18:$DD$18,0)-1,277,1)) -> 0 | M22: =SUMIF(Census!$B$19:$B$218,$O22,OFFSET(Census!$AD$19,0,MATCH(M$68,Census!$AD$18:$DD$18,0)-1,277,1))-L22 -> 0 | O22: 10 | P22: HIDE
B23: =VLOOKUP(O23,Census!$B$19:$C$218,2,FALSE) ->  | C23: =VLOOKUP($O23,Census!$B$19:$G$218,6,FALSE) ->  | D23: =SUMIF(Census!$X$19:$X$218,$O23&"/Employee/Y",OFFSET(Census!$AD$19,0,MATCH(D$68,Census!$AD$18:$DD$18,0)-1,277,1)) -> 0 | E23: =SUMIF(Census!$B$19:$B$218,$O23,OFFSET(Census!$AD$19,0,MATCH(E$68,Census!$AD$18:$DD$18,0)-1,277,1))-D23 -> 0 | F23: =SUMIF(Census!$X$19:$X$218,$O23&"/Employee/Y",OFFSET(Census!$AD$19,0,MATCH(F$68,Census!$AD$18:$DD$18,0)-1,277,1)) -> 0 | G23: =SUMIF(Census!$B$19:$B$218,$O23,OFFSET(Census!$AD$19,0,MATCH(G$68,Census!$AD$18:$DD$18,0)-1,277,1))-F23 -> 0 | H23: =SUMIF(Census!$X$19:$X$218,$O23&"/Employee/Y",OFFSET(Census!$AD$19,0,MATCH(H$68,Census!$AD$18:$DD$18,0)-1,277,1)) -> 0 | I23: =SUMIF(Census!$B$19:$B$218,$O23,OFFSET(Census!$AD$19,0,MATCH(I$68,Census!$AD$18:$DD$18,0)-1,277,1))-H23 -> 0 | J23: =SUMIF(Census!$X$19:$X$218,$O23&"/Employee/Y",OFFSET(Census!$AD$19,0,MATCH(J$68,Census!$AD$18:$DD$18,0)-1,277,1)) -> 0 | K23: =SUMIF(Census!$B$19:$B$218,$O23,OFFSET(Census!$AD$19,0,MATCH(K$68,Census!$AD$18:$DD$18,0)-1,277,1))-J23 -> 0 | L23: =SUMIF(Census!$X$19:$X$218,$O23&"/Employee/Y",OFFSET(Census!$AD$19,0,MATCH(L$68,Census!$AD$18:$DD$18,0)-1,277,1)) -> 0 | M23: =SUMIF(Census!$B$19:$B$218,$O23,OFFSET(Census!$AD$19,0,MATCH(M$68,Census!$AD$18:$DD$18,0)-1,277,1))-L23 -> 0 | O23: 11 | P23: HIDE
B24: =VLOOKUP(O24,Census!$B$19:$C$218,2,FALSE) ->  | C24: =VLOOKUP($O24,Census!$B$19:$G$218,6,FALSE) ->  | D24: =SUMIF(Census!$X$19:$X$218,$O24&"/Employee/Y",OFFSET(Census!$AD$19,0,MATCH(D$68,Census!$AD$18:$DD$18,0)-1,277,1)) -> 0 | E24: =SUMIF(Census!$B$19:$B$218,$O24,OFFSET(Census!$AD$19,0,MATCH(E$68,Census!$AD$18:$DD$18,0)-1,277,1))-D24 -> 0 | F24: =SUMIF(Census!$X$19:$X$218,$O24&"/Employee/Y",OFFSET(Census!$AD$19,0,MATCH(F$68,Census!$AD$18:$DD$18,0)-1,277,1)) -> 0 | G24: =SUMIF(Census!$B$19:$B$218,$O24,OFFSET(Census!$AD$19,0,MATCH(G$68,Census!$AD$18:$DD$18,0)-1,277,1))-F24 -> 0 | H24: =SUMIF(Census!$X$19:$X$218,$O24&"/Employee/Y",OFFSET(Census!$AD$19,0,MATCH(H$68,Census!$AD$18:$DD$18,0)-1,277,1)) -> 0 | I24: =SUMIF(Census!$B$19:$B$218,$O24,OFFSET(Census!$AD$19,0,MATCH(I$68,Census!$AD$18:$DD$18,0)-1,277,1))-H24 -> 0 | J24: =SUMIF(Census!$X$19:$X$218,$O24&"/Employee/Y",OFFSET(Census!$AD$19,0,MATCH(J$68,Census!$AD$18:$DD$18,0)-1,277,1)) -> 0 | K24: =SUMIF(Census!$B$19:$B$218,$O24,OFFSET(Census!$AD$19,0,MATCH(K$68,Census!$AD$18:$DD$18,0)-1,277,1))-J24 -> 0 | L24: =SUMIF(Census!$X$19:$X$218,$O24&"/Employee/Y",OFFSET(Census!$AD$19,0,MATCH(L$68,Census!$AD$18:$DD$18,0)-1,277,1)) -> 0 | M24: =SUMIF(Census!$B$19:$B$218,$O24,OFFSET(Census!$AD$19,0,MATCH(M$68,Census!$AD$18:$DD$18,0)-1,277,1))-L24 -> 0 | O24: 12 | P24: HIDE
B25: =VLOOKUP(O25,Census!$B$19:$C$218,2,FALSE) ->  | C25: =VLOOKUP($O25,Census!$B$19:$G$218,6,FALSE) ->  | D25: =SUMIF(Census!$X$19:$X$218,$O25&"/Employee/Y",OFFSET(Census!$AD$19,0,MATCH(D$68,Census!$AD$18:$DD$18,0)-1,277,1)) -> 0 | E25: =SUMIF(Census!$B$19:$B$218,$O25,OFFSET(Census!$AD$19,0,MATCH(E$68,Census!$AD$18:$DD$18,0)-1,277,1))-D25 -> 0 | F25: =SUMIF(Census!$X$19:$X$218,$O25&"/Employee/Y",OFFSET(Census!$AD$19,0,MATCH(F$68,Census!$AD$18:$DD$18,0)-1,277,1)) -> 0 | G25: =SUMIF(Census!$B$19:$B$218,$O25,OFFSET(Census!$AD$19,0,MATCH(G$68,Census!$AD$18:$DD$18,0)-1,277,1))-F25 -> 0 | H25: =SUMIF(Census!$X$19:$X$218,$O25&"/Employee/Y",OFFSET(Census!$AD$19,0,MATCH(H$68,Census!$AD$18:$DD$18,0)-1,277,1)) -> 0 | I25: =SUMIF(Census!$B$19:$B$218,$O25,OFFSET(Census!$AD$19,0,MATCH(I$68,Census!$AD$18:$DD$18,0)-1,277,1))-H25 -> 0 | J25: =SUMIF(Census!$X$19:$X$218,$O25&"/Employee/Y",OFFSET(Census!$AD$19,0,MATCH(J$68,Census!$AD$18:$DD$18,0)-1,277,1)) -> 0 | K25: =SUMIF(Census!$B$19:$B$218,$O25,OFFSET(Census!$AD$19,0,MATCH(K$68,Census!$AD$18:$DD$18,0)-1,277,1))-J25 -> 0 | L25: =SUMIF(Census!$X$19:$X$218,$O25&"/Employee/Y",OFFSET(Census!$AD$19,0,MATCH(L$68,Census!$AD$18:$DD$18,0)-1,277,1)) -> 0 | M25: =SUMIF(Census!$B$19:$B$218,$O25,OFFSET(Census!$AD$19,0,MATCH(M$68,Census!$AD$18:$DD$18,0)-1,277,1))-L25 -> 0 | O25: 13 | P25: HIDE
B26: =VLOOKUP(O26,Census!$B$19:$C$218,2,FALSE) ->  | C26: =VLOOKUP($O26,Census!$B$19:$G$218,6,FALSE) ->  | D26: =SUMIF(Census!$X$19:$X$218,$O26&"/Employee/Y",OFFSET(Census!$AD$19,0,MATCH(D$68,Census!$AD$18:$DD$18,0)-1,277,1)) -> 0 | E26: =SUMIF(Census!$B$19:$B$218,$O26,OFFSET(Census!$AD$19,0,MATCH(E$68,Census!$AD$18:$DD$18,0)-1,277,1))-D26 -> 0 | F26: =SUMIF(Census!$X$19:$X$218,$O26&"/Employee/Y",OFFSET(Census!$AD$19,0,MATCH(F$68,Census!$AD$18:$DD$18,0)-1,277,1)) -> 0 | G26: =SUMIF(Census!$B$19:$B$218,$O26,OFFSET(Census!$AD$19,0,MATCH(G$68,Census!$AD$18:$DD$18,0)-1,277,1))-F26 -> 0 | H26: =SUMIF(Census!$X$19:$X$218,$O26&"/Employee/Y",OFFSET(Census!$AD$19,0,MATCH(H$68,Census!$AD$18:$DD$18,0)-1,277,1)) -> 0 | I26: =SUMIF(Census!$B$19:$B$218,$O26,OFFSET(Census!$AD$19,0,MATCH(I$68,Census!$AD$18:$DD$18,0)-1,277,1))-H26 -> 0 | J26: =SUMIF(Census!$X$19:$X$218,$O26&"/Employee/Y",OFFSET(Census!$AD$19,0,MATCH(J$68,Census!$AD$18:$DD$18,0)-1,277,1)) -> 0 | K26: =SUMIF(Census!$B$19:$B$218,$O26,OFFSET(Census!$AD$19,0,MATCH(K$68,Census!$AD$18:$DD$18,0)-1,277,1))-J26 -> 0 | L26: =SUMIF(Census!$X$19:$X$218,$O26&"/Employee/Y",OFFSET(Census!$AD$19,0,MATCH(L$68,Census!$AD$18:$DD$18,0)-1,277,1)) -> 0 | M26: =SUMIF(Census!$B$19:$B$218,$O26,OFFSET(Census!$AD$19,0,MATCH(M$68,Census!$AD$18:$DD$18,0)-1,277,1))-L26 -> 0 | O26: 14 | P26: HIDE
B27: =VLOOKUP(O27,Census!$B$19:$C$218,2,FALSE) ->  | C27: =VLOOKUP($O27,Census!$B$19:$G$218,6,FALSE) ->  | D27: =SUMIF(Census!$X$19:$X$218,$O27&"/Employee/Y",OFFSET(Census!$AD$19,0,MATCH(D$68,Census!$AD$18:$DD$18,0)-1,277,1)) -> 0 | E27: =SUMIF(Census!$B$19:$B$218,$O27,OFFSET(Census!$AD$19,0,MATCH(E$68,Census!$AD$18:$DD$18,0)-1,277,1))-D27 -> 0 | F27: =SUMIF(Census!$X$19:$X$218,$O27&"/Employee/Y",OFFSET(Census!$AD$19,0,MATCH(F$68,Census!$AD$18:$DD$18,0)-1,277,1)) -> 0 | G27: =SUMIF(Census!$B$19:$B$218,$O27,OFFSET(Census!$AD$19,0,MATCH(G$68,Census!$AD$18:$DD$18,0)-1,277,1))-F27 -> 0 | H27: =SUMIF(Census!$X$19:$X$218,$O27&"/Employee/Y",OFFSET(Census!$AD$19,0,MATCH(H$68,Census!$AD$18:$DD$18,0)-1,277,1)) -> 0 | I27: =SUMIF(Census!$B$19:$B$218,$O27,OFFSET(Census!$AD$19,0,MATCH(I$68,Census!$AD$18:$DD$18,0)-1,277,1))-H27 -> 0 | J27: =SUMIF(Census!$X$19:$X$218,$O27&"/Employee/Y",OFFSET(Census!$AD$19,0,MATCH(J$68,Census!$AD$18:$DD$18,0)-1,277,1)) -> 0 | K27: =SUMIF(Census!$B$19:$B$218,$O27,OFFSET(Census!$AD$19,0,MATCH(K$68,Census!$AD$18:$DD$18,0)-1,277,1))-J27 -> 0 | L27: =SUMIF(Census!$X$19:$X$218,$O27&"/Employee/Y",OFFSET(Census!$AD$19,0,MATCH(L$68,Census!$AD$18:$DD$18,0)-1,277,1)) -> 0 | M27: =SUMIF(Census!$B$19:$B$218,$O27,OFFSET(Census!$AD$19,0,MATCH(M$68,Census!$AD$18:$DD$18,0)-1,277,1))-L27 -> 0 | O27: 15 | P27: HIDE
B28: =VLOOKUP(O28,Census!$B$19:$C$218,2,FALSE) ->  | C28: =VLOOKUP($O28,Census!$B$19:$G$218,6,FALSE) ->  | D28: =SUMIF(Census!$X$19:$X$218,$O28&"/Employee/Y",OFFSET(Census!$AD$19,0,MATCH(D$68,Census!$AD$18:$DD$18,0)-1,277,1)) -> 0 | E28: =SUMIF(Census!$B$19:$B$218,$O28,OFFSET(Census!$AD$19,0,MATCH(E$68,Census!$AD$18:$DD$18,0)-1,277,1))-D28 -> 0 | F28: =SUMIF(Census!$X$19:$X$218,$O28&"/Employee/Y",OFFSET(Census!$AD$19,0,MATCH(F$68,Census!$AD$18:$DD$18,0)-1,277,1)) -> 0 | G28: =SUMIF(Census!$B$19:$B$218,$O28,OFFSET(Census!$AD$19,0,MATCH(G$68,Census!$AD$18:$DD$18,0)-1,277,1))-F28 -> 0 | H28: =SUMIF(Census!$X$19:$X$218,$O28&"/Employee/Y",OFFSET(Census!$AD$19,0,MATCH(H$68,Census!$AD$18:$DD$18,0)-1,277,1)) -> 0 | I28: =SUMIF(Census!$B$19:$B$218,$O28,OFFSET(Census!$AD$19,0,MATCH(I$68,Census!$AD$18:$DD$18,0)-1,277,1))-H28 -> 0 | J28: =SUMIF(Census!$X$19:$X$218,$O28&"/Employee/Y",OFFSET(Census!$AD$19,0,MATCH(J$68,Census!$AD$18:$DD$18,0)-1,277,1)) -> 0 | K28: =SUMIF(Census!$B$19:$B$218,$O28,OFFSET(Census!$AD$19,0,MATCH(K$68,Census!$AD$18:$DD$18,0)-1,277,1))-J28 -> 0 | L28: =SUMIF(Census!$X$19:$X$218,$O28&"/Employee/Y",OFFSET(Census!$AD$19,0,MATCH(L$68,Census!$AD$18:$DD$18,0)-1,277,1)) -> 0 | M28: =SUMIF(Census!$B$19:$B$218,$O28,OFFSET(Census!$AD$19,0,MATCH(M$68,Census!$AD$18:$DD$18,0)-1,277,1))-L28 -> 0 | O28: 16 | P28: HIDE
B29: =VLOOKUP(O29,Census!$B$19:$C$218,2,FALSE) ->  | C29: =VLOOKUP($O29,Census!$B$19:$G$218,6,FALSE) ->  | D29: =SUMIF(Census!$X$19:$X$218,$O29&"/Employee/Y",OFFSET(Census!$AD$19,0,MATCH(D$68,Census!$AD$18:$DD$18,0)-1,277,1)) -> 0 | E29: =SUMIF(Census!$B$19:$B$218,$O29,OFFSET(Census!$AD$19,0,MATCH(E$68,Census!$AD$18:$DD$18,0)-1,277,1))-D29 -> 0 | F29: =SUMIF(Census!$X$19:$X$218,$O29&"/Employee/Y",OFFSET(Census!$AD$19,0,MATCH(F$68,Census!$AD$18:$DD$18,0)-1,277,1)) -> 0 | G29: =SUMIF(Census!$B$19:$B$218,$O29,OFFSET(Census!$AD$19,0,MATCH(G$68,Census!$AD$18:$DD$18,0)-1,277,1))-F29 -> 0 | H29: =SUMIF(Census!$X$19:$X$218,$O29&"/Employee/Y",OFFSET(Census!$AD$19,0,MATCH(H$68,Census!$AD$18:$DD$18,0)-1,277,1)) -> 0 | I29: =SUMIF(Census!$B$19:$B$218,$O29,OFFSET(Census!$AD$19,0,MATCH(I$68,Census!$AD$18:$DD$18,0)-1,277,1))-H29 -> 0 | J29: =SUMIF(Census!$X$19:$X$218,$O29&"/Employee/Y",OFFSET(Census!$AD$19,0,MATCH(J$68,Census!$AD$18:$DD$18,0)-1,277,1)) -> 0 | K29: =SUMIF(Census!$B$19:$B$218,$O29,OFFSET(Census!$AD$19,0,MATCH(K$68,Census!$AD$18:$DD$18,0)-1,277,1))-J29 -> 0 | L29: =SUMIF(Census!$X$19:$X$218,$O29&"/Employee/Y",OFFSET(Census!$AD$19,0,MATCH(L$68,Census!$AD$18:$DD$18,0)-1,277,1)) -> 0 | M29: =SUMIF(Census!$B$19:$B$218,$O29,OFFSET(Census!$AD$19,0,MATCH(M$68,Census!$AD$18:$DD$18,0)-1,277,1))-L29 -> 0 | O29: 17 | P29: HIDE
B30: =VLOOKUP(O30,Census!$B$19:$C$218,2,FALSE) ->  | C30: =VLOOKUP($O30,Census!$B$19:$G$218,6,FALSE) ->  | D30: =SUMIF(Census!$X$19:$X$218,$O30&"/Employee/Y",OFFSET(Census!$AD$19,0,MATCH(D$68,Census!$AD$18:$DD$18,0)-1,277,1)) -> 0 | E30: =SUMIF(Census!$B$19:$B$218,$O30,OFFSET(Census!$AD$19,0,MATCH(E$68,Census!$AD$18:$DD$18,0)-1,277,1))-D30 -> 0 | F30: =SUMIF(Census!$X$19:$X$218,$O30&"/Employee/Y",OFFSET(Census!$AD$19,0,MATCH(F$68,Census!$AD$18:$DD$18,0)-1,277,1)) -> 0 | G30: =SUMIF(Census!$B$19:$B$218,$O30,OFFSET(Census!$AD$19,0,MATCH(G$68,Census!$AD$18:$DD$18,0)-1,277,1))-F30 -> 0 | H30: =SUMIF(Census!$X$19:$X$218,$O30&"/Employee/Y",OFFSET(Census!$AD$19,0,MATCH(H$68,Census!$AD$18:$DD$18,0)-1,277,1)) -> 0 | I30: =SUMIF(Census!$B$19:$B$218,$O30,OFFSET(Census!$AD$19,0,MATCH(I$68,Census!$AD$18:$DD$18,0)-1,277,1))-H30 -> 0 | J30: =SUMIF(Census!$X$19:$X$218,$O30&"/Employee/Y",OFFSET(Census!$AD$19,0,MATCH(J$68,Census!$AD$18:$DD$18,0)-1,277,1)) -> 0 | K30: =SUMIF(Census!$B$19:$B$218,$O30,OFFSET(Census!$AD$19,0,MATCH(K$68,Census!$AD$18:$DD$18,0)-1,277,1))-J30 -> 0 | L30: =SUMIF(Census!$X$19:$X$218,$O30&"/Employee/Y",OFFSET(Census!$AD$19,0,MATCH(L$68,Census!$AD$18:$DD$18,0)-1,277,1)) -> 0 | M30: =SUMIF(Census!$B$19:$B$218,$O30,OFFSET(Census!$AD$19,0,MATCH(M$68,Census!$AD$18:$DD$18,0)-1,277,1))-L30 -> 0 | O30: 18 | P30: HIDE
B31: =VLOOKUP(O31,Census!$B$19:$C$218,2,FALSE) ->  | C31: =VLOOKUP($O31,Census!$B$19:$G$218,6,FALSE) ->  | D31: =SUMIF(Census!$X$19:$X$218,$O31&"/Employee/Y",OFFSET(Census!$AD$19,0,MATCH(D$68,Census!$AD$18:$DD$18,0)-1,277,1)) -> 0 | E31: =SUMIF(Census!$B$19:$B$218,$O31,OFFSET(Census!$AD$19,0,MATCH(E$68,Census!$AD$18:$DD$18,0)-1,277,1))-D31 -> 0 | F31: =SUMIF(Census!$X$19:$X$218,$O31&"/Employee/Y",OFFSET(Census!$AD$19,0,MATCH(F$68,Census!$AD$18:$DD$18,0)-1,277,1)) -> 0 | G31: =SUMIF(Census!$B$19:$B$218,$O31,OFFSET(Census!$AD$19,0,MATCH(G$68,Census!$AD$18:$DD$18,0)-1,277,1))-F31 -> 0 | H31: =SUMIF(Census!$X$19:$X$218,$O31&"/Employee/Y",OFFSET(Census!$AD$19,0,MATCH(H$68,Census!$AD$18:$DD$18,0)-1,277,1)) -> 0 | I31: =SUMIF(Census!$B$19:$B$218,$O31,OFFSET(Census!$AD$19,0,MATCH(I$68,Census!$AD$18:$DD$18,0)-1,277,1))-H31 -> 0 | J31: =SUMIF(Census!$X$19:$X$218,$O31&"/Employee/Y",OFFSET(Census!$AD$19,0,MATCH(J$68,Census!$AD$18:$DD$18,0)-1,277,1)) -> 0 | K31: =SUMIF(Census!$B$19:$B$218,$O31,OFFSET(Census!$AD$19,0,MATCH(K$68,Census!$AD$18:$DD$18,0)-1,277,1))-J31 -> 0 | L31: =SUMIF(Census!$X$19:$X$218,$O31&"/Employee/Y",OFFSET(Census!$AD$19,0,MATCH(L$68,Census!$AD$18:$DD$18,0)-1,277,1)) -> 0 | M31: =SUMIF(Census!$B$19:$B$218,$O31,OFFSET(Census!$AD$19,0,MATCH(M$68,Census!$AD$18:$DD$18,0)-1,277,1))-L31 -> 0 | O31: 19 | P31: HIDE
B32: =VLOOKUP(O32,Census!$B$19:$C$218,2,FALSE) ->  | C32: =VLOOKUP($O32,Census!$B$19:$G$218,6,FALSE) ->  | D32: =SUMIF(Census!$X$19:$X$218,$O32&"/Employee/Y",OFFSET(Census!$AD$19,0,MATCH(D$68,Census!$AD$18:$DD$18,0)-1,277,1)) -> 0 | E32: =SUMIF(Census!$B$19:$B$218,$O32,OFFSET(Census!$AD$19,0,MATCH(E$68,Census!$AD$18:$DD$18,0)-1,277,1))-D32 -> 0 | F32: =SUMIF(Census!$X$19:$X$218,$O32&"/Employee/Y",OFFSET(Census!$AD$19,0,MATCH(F$68,Census!$AD$18:$DD$18,0)-1,277,1)) -> 0 | G32: =SUMIF(Census!$B$19:$B$218,$O32,OFFSET(Census!$AD$19,0,MATCH(G$68,Census!$AD$18:$DD$18,0)-1,277,1))-F32 -> 0 | H32: =SUMIF(Census!$X$19:$X$218,$O32&"/Employee/Y",OFFSET(Census!$AD$19,0,MATCH(H$68,Census!$AD$18:$DD$18,0)-1,277,1)) -> 0 | I32: =SUMIF(Census!$B$19:$B$218,$O32,OFFSET(Census!$AD$19,0,MATCH(I$68,Census!$AD$18:$DD$18,0)-1,277,1))-H32 -> 0 | J32: =SUMIF(Census!$X$19:$X$218,$O32&"/Employee/Y",OFFSET(Census!$AD$19,0,MATCH(J$68,Census!$AD$18:$DD$18,0)-1,277,1)) -> 0 | K32: =SUMIF(Census!$B$19:$B$218,$O32,OFFSET(Census!$AD$19,0,MATCH(K$68,Census!$AD$18:$DD$18,0)-1,277,1))-J32 -> 0 | L32: =SUMIF(Census!$X$19:$X$218,$O32&"/Employee/Y",OFFSET(Census!$AD$19,0,MATCH(L$68,Census!$AD$18:$DD$18,0)-1,277,1)) -> 0 | M32: =SUMIF(Census!$B$19:$B$218,$O32,OFFSET(Census!$AD$19,0,MATCH(M$68,Census!$AD$18:$DD$18,0)-1,277,1))-L32 -> 0 | O32: 20 | P32: HIDE
B33: =VLOOKUP(O33,Census!$B$19:$C$218,2,FALSE) ->  | C33: =VLOOKUP($O33,Census!$B$19:$G$218,6,FALSE) ->  | D33: =SUMIF(Census!$X$19:$X$218,$O33&"/Employee/Y",OFFSET(Census!$AD$19,0,MATCH(D$68,Census!$AD$18:$DD$18,0)-1,277,1)) -> 0 | E33: =SUMIF(Census!$B$19:$B$218,$O33,OFFSET(Census!$AD$19,0,MATCH(E$68,Census!$AD$18:$DD$18,0)-1,277,1))-D33 -> 0 | F33: =SUMIF(Census!$X$19:$X$218,$O33&"/Employee/Y",OFFSET(Census!$AD$19,0,MATCH(F$68,Census!$AD$18:$DD$18,0)-1,277,1)) -> 0 | G33: =SUMIF(Census!$B$19:$B$218,$O33,OFFSET(Census!$AD$19,0,MATCH(G$68,Census!$AD$18:$DD$18,0)-1,277,1))-F33 -> 0 | H33: =SUMIF(Census!$X$19:$X$218,$O33&"/Employee/Y",OFFSET(Census!$AD$19,0,MATCH(H$68,Census!$AD$18:$DD$18,0)-1,277,1)) -> 0 | I33: =SUMIF(Census!$B$19:$B$218,$O33,OFFSET(Census!$AD$19,0,MATCH(I$68,Census!$AD$18:$DD$18,0)-1,277,1))-H33 -> 0 | J33: =SUMIF(Census!$X$19:$X$218,$O33&"/Employee/Y",OFFSET(Census!$AD$19,0,MATCH(J$68,Census!$AD$18:$DD$18,0)-1,277,1)) -> 0 | K33: =SUMIF(Census!$B$19:$B$218,$O33,OFFSET(Census!$AD$19,0,MATCH(K$68,Census!$AD$18:$DD$18,0)-1,277,1))-J33 -> 0 | L33: =SUMIF(Census!$X$19:$X$218,$O33&"/Employee/Y",OFFSET(Census!$AD$19,0,MATCH(L$68,Census!$AD$18:$DD$18,0)-1,277,1)) -> 0 | M33: =SUMIF(Census!$B$19:$B$218,$O33,OFFSET(Census!$AD$19,0,MATCH(M$68,Census!$AD$18:$DD$18,0)-1,277,1))-L33 -> 0 | O33: 21 | P33: HIDE
B34: =VLOOKUP(O34,Census!$B$19:$C$218,2,FALSE) ->  | C34: =VLOOKUP($O34,Census!$B$19:$G$218,6,FALSE) ->  | D34: =SUMIF(Census!$X$19:$X$218,$O34&"/Employee/Y",OFFSET(Census!$AD$19,0,MATCH(D$68,Census!$AD$18:$DD$18,0)-1,277,1)) -> 0 | E34: =SUMIF(Census!$B$19:$B$218,$O34,OFFSET(Census!$AD$19,0,MATCH(E$68,Census!$AD$18:$DD$18,0)-1,277,1))-D34 -> 0 | F34: =SUMIF(Census!$X$19:$X$218,$O34&"/Employee/Y",OFFSET(Census!$AD$19,0,MATCH(F$68,Census!$AD$18:$DD$18,0)-1,277,1)) -> 0 | G34: =SUMIF(Census!$B$19:$B$218,$O34,OFFSET(Census!$AD$19,0,MATCH(G$68,Census!$AD$18:$DD$18,0)-1,277,1))-F34 -> 0 | H34: =SUMIF(Census!$X$19:$X$218,$O34&"/Employee/Y",OFFSET(Census!$AD$19,0,MATCH(H$68,Census!$AD$18:$DD$18,0)-1,277,1)) -> 0 | I34: =SUMIF(Census!$B$19:$B$218,$O34,OFFSET(Census!$AD$19,0,MATCH(I$68,Census!$AD$18:$DD$18,0)-1,277,1))-H34 -> 0 | J34: =SUMIF(Census!$X$19:$X$218,$O34&"/Employee/Y",OFFSET(Census!$AD$19,0,MATCH(J$68,Census!$AD$18:$DD$18,0)-1,277,1)) -> 0 | K34: =SUMIF(Census!$B$19:$B$218,$O34,OFFSET(Census!$AD$19,0,MATCH(K$68,Census!$AD$18:$DD$18,0)-1,277,1))-J34 -> 0 | L34: =SUMIF(Census!$X$19:$X$218,$O34&"/Employee/Y",OFFSET(Census!$AD$19,0,MATCH(L$68,Census!$AD$18:$DD$18,0)-1,277,1)) -> 0 | M34: =SUMIF(Census!$B$19:$B$218,$O34,OFFSET(Census!$AD$19,0,MATCH(M$68,Census!$AD$18:$DD$18,0)-1,277,1))-L34 -> 0 | O34: 22 | P34: HIDE
B35: =VLOOKUP(O35,Census!$B$19:$C$218,2,FALSE) ->  | C35: =VLOOKUP($O35,Census!$B$19:$G$218,6,FALSE) ->  | D35: =SUMIF(Census!$X$19:$X$218,$O35&"/Employee/Y",OFFSET(Census!$AD$19,0,MATCH(D$68,Census!$AD$18:$DD$18,0)-1,277,1)) -> 0 | E35: =SUMIF(Census!$B$19:$B$218,$O35,OFFSET(Census!$AD$19,0,MATCH(E$68,Census!$AD$18:$DD$18,0)-1,277,1))-D35 -> 0 | F35: =SUMIF(Census!$X$19:$X$218,$O35&"/Employee/Y",OFFSET(Census!$AD$19,0,MATCH(F$68,Census!$AD$18:$DD$18,0)-1,277,1)) -> 0 | G35: =SUMIF(Census!$B$19:$B$218,$O35,OFFSET(Census!$AD$19,0,MATCH(G$68,Census!$AD$18:$DD$18,0)-1,277,1))-F35 -> 0 | H35: =SUMIF(Census!$X$19:$X$218,$O35&"/Employee/Y",OFFSET(Census!$AD$19,0,MATCH(H$68,Census!$AD$18:$DD$18,0)-1,277,1)) -> 0 | I35: =SUMIF(Census!$B$19:$B$218,$O35,OFFSET(Census!$AD$19,0,MATCH(I$68,Census!$AD$18:$DD$18,0)-1,277,1))-H35 -> 0 | J35: =SUMIF(Census!$X$19:$X$218,$O35&"/Employee/Y",OFFSET(Census!$AD$19,0,MATCH(J$68,Census!$AD$18:$DD$18,0)-1,277,1)) -> 0 | K35: =SUMIF(Census!$B$19:$B$218,$O35,OFFSET(Census!$AD$19,0,MATCH(K$68,Census!$AD$18:$DD$18,0)-1,277,1))-J35 -> 0 | L35: =SUMIF(Census!$X$19:$X$218,$O35&"/Employee/Y",OFFSET(Census!$AD$19,0,MATCH(L$68,Census!$AD$18:$DD$18,0)-1,277,1)) -> 0 | M35: =SUMIF(Census!$B$19:$B$218,$O35,OFFSET(Census!$AD$19,0,MATCH(M$68,Census!$AD$18:$DD$18,0)-1,277,1))-L35 -> 0 | O35: 23 | P35: HIDE
B36: =VLOOKUP(O36,Census!$B$19:$C$218,2,FALSE) ->  | C36: =VLOOKUP($O36,Census!$B$19:$G$218,6,FALSE) ->  | D36: =SUMIF(Census!$X$19:$X$218,$O36&"/Employee/Y",OFFSET(Census!$AD$19,0,MATCH(D$68,Census!$AD$18:$DD$18,0)-1,277,1)) -> 0 | E36: =SUMIF(Census!$B$19:$B$218,$O36,OFFSET(Census!$AD$19,0,MATCH(E$68,Census!$AD$18:$DD$18,0)-1,277,1))-D36 -> 0 | F36: =SUMIF(Census!$X$19:$X$218,$O36&"/Employee/Y",OFFSET(Census!$AD$19,0,MATCH(F$68,Census!$AD$18:$DD$18,0)-1,277,1)) -> 0 | G36: =SUMIF(Census!$B$19:$B$218,$O36,OFFSET(Census!$AD$19,0,MATCH(G$68,Census!$AD$18:$DD$18,0)-1,277,1))-F36 -> 0 | H36: =SUMIF(Census!$X$19:$X$218,$O36&"/Employee/Y",OFFSET(Census!$AD$19,0,MATCH(H$68,Census!$AD$18:$DD$18,0)-1,277,1)) -> 0 | I36: =SUMIF(Census!$B$19:$B$218,$O36,OFFSET(Census!$AD$19,0,MATCH(I$68,Census!$AD$18:$DD$18,0)-1,277,1))-H36 -> 0 | J36: =SUMIF(Census!$X$19:$X$218,$O36&"/Employee/Y",OFFSET(Census!$AD$19,0,MATCH(J$68,Census!$AD$18:$DD$18,0)-1,277,1)) -> 0 | K36: =SUMIF(Census!$B$19:$B$218,$O36,OFFSET(Census!$AD$19,0,MATCH(K$68,Census!$AD$18:$DD$18,0)-1,277,1))-J36 -> 0 | L36: =SUMIF(Census!$X$19:$X$218,$O36&"/Employee/Y",OFFSET(Census!$AD$19,0,MATCH(L$68,Census!$AD$18:$DD$18,0)-1,277,1)) -> 0 | M36: =SUMIF(Census!$B$19:$B$218,$O36,OFFSET(Census!$AD$19,0,MATCH(M$68,Census!$AD$18:$DD$18,0)-1,277,1))-L36 -> 0 | O36: 24 | P36: HIDE
B37: =VLOOKUP(O37,Census!$B$19:$C$218,2,FALSE) ->  | C37: =VLOOKUP($O37,Census!$B$19:$G$218,6,FALSE) ->  | D37: =SUMIF(Census!$X$19:$X$218,$O37&"/Employee/Y",OFFSET(Census!$AD$19,0,MATCH(D$68,Census!$AD$18:$DD$18,0)-1,277,1)) -> 0 | E37: =SUMIF(Census!$B$19:$B$218,$O37,OFFSET(Census!$AD$19,0,MATCH(E$68,Census!$AD$18:$DD$18,0)-1,277,1))-D37 -> 0 | F37: =SUMIF(Census!$X$19:$X$218,$O37&"/Employee/Y",OFFSET(Census!$AD$19,0,MATCH(F$68,Census!$AD$18:$DD$18,0)-1,277,1)) -> 0 | G37: =SUMIF(Census!$B$19:$B$218,$O37,OFFSET(Census!$AD$19,0,MATCH(G$68,Census!$AD$18:$DD$18,0)-1,277,1))-F37 -> 0 | H37: =SUMIF(Census!$X$19:$X$218,$O37&"/Employee/Y",OFFSET(Census!$AD$19,0,MATCH(H$68,Census!$AD$18:$DD$18,0)-1,277,1)) -> 0 | I37: =SUMIF(Census!$B$19:$B$218,$O37,OFFSET(Census!$AD$19,0,MATCH(I$68,Census!$AD$18:$DD$18,0)-1,277,1))-H37 -> 0 | J37: =SUMIF(Census!$X$19:$X$218,$O37&"/Employee/Y",OFFSET(Census!$AD$19,0,MATCH(J$68,Census!$AD$18:$DD$18,0)-1,277,1)) -> 0 | K37: =SUMIF(Census!$B$19:$B$218,$O37,OFFSET(Census!$AD$19,0,MATCH(K$68,Census!$AD$18:$DD$18,0)-1,277,1))-J37 -> 0 | L37: =SUMIF(Census!$X$19:$X$218,$O37&"/Employee/Y",OFFSET(Census!$AD$19,0,MATCH(L$68,Census!$AD$18:$DD$18,0)-1,277,1)) -> 0 | M37: =SUMIF(Census!$B$19:$B$218,$O37,OFFSET(Census!$AD$19,0,MATCH(M$68,Census!$AD$18:$DD$18,0)-1,277,1))-L37 -> 0 | O37: 25 | P37: HIDE
B38: =VLOOKUP(O38,Census!$B$19:$C$218,2,FALSE) ->  | C38: =VLOOKUP($O38,Census!$B$19:$G$218,6,FALSE) ->  | D38: =SUMIF(Census!$X$19:$X$218,$O38&"/Employee/Y",OFFSET(Census!$AD$19,0,MATCH(D$68,Census!$AD$18:$DD$18,0)-1,277,1)) -> 0 | E38: =SUMIF(Census!$B$19:$B$218,$O38,OFFSET(Census!$AD$19,0,MATCH(E$68,Census!$AD$18:$DD$18,0)-1,277,1))-D38 -> 0 | F38: =SUMIF(Census!$X$19:$X$218,$O38&"/Employee/Y",OFFSET(Census!$AD$19,0,MATCH(F$68,Census!$AD$18:$DD$18,0)-1,277,1)) -> 0 | G38: =SUMIF(Census!$B$19:$B$218,$O38,OFFSET(Census!$AD$19,0,MATCH(G$68,Census!$AD$18:$DD$18,0)-1,277,1))-F38 -> 0 | H38: =SUMIF(Census!$X$19:$X$218,$O38&"/Employee/Y",OFFSET(Census!$AD$19,0,MATCH(H$68,Census!$AD$18:$DD$18,0)-1,277,1)) -> 0 | I38: =SUMIF(Census!$B$19:$B$218,$O38,OFFSET(Census!$AD$19,0,MATCH(I$68,Census!$AD$18:$DD$18,0)-1,277,1))-H38 -> 0 | J38: =SUMIF(Census!$X$19:$X$218,$O38&"/Employee/Y",OFFSET(Census!$AD$19,0,MATCH(J$68,Census!$AD$18:$DD$18,0)-1,277,1)) -> 0 | K38: =SUMIF(Census!$B$19:$B$218,$O38,OFFSET(Census!$AD$19,0,MATCH(K$68,Census!$AD$18:$DD$18,0)-1,277,1))-J38 -> 0 | L38: =SUMIF(Census!$X$19:$X$218,$O38&"/Employee/Y",OFFSET(Census!$AD$19,0,MATCH(L$68,Census!$AD$18:$DD$18,0)-1,277,1)) -> 0 | M38: =SUMIF(Census!$B$19:$B$218,$O38,OFFSET(Census!$AD$19,0,MATCH(M$68,Census!$AD$18:$DD$18,0)-1,277,1))-L38 -> 0 | O38: 26 | P38: HIDE
B39: =VLOOKUP(O39,Census!$B$19:$C$218,2,FALSE) ->  | C39: =VLOOKUP($O39,Census!$B$19:$G$218,6,FALSE) ->  | D39: =SUMIF(Census!$X$19:$X$218,$O39&"/Employee/Y",OFFSET(Census!$AD$19,0,MATCH(D$68,Census!$AD$18:$DD$18,0)-1,277,1)) -> 0 | E39: =SUMIF(Census!$B$19:$B$218,$O39,OFFSET(Census!$AD$19,0,MATCH(E$68,Census!$AD$18:$DD$18,0)-1,277,1))-D39 -> 0 | F39: =SUMIF(Census!$X$19:$X$218,$O39&"/Employee/Y",OFFSET(Census!$AD$19,0,MATCH(F$68,Census!$AD$18:$DD$18,0)-1,277,1)) -> 0 | G39: =SUMIF(Census!$B$19:$B$218,$O39,OFFSET(Census!$AD$19,0,MATCH(G$68,Census!$AD$18:$DD$18,0)-1,277,1))-F39 -> 0 | H39: =SUMIF(Census!$X$19:$X$218,$O39&"/Employee/Y",OFFSET(Census!$AD$19,0,MATCH(H$68,Census!$AD$18:$DD$18,0)-1,277,1)) -> 0 | I39: =SUMIF(Census!$B$19:$B$218,$O39,OFFSET(Census!$AD$19,0,MATCH(I$68,Census!$AD$18:$DD$18,0)-1,277,1))-H39 -> 0 | J39: =SUMIF(Census!$X$19:$X$218,$O39&"/Employee/Y",OFFSET(Census!$AD$19,0,MATCH(J$68,Census!$AD$18:$DD$18,0)-1,277,1)) -> 0 | K39: =SUMIF(Census!$B$19:$B$218,$O39,OFFSET(Census!$AD$19,0,MATCH(K$68,Census!$AD$18:$DD$18,0)-1,277,1))-J39 -> 0 | L39: =SUMIF(Census!$X$19:$X$218,$O39&"/Employee/Y",OFFSET(Census!$AD$19,0,MATCH(L$68,Census!$AD$18:$DD$18,0)-1,277,1)) -> 0 | M39: =SUMIF(Census!$B$19:$B$218,$O39,OFFSET(Census!$AD$19,0,MATCH(M$68,Census!$AD$18:$DD$18,0)-1,277,1))-L39 -> 0 | O39: 27 | P39: HIDE
B40: =VLOOKUP(O40,Census!$B$19:$C$218,2,FALSE) ->  | C40: =VLOOKUP($O40,Census!$B$19:$G$218,6,FALSE) ->  | D40: =SUMIF(Census!$X$19:$X$218,$O40&"/Employee/Y",OFFSET(Census!$AD$19,0,MATCH(D$68,Census!$AD$18:$DD$18,0)-1,277,1)) -> 0 | E40: =SUMIF(Census!$B$19:$B$218,$O40,OFFSET(Census!$AD$19,0,MATCH(E$68,Census!$AD$18:$DD$18,0)-1,277,1))-D40 -> 0 | F40: =SUMIF(Census!$X$19:$X$218,$O40&"/Employee/Y",OFFSET(Census!$AD$19,0,MATCH(F$68,Census!$AD$18:$DD$18,0)-1,277,1)) -> 0 | G40: =SUMIF(Census!$B$19:$B$218,$O40,OFFSET(Census!$AD$19,0,MATCH(G$68,Census!$AD$18:$DD$18,0)-1,277,1))-F40 -> 0 | H40: =SUMIF(Census!$X$19:$X$218,$O40&"/Employee/Y",OFFSET(Census!$AD$19,0,MATCH(H$68,Census!$AD$18:$DD$18,0)-1,277,1)) -> 0 | I40: =SUMIF(Census!$B$19:$B$218,$O40,OFFSET(Census!$AD$19,0,MATCH(I$68,Census!$AD$18:$DD$18,0)-1,277,1))-H40 -> 0 | J40: =SUMIF(Census!$X$19:$X$218,$O40&"/Employee/Y",OFFSET(Census!$AD$19,0,MATCH(J$68,Census!$AD$18:$DD$18,0)-1,277,1)) -> 0 | K40: =SUMIF(Census!$B$19:$B$218,$O40,OFFSET(Census!$AD$19,0,MATCH(K$68,Census!$AD$18:$DD$18,0)-1,277,1))-J40 -> 0 | L40: =SUMIF(Census!$X$19:$X$218,$O40&"/Employee/Y",OFFSET(Census!$AD$19,0,MATCH(L$68,Census!$AD$18:$DD$18,0)-1,277,1)) -> 0 | M40: =SUMIF(Census!$B$19:$B$218,$O40,OFFSET(Census!$AD$19,0,MATCH(M$68,Census!$AD$18:$DD$18,0)-1,277,1))-L40 -> 0 | O40: 28 | P40: HIDE
